Workbook

Sheet Legend (hidden)
B1: METRIC | C1: DEFINITION | D1: Line | E1: COMMENT
B2: 010 Series | C2: Initial entitlement for service-connected disability (=>8 issues) | D2: Comp | E2: Rating Bundle: Claims for disability compensation, dependency and indemnity compensation, and Veterans’ pension benefits, including both original and supplemental claims. Rating Bundle claims normally require a rating decision during processing. The Rating Bundle Group is made up of 8 series and 1 group of End Products, plus 5 Agent Orange End Products, which are used to define VA Priority goals for Accuracy and reduction of claims over 125 days old
B3: 110 Series | C3: Initial entitlement for service-connected disability (<=7 issues) | D3: Comp
B4: 020 Series | C4: Increased evaluation and/or additional claimed conditions | D4: Comp
B5: 140 Series | C5: Initial claims from surviving spouses, children or parents | D5: Comp
B6: 180 Series | C6: Initial entitlement for Pension - Veteran | D6: Pension
B7: 120 Series | C7: Increased entitlement and/or reconsideration for Pension | D7: Pension
B8: 310 Group | C8: Future examination for disabilities (excludes EP 314) | D8: Comp
B9: 320 Series | C9: Increased entitlement due to hospitalization or surgery | D9: Comp
B10: EP 405 | C10: Reopened or new Agent Orange claims between 9/01/10 and 10/24/2011 | D10: Comp
B11: EP 409 | C11: Agent Orange claims where an interim decision was provided; No longer used as of 10/24/2011 | D11: Comp
B12: EP 681 | C12: Used to control claims under the Nehmer Agent Orange stipulation | D12: Comp
B13: EP 687 | C13: Previously used for Nehmer Agent Orange presumptive issues | D13: Comp
B14: 040 Series | C14: Decision Review Request - AMA Supplemental Claims | D14: Comp
B15: EP 688 | C15: NDAA Agent Orange Nehmer Reviews (3 new authorized disabilities) | D15: Comp
B16: EP 335 | C16: Blue Water Navy Agent Orange (effective 1/1/2010) | D16: Comp | E16: Not-Rating: Claims for disability compensation, dependency and indemnity compensation, and Veterans’ pension benefits, which can but normally do not require a rating decision (i.e. claim to add dependent to award).
B19: ADP | C19: Average Days Pending, or total number of days pending divided by total number of claims pending
B20: ADC | C20: Average Days to Complete or total number of days to complete divided by total number of claims completed
B22: MTD | C22: Month to Date. Captures claim activity from the first day of the reporting month through the report date
B23: FYTD | C23: Fiscal Year to Date. Captures claim activity from the first day of the current fiscal year through the report date
B25: SOJ | C25: Station of Jurisdiction, or the Regional Office assigned to work the claim
B26: SOO | C26: Station of Origin, or the Regional Office with geographic oversight of the claim
B28: Pending Development | C28: Claims that are awaiting development initiation, which may involve gathering supporting evidence, medical exams, and military documentation.
B30: Pending Evidence | C30: Claims that are in the process of gathering supporting evidence and possibly medical exams.
B32: Pending Decision | C32: Claims that are awaiting an evidence review and decision by a rating specialist
B34: Pending Award | C34: Claims that are awaiting a first-level review of the evidence gathered and the decision.
B36: Pending Authorization | C36: Claims that are awaiting a final review of all aspects of the claim, which results in a notification to the claimant on the outcome of their claim.

Sheet DT (hidden)
A1: ST_DATE
A2: 2024-01-27

Sheet Data (hidden)
A1: MT | B1: CAT | C1: LOC | D1: EP | E1: INV | F1: BL | G1: ADP | H1: PROD_MTD | I1: PROD_FYTD | J1: ADCM | K1: ADCF | L1: DEV | M1: EVD | N1: DEC | O1: AWD | P1: AUT
A2: 1 | B2: 2000 | C2: -1 | D2: -1 | E2: 34038 | F2: 10065 | G2: 102.91
A3: 1 | B3: 2000 | C3: 100 | D3: -1 | E3: 296551 | F3: 67165 | G3: 91.72
A4: 1 | B4: 2000 | C4: 301 | D4: -1 | E4: 1808 | F4: 394 | G4: 91.43
A5: 1 | B5: 2000 | C5: 304 | D5: -1 | E5: 1164 | F5: 219 | G5: 77.88
A6: 1 | B6: 2000 | C6: 306 | D6: -1 | E6: 2832 | F6: 573 | G6: 84.76
A7: 1 | B7: 2000 | C7: 307 | D7: -1 | E7: 2443 | F7: 535 | G7: 87.29
A8: 1 | B8: 2000 | C8: 308 | D8: -1 | E8: 982 | F8: 214 | G8: 86.65
A9: 1 | B9: 2000 | C9: 309 | D9: -1 | E9: 1796 | F9: 385 | G9: 86.73
A10: 1 | B10: 2000 | C10: 310 | D10: -1 | E10: 6077 | F10: 1242 | G10: 82.25
A11: 1 | B11: 2000 | C11: 311 | D11: -1 | E11: 3977 | F11: 811 | G11: 87.17
A12: 1 | B12: 2000 | C12: 313 | D12: -1 | E12: 4889 | F12: 1106 | G12: 225.66
A13: 1 | B13: 2000 | C13: 314 | D13: -1 | E13: 12520 | F13: 2667 | G13: 87.68
A14: 1 | B14: 2000 | C14: 315 | D14: -1 | E14: 1544 | F14: 457 | G14: 95.87
A15: 1 | B15: 2000 | C15: 316 | D15: -1 | E15: 11538 | F15: 2587 | G15: 89.47
A16: 1 | B16: 2000 | C16: 317 | D16: -1 | E16: 17634 | F16: 3722 | G16: 86.21
A17: 1 | B17: 2000 | C17: 318 | D17: -1 | E17: 12968 | F17: 3086 | G17: 91.81
A18: 1 | B18: 2000 | C18: 319 | D18: -1 | E18: 7582 | F18: 1240 | G18: 74.29
A19: 1 | B19: 2000 | C19: 320 | D19: -1 | E19: 6777 | F19: 1603 | G19: 93.27
A20: 1 | B20: 2000 | C20: 321 | D20: -1 | E20: 3697 | F20: 784 | G20: 87.11
A21: 1 | B21: 2000 | C21: 322 | D21: -1 | E21: 5468 | F21: 1201 | G21: 87.92
A22: 1 | B22: 2000 | C22: 323 | D22: -1 | E22: 2782 | F22: 686 | G22: 93.78
A23: 1 | B23: 2000 | C23: 325 | D23: -1 | E23: 6874 | F23: 1650 | G23: 94.6
A24: 1 | B24: 2000 | C24: 326 | D24: -1 | E24: 6459 | F24: 1134 | G24: 75.8
A25: 1 | B25: 2000 | C25: 327 | D25: -1 | E25: 4768 | F25: 820 | G25: 81.17
A26: 1 | B26: 2000 | C26: 328 | D26: -1 | E26: 4877 | F26: 1081 | G26: 89.36
A27: 1 | B27: 2000 | C27: 329 | D27: -1 | E27: 6215 | F27: 1162 | G27: 88.86
A28: 1 | B28: 2000 | C28: 330 | D28: -1 | E28: 7070 | F28: 1219 | G28: 78.98
A29: 1 | B29: 2000 | C29: 331 | D29: -1 | E29: 4161 | F29: 965 | G29: 89.98
A30: 1 | B30: 2000 | C30: 333 | D30: -1 | E30: 1566 | F30: 357 | G30: 89.12
A31: 1 | B31: 2000 | C31: 334 | D31: -1 | E31: 2619 | F31: 373 | G31: 65.34
A32: 1 | B32: 2000 | C32: 335 | D32: -1 | E32: 6098 | F32: 1514 | G32: 91.77
A33: 1 | B33: 2000 | C33: 339 | D33: -1 | E33: 5401 | F33: 1172 | G33: 88.06
A34: 1 | B34: 2000 | C34: 340 | D34: -1 | E34: 1678 | F34: 359 | G34: 85.36
A35: 1 | B35: 2000 | C35: 341 | D35: -1 | E35: 6712 | F35: 1463 | G35: 84.47
A36: 1 | B36: 2000 | C36: 343 | D36: -1 | E36: 5227 | F36: 1081 | G36: 85.25
A37: 1 | B37: 2000 | C37: 344 | D37: -1 | E37: 6022 | F37: 1310 | G37: 88.62
A38: 1 | B38: 2000 | C38: 345 | D38: -1 | E38: 4736 | F38: 1013 | G38: 88.58
A39: 1 | B39: 2000 | C39: 346 | D39: -1 | E39: 7592 | F39: 1797 | G39: 93.92
A40: 1 | B40: 2000 | C40: 347 | D40: -1 | E40: 1363 | F40: 313 | G40: 86.37
A41: 1 | B41: 2000 | C41: 348 | D41: -1 | E41: 2309 | F41: 463 | G41: 84.66
A42: 1 | B42: 2000 | C42: 349 | D42: -1 | E42: 14707 | F42: 3121 | G42: 86.38
A43: 1 | B43: 2000 | C43: 350 | D43: -1 | E43: 2660 | F43: 605 | G43: 90.75
A44: 1 | B44: 2000 | C44: 351 | D44: -1 | E44: 5364 | F44: 1233 | G44: 92.85
A45: 1 | B45: 2000 | C45: 354 | D45: -1 | E45: 2623 | F45: 572 | G45: 86.82
A46: 1 | B46: 2000 | C46: 355 | D46: -1 | E46: 1522 | F46: 363 | G46: 89.13
A47: 1 | B47: 2000 | C47: 358 | D47: -1 | E47: 428 | F47: 109 | G47: 92
A48: 1 | B48: 2000 | C48: 362 | D48: -1 | E48: 14254 | F48: 3162 | G48: 89
A49: 1 | B49: 2000 | C49: 372 | D49: -1 | E49: 926 | F49: 625 | G49: 138.46
A50: 1 | B50: 2000 | C50: 373 | D50: -1 | E50: 670 | F50: 158 | G50: 93.71
A51: 1 | B51: 2000 | C51: 376 | D51: -1 | E51: 5 | F51: 5 | G51: 295
A52: 1 | B52: 2000 | C52: 377 | D52: -1 | E52: 9022 | F52: 2182 | G52: 95.1
A53: 1 | B53: 2000 | C53: 402 | D53: -1 | E53: 1127 | F53: 236 | G53: 84.88
A54: 1 | B54: 2000 | C54: 405 | D54: -1 | E54: 270 | F54: 54 | G54: 88.97
A55: 1 | B55: 2000 | C55: 436 | D55: -1 | E55: 938 | F55: 196 | G55: 87.44
A56: 1 | B56: 2000 | C56: 437 | D56: -1 | E56: 713 | F56: 164 | G56: 94.47
A57: 1 | B57: 2000 | C57: 438 | D57: -1 | E57: 709 | F57: 160 | G57: 87.34
A58: 1 | B58: 2000 | C58: 442 | D58: -1 | E58: 517 | F58: 126 | G58: 89.47
A59: 1 | B59: 2000 | C59: 452 | D59: -1 | E59: 2053 | F59: 450 | G59: 86.9
A60: 1 | B60: 2000 | C60: 459 | D60: -1 | E60: 2065 | F60: 449 | G60: 85.66
A61: 1 | B61: 2000 | C61: 460 | D61: -1 | E61: 630 | F61: 121 | G61: 82.96
A62: 1 | B62: 2000 | C62: 463 | D62: -1 | E62: 1085 | F62: 251 | G62: 94.56
A63: 1 | B63: 3000 | C63: -1 | D63: -1 | E63: 3637 | F63: 876 | G63: 94.51
A64: 1 | B64: 3000 | C64: 100 | D64: -1 | E64: 6674 | F64: 2418 | G64: 131.8
A65: 1 | B65: 3000 | C65: 310 | D65: -1 | E65: 825 | F65: 479 | G65: 202.44
A66: 1 | B66: 3000 | C66: 330 | D66: -1 | E66: 1083 | F66: 512 | G66: 166.7
A67: 1 | B67: 3000 | C67: 335 | D67: -1 | E67: 1129 | F67: 551 | G67: 166.81
A68: 1 | B68: 2000 | C68: 35 | D68: -1 | E68: 34038 | F68: 10065 | G68: 102.91
A69: 1 | B69: 2000 | C69: 384 | D69: -1 | E69: 54939 | F69: 12028 | G69: 87.72
A70: 1 | B70: 2000 | C70: 393 | D70: -1 | E70: 91460 | F70: 19821 | G70: 87.6
A71: 1 | B71: 2000 | C71: 394 | D71: -1 | E71: 65252 | F71: 13889 | G71: 96.93
A72: 1 | B72: 2000 | C72: 395 | D72: -1 | E72: 50862 | F72: 11362 | G72: 89.26
A73: 2 | B73: 2100 | C73: -1 | D73: -1 | E73: 156564 | F73: 70482
A74: 2 | B74: 2100 | C74: 100 | D74: -1 | E74: 952637 | F74: 374338
A75: 2 | B75: 2100 | C75: 301 | D75: -1 | E75: 6391 | F75: 2431
A76: 2 | B76: 2100 | C76: 304 | D76: -1 | E76: 3880 | F76: 1322
A77: 2 | B77: 2100 | C77: 306 | D77: -1 | E77: 11371 | F77: 4561
A78: 2 | B78: 2100 | C78: 307 | D78: -1 | E78: 7982 | F78: 3056
A79: 2 | B79: 2100 | C79: 308 | D79: -1 | E79: 4238 | F79: 1715
A80: 2 | B80: 2100 | C80: 309 | D80: -1 | E80: 6973 | F80: 2874
A81: 2 | B81: 2100 | C81: 310 | D81: -1 | E81: 17041 | F81: 6933
A82: 2 | B82: 2100 | C82: 311 | D82: -1 | E82: 13120 | F82: 5687
A83: 2 | B83: 2100 | C83: 313 | D83: -1 | E83: 14609 | F83: 5525
A84: 2 | B84: 2100 | C84: 314 | D84: -1 | E84: 33678 | F84: 12926
A85: 2 | B85: 2100 | C85: 315 | D85: -1 | E85: 5588 | F85: 2533
A86: 2 | B86: 2100 | C86: 316 | D86: -1 | E86: 38720 | F86: 14811
A87: 2 | B87: 2100 | C87: 317 | D87: -1 | E87: 65903 | F87: 23306
A88: 2 | B88: 2100 | C88: 318 | D88: -1 | E88: 37123 | F88: 13280
A89: 2 | B89: 2100 | C89: 319 | D89: -1 | E89: 20509 | F89: 7324
A90: 2 | B90: 2100 | C90: 320 | D90: -1 | E90: 19331 | F90: 7042
A91: 2 | B91: 2100 | C91: 321 | D91: -1 | E91: 14254 | F91: 5617
A92: 2 | B92: 2100 | C92: 322 | D92: -1 | E92: 17991 | F92: 7300
A93: 2 | B93: 2100 | C93: 323 | D93: -1 | E93: 10905 | F93: 4343
A94: 2 | B94: 2100 | C94: 325 | D94: -1 | E94: 23326 | F94: 8437
A95: 2 | B95: 2100 | C95: 326 | D95: -1 | E95: 13963 | F95: 5128
A96: 2 | B96: 2100 | C96: 327 | D96: -1 | E96: 10669 | F96: 4439
A97: 2 | B97: 2100 | C97: 328 | D97: -1 | E97: 18774 | F97: 7402
A98: 2 | B98: 2100 | C98: 329 | D98: -1 | E98: 15940 | F98: 6176
A99: 2 | B99: 2100 | C99: 330 | D99: -1 | E99: 12107 | F99: 4530
A100: 2 | B100: 2100 | C100: 331 | D100: -1 | E100: 14693 | F100: 5607
A101: 2 | B101: 2100 | C101: 333 | D101: -1 | E101: 6332 | F101: 2479
A102: 2 | B102: 2100 | C102: 334 | D102: -1 | E102: 5634 | F102: 1901
A103: 2 | B103: 2100 | C103: 335 | D103: -1 | E103: 11363 | F103: 4316
A104: 2 | B104: 2100 | C104: 339 | D104: -1 | E104: 15355 | F104: 5518
A105: 2 | B105: 2100 | C105: 340 | D105: -1 | E105: 5843 | F105: 2516
A106: 2 | B106: 2100 | C106: 341 | D106: -1 | E106: 6146 | F106: 2417
A107: 2 | B107: 2100 | C107: 343 | D107: -1 | E107: 21252 | F107: 8212
A108: 2 | B108: 2100 | C108: 344 | D108: -1 | E108: 21137 | F108: 7728
A109: 2 | B109: 2100 | C109: 345 | D109: -1 | E109: 17895 | F109: 7255
A110: 2 | B110: 2100 | C110: 346 | D110: -1 | E110: 20480 | F110: 7930
A111: 2 | B111: 2100 | C111: 347 | D111: -1 | E111: 4927 | F111: 1656
A112: 2 | B112: 2100 | C112: 348 | D112: -1 | E112: 8171 | F112: 2880
A113: 2 | B113: 2100 | C113: 349 | D113: -1 | E113: 46537 | F113: 18273
A114: 2 | B114: 2100 | C114: 350 | D114: -1 | E114: 9037 | F114: 3627
A115: 2 | B115: 2100 | C115: 351 | D115: -1 | E115: 14880 | F115: 5827
A116: 2 | B116: 2100 | C116: 354 | D116: -1 | E116: 9910 | F116: 3788
A117: 2 | B117: 2100 | C117: 355 | D117: -1 | E117: 6551 | F117: 2294
A118: 2 | B118: 2100 | C118: 358 | D118: -1 | E118: 959 | F118: 412
A119: 2 | B119: 2100 | C119: 362 | D119: -1 | E119: 44202 | F119: 16612
A120: 2 | B120: 2100 | C120: 372 | D120: -1 | E120: 342 | F120: 164
A121: 2 | B121: 2100 | C121: 373 | D121: -1 | E121: 2445 | F121: 939
A122: 2 | B122: 2100 | C122: 376 | D122: -1 | E122: 1 | F122: 1
A123: 2 | B123: 2100 | C123: 377 | D123: -1 | E123: 22317 | F123: 8232
A124: 2 | B124: 2100 | C124: 402 | D124: -1 | E124: 3771 | F124: 1617
A125: 2 | B125: 2100 | C125: 405 | D125: -1 | E125: 875 | F125: 416
A126: 2 | B126: 2100 | C126: 436 | D126: -1 | E126: 3608 | F126: 1461
A127: 2 | B127: 2100 | C127: 437 | D127: -1 | E127: 2490 | F127: 1084
A128: 2 | B128: 2100 | C128: 438 | D128: -1 | E128: 2823 | F128: 1037
A129: 2 | B129: 2100 | C129: 442 | D129: -1 | E129: 2118 | F129: 921
A130: 2 | B130: 2100 | C130: 452 | D130: -1 | E130: 6918 | F130: 2686
A131: 2 | B131: 2100 | C131: 459 | D131: -1 | E131: 7520 | F131: 3289
A132: 2 | B132: 2100 | C132: 460 | D132: -1 | E132: 2327 | F132: 969
A133: 2 | B133: 2100 | C133: 463 | D133: -1 | E133: 2828 | F133: 1094
A134: 2 | B134: 2200 | C134: -1 | D134: -1 | E134: 34580 | F134: 10254
A135: 2 | B135: 2200 | C135: 100 | D135: -1 | E135: 551778 | F135: 127379
A136: 2 | B136: 2200 | C136: 301 | D136: -1 | E136: 3979 | F136: 480
A137: 2 | B137: 2200 | C137: 304 | D137: -1 | E137: 2259 | F137: 295
A138: 2 | B138: 2200 | C138: 306 | D138: -1 | E138: 5941 | F138: 703
A139: 2 | B139: 2200 | C139: 307 | D139: -1 | E139: 4246 | F139: 670
A140: 2 | B140: 2200 | C140: 308 | D140: -1 | E140: 2446 | F140: 290
A141: 2 | B141: 2200 | C141: 309 | D141: -1 | E141: 3642 | F141: 488
A142: 2 | B142: 2200 | C142: 310 | D142: -1 | E142: 16295 | F142: 1807
A143: 2 | B143: 2200 | C143: 311 | D143: -1 | E143: 6948 | F143: 1307
A144: 2 | B144: 2200 | C144: 313 | D144: -1 | E144: 7968 | F144: 1193
A145: 2 | B145: 2200 | C145: 314 | D145: -1 | E145: 19273 | F145: 2974
A146: 2 | B146: 2200 | C146: 315 | D146: -1 | E146: 2643 | F146: 594
A147: 2 | B147: 2200 | C147: 316 | D147: -1 | E147: 17254 | F147: 3037
A148: 2 | B148: 2200 | C148: 317 | D148: -1 | E148: 27649 | F148: 4393
A149: 2 | B149: 2200 | C149: 318 | D149: -1 | E149: 25150 | F149: 5670
A150: 2 | B150: 2200 | C150: 319 | D150: -1 | E150: 11297 | F150: 1541
A151: 2 | B151: 2200 | C151: 320 | D151: -1 | E151: 18031 | F151: 6988
A152: 2 | B152: 2200 | C152: 321 | D152: -1 | E152: 6442 | F152: 887
A153: 2 | B153: 2200 | C153: 322 | D153: -1 | E153: 8518 | F153: 1364
A154: 2 | B154: 2200 | C154: 323 | D154: -1 | E154: 4802 | F154: 839
A155: 2 | B155: 2200 | C155: 325 | D155: -1 | E155: 10794 | F155: 2001
A156: 2 | B156: 2200 | C156: 326 | D156: -1 | E156: 9127 | F156: 1334
A157: 2 | B157: 2200 | C157: 327 | D157: -1 | E157: 6793 | F157: 1020
A158: 2 | B158: 2200 | C158: 328 | D158: -1 | E158: 7965 | F158: 1207
A159: 2 | B159: 2200 | C159: 329 | D159: -1 | E159: 16210 | F159: 6393
A160: 2 | B160: 2200 | C160: 330 | D160: -1 | E160: 32883 | F160: 13555
A161: 2 | B161: 2200 | C161: 331 | D161: -1 | E161: 6952 | F161: 1178
A162: 2 | B162: 2200 | C162: 333 | D162: -1 | E162: 2986 | F162: 454
A163: 2 | B163: 2200 | C163: 334 | D163: -1 | E163: 4247 | F163: 533
A164: 2 | B164: 2200 | C164: 335 | D164: -1 | E164: 34142 | F164: 14521
A165: 2 | B165: 2200 | C165: 339 | D165: -1 | E165: 9593 | F165: 1377
A166: 2 | B166: 2200 | C166: 340 | D166: -1 | E166: 2581 | F166: 427
A167: 2 | B167: 2200 | C167: 341 | D167: -1 | E167: 9168 | F167: 1688
A168: 2 | B168: 2200 | C168: 343 | D168: -1 | E168: 9652 | F168: 1289
A169: 2 | B169: 2200 | C169: 344 | D169: -1 | E169: 10671 | F169: 1461
A170: 2 | B170: 2200 | C170: 345 | D170: -1 | E170: 7842 | F170: 1258
A171: 2 | B171: 2200 | C171: 346 | D171: -1 | E171: 12686 | F171: 2324
A172: 2 | B172: 2200 | C172: 347 | D172: -1 | E172: 2398 | F172: 382
A173: 2 | B173: 2200 | C173: 348 | D173: -1 | E173: 3870 | F173: 560
A174: 2 | B174: 2200 | C174: 349 | D174: -1 | E174: 23294 | F174: 3768
A175: 2 | B175: 2200 | C175: 350 | D175: -1 | E175: 6367 | F175: 2286
A176: 2 | B176: 2200 | C176: 351 | D176: -1 | E176: 16153 | F176: 6637
A177: 2 | B177: 2200 | C177: 354 | D177: -1 | E177: 4360 | F177: 688
A178: 2 | B178: 2200 | C178: 355 | D178: -1 | E178: 5362 | F178: 610
A179: 2 | B179: 2200 | C179: 358 | D179: -1 | E179: 550 | F179: 148
A180: 2 | B180: 2200 | C180: 362 | D180: -1 | E180: 20593 | F180: 3573
A181: 2 | B181: 2200 | C181: 372 | D181: -1 | E181: 1058 | F181: 631
A182: 2 | B182: 2200 | C182: 373 | D182: -1 | E182: 1364 | F182: 209
A183: 2 | B183: 2200 | C183: 376 | D183: -1 | E183: 5 | F183: 5
A184: 2 | B184: 2200 | C184: 377 | D184: -1 | E184: 23849 | F184: 7224
A185: 2 | B185: 2200 | C185: 402 | D185: -1 | E185: 2157 | F185: 407
A186: 2 | B186: 2200 | C186: 405 | D186: -1 | E186: 573 | F186: 73
A187: 2 | B187: 2200 | C187: 436 | D187: -1 | E187: 1700 | F187: 267
A188: 2 | B188: 2200 | C188: 437 | D188: -1 | E188: 1433 | F188: 202
A189: 2 | B189: 2200 | C189: 438 | D189: -1 | E189: 1616 | F189: 244
A190: 2 | B190: 2200 | C190: 442 | D190: -1 | E190: 830 | F190: 144
A191: 2 | B191: 2200 | C191: 452 | D191: -1 | E191: 3698 | F191: 557
A192: 2 | B192: 2200 | C192: 459 | D192: -1 | E192: 3905 | F192: 534
A193: 2 | B193: 2200 | C193: 460 | D193: -1 | E193: 1177 | F193: 139
A194: 2 | B194: 2200 | C194: 463 | D194: -1 | E194: 1811 | F194: 297
A195: 2 | B195: 2300 | C195: -1 | D195: -1 | E195: 162 | F195: 17
A196: 2 | B196: 2300 | C196: 100 | D196: -1 | E196: 14290 | F196: 4061
A197: 2 | B197: 2300 | C197: 301 | D197: -1 | E197: 86 | F197: 28
A198: 2 | B198: 2300 | C198: 304 | D198: -1 | E198: 60 | F198: 17
A199: 2 | B199: 2300 | C199: 306 | D199: -1 | E199: 200 | F199: 60
A200: 2 | B200: 2300 | C200: 307 | D200: -1 | E200: 121 | F200: 33
... 2013 more rows

Sheet Transformation
B2: Compensation and Pension Rating Bundle Metrics
B3: National View | H3: # Pending | I3: # Pending > 125 | J3: % Pending > 125 days
B4: ="Reporting through "&TEXT(D_DT[],"MMMM DD, YYYY") -> Reporting through January 27, 2024
B5: Compensation and Pension Rating Bundle | G5: Total | H5: =SUM(H6,H11,H22) -> 1014814 | I5: =SUM(I6,I11,I22) -> 399925 | J5: =IF(H5=0, 0,I5/H5) -> 0.3940869953
B6: Original Entitlement | G6: Total | H6: =SUM(H7:H10) -> 267656 | I6: =SUM(I7:I10) -> 128025 | J6: =IF(H6=0, 0,I6/H6) -> 0.4783191858
A7: 010 | B7: Initial entitlement for service-connected disability (>=8 issues) | G7: EP 010 | H7: =IFERROR(SUMIFS(D_D[INV],D_D[MT],3,D_D[EP],$A7),0) -> 90726 | I7: =IFERROR(SUMIFS(D_D[BL],D_D[MT],3,D_D[EP],$A7),0) -> 46885 | J7: 0.5167757864
A8: 110 | B8: Initial entitlement for service-connected disability (<=7 issues) | G8: EP 110 | H8: =IFERROR(SUMIFS(D_D[INV],D_D[MT],3,D_D[EP],$A8),0) -> 143946 | I8: =IFERROR(SUMIFS(D_D[BL],D_D[MT],3,D_D[EP],$A8),0) -> 66677 | J8: 0.4632084254
A9: 180 | B9: Initial entitlement - Veteran's Pension | G9: EP 180 | H9: =IFERROR(SUMIFS(D_D[INV],D_D[MT],3,D_D[EP],$A9),0) -> 9145 | I9: =IFERROR(SUMIFS(D_D[BL],D_D[MT],3,D_D[EP],$A9),0) -> 2915 | J9: 0.3187534172
A10: 140 | B10: Initial claims from surviving spouses, children or parents | G10: EP 140 | H10: =IFERROR(SUMIFS(D_D[INV],D_D[MT],3,D_D[EP],$A10),0) -> 23839 | I10: =IFERROR(SUMIFS(D_D[BL],D_D[MT],3,D_D[EP],$A10),0) -> 11548 | J10: 0.4844162926
B11: Supplemental Entitlement | G11: Total | H11: =SUM(H12:H21) -> 736795 | I11: =SUM(I12:I21) -> 263174 | J11: 0.3571875488
A12: 120 | B12: Increased entitlement and/or reconsideration for Pension | G12: EP 120 | H12: =IFERROR(SUMIFS(D_D[INV],D_D[MT],3,D_D[EP],$A12),0) -> 4986 | I12: =IFERROR(SUMIFS(D_D[BL],D_D[MT],3,D_D[EP],$A12),0) -> 1172 | J12: 0.2350581629
A13: 020 | B13: Increased evaluation and/or additional claimed conditions | G13: EP 020 | H13: =IFERROR(SUMIFS(D_D[INV],D_D[MT],3,D_D[EP],$A13),0) -> 453515 | I13: =IFERROR(SUMIFS(D_D[BL],D_D[MT],3,D_D[EP],$A13),0) -> 168745 | J13: 0.3720825111
A14: 310G | B14: Future examination for disabilities | G14: EP 310 | H14: =IFERROR(SUMIFS(D_D[INV],D_D[MT],3,D_D[EP],$A14),0) -> 13552 | I14: =IFERROR(SUMIFS(D_D[BL],D_D[MT],3,D_D[EP],$A14),0) -> 940 | J14: 0.06936245573
A15: 320 | B15: Increased entitlement due to hospitalization or surgery | G15: EP 320 | H15: =IFERROR(SUMIFS(D_D[INV],D_D[MT],3,D_D[EP],$A15),0) -> 2896 | I15: =IFERROR(SUMIFS(D_D[BL],D_D[MT],3,D_D[EP],$A15),0) -> 306 | J15: 0.1056629834
A16: 681 | B16: Used to control claims under the Nehmer Agent Orange stipulation | G16: EP 681 | H16: =IFERROR(SUMIFS(D_D[INV],D_D[MT],3,D_D[EP],$A16),0) -> 101 | I16: =IFERROR(SUMIFS(D_D[BL],D_D[MT],3,D_D[EP],$A16),0) -> 63 | J16: 0.6237623762
A17: 687 | B17: Blue Water Navy Agent Orange Nehmer Reviews | G17: EP 687 | H17: =IFERROR(SUMIFS(D_D[INV],D_D[MT],3,D_D[EP],$A17),0) -> 1 | I17: =IFERROR(SUMIFS(D_D[BL],D_D[MT],3,D_D[EP],$A17),0) -> 1 | J17: =IF(H17=0, 0,I17/H17) -> 1
A18: 688 | B18: NDAA Agent Orange Nehmer Reviews (3 new authorized disabilities) | G18: EP 688 | H18: =IFERROR(SUMIFS(D_D[INV],D_D[MT],3,D_D[EP],$A18),0) -> 303 | I18: =IFERROR(SUMIFS(D_D[BL],D_D[MT],3,D_D[EP],$A18),0) -> 277 | J18: =IF(H18=0, 0,I18/H18) -> 0.9141914191
A19: 405 | B19: Reopened or new Agent Orange claims between 9/01/10 and 10/24/2011 | G19: EP 405 | H19: =IFERROR(SUMIFS(D_D[INV],D_D[MT],3,D_D[EP],$A19),0) -> 0 | I19: =IFERROR(SUMIFS(D_D[BL],D_D[MT],3,D_D[EP],$A19),0) -> 0 | J19: =IF(H19=0, 0,I19/H19) -> 0
A20: 040 | B20: Decision Review Request - AMA Supplemental Claims | G20: EP 040 | H20: =IFERROR(SUMIFS(D_D[INV],D_D[MT],3.1,D_D[EP],$A20),0) -> 261440 | I20: =IFERROR(SUMIFS(D_D[BL],D_D[MT],3.1,D_D[EP],$A20),0) -> 91670 | J20: =IF(H20=0, 0,I20/H20) -> 0.3506349449
A21: 409 | B21: Agent Orange claims where an interim decision was provided; No longer used as of 10/24/2011 | G21: EP 409 | H21: =IFERROR(SUMIFS(D_D[INV],D_D[MT],3,D_D[EP],$A21),0) -> 1 | I21: =IFERROR(SUMIFS(D_D[BL],D_D[MT],3,D_D[EP],$A21),0) -> 0 | J21: =IF(H21=0, 0,I21/H21) -> 0
B22: Compensation Other – Diary – Becomes Part of Rating Bundle on 1/1/2020 | G22: Total | H22: =SUM(H23) -> 10363 | I22: =SUM(I23) -> 8726 | J22: =IF(H22=0, 0,I22/H22) -> 0.84203416
A23: 335 | B23: Blue Water Navy - Agent Orange | G23: EP 335 | H23: =IFERROR(SUMIFS(D_D[INV],D_D[MT],3,D_D[EP],$A23),0) -> 10363 | I23: =IFERROR(SUMIFS(D_D[BL],D_D[MT],3,D_D[EP],$A23),0) -> 8726 | J23: 0.84203416
B25: Education Metrics | G25: ="Pending on " &TEXT(D_DT[]-0-1,"MM/DD/YY") -> Pending on 01/26/24 | H25: ="Pending on " &TEXT(D_DT[]-8,"MM/DD/YY") -> Pending on 01/19/24 | I25: # Change | J25: % Change
A26: 1 | B26: Total Chapter 33 Original Claims * | G26: =IFERROR(SUMIFS(D_D[INV],D_D[MT],9,D_D[CAT],1,D_D[LOC],$A26),0) -> 6901 | H26: =IFERROR(SUMIFS(D_D[BL],D_D[MT],9,D_D[CAT],1,D_D[LOC],$A26),0) -> 6542 | I26: =IFERROR(SUMIFS(D_D[ADP],D_D[MT],9,D_D[CAT],1,D_D[LOC],$A26),0) -> 359 | J26: =IFERROR(I26/H26,0) -> 0.05487618465
A27: 307 | B27: Buffalo | G27: =IFERROR(SUMIFS(D_D[INV],D_D[MT],9,D_D[CAT],1,D_D[LOC],$A27),0) -> 3358 | H27: =IFERROR(SUMIFS(D_D[BL],D_D[MT],9,D_D[CAT],1,D_D[LOC],$A27),0) -> 3447 | I27: =IFERROR(SUMIFS(D_D[ADP],D_D[MT],9,D_D[CAT],1,D_D[LOC],$A27),0) -> -89 | J27: =IFERROR(I27/H27,0) -> -0.02581955323
A28: 316 | B28: Atlanta | G28: =IFERROR(SUMIFS(D_D[INV],D_D[MT],9,D_D[CAT],1,D_D[LOC],$A28),0) -> 0 | H28: =IFERROR(SUMIFS(D_D[BL],D_D[MT],9,D_D[CAT],1,D_D[LOC],$A28),0) -> 0 | I28: =IFERROR(SUMIFS(D_D[ADP],D_D[MT],9,D_D[CAT],1,D_D[LOC],$A28),0) -> 0 | J28: =IF(H28=0, 0,I28/H28) -> 0
A29: 331 | B29: St Louis | G29: =IFERROR(SUMIFS(D_D[INV],D_D[MT],9,D_D[CAT],1,D_D[LOC],$A29),0) -> 0 | H29: =IFERROR(SUMIFS(D_D[BL],D_D[MT],9,D_D[CAT],1,D_D[LOC],$A29),0) -> 0 | I29: =IFERROR(SUMIFS(D_D[ADP],D_D[MT],9,D_D[CAT],1,D_D[LOC],$A29),0) -> 0 | J29: =IFERROR(I29/H29,0) -> 0
A30: 351 | B30: Muskogee | G30: =IFERROR(SUMIFS(D_D[INV],D_D[MT],9,D_D[CAT],1,D_D[LOC],$A30),0) -> 3543 | H30: =IFERROR(SUMIFS(D_D[BL],D_D[MT],9,D_D[CAT],1,D_D[LOC],$A30),0) -> 3095 | I30: =IFERROR(SUMIFS(D_D[ADP],D_D[MT],9,D_D[CAT],1,D_D[LOC],$A30),0) -> 448 | J30: =IFERROR(I30/H30,0) -> 0.1447495961
A31: 1 | B31: Total Education Claims - All Education Programs ** | G31: =IFERROR(SUMIFS(D_D[INV],D_D[MT],9,D_D[CAT],2,D_D[LOC],$A31),0) -> 55004 | H31: =IFERROR(SUMIFS(D_D[BL],D_D[MT],9,D_D[CAT],2,D_D[LOC],$A31),0) -> 51215 | I31: =IFERROR(SUMIFS(D_D[ADP],D_D[MT],9,D_D[CAT],2,D_D[LOC],$A31),0) -> 3789 | J31: =IFERROR(I31/H31,0) -> 0.07398223177
A32: 307 | B32: Buffalo | G32: =IFERROR(SUMIFS(D_D[INV],D_D[MT],9,D_D[CAT],2,D_D[LOC],$A32),0) -> 25260 | H32: =IFERROR(SUMIFS(D_D[BL],D_D[MT],9,D_D[CAT],2,D_D[LOC],$A32),0) -> 23358 | I32: =IFERROR(SUMIFS(D_D[ADP],D_D[MT],9,D_D[CAT],2,D_D[LOC],$A32),0) -> 1902 | J32: =IFERROR(I32/H32,0) -> 0.08142820447
A33: 316 | B33: Atlanta | G33: =IFERROR(SUMIFS(D_D[INV],D_D[MT],9,D_D[CAT],2,D_D[LOC],$A33),0) -> 0 | H33: =IFERROR(SUMIFS(D_D[BL],D_D[MT],9,D_D[CAT],2,D_D[LOC],$A33),0) -> 0 | I33: =IFERROR(SUMIFS(D_D[ADP],D_D[MT],9,D_D[CAT],2,D_D[LOC],$A33),0) -> 0 | J33: =IF(H33=0, 0,I33/H33) -> 0
A34: 331 | B34: St Louis | G34: =IFERROR(SUMIFS(D_D[INV],D_D[MT],9,D_D[CAT],2,D_D[LOC],$A34),0) -> 0 | H34: =IFERROR(SUMIFS(D_D[BL],D_D[MT],9,D_D[CAT],2,D_D[LOC],$A34),0) -> 0 | I34: =IFERROR(SUMIFS(D_D[ADP],D_D[MT],9,D_D[CAT],2,D_D[LOC],$A34),0) -> 0 | J34: =IFERROR(I34/H34,0) -> 0
A35: 351 | B35: Muskogee | G35: =IFERROR(SUMIFS(D_D[INV],D_D[MT],9,D_D[CAT],2,D_D[LOC],$A35),0) -> 29744 | H35: =IFERROR(SUMIFS(D_D[BL],D_D[MT],9,D_D[CAT],2,D_D[LOC],$A35),0) -> 27857 | I35: =IFERROR(SUMIFS(D_D[ADP],D_D[MT],9,D_D[CAT],2,D_D[LOC],$A35),0) -> 1887 | J35: =IFERROR(I35/H35,0) -> 0.06773880892
B37: *Chapter 33 is the Post-9/11GI Bill.
B38: **Represents all Education Benefit Programs, including Chapter 33 claims.

Sheet Rating Bundle - SOJ
C2: DISTRICT SELECTOR | D2: Compensation and Pension Rating Bundle Metrics | L2: Report through
D3: Station of Jurisdiction View | L3: =D_DT[] -> 2024-01-27
D4: The Station of Jurisdiction (SOJ) is the regional office assigned to work the claim | L4: ADP = Average Days Pending | O4: MTD = Month to Date
D5: Each Special Mission has distinct claim counts | L5: ADC = Average Days to Complete | O5: FYTD = Fiscal Year to Date
D6: When Special Mission is set to Pension, BDD, or Quickstart, the District Selector has no impact
L7: Accuracy is available in Compensation and Pension Special Missions
D8: CLAIM METRICS | L8: ACCURACY METRICS
C9: SPECIAL MISSION SELECTOR | D9: # Pending | E9: # Pending > 125 Days | F9: % Pending > 125 Days | G9: ADP | H9: # Completed MTD | I9: ADC MTD | J9: # Completed FYTD | K9: ADC FYTD | L9: Rating 3 Month Issue | M9: Rating 3 Month Claim | N9: Rating 12 Month | P9: Authorization 12 Month
N10: % | O10: Margin of Error +/- | P10: % | Q10: Margin of Error +/-
N11: Correct | P11: Correct
A12: 100 | C12: =Driver!$C$20& " Total" -> USA - All Missions Total | D12: =IF(ISNA($A12),"",IFERROR(SUMIFS(D_D[INV],D_D[MT],5,D_D[CAT],SMS, D_D[EP],-1,D_D[LOC],$A12),0)) -> 1014814 | E12: =IF(ISNA($A12),"",IFERROR(SUMIFS(D_D[BL],D_D[MT],5,D_D[CAT],SMS, D_D[EP],-1,D_D[LOC],$A12),0)) -> 399925 | F12: =IF(ISNA($A12),"",IFERROR(E12/D12,0)) -> 0.3940869953 | G12: =IF(ISNA($A12),"",IFERROR(SUMIFS(D_D[ADP],D_D[MT],5,D_D[CAT],SMS, D_D[EP],-1,D_D[LOC],$A12),0)) -> 123.91 | H12: =IF(ISNA($A12),"",IFERROR(SUMIFS(D_D[PROD_MTD],D_D[MT],5,D_D[CAT],SMS, D_D[EP],-1,D_D[LOC],$A12),0)) -> 189279 | I12: =IF(ISNA($A12),"",IFERROR(SUMIFS(D_D[ADCM],D_D[MT],5,D_D[CAT],SMS, D_D[EP],-1,D_D[LOC],$A12),0)) -> 159.5 | J12: =IF(ISNA($A12),"",IFERROR(SUMIFS(D_D[PROD_FYTD],D_D[MT],5,D_D[CAT],SMS, D_D[EP],-1,D_D[LOC],$A12),0)) -> 754126 | K12: =IF(ISNA($A12),"",IFERROR(SUMIFS(D_D[ADCF],D_D[MT],5,D_D[CAT],SMS, D_D[EP],-1,D_D[LOC],$A12),0)) -> 151.84 | L12: =IF(ISNA($A12-99),"",IFERROR(SUMIFS(D_D[INV],D_D[MT],8,D_D[CAT],SMS,D_D[LOC],$A12-99),0)) -> 0 | M12: =IF(ISNA($A12-99),"",IFERROR(SUMIFS(D_D[BL],D_D[MT],8,D_D[CAT],SMS,D_D[LOC],$A12-99),0)) -> 0 | N12: =IF(ISNA($A12-99),"",IFERROR(SUMIFS(D_D[ADP],D_D[MT],8,D_D[CAT],SMS,D_D[LOC],$A12-99),0)) -> 0 | O12: =IF(ISNA($A12-99),"",IFERROR(SUMIFS(D_D[PROD_MTD],D_D[MT],8,D_D[CAT],SMS,D_D[LOC],$A12-99),0)) -> 0 | P12: =IF(ISNA($A12-99),"",IFERROR(SUMIFS(D_D[PROD_FYTD],D_D[MT],8,D_D[CAT],SMS,D_D[LOC],$A12-99),0)) -> 0 | Q12: =IF(ISNA($A12-99),"",IFERROR(SUMIFS(D_D[ADCM],D_D[MT],8,D_D[CAT],SMS,D_D[LOC],$A12-99),0)) -> 0
A13: =INDEX(RO,(MATCH($C13,RO_D,0))) -> 394 | B13: 1 | C13: =IFERROR(INDEX(INDIRECT(DS_RO_N),B13),"") -> Northeast District | D13: =IF(ISNA($A13),"",IFERROR(SUMIFS(D_D[INV],D_D[MT],5,D_D[CAT],SMS, D_D[EP],-1,D_D[LOC],$A13),0)) -> 38230 | E13: =IF(ISNA($A13),"",IFERROR(SUMIFS(D_D[BL],D_D[MT],5,D_D[CAT],SMS, D_D[EP],-1,D_D[LOC],$A13),0)) -> 19365 | F13: =IF(ISNA($A13),"",IFERROR(E13/D13,0)) -> 0.506539367 | G13: =IF(ISNA($A13),"",IFERROR(SUMIFS(D_D[ADP],D_D[MT],5,D_D[CAT],SMS, D_D[EP],-1,D_D[LOC],$A13),0)) -> 134.95 | H13: =IF(ISNA($A13),"",IFERROR(SUMIFS(D_D[PROD_MTD],D_D[MT],5,D_D[CAT],SMS, D_D[EP],-1,D_D[LOC],$A13),0)) -> 44485 | I13: =IF(ISNA($A13),"",IFERROR(SUMIFS(D_D[ADCM],D_D[MT],5,D_D[CAT],SMS, D_D[EP],-1,D_D[LOC],$A13),0)) -> 155.7 | J13: =IF(ISNA($A13),"",IFERROR(SUMIFS(D_D[PROD_FYTD],D_D[MT],5,D_D[CAT],SMS, D_D[EP],-1,D_D[LOC],$A13),0)) -> 175751 | K13: =IF(ISNA($A13),"",IFERROR(SUMIFS(D_D[ADCF],D_D[MT],5,D_D[CAT],SMS, D_D[EP],-1,D_D[LOC],$A13),0)) -> 148.69 | L13: =IF(ISNA($A13),"",IFERROR(SUMIFS(D_D[INV],D_D[MT],8,D_D[CAT],SMS,D_D[LOC],$A13),0)) -> 0 | M13: =IF(ISNA($A13),"",IFERROR(SUMIFS(D_D[BL],D_D[MT],8,D_D[CAT],SMS,D_D[LOC],$A13),0)) -> 0 | N13: =IF(ISNA($A13),"",IFERROR(SUMIFS(D_D[ADP],D_D[MT],8,D_D[CAT],SMS,D_D[LOC],$A13),0)) -> 0 | O13: =IF(ISNA($A13),"",IFERROR(SUMIFS(D_D[PROD_MTD],D_D[MT],8,D_D[CAT],SMS,D_D[LOC],$A13),0)) -> 0 | P13: =IF(ISNA($A13),"",IFERROR(SUMIFS(D_D[PROD_FYTD],D_D[MT],8,D_D[CAT],SMS,D_D[LOC],$A13),0)) -> 0 | Q13: =IF(ISNA($A13),"",IFERROR(SUMIFS(D_D[ADCM],D_D[MT],8,D_D[CAT],SMS,D_D[LOC],$A13),0)) -> 0
A14: 313 | B14: 2 | C14: =IFERROR(INDEX(INDIRECT(DS_RO_N),B14),"") -> Baltimore | D14: =IF(ISNA($A14),"",IFERROR(SUMIFS(D_D[INV],D_D[MT],5,D_D[CAT],SMS, D_D[EP],-1,D_D[LOC],$A14),0)) -> 926 | E14: =IF(ISNA($A14),"",IFERROR(SUMIFS(D_D[BL],D_D[MT],5,D_D[CAT],SMS, D_D[EP],-1,D_D[LOC],$A14),0)) -> 280 | F14: =IF(ISNA($A14),"",IFERROR(E14/D14,0)) -> 0.3023758099 | G14: =IF(ISNA($A14),"",IFERROR(SUMIFS(D_D[ADP],D_D[MT],5,D_D[CAT],SMS, D_D[EP],-1,D_D[LOC],$A14),0)) -> 83.16 | H14: =IF(ISNA($A14),"",IFERROR(SUMIFS(D_D[PROD_MTD],D_D[MT],5,D_D[CAT],SMS, D_D[EP],-1,D_D[LOC],$A14),0)) -> 727 | I14: =IF(ISNA($A14),"",IFERROR(SUMIFS(D_D[ADCM],D_D[MT],5,D_D[CAT],SMS, D_D[EP],-1,D_D[LOC],$A14),0)) -> 123.39 | J14: =IF(ISNA($A14),"",IFERROR(SUMIFS(D_D[PROD_FYTD],D_D[MT],5,D_D[CAT],SMS, D_D[EP],-1,D_D[LOC],$A14),0)) -> 2940 | K14: =IF(ISNA($A14),"",IFERROR(SUMIFS(D_D[ADCF],D_D[MT],5,D_D[CAT],SMS, D_D[EP],-1,D_D[LOC],$A14),0)) -> 126.95 | L14: =IF(ISNA($A14),"",IFERROR(SUMIFS(D_D[INV],D_D[MT],8,D_D[CAT],SMS,D_D[LOC],$A14),0)) -> 0 | M14: =IF(ISNA($A14),"",IFERROR(SUMIFS(D_D[BL],D_D[MT],8,D_D[CAT],SMS,D_D[LOC],$A14),0)) -> 0 | N14: =IF(ISNA($A14),"",IFERROR(SUMIFS(D_D[ADP],D_D[MT],8,D_D[CAT],SMS,D_D[LOC],$A14),0)) -> 0 | O14: =IF(ISNA($A14),"",IFERROR(SUMIFS(D_D[PROD_MTD],D_D[MT],8,D_D[CAT],SMS,D_D[LOC],$A14),0)) -> 0 | P14: =IF(ISNA($A14),"",IFERROR(SUMIFS(D_D[PROD_FYTD],D_D[MT],8,D_D[CAT],SMS,D_D[LOC],$A14),0)) -> 0 | Q14: =IF(ISNA($A14),"",IFERROR(SUMIFS(D_D[ADCM],D_D[MT],8,D_D[CAT],SMS,D_D[LOC],$A14),0)) -> 0
A15: 301 | B15: 3 | C15: Boston | D15: =IF(ISNA($A15),"",IFERROR(SUMIFS(D_D[INV],D_D[MT],5,D_D[CAT],SMS, D_D[EP],-1,D_D[LOC],$A15),0)) -> 1197 | E15: =IF(ISNA($A15),"",IFERROR(SUMIFS(D_D[BL],D_D[MT],5,D_D[CAT],SMS, D_D[EP],-1,D_D[LOC],$A15),0)) -> 683 | F15: 0.5705931495 | G15: =IF(ISNA($A15),"",IFERROR(SUMIFS(D_D[ADP],D_D[MT],5,D_D[CAT],SMS, D_D[EP],-1,D_D[LOC],$A15),0)) -> 122.46 | H15: =IF(ISNA($A15),"",IFERROR(SUMIFS(D_D[PROD_MTD],D_D[MT],5,D_D[CAT],SMS, D_D[EP],-1,D_D[LOC],$A15),0)) -> 1590 | I15: =IF(ISNA($A15),"",IFERROR(SUMIFS(D_D[ADCM],D_D[MT],5,D_D[CAT],SMS, D_D[EP],-1,D_D[LOC],$A15),0)) -> 152.04 | J15: =IF(ISNA($A15),"",IFERROR(SUMIFS(D_D[PROD_FYTD],D_D[MT],5,D_D[CAT],SMS, D_D[EP],-1,D_D[LOC],$A15),0)) -> 5976 | K15: =IF(ISNA($A15),"",IFERROR(SUMIFS(D_D[ADCF],D_D[MT],5,D_D[CAT],SMS, D_D[EP],-1,D_D[LOC],$A15),0)) -> 141.46 | L15: =IF(ISNA($A15),"",IFERROR(SUMIFS(D_D[INV],D_D[MT],8,D_D[CAT],SMS,D_D[LOC],$A15),0)) -> 0 | M15: =IF(ISNA($A15),"",IFERROR(SUMIFS(D_D[BL],D_D[MT],8,D_D[CAT],SMS,D_D[LOC],$A15),0)) -> 0 | N15: =IF(ISNA($A15),"",IFERROR(SUMIFS(D_D[ADP],D_D[MT],8,D_D[CAT],SMS,D_D[LOC],$A15),0)) -> 0 | O15: =IF(ISNA($A15),"",IFERROR(SUMIFS(D_D[PROD_MTD],D_D[MT],8,D_D[CAT],SMS,D_D[LOC],$A15),0)) -> 0 | P15: =IF(ISNA($A15),"",IFERROR(SUMIFS(D_D[PROD_FYTD],D_D[MT],8,D_D[CAT],SMS,D_D[LOC],$A15),0)) -> 0 | Q15: =IF(ISNA($A15),"",IFERROR(SUMIFS(D_D[ADCM],D_D[MT],8,D_D[CAT],SMS,D_D[LOC],$A15),0)) -> 0
A16: 307 | B16: 4 | C16: Buffalo | D16: =IF(ISNA($A16),"",IFERROR(SUMIFS(D_D[INV],D_D[MT],5,D_D[CAT],SMS, D_D[EP],-1,D_D[LOC],$A16),0)) -> 1643 | E16: =IF(ISNA($A16),"",IFERROR(SUMIFS(D_D[BL],D_D[MT],5,D_D[CAT],SMS, D_D[EP],-1,D_D[LOC],$A16),0)) -> 711 | F16: 0.4327449787 | G16: =IF(ISNA($A16),"",IFERROR(SUMIFS(D_D[ADP],D_D[MT],5,D_D[CAT],SMS, D_D[EP],-1,D_D[LOC],$A16),0)) -> 113.16 | H16: =IF(ISNA($A16),"",IFERROR(SUMIFS(D_D[PROD_MTD],D_D[MT],5,D_D[CAT],SMS, D_D[EP],-1,D_D[LOC],$A16),0)) -> 1540 | I16: =IF(ISNA($A16),"",IFERROR(SUMIFS(D_D[ADCM],D_D[MT],5,D_D[CAT],SMS, D_D[EP],-1,D_D[LOC],$A16),0)) -> 162.97 | J16: =IF(ISNA($A16),"",IFERROR(SUMIFS(D_D[PROD_FYTD],D_D[MT],5,D_D[CAT],SMS, D_D[EP],-1,D_D[LOC],$A16),0)) -> 6812 | K16: =IF(ISNA($A16),"",IFERROR(SUMIFS(D_D[ADCF],D_D[MT],5,D_D[CAT],SMS, D_D[EP],-1,D_D[LOC],$A16),0)) -> 155.75 | L16: =IF(ISNA($A16),"",IFERROR(SUMIFS(D_D[INV],D_D[MT],8,D_D[CAT],SMS,D_D[LOC],$A16),0)) -> 0 | M16: =IF(ISNA($A16),"",IFERROR(SUMIFS(D_D[BL],D_D[MT],8,D_D[CAT],SMS,D_D[LOC],$A16),0)) -> 0 | N16: =IF(ISNA($A16),"",IFERROR(SUMIFS(D_D[ADP],D_D[MT],8,D_D[CAT],SMS,D_D[LOC],$A16),0)) -> 0 | O16: =IF(ISNA($A16),"",IFERROR(SUMIFS(D_D[PROD_MTD],D_D[MT],8,D_D[CAT],SMS,D_D[LOC],$A16),0)) -> 0 | P16: =IF(ISNA($A16),"",IFERROR(SUMIFS(D_D[PROD_FYTD],D_D[MT],8,D_D[CAT],SMS,D_D[LOC],$A16),0)) -> 0 | Q16: =IF(ISNA($A16),"",IFERROR(SUMIFS(D_D[ADCM],D_D[MT],8,D_D[CAT],SMS,D_D[LOC],$A16),0)) -> 0
A17: 328 | B17: 5 | C17: Chicago | D17: =IF(ISNA($A17),"",IFERROR(SUMIFS(D_D[INV],D_D[MT],5,D_D[CAT],SMS, D_D[EP],-1,D_D[LOC],$A17),0)) -> 2108 | E17: =IF(ISNA($A17),"",IFERROR(SUMIFS(D_D[BL],D_D[MT],5,D_D[CAT],SMS, D_D[EP],-1,D_D[LOC],$A17),0)) -> 876 | F17: 0.4155597723 | G17: =IF(ISNA($A17),"",IFERROR(SUMIFS(D_D[ADP],D_D[MT],5,D_D[CAT],SMS, D_D[EP],-1,D_D[LOC],$A17),0)) -> 108.05 | H17: =IF(ISNA($A17),"",IFERROR(SUMIFS(D_D[PROD_MTD],D_D[MT],5,D_D[CAT],SMS, D_D[EP],-1,D_D[LOC],$A17),0)) -> 2320 | I17: =IF(ISNA($A17),"",IFERROR(SUMIFS(D_D[ADCM],D_D[MT],5,D_D[CAT],SMS, D_D[EP],-1,D_D[LOC],$A17),0)) -> 152.31 | J17: =IF(ISNA($A17),"",IFERROR(SUMIFS(D_D[PROD_FYTD],D_D[MT],5,D_D[CAT],SMS, D_D[EP],-1,D_D[LOC],$A17),0)) -> 7485 | K17: =IF(ISNA($A17),"",IFERROR(SUMIFS(D_D[ADCF],D_D[MT],5,D_D[CAT],SMS, D_D[EP],-1,D_D[LOC],$A17),0)) -> 149.99 | L17: =IF(ISNA($A17),"",IFERROR(SUMIFS(D_D[INV],D_D[MT],8,D_D[CAT],SMS,D_D[LOC],$A17),0)) -> 0 | M17: =IF(ISNA($A17),"",IFERROR(SUMIFS(D_D[BL],D_D[MT],8,D_D[CAT],SMS,D_D[LOC],$A17),0)) -> 0 | N17: =IF(ISNA($A17),"",IFERROR(SUMIFS(D_D[ADP],D_D[MT],8,D_D[CAT],SMS,D_D[LOC],$A17),0)) -> 0 | O17: =IF(ISNA($A17),"",IFERROR(SUMIFS(D_D[PROD_MTD],D_D[MT],8,D_D[CAT],SMS,D_D[LOC],$A17),0)) -> 0 | P17: =IF(ISNA($A17),"",IFERROR(SUMIFS(D_D[PROD_FYTD],D_D[MT],8,D_D[CAT],SMS,D_D[LOC],$A17),0)) -> 0 | Q17: =IF(ISNA($A17),"",IFERROR(SUMIFS(D_D[ADCM],D_D[MT],8,D_D[CAT],SMS,D_D[LOC],$A17),0)) -> 0
A18: 325 | B18: 6 | C18: Cleveland | D18: =IF(ISNA($A18),"",IFERROR(SUMIFS(D_D[INV],D_D[MT],5,D_D[CAT],SMS, D_D[EP],-1,D_D[LOC],$A18),0)) -> 3021 | E18: =IF(ISNA($A18),"",IFERROR(SUMIFS(D_D[BL],D_D[MT],5,D_D[CAT],SMS, D_D[EP],-1,D_D[LOC],$A18),0)) -> 1465 | F18: 0.484938762 | G18: =IF(ISNA($A18),"",IFERROR(SUMIFS(D_D[ADP],D_D[MT],5,D_D[CAT],SMS, D_D[EP],-1,D_D[LOC],$A18),0)) -> 110.31 | H18: =IF(ISNA($A18),"",IFERROR(SUMIFS(D_D[PROD_MTD],D_D[MT],5,D_D[CAT],SMS, D_D[EP],-1,D_D[LOC],$A18),0)) -> 4393 | I18: =IF(ISNA($A18),"",IFERROR(SUMIFS(D_D[ADCM],D_D[MT],5,D_D[CAT],SMS, D_D[EP],-1,D_D[LOC],$A18),0)) -> 154.57 | J18: =IF(ISNA($A18),"",IFERROR(SUMIFS(D_D[PROD_FYTD],D_D[MT],5,D_D[CAT],SMS, D_D[EP],-1,D_D[LOC],$A18),0)) -> 16825 | K18: =IF(ISNA($A18),"",IFERROR(SUMIFS(D_D[ADCF],D_D[MT],5,D_D[CAT],SMS, D_D[EP],-1,D_D[LOC],$A18),0)) -> 144.34 | L18: =IF(ISNA($A18),"",IFERROR(SUMIFS(D_D[INV],D_D[MT],8,D_D[CAT],SMS,D_D[LOC],$A18),0)) -> 0 | M18: =IF(ISNA($A18),"",IFERROR(SUMIFS(D_D[BL],D_D[MT],8,D_D[CAT],SMS,D_D[LOC],$A18),0)) -> 0 | N18: =IF(ISNA($A18),"",IFERROR(SUMIFS(D_D[ADP],D_D[MT],8,D_D[CAT],SMS,D_D[LOC],$A18),0)) -> 0 | O18: =IF(ISNA($A18),"",IFERROR(SUMIFS(D_D[PROD_MTD],D_D[MT],8,D_D[CAT],SMS,D_D[LOC],$A18),0)) -> 0 | P18: =IF(ISNA($A18),"",IFERROR(SUMIFS(D_D[PROD_FYTD],D_D[MT],8,D_D[CAT],SMS,D_D[LOC],$A18),0)) -> 0 | Q18: =IF(ISNA($A18),"",IFERROR(SUMIFS(D_D[ADCM],D_D[MT],8,D_D[CAT],SMS,D_D[LOC],$A18),0)) -> 0
A19: 329 | B19: 7 | C19: Detroit | D19: =IF(ISNA($A19),"",IFERROR(SUMIFS(D_D[INV],D_D[MT],5,D_D[CAT],SMS, D_D[EP],-1,D_D[LOC],$A19),0)) -> 2046 | E19: =IF(ISNA($A19),"",IFERROR(SUMIFS(D_D[BL],D_D[MT],5,D_D[CAT],SMS, D_D[EP],-1,D_D[LOC],$A19),0)) -> 880 | F19: 0.4301075269 | G19: =IF(ISNA($A19),"",IFERROR(SUMIFS(D_D[ADP],D_D[MT],5,D_D[CAT],SMS, D_D[EP],-1,D_D[LOC],$A19),0)) -> 125.34 | H19: =IF(ISNA($A19),"",IFERROR(SUMIFS(D_D[PROD_MTD],D_D[MT],5,D_D[CAT],SMS, D_D[EP],-1,D_D[LOC],$A19),0)) -> 3178 | I19: =IF(ISNA($A19),"",IFERROR(SUMIFS(D_D[ADCM],D_D[MT],5,D_D[CAT],SMS, D_D[EP],-1,D_D[LOC],$A19),0)) -> 140.47 | J19: =IF(ISNA($A19),"",IFERROR(SUMIFS(D_D[PROD_FYTD],D_D[MT],5,D_D[CAT],SMS, D_D[EP],-1,D_D[LOC],$A19),0)) -> 12648 | K19: =IF(ISNA($A19),"",IFERROR(SUMIFS(D_D[ADCF],D_D[MT],5,D_D[CAT],SMS, D_D[EP],-1,D_D[LOC],$A19),0)) -> 145.73 | L19: =IF(ISNA($A19),"",IFERROR(SUMIFS(D_D[INV],D_D[MT],8,D_D[CAT],SMS,D_D[LOC],$A19),0)) -> 0 | M19: =IF(ISNA($A19),"",IFERROR(SUMIFS(D_D[BL],D_D[MT],8,D_D[CAT],SMS,D_D[LOC],$A19),0)) -> 0 | N19: =IF(ISNA($A19),"",IFERROR(SUMIFS(D_D[ADP],D_D[MT],8,D_D[CAT],SMS,D_D[LOC],$A19),0)) -> 0 | O19: =IF(ISNA($A19),"",IFERROR(SUMIFS(D_D[PROD_MTD],D_D[MT],8,D_D[CAT],SMS,D_D[LOC],$A19),0)) -> 0 | P19: =IF(ISNA($A19),"",IFERROR(SUMIFS(D_D[PROD_FYTD],D_D[MT],8,D_D[CAT],SMS,D_D[LOC],$A19),0)) -> 0 | Q19: =IF(ISNA($A19),"",IFERROR(SUMIFS(D_D[ADCM],D_D[MT],8,D_D[CAT],SMS,D_D[LOC],$A19),0)) -> 0
A20: 308 | B20: 8 | C20: Hartford | D20: =IF(ISNA($A20),"",IFERROR(SUMIFS(D_D[INV],D_D[MT],5,D_D[CAT],SMS, D_D[EP],-1,D_D[LOC],$A20),0)) -> 868 | E20: =IF(ISNA($A20),"",IFERROR(SUMIFS(D_D[BL],D_D[MT],5,D_D[CAT],SMS, D_D[EP],-1,D_D[LOC],$A20),0)) -> 394 | F20: 0.4539170507 | G20: =IF(ISNA($A20),"",IFERROR(SUMIFS(D_D[ADP],D_D[MT],5,D_D[CAT],SMS, D_D[EP],-1,D_D[LOC],$A20),0)) -> 115.68 | H20: =IF(ISNA($A20),"",IFERROR(SUMIFS(D_D[PROD_MTD],D_D[MT],5,D_D[CAT],SMS, D_D[EP],-1,D_D[LOC],$A20),0)) -> 1085 | I20: =IF(ISNA($A20),"",IFERROR(SUMIFS(D_D[ADCM],D_D[MT],5,D_D[CAT],SMS, D_D[EP],-1,D_D[LOC],$A20),0)) -> 142.55 | J20: =IF(ISNA($A20),"",IFERROR(SUMIFS(D_D[PROD_FYTD],D_D[MT],5,D_D[CAT],SMS, D_D[EP],-1,D_D[LOC],$A20),0)) -> 4438 | K20: =IF(ISNA($A20),"",IFERROR(SUMIFS(D_D[ADCF],D_D[MT],5,D_D[CAT],SMS, D_D[EP],-1,D_D[LOC],$A20),0)) -> 130.74 | L20: =IF(ISNA($A20),"",IFERROR(SUMIFS(D_D[INV],D_D[MT],8,D_D[CAT],SMS,D_D[LOC],$A20),0)) -> 0 | M20: =IF(ISNA($A20),"",IFERROR(SUMIFS(D_D[BL],D_D[MT],8,D_D[CAT],SMS,D_D[LOC],$A20),0)) -> 0 | N20: =IF(ISNA($A20),"",IFERROR(SUMIFS(D_D[ADP],D_D[MT],8,D_D[CAT],SMS,D_D[LOC],$A20),0)) -> 0 | O20: =IF(ISNA($A20),"",IFERROR(SUMIFS(D_D[PROD_MTD],D_D[MT],8,D_D[CAT],SMS,D_D[LOC],$A20),0)) -> 0 | P20: =IF(ISNA($A20),"",IFERROR(SUMIFS(D_D[PROD_FYTD],D_D[MT],8,D_D[CAT],SMS,D_D[LOC],$A20),0)) -> 0 | Q20: =IF(ISNA($A20),"",IFERROR(SUMIFS(D_D[ADCM],D_D[MT],8,D_D[CAT],SMS,D_D[LOC],$A20),0)) -> 0
A21: 326 | B21: 9 | C21: Indianapolis | D21: =IF(ISNA($A21),"",IFERROR(SUMIFS(D_D[INV],D_D[MT],5,D_D[CAT],SMS, D_D[EP],-1,D_D[LOC],$A21),0)) -> 1531 | E21: =IF(ISNA($A21),"",IFERROR(SUMIFS(D_D[BL],D_D[MT],5,D_D[CAT],SMS, D_D[EP],-1,D_D[LOC],$A21),0)) -> 618 | F21: 0.40365774 | G21: =IF(ISNA($A21),"",IFERROR(SUMIFS(D_D[ADP],D_D[MT],5,D_D[CAT],SMS, D_D[EP],-1,D_D[LOC],$A21),0)) -> 106.17 | H21: =IF(ISNA($A21),"",IFERROR(SUMIFS(D_D[PROD_MTD],D_D[MT],5,D_D[CAT],SMS, D_D[EP],-1,D_D[LOC],$A21),0)) -> 2038 | I21: =IF(ISNA($A21),"",IFERROR(SUMIFS(D_D[ADCM],D_D[MT],5,D_D[CAT],SMS, D_D[EP],-1,D_D[LOC],$A21),0)) -> 155.51 | J21: =IF(ISNA($A21),"",IFERROR(SUMIFS(D_D[PROD_FYTD],D_D[MT],5,D_D[CAT],SMS, D_D[EP],-1,D_D[LOC],$A21),0)) -> 7490 | K21: =IF(ISNA($A21),"",IFERROR(SUMIFS(D_D[ADCF],D_D[MT],5,D_D[CAT],SMS, D_D[EP],-1,D_D[LOC],$A21),0)) -> 154.78 | L21: =IF(ISNA($A21),"",IFERROR(SUMIFS(D_D[INV],D_D[MT],8,D_D[CAT],SMS,D_D[LOC],$A21),0)) -> 0 | M21: =IF(ISNA($A21),"",IFERROR(SUMIFS(D_D[BL],D_D[MT],8,D_D[CAT],SMS,D_D[LOC],$A21),0)) -> 0 | N21: =IF(ISNA($A21),"",IFERROR(SUMIFS(D_D[ADP],D_D[MT],8,D_D[CAT],SMS,D_D[LOC],$A21),0)) -> 0 | O21: =IF(ISNA($A21),"",IFERROR(SUMIFS(D_D[PROD_MTD],D_D[MT],8,D_D[CAT],SMS,D_D[LOC],$A21),0)) -> 0 | P21: =IF(ISNA($A21),"",IFERROR(SUMIFS(D_D[PROD_FYTD],D_D[MT],8,D_D[CAT],SMS,D_D[LOC],$A21),0)) -> 0 | Q21: =IF(ISNA($A21),"",IFERROR(SUMIFS(D_D[ADCM],D_D[MT],8,D_D[CAT],SMS,D_D[LOC],$A21),0)) -> 0
A22: 373 | B22: 10 | C22: Manchester | D22: =IF(ISNA($A22),"",IFERROR(SUMIFS(D_D[INV],D_D[MT],5,D_D[CAT],SMS, D_D[EP],-1,D_D[LOC],$A22),0)) -> 562 | E22: =IF(ISNA($A22),"",IFERROR(SUMIFS(D_D[BL],D_D[MT],5,D_D[CAT],SMS, D_D[EP],-1,D_D[LOC],$A22),0)) -> 218 | F22: 0.3879003559 | G22: =IF(ISNA($A22),"",IFERROR(SUMIFS(D_D[ADP],D_D[MT],5,D_D[CAT],SMS, D_D[EP],-1,D_D[LOC],$A22),0)) -> 106.53 | H22: =IF(ISNA($A22),"",IFERROR(SUMIFS(D_D[PROD_MTD],D_D[MT],5,D_D[CAT],SMS, D_D[EP],-1,D_D[LOC],$A22),0)) -> 675 | I22: =IF(ISNA($A22),"",IFERROR(SUMIFS(D_D[ADCM],D_D[MT],5,D_D[CAT],SMS, D_D[EP],-1,D_D[LOC],$A22),0)) -> 134.98 | J22: =IF(ISNA($A22),"",IFERROR(SUMIFS(D_D[PROD_FYTD],D_D[MT],5,D_D[CAT],SMS, D_D[EP],-1,D_D[LOC],$A22),0)) -> 2599 | K22: =IF(ISNA($A22),"",IFERROR(SUMIFS(D_D[ADCF],D_D[MT],5,D_D[CAT],SMS, D_D[EP],-1,D_D[LOC],$A22),0)) -> 133.75 | L22: =IF(ISNA($A22),"",IFERROR(SUMIFS(D_D[INV],D_D[MT],8,D_D[CAT],SMS,D_D[LOC],$A22),0)) -> 0 | M22: =IF(ISNA($A22),"",IFERROR(SUMIFS(D_D[BL],D_D[MT],8,D_D[CAT],SMS,D_D[LOC],$A22),0)) -> 0 | N22: =IF(ISNA($A22),"",IFERROR(SUMIFS(D_D[ADP],D_D[MT],8,D_D[CAT],SMS,D_D[LOC],$A22),0)) -> 0 | O22: =IF(ISNA($A22),"",IFERROR(SUMIFS(D_D[PROD_MTD],D_D[MT],8,D_D[CAT],SMS,D_D[LOC],$A22),0)) -> 0 | P22: =IF(ISNA($A22),"",IFERROR(SUMIFS(D_D[PROD_FYTD],D_D[MT],8,D_D[CAT],SMS,D_D[LOC],$A22),0)) -> 0 | Q22: =IF(ISNA($A22),"",IFERROR(SUMIFS(D_D[ADCM],D_D[MT],8,D_D[CAT],SMS,D_D[LOC],$A22),0)) -> 0
A23: 330 | B23: 11 | C23: Milwaukee | D23: =IF(ISNA($A23),"",IFERROR(SUMIFS(D_D[INV],D_D[MT],5,D_D[CAT],SMS, D_D[EP],-1,D_D[LOC],$A23),0)) -> 3039 | E23: =IF(ISNA($A23),"",IFERROR(SUMIFS(D_D[BL],D_D[MT],5,D_D[CAT],SMS, D_D[EP],-1,D_D[LOC],$A23),0)) -> 1277 | F23: 0.4202040145 | G23: =IF(ISNA($A23),"",IFERROR(SUMIFS(D_D[ADP],D_D[MT],5,D_D[CAT],SMS, D_D[EP],-1,D_D[LOC],$A23),0)) -> 120.83 | H23: =IF(ISNA($A23),"",IFERROR(SUMIFS(D_D[PROD_MTD],D_D[MT],5,D_D[CAT],SMS, D_D[EP],-1,D_D[LOC],$A23),0)) -> 4298 | I23: =IF(ISNA($A23),"",IFERROR(SUMIFS(D_D[ADCM],D_D[MT],5,D_D[CAT],SMS, D_D[EP],-1,D_D[LOC],$A23),0)) -> 163.39 | J23: =IF(ISNA($A23),"",IFERROR(SUMIFS(D_D[PROD_FYTD],D_D[MT],5,D_D[CAT],SMS, D_D[EP],-1,D_D[LOC],$A23),0)) -> 17038 | K23: =IF(ISNA($A23),"",IFERROR(SUMIFS(D_D[ADCF],D_D[MT],5,D_D[CAT],SMS, D_D[EP],-1,D_D[LOC],$A23),0)) -> 153.64 | L23: =IF(ISNA($A23),"",IFERROR(SUMIFS(D_D[INV],D_D[MT],8,D_D[CAT],SMS,D_D[LOC],$A23),0)) -> 0 | M23: =IF(ISNA($A23),"",IFERROR(SUMIFS(D_D[BL],D_D[MT],8,D_D[CAT],SMS,D_D[LOC],$A23),0)) -> 0 | N23: =IF(ISNA($A23),"",IFERROR(SUMIFS(D_D[ADP],D_D[MT],8,D_D[CAT],SMS,D_D[LOC],$A23),0)) -> 0 | O23: =IF(ISNA($A23),"",IFERROR(SUMIFS(D_D[PROD_MTD],D_D[MT],8,D_D[CAT],SMS,D_D[LOC],$A23),0)) -> 0 | P23: =IF(ISNA($A23),"",IFERROR(SUMIFS(D_D[PROD_FYTD],D_D[MT],8,D_D[CAT],SMS,D_D[LOC],$A23),0)) -> 0 | Q23: =IF(ISNA($A23),"",IFERROR(SUMIFS(D_D[ADCM],D_D[MT],8,D_D[CAT],SMS,D_D[LOC],$A23),0)) -> 0
A24: 306 | B24: 12 | C24: New York | D24: =IF(ISNA($A24),"",IFERROR(SUMIFS(D_D[INV],D_D[MT],5,D_D[CAT],SMS, D_D[EP],-1,D_D[LOC],$A24),0)) -> 1238 | E24: =IF(ISNA($A24),"",IFERROR(SUMIFS(D_D[BL],D_D[MT],5,D_D[CAT],SMS, D_D[EP],-1,D_D[LOC],$A24),0)) -> 580 | F24: 0.4684975767 | G24: =IF(ISNA($A24),"",IFERROR(SUMIFS(D_D[ADP],D_D[MT],5,D_D[CAT],SMS, D_D[EP],-1,D_D[LOC],$A24),0)) -> 126.05 | H24: =IF(ISNA($A24),"",IFERROR(SUMIFS(D_D[PROD_MTD],D_D[MT],5,D_D[CAT],SMS, D_D[EP],-1,D_D[LOC],$A24),0)) -> 849 | I24: =IF(ISNA($A24),"",IFERROR(SUMIFS(D_D[ADCM],D_D[MT],5,D_D[CAT],SMS, D_D[EP],-1,D_D[LOC],$A24),0)) -> 151.36 | J24: =IF(ISNA($A24),"",IFERROR(SUMIFS(D_D[PROD_FYTD],D_D[MT],5,D_D[CAT],SMS, D_D[EP],-1,D_D[LOC],$A24),0)) -> 3780 | K24: =IF(ISNA($A24),"",IFERROR(SUMIFS(D_D[ADCF],D_D[MT],5,D_D[CAT],SMS, D_D[EP],-1,D_D[LOC],$A24),0)) -> 149.65 | L24: =IF(ISNA($A24),"",IFERROR(SUMIFS(D_D[INV],D_D[MT],8,D_D[CAT],SMS,D_D[LOC],$A24),0)) -> 0 | M24: =IF(ISNA($A24),"",IFERROR(SUMIFS(D_D[BL],D_D[MT],8,D_D[CAT],SMS,D_D[LOC],$A24),0)) -> 0 | N24: =IF(ISNA($A24),"",IFERROR(SUMIFS(D_D[ADP],D_D[MT],8,D_D[CAT],SMS,D_D[LOC],$A24),0)) -> 0 | O24: =IF(ISNA($A24),"",IFERROR(SUMIFS(D_D[PROD_MTD],D_D[MT],8,D_D[CAT],SMS,D_D[LOC],$A24),0)) -> 0 | P24: =IF(ISNA($A24),"",IFERROR(SUMIFS(D_D[PROD_FYTD],D_D[MT],8,D_D[CAT],SMS,D_D[LOC],$A24),0)) -> 0 | Q24: =IF(ISNA($A24),"",IFERROR(SUMIFS(D_D[ADCM],D_D[MT],8,D_D[CAT],SMS,D_D[LOC],$A24),0)) -> 0
A25: 309 | B25: 13 | C25: Newark | D25: =IF(ISNA($A25),"",IFERROR(SUMIFS(D_D[INV],D_D[MT],5,D_D[CAT],SMS, D_D[EP],-1,D_D[LOC],$A25),0)) -> 574 | E25: =IF(ISNA($A25),"",IFERROR(SUMIFS(D_D[BL],D_D[MT],5,D_D[CAT],SMS, D_D[EP],-1,D_D[LOC],$A25),0)) -> 275 | F25: 0.4790940767 | G25: =IF(ISNA($A25),"",IFERROR(SUMIFS(D_D[ADP],D_D[MT],5,D_D[CAT],SMS, D_D[EP],-1,D_D[LOC],$A25),0)) -> 103.83 | H25: =IF(ISNA($A25),"",IFERROR(SUMIFS(D_D[PROD_MTD],D_D[MT],5,D_D[CAT],SMS, D_D[EP],-1,D_D[LOC],$A25),0)) -> 1641 | I25: =IF(ISNA($A25),"",IFERROR(SUMIFS(D_D[ADCM],D_D[MT],5,D_D[CAT],SMS, D_D[EP],-1,D_D[LOC],$A25),0)) -> 143.24 | J25: =IF(ISNA($A25),"",IFERROR(SUMIFS(D_D[PROD_FYTD],D_D[MT],5,D_D[CAT],SMS, D_D[EP],-1,D_D[LOC],$A25),0)) -> 6308 | K25: =IF(ISNA($A25),"",IFERROR(SUMIFS(D_D[ADCF],D_D[MT],5,D_D[CAT],SMS, D_D[EP],-1,D_D[LOC],$A25),0)) -> 140.25 | L25: =IF(ISNA($A25),"",IFERROR(SUMIFS(D_D[INV],D_D[MT],8,D_D[CAT],SMS,D_D[LOC],$A25),0)) -> 0 | M25: =IF(ISNA($A25),"",IFERROR(SUMIFS(D_D[BL],D_D[MT],8,D_D[CAT],SMS,D_D[LOC],$A25),0)) -> 0 | N25: =IF(ISNA($A25),"",IFERROR(SUMIFS(D_D[ADP],D_D[MT],8,D_D[CAT],SMS,D_D[LOC],$A25),0)) -> 0 | O25: =IF(ISNA($A25),"",IFERROR(SUMIFS(D_D[PROD_MTD],D_D[MT],8,D_D[CAT],SMS,D_D[LOC],$A25),0)) -> 0 | P25: =IF(ISNA($A25),"",IFERROR(SUMIFS(D_D[PROD_FYTD],D_D[MT],8,D_D[CAT],SMS,D_D[LOC],$A25),0)) -> 0 | Q25: =IF(ISNA($A25),"",IFERROR(SUMIFS(D_D[ADCM],D_D[MT],8,D_D[CAT],SMS,D_D[LOC],$A25),0)) -> 0
A26: 310 | B26: 14 | C26: Philadelphia | D26: =IF(ISNA($A26),"",IFERROR(SUMIFS(D_D[INV],D_D[MT],5,D_D[CAT],SMS, D_D[EP],-1,D_D[LOC],$A26),0)) -> 8034 | E26: =IF(ISNA($A26),"",IFERROR(SUMIFS(D_D[BL],D_D[MT],5,D_D[CAT],SMS, D_D[EP],-1,D_D[LOC],$A26),0)) -> 4728 | F26: 0.5884988798 | G26: =IF(ISNA($A26),"",IFERROR(SUMIFS(D_D[ADP],D_D[MT],5,D_D[CAT],SMS, D_D[EP],-1,D_D[LOC],$A26),0)) -> 170.79 | H26: =IF(ISNA($A26),"",IFERROR(SUMIFS(D_D[PROD_MTD],D_D[MT],5,D_D[CAT],SMS, D_D[EP],-1,D_D[LOC],$A26),0)) -> 7433 | I26: =IF(ISNA($A26),"",IFERROR(SUMIFS(D_D[ADCM],D_D[MT],5,D_D[CAT],SMS, D_D[EP],-1,D_D[LOC],$A26),0)) -> 169.7 | J26: =IF(ISNA($A26),"",IFERROR(SUMIFS(D_D[PROD_FYTD],D_D[MT],5,D_D[CAT],SMS, D_D[EP],-1,D_D[LOC],$A26),0)) -> 31458 | K26: =IF(ISNA($A26),"",IFERROR(SUMIFS(D_D[ADCF],D_D[MT],5,D_D[CAT],SMS, D_D[EP],-1,D_D[LOC],$A26),0)) -> 163.43 | L26: =IF(ISNA($A26),"",IFERROR(SUMIFS(D_D[INV],D_D[MT],8,D_D[CAT],SMS,D_D[LOC],$A26),0)) -> 0 | M26: =IF(ISNA($A26),"",IFERROR(SUMIFS(D_D[BL],D_D[MT],8,D_D[CAT],SMS,D_D[LOC],$A26),0)) -> 0 | N26: =IF(ISNA($A26),"",IFERROR(SUMIFS(D_D[ADP],D_D[MT],8,D_D[CAT],SMS,D_D[LOC],$A26),0)) -> 0 | O26: =IF(ISNA($A26),"",IFERROR(SUMIFS(D_D[PROD_MTD],D_D[MT],8,D_D[CAT],SMS,D_D[LOC],$A26),0)) -> 0 | P26: =IF(ISNA($A26),"",IFERROR(SUMIFS(D_D[PROD_FYTD],D_D[MT],8,D_D[CAT],SMS,D_D[LOC],$A26),0)) -> 0 | Q26: =IF(ISNA($A26),"",IFERROR(SUMIFS(D_D[ADCM],D_D[MT],8,D_D[CAT],SMS,D_D[LOC],$A26),0)) -> 0
A27: 311 | B27: 15 | C27: Pittsburgh | D27: =IF(ISNA($A27),"",IFERROR(SUMIFS(D_D[INV],D_D[MT],5,D_D[CAT],SMS, D_D[EP],-1,D_D[LOC],$A27),0)) -> 2056 | E27: =IF(ISNA($A27),"",IFERROR(SUMIFS(D_D[BL],D_D[MT],5,D_D[CAT],SMS, D_D[EP],-1,D_D[LOC],$A27),0)) -> 1013 | F27: 0.4927042802 | G27: =IF(ISNA($A27),"",IFERROR(SUMIFS(D_D[ADP],D_D[MT],5,D_D[CAT],SMS, D_D[EP],-1,D_D[LOC],$A27),0)) -> 160.79 | H27: =IF(ISNA($A27),"",IFERROR(SUMIFS(D_D[PROD_MTD],D_D[MT],5,D_D[CAT],SMS, D_D[EP],-1,D_D[LOC],$A27),0)) -> 1817 | I27: =IF(ISNA($A27),"",IFERROR(SUMIFS(D_D[ADCM],D_D[MT],5,D_D[CAT],SMS, D_D[EP],-1,D_D[LOC],$A27),0)) -> 222.15 | J27: =IF(ISNA($A27),"",IFERROR(SUMIFS(D_D[PROD_FYTD],D_D[MT],5,D_D[CAT],SMS, D_D[EP],-1,D_D[LOC],$A27),0)) -> 6638 | K27: =IF(ISNA($A27),"",IFERROR(SUMIFS(D_D[ADCF],D_D[MT],5,D_D[CAT],SMS, D_D[EP],-1,D_D[LOC],$A27),0)) -> 207.13 | L27: =IF(ISNA($A27),"",IFERROR(SUMIFS(D_D[INV],D_D[MT],8,D_D[CAT],SMS,D_D[LOC],$A27),0)) -> 0 | M27: =IF(ISNA($A27),"",IFERROR(SUMIFS(D_D[BL],D_D[MT],8,D_D[CAT],SMS,D_D[LOC],$A27),0)) -> 0 | N27: =IF(ISNA($A27),"",IFERROR(SUMIFS(D_D[ADP],D_D[MT],8,D_D[CAT],SMS,D_D[LOC],$A27),0)) -> 0 | O27: =IF(ISNA($A27),"",IFERROR(SUMIFS(D_D[PROD_MTD],D_D[MT],8,D_D[CAT],SMS,D_D[LOC],$A27),0)) -> 0 | P27: =IF(ISNA($A27),"",IFERROR(SUMIFS(D_D[PROD_FYTD],D_D[MT],8,D_D[CAT],SMS,D_D[LOC],$A27),0)) -> 0 | Q27: =IF(ISNA($A27),"",IFERROR(SUMIFS(D_D[ADCM],D_D[MT],8,D_D[CAT],SMS,D_D[LOC],$A27),0)) -> 0
A28: 304 | B28: 16 | C28: Providence | D28: =IF(ISNA($A28),"",IFERROR(SUMIFS(D_D[INV],D_D[MT],5,D_D[CAT],SMS, D_D[EP],-1,D_D[LOC],$A28),0)) -> 1925 | E28: =IF(ISNA($A28),"",IFERROR(SUMIFS(D_D[BL],D_D[MT],5,D_D[CAT],SMS, D_D[EP],-1,D_D[LOC],$A28),0)) -> 762 | F28: 0.3958441558 | G28: =IF(ISNA($A28),"",IFERROR(SUMIFS(D_D[ADP],D_D[MT],5,D_D[CAT],SMS, D_D[EP],-1,D_D[LOC],$A28),0)) -> 105.08 | H28: =IF(ISNA($A28),"",IFERROR(SUMIFS(D_D[PROD_MTD],D_D[MT],5,D_D[CAT],SMS, D_D[EP],-1,D_D[LOC],$A28),0)) -> 3507 | I28: =IF(ISNA($A28),"",IFERROR(SUMIFS(D_D[ADCM],D_D[MT],5,D_D[CAT],SMS, D_D[EP],-1,D_D[LOC],$A28),0)) -> 88.86 | J28: =IF(ISNA($A28),"",IFERROR(SUMIFS(D_D[PROD_FYTD],D_D[MT],5,D_D[CAT],SMS, D_D[EP],-1,D_D[LOC],$A28),0)) -> 13788 | K28: =IF(ISNA($A28),"",IFERROR(SUMIFS(D_D[ADCF],D_D[MT],5,D_D[CAT],SMS, D_D[EP],-1,D_D[LOC],$A28),0)) -> 79.78 | L28: =IF(ISNA($A28),"",IFERROR(SUMIFS(D_D[INV],D_D[MT],8,D_D[CAT],SMS,D_D[LOC],$A28),0)) -> 0 | M28: =IF(ISNA($A28),"",IFERROR(SUMIFS(D_D[BL],D_D[MT],8,D_D[CAT],SMS,D_D[LOC],$A28),0)) -> 0 | N28: =IF(ISNA($A28),"",IFERROR(SUMIFS(D_D[ADP],D_D[MT],8,D_D[CAT],SMS,D_D[LOC],$A28),0)) -> 0 | O28: =IF(ISNA($A28),"",IFERROR(SUMIFS(D_D[PROD_MTD],D_D[MT],8,D_D[CAT],SMS,D_D[LOC],$A28),0)) -> 0 | P28: =IF(ISNA($A28),"",IFERROR(SUMIFS(D_D[PROD_FYTD],D_D[MT],8,D_D[CAT],SMS,D_D[LOC],$A28),0)) -> 0 | Q28: =IF(ISNA($A28),"",IFERROR(SUMIFS(D_D[ADCM],D_D[MT],8,D_D[CAT],SMS,D_D[LOC],$A28),0)) -> 0
A29: 376 | B29: 17 | C29: St. Louis RMC | D29: =IF(ISNA($A29),"",IFERROR(SUMIFS(D_D[INV],D_D[MT],5,D_D[CAT],SMS, D_D[EP],-1,D_D[LOC],$A29),0)) -> 0 | E29: =IF(ISNA($A29),"",IFERROR(SUMIFS(D_D[BL],D_D[MT],5,D_D[CAT],SMS, D_D[EP],-1,D_D[LOC],$A29),0)) -> 0 | F29: 0 | G29: =IF(ISNA($A29),"",IFERROR(SUMIFS(D_D[ADP],D_D[MT],5,D_D[CAT],SMS, D_D[EP],-1,D_D[LOC],$A29),0)) -> 0 | H29: =IF(ISNA($A29),"",IFERROR(SUMIFS(D_D[PROD_MTD],D_D[MT],5,D_D[CAT],SMS, D_D[EP],-1,D_D[LOC],$A29),0)) -> 0 | I29: =IF(ISNA($A29),"",IFERROR(SUMIFS(D_D[ADCM],D_D[MT],5,D_D[CAT],SMS, D_D[EP],-1,D_D[LOC],$A29),0)) -> 0 | J29: =IF(ISNA($A29),"",IFERROR(SUMIFS(D_D[PROD_FYTD],D_D[MT],5,D_D[CAT],SMS, D_D[EP],-1,D_D[LOC],$A29),0)) -> 0 | K29: =IF(ISNA($A29),"",IFERROR(SUMIFS(D_D[ADCF],D_D[MT],5,D_D[CAT],SMS, D_D[EP],-1,D_D[LOC],$A29),0)) -> 0 | L29: =IF(ISNA($A29),"",IFERROR(SUMIFS(D_D[INV],D_D[MT],8,D_D[CAT],SMS,D_D[LOC],$A29),0)) -> 0 | M29: =IF(ISNA($A29),"",IFERROR(SUMIFS(D_D[BL],D_D[MT],8,D_D[CAT],SMS,D_D[LOC],$A29),0)) -> 0 | N29: =IF(ISNA($A29),"",IFERROR(SUMIFS(D_D[ADP],D_D[MT],8,D_D[CAT],SMS,D_D[LOC],$A29),0)) -> 0 | O29: =IF(ISNA($A29),"",IFERROR(SUMIFS(D_D[PROD_MTD],D_D[MT],8,D_D[CAT],SMS,D_D[LOC],$A29),0)) -> 0 | P29: =IF(ISNA($A29),"",IFERROR(SUMIFS(D_D[PROD_FYTD],D_D[MT],8,D_D[CAT],SMS,D_D[LOC],$A29),0)) -> 0 | Q29: =IF(ISNA($A29),"",IFERROR(SUMIFS(D_D[ADCM],D_D[MT],8,D_D[CAT],SMS,D_D[LOC],$A29),0)) -> 0
A30: 331 | B30: 18 | C30: St. Louis | D30: =IF(ISNA($A30),"",IFERROR(SUMIFS(D_D[INV],D_D[MT],5,D_D[CAT],SMS, D_D[EP],-1,D_D[LOC],$A30),0)) -> 5111 | E30: =IF(ISNA($A30),"",IFERROR(SUMIFS(D_D[BL],D_D[MT],5,D_D[CAT],SMS, D_D[EP],-1,D_D[LOC],$A30),0)) -> 3338 | F30: 0.6531011544 | G30: =IF(ISNA($A30),"",IFERROR(SUMIFS(D_D[ADP],D_D[MT],5,D_D[CAT],SMS, D_D[EP],-1,D_D[LOC],$A30),0)) -> 161.27 | H30: =IF(ISNA($A30),"",IFERROR(SUMIFS(D_D[PROD_MTD],D_D[MT],5,D_D[CAT],SMS, D_D[EP],-1,D_D[LOC],$A30),0)) -> 3896 | I30: =IF(ISNA($A30),"",IFERROR(SUMIFS(D_D[ADCM],D_D[MT],5,D_D[CAT],SMS, D_D[EP],-1,D_D[LOC],$A30),0)) -> 195.37 | J30: =IF(ISNA($A30),"",IFERROR(SUMIFS(D_D[PROD_FYTD],D_D[MT],5,D_D[CAT],SMS, D_D[EP],-1,D_D[LOC],$A30),0)) -> 15939 | K30: =IF(ISNA($A30),"",IFERROR(SUMIFS(D_D[ADCF],D_D[MT],5,D_D[CAT],SMS, D_D[EP],-1,D_D[LOC],$A30),0)) -> 182.83 | L30: =IF(ISNA($A30),"",IFERROR(SUMIFS(D_D[INV],D_D[MT],8,D_D[CAT],SMS,D_D[LOC],$A30),0)) -> 0 | M30: =IF(ISNA($A30),"",IFERROR(SUMIFS(D_D[BL],D_D[MT],8,D_D[CAT],SMS,D_D[LOC],$A30),0)) -> 0 | N30: =IF(ISNA($A30),"",IFERROR(SUMIFS(D_D[ADP],D_D[MT],8,D_D[CAT],SMS,D_D[LOC],$A30),0)) -> 0 | O30: =IF(ISNA($A30),"",IFERROR(SUMIFS(D_D[PROD_MTD],D_D[MT],8,D_D[CAT],SMS,D_D[LOC],$A30),0)) -> 0 | P30: =IF(ISNA($A30),"",IFERROR(SUMIFS(D_D[PROD_FYTD],D_D[MT],8,D_D[CAT],SMS,D_D[LOC],$A30),0)) -> 0 | Q30: =IF(ISNA($A30),"",IFERROR(SUMIFS(D_D[ADCM],D_D[MT],8,D_D[CAT],SMS,D_D[LOC],$A30),0)) -> 0
A31: 402 | B31: 19 | C31: Togus | D31: =IF(ISNA($A31),"",IFERROR(SUMIFS(D_D[INV],D_D[MT],5,D_D[CAT],SMS, D_D[EP],-1,D_D[LOC],$A31),0)) -> 1844 | E31: =IF(ISNA($A31),"",IFERROR(SUMIFS(D_D[BL],D_D[MT],5,D_D[CAT],SMS, D_D[EP],-1,D_D[LOC],$A31),0)) -> 1103 | F31: 0.5981561822 | G31: =IF(ISNA($A31),"",IFERROR(SUMIFS(D_D[ADP],D_D[MT],5,D_D[CAT],SMS, D_D[EP],-1,D_D[LOC],$A31),0)) -> 133.26 | H31: =IF(ISNA($A31),"",IFERROR(SUMIFS(D_D[PROD_MTD],D_D[MT],5,D_D[CAT],SMS, D_D[EP],-1,D_D[LOC],$A31),0)) -> 3049 | I31: =IF(ISNA($A31),"",IFERROR(SUMIFS(D_D[ADCM],D_D[MT],5,D_D[CAT],SMS, D_D[EP],-1,D_D[LOC],$A31),0)) -> 145.94 | J31: =IF(ISNA($A31),"",IFERROR(SUMIFS(D_D[PROD_FYTD],D_D[MT],5,D_D[CAT],SMS, D_D[EP],-1,D_D[LOC],$A31),0)) -> 11836 | K31: =IF(ISNA($A31),"",IFERROR(SUMIFS(D_D[ADCF],D_D[MT],5,D_D[CAT],SMS, D_D[EP],-1,D_D[LOC],$A31),0)) -> 133.13 | L31: =IF(ISNA($A31),"",IFERROR(SUMIFS(D_D[INV],D_D[MT],8,D_D[CAT],SMS,D_D[LOC],$A31),0)) -> 0 | M31: =IF(ISNA($A31),"",IFERROR(SUMIFS(D_D[BL],D_D[MT],8,D_D[CAT],SMS,D_D[LOC],$A31),0)) -> 0 | N31: =IF(ISNA($A31),"",IFERROR(SUMIFS(D_D[ADP],D_D[MT],8,D_D[CAT],SMS,D_D[LOC],$A31),0)) -> 0 | O31: =IF(ISNA($A31),"",IFERROR(SUMIFS(D_D[PROD_MTD],D_D[MT],8,D_D[CAT],SMS,D_D[LOC],$A31),0)) -> 0 | P31: =IF(ISNA($A31),"",IFERROR(SUMIFS(D_D[PROD_FYTD],D_D[MT],8,D_D[CAT],SMS,D_D[LOC],$A31),0)) -> 0 | Q31: =IF(ISNA($A31),"",IFERROR(SUMIFS(D_D[ADCM],D_D[MT],8,D_D[CAT],SMS,D_D[LOC],$A31),0)) -> 0
A32: 372 | B32: 20 | C32: Washington | D32: =IF(ISNA($A32),"",IFERROR(SUMIFS(D_D[INV],D_D[MT],5,D_D[CAT],SMS, D_D[EP],-1,D_D[LOC],$A32),0)) -> 15 | E32: =IF(ISNA($A32),"",IFERROR(SUMIFS(D_D[BL],D_D[MT],5,D_D[CAT],SMS, D_D[EP],-1,D_D[LOC],$A32),0)) -> 5 | F32: 0.3333333333 | G32: =IF(ISNA($A32),"",IFERROR(SUMIFS(D_D[ADP],D_D[MT],5,D_D[CAT],SMS, D_D[EP],-1,D_D[LOC],$A32),0)) -> 84.87 | H32: =IF(ISNA($A32),"",IFERROR(SUMIFS(D_D[PROD_MTD],D_D[MT],5,D_D[CAT],SMS, D_D[EP],-1,D_D[LOC],$A32),0)) -> 0 | I32: =IF(ISNA($A32),"",IFERROR(SUMIFS(D_D[ADCM],D_D[MT],5,D_D[CAT],SMS, D_D[EP],-1,D_D[LOC],$A32),0)) -> 0 | J32: =IF(ISNA($A32),"",IFERROR(SUMIFS(D_D[PROD_FYTD],D_D[MT],5,D_D[CAT],SMS, D_D[EP],-1,D_D[LOC],$A32),0)) -> 0 | K32: =IF(ISNA($A32),"",IFERROR(SUMIFS(D_D[ADCF],D_D[MT],5,D_D[CAT],SMS, D_D[EP],-1,D_D[LOC],$A32),0)) -> 0 | L32: =IF(ISNA($A32),"",IFERROR(SUMIFS(D_D[INV],D_D[MT],8,D_D[CAT],SMS,D_D[LOC],$A32),0)) -> 0 | M32: =IF(ISNA($A32),"",IFERROR(SUMIFS(D_D[BL],D_D[MT],8,D_D[CAT],SMS,D_D[LOC],$A32),0)) -> 0 | N32: =IF(ISNA($A32),"",IFERROR(SUMIFS(D_D[ADP],D_D[MT],8,D_D[CAT],SMS,D_D[LOC],$A32),0)) -> 0 | O32: =IF(ISNA($A32),"",IFERROR(SUMIFS(D_D[PROD_MTD],D_D[MT],8,D_D[CAT],SMS,D_D[LOC],$A32),0)) -> 0 | P32: =IF(ISNA($A32),"",IFERROR(SUMIFS(D_D[PROD_FYTD],D_D[MT],8,D_D[CAT],SMS,D_D[LOC],$A32),0)) -> 0 | Q32: =IF(ISNA($A32),"",IFERROR(SUMIFS(D_D[ADCM],D_D[MT],8,D_D[CAT],SMS,D_D[LOC],$A32),0)) -> 0
A33: 405 | B33: 21 | C33: White River Junction | D33: =IF(ISNA($A33),"",IFERROR(SUMIFS(D_D[INV],D_D[MT],5,D_D[CAT],SMS, D_D[EP],-1,D_D[LOC],$A33),0)) -> 202 | E33: =IF(ISNA($A33),"",IFERROR(SUMIFS(D_D[BL],D_D[MT],5,D_D[CAT],SMS, D_D[EP],-1,D_D[LOC],$A33),0)) -> 49 | F33: 0.2425742574 | G33: =IF(ISNA($A33),"",IFERROR(SUMIFS(D_D[ADP],D_D[MT],5,D_D[CAT],SMS, D_D[EP],-1,D_D[LOC],$A33),0)) -> 86.19 | H33: =IF(ISNA($A33),"",IFERROR(SUMIFS(D_D[PROD_MTD],D_D[MT],5,D_D[CAT],SMS, D_D[EP],-1,D_D[LOC],$A33),0)) -> 173 | I33: =IF(ISNA($A33),"",IFERROR(SUMIFS(D_D[ADCM],D_D[MT],5,D_D[CAT],SMS, D_D[EP],-1,D_D[LOC],$A33),0)) -> 118.03 | J33: =IF(ISNA($A33),"",IFERROR(SUMIFS(D_D[PROD_FYTD],D_D[MT],5,D_D[CAT],SMS, D_D[EP],-1,D_D[LOC],$A33),0)) -> 619 | K33: =IF(ISNA($A33),"",IFERROR(SUMIFS(D_D[ADCF],D_D[MT],5,D_D[CAT],SMS, D_D[EP],-1,D_D[LOC],$A33),0)) -> 105.96 | L33: =IF(ISNA($A33),"",IFERROR(SUMIFS(D_D[INV],D_D[MT],8,D_D[CAT],SMS,D_D[LOC],$A33),0)) -> 0 | M33: =IF(ISNA($A33),"",IFERROR(SUMIFS(D_D[BL],D_D[MT],8,D_D[CAT],SMS,D_D[LOC],$A33),0)) -> 0 | N33: =IF(ISNA($A33),"",IFERROR(SUMIFS(D_D[ADP],D_D[MT],8,D_D[CAT],SMS,D_D[LOC],$A33),0)) -> 0 | O33: =IF(ISNA($A33),"",IFERROR(SUMIFS(D_D[PROD_MTD],D_D[MT],8,D_D[CAT],SMS,D_D[LOC],$A33),0)) -> 0 | P33: =IF(ISNA($A33),"",IFERROR(SUMIFS(D_D[PROD_FYTD],D_D[MT],8,D_D[CAT],SMS,D_D[LOC],$A33),0)) -> 0 | Q33: =IF(ISNA($A33),"",IFERROR(SUMIFS(D_D[ADCM],D_D[MT],8,D_D[CAT],SMS,D_D[LOC],$A33),0)) -> 0
A34: 460 | B34: 22 | C34: Wilmington | D34: =IF(ISNA($A34),"",IFERROR(SUMIFS(D_D[INV],D_D[MT],5,D_D[CAT],SMS, D_D[EP],-1,D_D[LOC],$A34),0)) -> 290 | E34: =IF(ISNA($A34),"",IFERROR(SUMIFS(D_D[BL],D_D[MT],5,D_D[CAT],SMS, D_D[EP],-1,D_D[LOC],$A34),0)) -> 110 | F34: 0.3793103448 | G34: =IF(ISNA($A34),"",IFERROR(SUMIFS(D_D[ADP],D_D[MT],5,D_D[CAT],SMS, D_D[EP],-1,D_D[LOC],$A34),0)) -> 113.46 | H34: =IF(ISNA($A34),"",IFERROR(SUMIFS(D_D[PROD_MTD],D_D[MT],5,D_D[CAT],SMS, D_D[EP],-1,D_D[LOC],$A34),0)) -> 276 | I34: =IF(ISNA($A34),"",IFERROR(SUMIFS(D_D[ADCM],D_D[MT],5,D_D[CAT],SMS, D_D[EP],-1,D_D[LOC],$A34),0)) -> 120.61 | J34: =IF(ISNA($A34),"",IFERROR(SUMIFS(D_D[PROD_FYTD],D_D[MT],5,D_D[CAT],SMS, D_D[EP],-1,D_D[LOC],$A34),0)) -> 1134 | K34: =IF(ISNA($A34),"",IFERROR(SUMIFS(D_D[ADCF],D_D[MT],5,D_D[CAT],SMS, D_D[EP],-1,D_D[LOC],$A34),0)) -> 116.67 | L34: =IF(ISNA($A34),"",IFERROR(SUMIFS(D_D[INV],D_D[MT],8,D_D[CAT],SMS,D_D[LOC],$A34),0)) -> 0 | M34: =IF(ISNA($A34),"",IFERROR(SUMIFS(D_D[BL],D_D[MT],8,D_D[CAT],SMS,D_D[LOC],$A34),0)) -> 0 | N34: =IF(ISNA($A34),"",IFERROR(SUMIFS(D_D[ADP],D_D[MT],8,D_D[CAT],SMS,D_D[LOC],$A34),0)) -> 0 | O34: =IF(ISNA($A34),"",IFERROR(SUMIFS(D_D[PROD_MTD],D_D[MT],8,D_D[CAT],SMS,D_D[LOC],$A34),0)) -> 0 | P34: =IF(ISNA($A34),"",IFERROR(SUMIFS(D_D[PROD_FYTD],D_D[MT],8,D_D[CAT],SMS,D_D[LOC],$A34),0)) -> 0 | Q34: =IF(ISNA($A34),"",IFERROR(SUMIFS(D_D[ADCM],D_D[MT],8,D_D[CAT],SMS,D_D[LOC],$A34),0)) -> 0
B35: 23 | D35: =IF(ISNA($A35),"",IFERROR(SUMIFS(D_D[INV],D_D[MT],5,D_D[CAT],SMS, D_D[EP],-1,D_D[LOC],$A35),0)) ->  | E35: =IF(ISNA($A35),"",IFERROR(SUMIFS(D_D[BL],D_D[MT],5,D_D[CAT],SMS, D_D[EP],-1,D_D[LOC],$A35),0)) ->  | G35: =IF(ISNA($A35),"",IFERROR(SUMIFS(D_D[ADP],D_D[MT],5,D_D[CAT],SMS, D_D[EP],-1,D_D[LOC],$A35),0)) ->  | H35: =IF(ISNA($A35),"",IFERROR(SUMIFS(D_D[PROD_MTD],D_D[MT],5,D_D[CAT],SMS, D_D[EP],-1,D_D[LOC],$A35),0)) ->  | I35: =IF(ISNA($A35),"",IFERROR(SUMIFS(D_D[ADCM],D_D[MT],5,D_D[CAT],SMS, D_D[EP],-1,D_D[LOC],$A35),0)) ->  | J35: =IF(ISNA($A35),"",IFERROR(SUMIFS(D_D[PROD_FYTD],D_D[MT],5,D_D[CAT],SMS, D_D[EP],-1,D_D[LOC],$A35),0)) ->  | K35: =IF(ISNA($A35),"",IFERROR(SUMIFS(D_D[ADCF],D_D[MT],5,D_D[CAT],SMS, D_D[EP],-1,D_D[LOC],$A35),0)) ->  | L35: =IF(ISNA($A35),"",IFERROR(SUMIFS(D_D[INV],D_D[MT],8,D_D[CAT],SMS,D_D[LOC],$A35),0)) ->  | M35: =IF(ISNA($A35),"",IFERROR(SUMIFS(D_D[BL],D_D[MT],8,D_D[CAT],SMS,D_D[LOC],$A35),0)) ->  | N35: =IF(ISNA($A35),"",IFERROR(SUMIFS(D_D[ADP],D_D[MT],8,D_D[CAT],SMS,D_D[LOC],$A35),0)) ->  | O35: =IF(ISNA($A35),"",IFERROR(SUMIFS(D_D[PROD_MTD],D_D[MT],8,D_D[CAT],SMS,D_D[LOC],$A35),0)) ->  | P35: =IF(ISNA($A35),"",IFERROR(SUMIFS(D_D[PROD_FYTD],D_D[MT],8,D_D[CAT],SMS,D_D[LOC],$A35),0)) ->  | Q35: =IF(ISNA($A35),"",IFERROR(SUMIFS(D_D[ADCM],D_D[MT],8,D_D[CAT],SMS,D_D[LOC],$A35),0)) -> 

Sheet Driver (hidden)
A1: DIST_ID | B1: DIST_DEF | F1: ROO | G1: RO | H1: ROI | I1: ROD | J1: RODS | L1: STO | M1: ST | N1: STI | O1: STD | P1: STDS | R1: ROO | S1: RO | T1: ROI | U1: ROD
A2: 1 | B2: DIST_NE | F2: 1 | G2: 0 | H2: 100 | I2: USA | J2: 1 | L2: 1 | M2: 0 | N2: 100 | O2: USA | P2: 100 | R2: 1 | S2: 0 | T2: 100 | U2: USA | AA2: -Total
A3: 2 | B3: DIST_SE | F3: 2 | G3: 1 | H3: 394 | I3: Northeast District | J3: 394 | L3: 2 | M3: 1 | N3: 394 | O3: Northeast District | P3: 394 | R3: 2 | S3: 1 | T3: 310 | U3: Philadelphia | X3: Northeast District
A4: 3 | B4: DIST_CN | F4: 3 | G4: 1 | H4: 313 | I4: Baltimore | J4: 394 | L4: 3 | M4: 1 | N4: CT | O4: Connecticut | P4: 394 | R4: 3 | S4: 1 | T4: 330 | U4: Milwaukee | X4: Connecticut | Y4: CT100 | Z4: =X4&$AA$2 -> Connecticut-Total | AA4: -Other RO
A5: 4 | B5: DIST_PC | F5: 4 | G5: 1 | H5: 301 | I5: Boston | J5: 394 | L5: 4 | M5: 1 | N5: DE | O5: Delaware | P5: 394 | R5: 4 | S5: 1 | T5: 335 | U5: St. Paul | Y5: CT308 | Z5: Hartford RO | AA5: -NWQ
A6: 5 | B6: DIST_OT | F6: 5 | G6: 1 | H6: 307 | I6: Buffalo | J6: 394 | L6: 5 | M6: 1 | N6: DC | O6: District of Columbia | P6: 394 | R6: 5 | S6: 1 | T6: -1 | U6: Other | Y6: CT-1 | Z6: =X4&$AA$4 -> Connecticut-Other RO
F7: 6 | G7: 1 | H7: 328 | I7: Chicago | J7: 394 | L7: 6 | M7: 1 | N7: IL | O7: Illinois | P7: 394 | R7: 6 | S7: 2 | T7: 318 | U7: Winston-Salem | Y7: CT499 | Z7: =X4&$AA$5 -> Connecticut-NWQ
F8: 7 | G8: 1 | H8: 325 | I8: Cleveland | J8: 394 | L8: 7 | M8: 1 | N8: IN | O8: Indiana | P8: 394 | R8: 7 | S8: 2 | T8: 341 | U8: Salt Lake City | X8: Delaware | Y8: DE100 | Z8: =X8&$AA$2 -> Delaware-Total
B9: CONTROLLER for SOJ District Selection | F9: 8 | G9: 1 | H9: 329 | I9: Detroit | J9: 394 | L9: 8 | M9: 1 | N9: ME | O9: Maine | P9: 394 | R9: 8 | S9: 2 | T9: -1 | U9: Other | Y9: DE460 | Z9: Wilmington RO
B10: ACTIVE SELECTION | D10: 1 | F10: 9 | G10: 1 | H10: 308 | I10: Hartford | J10: 394 | L10: 9 | M10: 1 | N10: MD | O10: Maryland | P10: 394 | R10: 9 | S10: 3 | T10: 318 | U10: Winston-Salem | Y10: DE-1 | Z10: =X8&$AA$4 -> Delaware-Other RO
B11: MODIFIED SELECTION | C11: =IF(D20=12,"DIST_P",IF(D20=14,"DIST_Q",DS_RO_STG)) -> DIST_NE | F11: 10 | G11: 1 | H11: 326 | I11: Indianapolis | J11: 394 | L11: 10 | M11: 1 | N11: MA | O11: Massachusetts | P11: 394 | R11: 10 | S11: 3 | T11: 377 | U11: San Diego | Y11: DE499 | Z11: =X8&$AA$5 -> Delaware-NWQ
F12: 11 | G12: 1 | H12: 373 | I12: Manchester | J12: 394 | L12: 11 | M12: 1 | N12: MI | O12: Michigan | P12: 394 | R12: 11 | S12: 3 | T12: -1 | U12: Other | X12: DC | Y12: DC100 | Z12: =X12&$AA$2 -> DC-Total
B13: DISTRICT-RO | C13: =INDEX(DIST_DEF,(MATCH($D$10,DIST_ID,0))) -> DIST_NE | F13: 12 | G13: 1 | H13: 330 | I13: Milwaukee | J13: 394 | L13: 12 | M13: 1 | N13: MO | O13: Missouri | P13: 394 | Y13: DC372 | Z13: Washington DC RO
B14: DISTRICT-STATE | C14: =INDEX(DIST_DEF,(MATCH($D$10,DIST_ID,0)))&"_ST" -> DIST_NE_ST | F14: 13 | G14: 1 | H14: 306 | I14: New York | J14: 394 | L14: 13 | M14: 1 | N14: NH | O14: New Hampshire | P14: 394 | Y14: DC-1 | Z14: =X12&$AA$4 -> DC-Other RO
B15: DISTRICT-NWQ | C15: =INDEX(DIST_DEF,(MATCH($D$10,DIST_ID,0)))&"_NWQ" -> DIST_NE_NWQ | D15: =INDEX(DIST_DEF,(MATCH($D$10,DIST_ID,0)))&"_NWQD" -> DIST_NE_NWQD | F15: 14 | G15: 1 | H15: 309 | I15: Newark | J15: 394 | L15: 14 | M15: 1 | N15: NJ | O15: New Jersey | P15: 394 | T15: ROI | U15: ROD | Y15: DC499 | Z15: =X12&$AA$5 -> DC-NWQ
C16: =INDEX(DIST_DEF,(MATCH($D$10,DIST_ID,0)))&"_NWQI" -> DIST_NE_NWQI | F16: 15 | G16: 1 | H16: 310 | I16: Philadelphia | J16: 394 | L16: 15 | M16: 1 | N16: NY | O16: New York | P16: 394 | T16: 100 | U16: USA | X16: Illinois | Y16: IL100 | Z16: =X16&$AA$2 -> Illinois-Total
F17: 16 | G17: 1 | H17: 311 | I17: Pittsburgh | J17: 394 | L17: 16 | M17: 1 | N17: OH | O17: Ohio | P17: 394 | T17: 310 | U17: Philadelphia | Y17: IL328 | Z17: Chicago RO
B18: CONTROLLER for Mission Selection | F18: 17 | G18: 1 | H18: 304 | I18: Providence | J18: 394 | L18: 17 | M18: 1 | N18: PA | O18: Pennsylvania | P18: 394 | T18: 330 | U18: Milwaukee | Y18: IL-1 | Z18: =X16&$AA$4 -> Illinois-Other RO
B19: ACTIVE SELECTION | D19: 1 | F19: 18 | G19: 1 | H19: 376 | I19: St. Louis RMC | J19: 394 | L19: 18 | M19: 1 | N19: RI | O19: Rhode Island | P19: 394 | T19: 335 | U19: St. Paul | Y19: IL499 | Z19: =X16&$AA$5 -> Illinois-NWQ
B20: MODIFIED SELECTION | C20: =INDEX(SMD,(MATCH($D$19,DIST_ID,0))) -> USA - All Missions | D20: =IF(SMSA=1,0,SMSA+9) -> 0 | F20: 19 | G20: 1 | H20: 331 | I20: St. Louis | J20: 394 | L20: 19 | M20: 1 | N20: VT | O20: Vermont | P20: 394 | T20: 499 | U20: NWQ | X20: Indiana | Y20: IN100 | Z20: =X20&$AA$2 -> Indiana-Total
B21: USA - All Missions | D21: 1 | F21: 20 | G21: 1 | H21: 402 | I21: Togus | J21: 394 | L21: 20 | M21: 1 | N21: WI | O21: Wisconsin | P21: 394 | T21: -1 | U21: Other | Y21: IN326 | Z21: Indianapolis RO
B22: Compensation | D22: 11 | F22: 21 | G22: 1 | H22: 372 | I22: Washington | J22: 394 | L22: 21 | M22: 2 | N22: 393 | O22: Southeast District | P22: 393 | T22: 318 | U22: Winston-Salem | Y22: IN-1 | Z22: =X20&$AA$4 -> Indiana-Other RO
B23: Pension | D23: 12 | F23: 22 | G23: 1 | H23: 405 | I23: White River Junction | J23: 394 | L23: 22 | M23: 2 | N23: AL | O23: Alabama | P23: 393 | T23: 341 | U23: Salt Lake City | Y23: IN499 | Z23: =X20&$AA$5 -> Indiana-NWQ
B24: BDD | D24: 13 | F24: 23 | G24: 1 | H24: 460 | I24: Wilmington | J24: 394 | L24: 23 | M24: 2 | N24: AR | O24: Arkansas | P24: 393 | T24: 499 | U24: NWQ | X24: Maine | Y24: ME100 | Z24: =X24&$AA$2 -> Maine-Total
B25: Quickstart | D25: 14 | F25: 24 | G25: 2 | H25: 393 | I25: Southeast District | J25: 393 | L25: 24 | M25: 2 | N25: FL | O25: Florida | P25: 393 | T25: -1 | U25: Other | Y25: ME402 | Z25: Togus RO
F26: 25 | G26: 2 | H26: 316 | I26: Atlanta | J26: 393 | L26: 25 | M26: 2 | N26: GA | O26: Georgia | P26: 393 | T26: 318 | U26: Winston-Salem | Y26: ME-1 | Z26: =X24&$AA$4 -> Maine-Other RO
B27: TRADITIONAL AGGREGATE CODES | F27: 26 | G27: 2 | H27: 319 | I27: Columbia | J27: 393 | L27: 26 | M27: 2 | N27: KY | O27: Kentucky | P27: 393 | T27: 377 | U27: San Diego | Y27: ME499 | Z27: =X24&$AA$5 -> Maine-NWQ
B28: ALL | C28: 1000 | F28: 27 | G28: 2 | H28: 315 | I28: Huntington | J28: 393 | L28: 27 | M28: 2 | N28: LA | O28: Louisiana | P28: 393 | T28: 499 | U28: NWQ | X28: Maryland | Y28: MD100 | Z28: =X28&$AA$2 -> Maryland-Total
B29: Non-Rating/Appeals Compensation | C29: 2000 | F29: 28 | G29: 2 | H29: 323 | I29: Jackson | J29: 393 | L29: 28 | M29: 2 | N29: MS | O29: Mississippi | P29: 393 | T29: -1 | U29: Other | Y29: MD313 | Z29: Baltimore RO
B30: Non-Rating/Appeals Pension | C30: 3000 | F30: 29 | G30: 2 | H30: 350 | I30: Little Rock | J30: 393 | L30: 29 | M30: 2 | N30: NC | O30: North Carolina | P30: 393 | Y30: MD-1 | Z30: =X28&$AA$4 -> Maryland-Other RO
B31: Compensation Entitlement | C31: 2100 | F31: 30 | G31: 2 | H31: 327 | I31: Louisville | J31: 393 | L31: 30 | M31: 2 | N31: PR | O31: Puerto Rico | P31: 393 | Y31: MD499 | Z31: =X28&$AA$5 -> Maryland-NWQ
B32: Compensation Award Adjustment | C32: 2200 | F32: 31 | G32: 2 | H32: 322 | I32: Montgomery | J32: 393 | L32: 31 | M32: 2 | N32: SC | O32: South Carolina | P32: 393 | X32: Massachusetts | Y32: MA100 | Z32: =X32&$AA$2 -> Massachusetts-Total
B33: Compensation Program Review | C33: 2300 | F33: 32 | G33: 2 | H33: 320 | I33: Nashville | J33: 393 | L33: 32 | M33: 2 | N33: TN | O33: Tennessee | P33: 393 | Y33: MA301 | Z33: Boston RO
B34: Compensation Other | C34: 2400 | F34: 33 | G34: 2 | H34: 321 | I34: New Orleans | J34: 393 | L34: 33 | M34: 2 | N34: VA | O34: Virginia | P34: 393 | Y34: MA-1 | Z34: =X32&$AA$4 -> Massachusetts-Other RO
B35: Compensation Burial | C35: 2500 | F35: 34 | G35: 2 | H35: 314 | I35: Roanoke | J35: 393 | L35: 34 | M35: 2 | N35: WV | O35: West Virginia | P35: 393 | Y35: MA499 | Z35: =X32&$AA$5 -> Massachusetts-NWQ
B36: Compensation Accrued | C36: 2600 | F36: 35 | G36: 2 | H36: 355 | I36: San Juan | J36: 393 | L36: 35 | M36: 3 | N36: 384 | O36: Continental District | P36: 384 | X36: Michigan | Y36: MI100 | Z36: =X36&$AA$2 -> Michigan-Total
B37: Pension Entitlement | C37: 3100 | F37: 36 | G37: 2 | H37: 317 | I37: St. Petersburg | J37: 393 | L37: 36 | M37: 3 | N37: CO | O37: Colorado | P37: 384 | Y37: MI329 | Z37: Detroit RO
B38: Pension Award Adjustment | C38: 3200 | F38: 37 | G38: 2 | H38: 318 | I38: Winston-Salem | J38: 393 | L38: 37 | M38: 3 | N38: IA | O38: Iowa | P38: 384 | Y38: MI-1 | Z38: =X36&$AA$4 -> Michigan-Other RO
B39: Pension Program Review | C39: 3300 | F39: 38 | G39: 3 | H39: 384 | I39: Continental District | J39: 384 | L39: 38 | M39: 3 | N39: KS | O39: Kansas | P39: 384 | Y39: MI499 | Z39: =X36&$AA$5 -> Michigan-NWQ
B40: Pension Other | C40: 3400 | F40: 39 | G40: 3 | H40: 442 | I40: Cheyenne | J40: 384 | L40: 39 | M40: 3 | N40: MN | O40: Minnesota | P40: 384 | X40: Missouri | Y40: MO100 | Z40: =X40&$AA$2 -> Missouri-Total
B41: Pension Burial | C41: 3500 | F41: 40 | G41: 3 | H41: 339 | I41: Denver | J41: 384 | L41: 40 | M41: 3 | N41: MT | O41: Montana | P41: 384 | Y41: MO331 | Z41: St. Louis RO
B42: Pension Accrued | C42: 3600 | F42: 41 | G42: 3 | H42: 333 | I42: Des Moines | J42: 384 | L42: 41 | M42: 3 | N42: NE | O42: Nebraska | P42: 384 | Y42: MO-1 | Z42: =X40&$AA$4 -> Missouri-Other RO
F43: 42 | G43: 3 | H43: 437 | I43: Fargo | J43: 384 | L43: 42 | M43: 3 | N43: ND | O43: North Dakota | P43: 384 | Y43: MO499 | Z43: =X40&$AA$5 -> Missouri-NWQ
B44: CONTROLLER for SOJ District Selection | F44: 43 | G44: 3 | H44: 436 | I44: Fort Harrison | J44: 384 | L44: 43 | M44: 3 | N44: OK | O44: Oklahoma | P44: 384 | X44: New Hampshire | Y44: NH100 | Z44: =X44&$AA$2 -> New Hampshire-Total
B45: ACTIVE SELECTION | D45: 6 | F45: 44 | G45: 3 | H45: 362 | I45: Houston | J45: 384 | L45: 44 | M45: 3 | N45: SD | O45: South Dakota | P45: 384 | Y45: NH373 | Z45: Manchester RO
B46: MODIFIED SELECTION | C46: =IF(D10=6,DS_RO&"_N",IF(D20=13,DS_RO,IF(D20>11,DS_RO&"_N",DS_RO))) -> DIST_NE | F46: 45 | G46: 3 | H46: 334 | I46: Lincoln | J46: 384 | L46: 45 | M46: 3 | N46: TX | O46: Texas | P46: 384 | Y46: NH-1 | Z46: =X44&$AA$4 -> New Hampshire-Other RO
F47: 46 | G47: 3 | H47: 351 | I47: Muskogee | J47: 384 | L47: 46 | M47: 3 | N47: WY | O47: Wyoming | P47: 384 | Y47: NH499 | Z47: =X44&$AA$5 -> New Hampshire-NWQ
F48: 47 | G48: 3 | H48: 438 | I48: Sioux Falls | J48: 384 | L48: 47 | M48: 4 | N48: 395 | O48: Pacific District | P48: 395 | X48: New Jersey | Y48: NJ100 | Z48: =X48&$AA$2 -> New Jersey-Total
F49: 48 | G49: 3 | H49: 335 | I49: St. Paul | J49: 384 | L49: 48 | M49: 4 | N49: AK | O49: Alaska | P49: 395 | Y49: NJ309 | Z49: Newark RO
F50: 49 | G50: 3 | H50: 349 | I50: Waco | J50: 384 | L50: 49 | M50: 4 | N50: AZ | O50: Arizona | P50: 395 | Y50: NJ-1 | Z50: =X48&$AA$4 -> New Jersey-Other RO
F51: 50 | G51: 3 | H51: 452 | I51: Wichita | J51: 384 | L51: 50 | M51: 4 | N51: CA | O51: California | P51: 395 | Y51: NJ499 | Z51: =X48&$AA$5 -> New Jersey-NWQ
F52: 51 | G52: 4 | H52: 395 | I52: Pacific District | J52: 395 | L52: 51 | M52: 4 | N52: HI | O52: Hawaii | P52: 395 | X52: New York | Y52: NY100 | Z52: =X52&$AA$2 -> New York-Total
F53: 52 | G53: 4 | H53: 340 | I53: Albuquerque | J53: 395 | L53: 52 | M53: 4 | N53: ID | O53: Idaho | P53: 395 | Y53: NY307 | Z53: Buffalo RO
F54: 53 | G54: 4 | H54: 463 | I54: Anchorage | J54: 395 | L54: 53 | M54: 4 | N54: NV | O54: Nevada | P54: 395 | Y54: NY306 | Z54: New York RO
F55: 54 | G55: 4 | H55: 347 | I55: Boise | J55: 395 | L55: 54 | M55: 4 | N55: NM | O55: New Mexico | P55: 395 | Y55: NY-1 | Z55: =X52&$AA$4 -> New York-Other RO
F56: 55 | G56: 4 | H56: 459 | I56: Honolulu | J56: 395 | L56: 55 | M56: 4 | N56: OR | O56: Oregon | P56: 395 | Y56: NY499 | Z56: =X52&$AA$5 -> New York-NWQ
F57: 56 | G57: 4 | H57: 344 | I57: Los Angeles | J57: 395 | L57: 56 | M57: 4 | N57: PI | O57: Philippines | P57: 395 | X57: Ohio | Y57: OH100 | Z57: =X57&$AA$2 -> Ohio-Total
F58: 57 | G58: 4 | H58: 358 | I58: Manila | J58: 395 | L58: 57 | M58: 4 | N58: UT | O58: Utah | P58: 395 | Y58: OH325 | Z58: Cleveland RO
F59: 58 | G59: 4 | H59: 343 | I59: Oakland | J59: 395 | L59: 58 | M59: 4 | N59: WA | O59: Washington | P59: 395 | Y59: OH-1 | Z59: =X57&$AA$4 -> Ohio-Other RO
F60: 59 | G60: 4 | H60: 345 | I60: Phoenix | J60: 395 | L60: 59 | M60: 5 | N60: 35 | O60: Other District | P60: 35 | Y60: OH499 | Z60: =X57&$AA$5 -> Ohio-NWQ
F61: 60 | G61: 4 | H61: 348 | I61: Portland | J61: 395 | L61: 60 | M61: 5 | N61: 35 | O61: Outside US | P61: 35 | X61: Pennsylvania | Y61: PA100 | Z61: =X61&$AA$2 -> Pennsylvania-Total
F62: 61 | G62: 4 | H62: 354 | I62: Reno | J62: 395 | Y62: PA310 | Z62: Philadelphia RO
F63: 62 | G63: 4 | H63: 341 | I63: Salt Lake City | J63: 395 | Y63: PA311 | Z63: Pittsburgh RO
F64: 63 | G64: 4 | H64: 377 | I64: San Diego | J64: 395 | Y64: PA-1 | Z64: =X61&$AA$4 -> Pennsylvania-Other RO
F65: 64 | G65: 4 | H65: 346 | I65: Seattle | J65: 395 | Y65: PA499 | Z65: =X61&$AA$5 -> Pennsylvania-NWQ
F66: 65 | G66: 5 | H66: 35 | I66: Other District | J66: 35 | X66: Rhode Island | Y66: RI100 | Z66: =X66&$AA$2 -> Rhode Island-Total
F67: 66 | G67: 5 | H67: 499 | I67: NWQ | J67: 35 | Y67: RI304 | Z67: Providence RO
F68: 67 | G68: 5 | H68: -1 | I68: Other | J68: 35 | Y68: RI-1 | Z68: =X66&$AA$4 -> Rhode Island-Other RO
Y69: RI499 | Z69: =X66&$AA$5 -> Rhode Island-NWQ
X70: Vermont | Y70: VT100 | Z70: =X70&$AA$2 -> Vermont-Total
Y71: VT405 | Z71: White River RO
Y72: VT-1 | Z72: =X70&$AA$4 -> Vermont-Other RO
Y73: VT499 | Z73: =X70&$AA$5 -> Vermont-NWQ
X74: Wisconsin | Y74: WI100 | Z74: =X74&$AA$2 -> Wisconsin-Total
Y75: WI330 | Z75: Milwaukee RO
Y76: WI-1 | Z76: =X74&$AA$4 -> Wisconsin-Other RO
Y77: WI499 | Z77: =X74&$AA$5 -> Wisconsin-NWQ
X78: Southeast District
X79: Alabama | Y79: AL100 | Z79: =X79&$AA$2 -> Alabama-Total
Y80: AL322 | Z80: Montgomery RO
Y81: AL-1 | Z81: =X79&$AA$4 -> Alabama-Other RO
Y82: AL499 | Z82: =X79&$AA$5 -> Alabama-NWQ
X83: Arkansas | Y83: AR100 | Z83: =X83&$AA$2 -> Arkansas-Total
Y84: AR350 | Z84: Little Rock RO
Y85: AR-1 | Z85: =X83&$AA$4 -> Arkansas-Other RO
Y86: AR499 | Z86: =X83&$AA$5 -> Arkansas-NWQ
X87: Florida | Y87: FL100 | Z87: =X87&$AA$2 -> Florida-Total
Y88: FL317 | Z88: St. Petersburg RO
Y89: FL-1 | Z89: =X87&$AA$4 -> Florida-Other RO
Y90: FL499 | Z90: =X87&$AA$5 -> Florida-NWQ
X91: Georgia | Y91: GA100 | Z91: =X91&$AA$2 -> Georgia-Total
Y92: GA316 | Z92: Atlanta RO
Y93: GA-1 | Z93: =X91&$AA$4 -> Georgia-Other RO
Y94: GA499 | Z94: =X91&$AA$5 -> Georgia-NWQ
X95: Kentucky | Y95: KY100 | Z95: =X95&$AA$2 -> Kentucky-Total
Y96: KY327 | Z96: Louisville RO
Y97: KY-1 | Z97: =X95&$AA$4 -> Kentucky-Other RO
Y98: KY499 | Z98: =X95&$AA$5 -> Kentucky-NWQ
X99: Louisiana | Y99: LA100 | Z99: =X99&$AA$2 -> Louisiana-Total
Y100: LA321 | Z100: New Orleans RO
Y101: LA-1 | Z101: =X99&$AA$4 -> Louisiana-Other RO
Y102: LA499 | Z102: =X99&$AA$5 -> Louisiana-NWQ
X103: Mississippi | Y103: MS100 | Z103: =X103&$AA$2 -> Mississippi-Total
Y104: MS323 | Z104: Jackson RO
Y105: MS-1 | Z105: =X103&$AA$4 -> Mississippi-Other RO
Y106: MS499 | Z106: =X103&$AA$5 -> Mississippi-NWQ
X107: North Carolina | Y107: NC100 | Z107: =X107&$AA$2 -> North Carolina-Total
Y108: NC318 | Z108: Winston-Salem RO
Y109: NC-1 | Z109: =X107&$AA$4 -> North Carolina-Other RO
Y110: NC499 | Z110: =X107&$AA$5 -> North Carolina-NWQ
X111: Puerto Rico | Y111: PR100 | Z111: =X111&$AA$2 -> Puerto Rico-Total
Y112: PR355 | Z112: San Juan RO
Y113: PR-1 | Z113: =X111&$AA$4 -> Puerto Rico-Other RO
Y114: PR499 | Z114: =X111&$AA$5 -> Puerto Rico-NWQ
X115: South Carolina | Y115: SC100 | Z115: =X115&$AA$2 -> South Carolina-Total
Y116: SC319 | Z116: Columbia RO
Y117: SC-1 | Z117: =X115&$AA$4 -> South Carolina-Other RO
Y118: SC499 | Z118: =X115&$AA$5 -> South Carolina-NWQ
X119: Tennessee | Y119: TN100 | Z119: =X119&$AA$2 -> Tennessee-Total
Y120: TN320 | Z120: Nashville RO
Y121: TN-1 | Z121: =X119&$AA$4 -> Tennessee-Other RO
Y122: TN499 | Z122: =X119&$AA$5 -> Tennessee-NWQ
X123: Virginia | Y123: VA100 | Z123: =X123&$AA$2 -> Virginia-Total
Y124: VA314 | Z124: Roanoke RO
Y125: VA-1 | Z125: =X123&$AA$4 -> Virginia-Other RO
Y126: VA499 | Z126: =X123&$AA$5 -> Virginia-NWQ
X127: West Virginia | Y127: WV100 | Z127: =X127&$AA$2 -> West Virginia-Total
Y128: WV315 | Z128: Huntington RO
Y129: WV-1 | Z129: =X127&$AA$4 -> West Virginia-Other RO
Y130: WV499 | Z130: =X127&$AA$5 -> West Virginia-NWQ
X131: Continental District
X132: Colorado | Y132: CO100 | Z132: =X132&$AA$2 -> Colorado-Total
Y133: CO339 | Z133: Denver RO
Y134: CO-1 | Z134: =X132&$AA$4 -> Colorado-Other RO
Y135: CO499 | Z135: =X132&$AA$5 -> Colorado-NWQ
X136: Iowa | Y136: IA100 | Z136: =X136&$AA$2 -> Iowa-Total
Y137: IA333 | Z137: Des Moines RO
Y138: IA-1 | Z138: =X136&$AA$4 -> Iowa-Other RO
Y139: IA499 | Z139: =X136&$AA$5 -> Iowa-NWQ
X140: Kansas | Y140: KS100 | Z140: =X140&$AA$2 -> Kansas-Total
Y141: KS452 | Z141: Wichita RO
Y142: KS-1 | Z142: =X140&$AA$4 -> Kansas-Other RO
Y143: KS499 | Z143: =X140&$AA$5 -> Kansas-NWQ
X144: Minnesota | Y144: MN100 | Z144: =X144&$AA$2 -> Minnesota-Total
Y145: MN335 | Z145: St. Paul RO
Y146: MN-1 | Z146: =X144&$AA$4 -> Minnesota-Other RO
Y147: MN499 | Z147: =X144&$AA$5 -> Minnesota-NWQ
X148: Montana | Y148: MT100 | Z148: =X148&$AA$2 -> Montana-Total
Y149: MT436 | Z149: Fort Harrison RO
Y150: MT-1 | Z150: =X148&$AA$4 -> Montana-Other RO
Y151: MT499 | Z151: =X148&$AA$5 -> Montana-NWQ
X152: Nebraska | Y152: NE100 | Z152: =X152&$AA$2 -> Nebraska-Total
Y153: NE334 | Z153: Lincoln RO
Y154: NE-1 | Z154: =X152&$AA$4 -> Nebraska-Other RO
Y155: NE499 | Z155: =X152&$AA$5 -> Nebraska-NWQ
X156: North Dakota | Y156: ND100 | Z156: =X156&$AA$2 -> North Dakota-Total
Y157: ND437 | Z157: Fargo RO
Y158: ND-1 | Z158: =X156&$AA$4 -> North Dakota-Other RO
Y159: ND499 | Z159: =X156&$AA$5 -> North Dakota-NWQ
X160: Oklahoma | Y160: OK100 | Z160: =X160&$AA$2 -> Oklahoma-Total
Y161: OK351 | Z161: Muskogee RO
Y162: OK-1 | Z162: =X160&$AA$4 -> Oklahoma-Other RO
Y163: OK499 | Z163: =X160&$AA$5 -> Oklahoma-NWQ
X164: South Dakota | Y164: SD100 | Z164: =X164&$AA$2 -> South Dakota-Total
Y165: SD438 | Z165: Sioux Falls RO
Y166: SD-1 | Z166: =X164&$AA$4 -> South Dakota-Other RO
Y167: SD499 | Z167: =X164&$AA$5 -> South Dakota-NWQ
X168: Texas | Y168: TX100 | Z168: =X168&$AA$2 -> Texas-Total
Y169: TX362 | Z169: Houston RO
Y170: TX349 | Z170: Waco RO
Y171: TX-1 | Z171: =X168&$AA$4 -> Texas-Other RO
Y172: TX499 | Z172: =X168&$AA$5 -> Texas-NWQ
X173: Wyoming | Y173: WY100 | Z173: =X173&$AA$2 -> Wyoming-Total
Y174: WY442 | Z174: Cheyenne RO
Y175: WY-1 | Z175: =X173&$AA$4 -> Wyoming-Other RO
Y176: WY499 | Z176: =X173&$AA$5 -> Wyoming-NWQ
X177: Pacific District
X178: Alaska | Y178: AK100 | Z178: =X178&$AA$2 -> Alaska-Total
Y179: AK463 | Z179: Anchorage RO
Y180: AK-1 | Z180: =X178&$AA$4 -> Alaska-Other RO
Y181: AK499 | Z181: =X178&$AA$5 -> Alaska-NWQ
X182: Arizona | Y182: AZ100 | Z182: =X182&$AA$2 -> Arizona-Total
Y183: AZ345 | Z183: Phoenix RO
Y184: AZ-1 | Z184: =X182&$AA$4 -> Arizona-Other RO
Y185: AZ499 | Z185: =X182&$AA$5 -> Arizona-NWQ
X186: California | Y186: CA100 | Z186: =X186&$AA$2 -> California-Total
Y187: CA344 | Z187: Los Angeles RO
Y188: CA343 | Z188: Oakland RO
Y189: CA377 | Z189: San Diego RO
Y190: CA-1 | Z190: =X186&$AA$4 -> California-Other RO
Y191: CA499 | Z191: =X186&$AA$5 -> California-NWQ
X192: Hawaii | Y192: HI100 | Z192: =X192&$AA$2 -> Hawaii-Total
Y193: HI459 | Z193: Honolulu RO
Y194: HI-1 | Z194: =X192&$AA$4 -> Hawaii-Other RO
Y195: HI499 | Z195: =X192&$AA$5 -> Hawaii-NWQ
X196: Idaho | Y196: ID100 | Z196: =X196&$AA$2 -> Idaho-Total
Y197: ID347 | Z197: Boise RO
Y198: ID-1 | Z198: =X196&$AA$4 -> Idaho-Other RO
Y199: ID499 | Z199: =X196&$AA$5 -> Idaho-NWQ
X200: Nevada | Y200: NV100 | Z200: =X200&$AA$2 -> Nevada-Total
... 26 more rows

Sheet Rating Bundle - SOO
C2: DISTRICT SELECTOR | D2: Compensation and Pension Rating Bundle Metrics | L2: Report through
D3: Station of Origin View | L3: =D_DT[] -> 2024-01-27
D4: The Station of Origination (SOO) primarily represents pending claims based on geographic boundaries | L4: ADP = Average Days Pending | O4: MTD = Month to Date
D5: Each Special Mission has distinct claim counts | L5: ADC = Average Days to Complete | O5: FYTD = Fiscal Year to Date
D6: When Special Mission is set to Pension, BDD, or Quickstart, the District Selector has no impact.
L7: Accuracy metrics are available on Rating Bundle - SOJ tab
D8: CLAIM METRICS | L8: ACCURACY METRICS
C9: SPECIAL MISSION SELECTOR | D9: # Pending | E9: # Pending > 125 Days | F9: % Pending > 125 Days | G9: ADP | H9: # Completed MTD | I9: ADC MTD | J9: # Completed FYTD | K9: ADC FYTD | L9: Accuracy measurement is available on the Rating Bundle SOJ tab
A12: 100 | C12: =Driver!$C$20& " Total" -> USA - All Missions Total | D12: =IF(ISNA($A12),"",IFERROR(SUMIFS(D_D[INV],D_D[MT],4,D_D[CAT],SMS,D_D[LOC],$A12),0)) -> 1014814 | E12: =IF(ISNA($A12),"",IFERROR(SUMIFS(D_D[BL],D_D[MT],4,D_D[CAT],SMS,D_D[LOC],$A12),0)) -> 399925 | F12: =IF(ISNA($A12),"",IFERROR(E12/D12,0)) -> 0.3940869953 | G12: =IF(ISNA($A12),"",IFERROR(SUMIFS(D_D[ADP],D_D[MT],4,D_D[CAT],SMS,D_D[LOC],$A12),0)) -> 123.91 | H12: =IF(ISNA($A12),"",IFERROR(SUMIFS(D_D[PROD_MTD],D_D[MT],4,D_D[CAT],SMS,D_D[LOC],$A12),0)) -> 189279 | I12: =IF(ISNA($A12),"",IFERROR(SUMIFS(D_D[ADCM],D_D[MT],4,D_D[CAT],SMS,D_D[LOC],$A12),0)) -> 159.5 | J12: =IF(ISNA($A12),"",IFERROR(SUMIFS(D_D[PROD_FYTD],D_D[MT],4,D_D[CAT],SMS,D_D[LOC],$A12),0)) -> 754126 | K12: =IF(ISNA($A12),"",IFERROR(SUMIFS(D_D[ADCF],D_D[MT],4,D_D[CAT],SMS,D_D[LOC],$A12),0)) -> 151.84
A13: =INDEX(RO,(MATCH($C13,RO_D,0))) -> 394 | B13: 1 | C13: =IFERROR(INDEX(INDIRECT(DS_RO),B13),"") -> Northeast District | D13: =IF(ISNA($A13),"",IFERROR(SUMIFS(D_D[INV],D_D[MT],4,D_D[CAT],SMS,D_D[LOC],$A13),0)) -> 210017 | E13: =IF(ISNA($A13),"",IFERROR(SUMIFS(D_D[BL],D_D[MT],4,D_D[CAT],SMS,D_D[LOC],$A13),0)) -> 81982 | F13: =IF(ISNA($A13),"",IFERROR(E13/D13,0)) -> 0.3903588757 | G13: =IF(ISNA($A13),"",IFERROR(SUMIFS(D_D[ADP],D_D[MT],4,D_D[CAT],SMS,D_D[LOC],$A13),0)) -> 122.24 | H13: =IF(ISNA($A13),"",IFERROR(SUMIFS(D_D[PROD_MTD],D_D[MT],4,D_D[CAT],SMS,D_D[LOC],$A13),0)) -> 40510 | I13: =IF(ISNA($A13),"",IFERROR(SUMIFS(D_D[ADCM],D_D[MT],4,D_D[CAT],SMS,D_D[LOC],$A13),0)) -> 154.74 | J13: =IF(ISNA($A13),"",IFERROR(SUMIFS(D_D[PROD_FYTD],D_D[MT],4,D_D[CAT],SMS,D_D[LOC],$A13),0)) -> 159402 | K13: =IF(ISNA($A13),"",IFERROR(SUMIFS(D_D[ADCF],D_D[MT],4,D_D[CAT],SMS,D_D[LOC],$A13),0)) -> 145.06
A14: 313 | B14: 2 | C14: Baltimore | D14: =IF(ISNA($A14),"",IFERROR(SUMIFS(D_D[INV],D_D[MT],4,D_D[CAT],SMS,D_D[LOC],$A14),0)) -> 15173 | E14: =IF(ISNA($A14),"",IFERROR(SUMIFS(D_D[BL],D_D[MT],4,D_D[CAT],SMS,D_D[LOC],$A14),0)) -> 5728 | F14: =IF(ISNA($A14),"",IFERROR(E14/D14,0)) -> 0.377512687 | G14: =IF(ISNA($A14),"",IFERROR(SUMIFS(D_D[ADP],D_D[MT],4,D_D[CAT],SMS,D_D[LOC],$A14),0)) -> 117.76 | H14: =IF(ISNA($A14),"",IFERROR(SUMIFS(D_D[PROD_MTD],D_D[MT],4,D_D[CAT],SMS,D_D[LOC],$A14),0)) -> 3020 | I14: =IF(ISNA($A14),"",IFERROR(SUMIFS(D_D[ADCM],D_D[MT],4,D_D[CAT],SMS,D_D[LOC],$A14),0)) -> 158.09 | J14: =IF(ISNA($A14),"",IFERROR(SUMIFS(D_D[PROD_FYTD],D_D[MT],4,D_D[CAT],SMS,D_D[LOC],$A14),0)) -> 12224 | K14: =IF(ISNA($A14),"",IFERROR(SUMIFS(D_D[ADCF],D_D[MT],4,D_D[CAT],SMS,D_D[LOC],$A14),0)) -> 145.72
A15: 301 | B15: 3 | C15: =IFERROR(INDEX(INDIRECT(DS_RO),B15),"") -> Boston | D15: =IF(ISNA($A15),"",IFERROR(SUMIFS(D_D[INV],D_D[MT],4,D_D[CAT],SMS,D_D[LOC],$A15),0)) -> 6816 | E15: =IF(ISNA($A15),"",IFERROR(SUMIFS(D_D[BL],D_D[MT],4,D_D[CAT],SMS,D_D[LOC],$A15),0)) -> 2575 | F15: =IF(ISNA($A15),"",IFERROR(E15/D15,0)) -> 0.3777875587 | G15: =IF(ISNA($A15),"",IFERROR(SUMIFS(D_D[ADP],D_D[MT],4,D_D[CAT],SMS,D_D[LOC],$A15),0)) -> 119.75 | H15: =IF(ISNA($A15),"",IFERROR(SUMIFS(D_D[PROD_MTD],D_D[MT],4,D_D[CAT],SMS,D_D[LOC],$A15),0)) -> 1320 | I15: =IF(ISNA($A15),"",IFERROR(SUMIFS(D_D[ADCM],D_D[MT],4,D_D[CAT],SMS,D_D[LOC],$A15),0)) -> 158.37 | J15: =IF(ISNA($A15),"",IFERROR(SUMIFS(D_D[PROD_FYTD],D_D[MT],4,D_D[CAT],SMS,D_D[LOC],$A15),0)) -> 5200 | K15: =IF(ISNA($A15),"",IFERROR(SUMIFS(D_D[ADCF],D_D[MT],4,D_D[CAT],SMS,D_D[LOC],$A15),0)) -> 148.92
A16: 307 | B16: 4 | C16: Buffalo | D16: =IF(ISNA($A16),"",IFERROR(SUMIFS(D_D[INV],D_D[MT],4,D_D[CAT],SMS,D_D[LOC],$A16),0)) -> 8578 | E16: =IF(ISNA($A16),"",IFERROR(SUMIFS(D_D[BL],D_D[MT],4,D_D[CAT],SMS,D_D[LOC],$A16),0)) -> 3250 | F16: 0.3788761949 | G16: =IF(ISNA($A16),"",IFERROR(SUMIFS(D_D[ADP],D_D[MT],4,D_D[CAT],SMS,D_D[LOC],$A16),0)) -> 118.97 | H16: =IF(ISNA($A16),"",IFERROR(SUMIFS(D_D[PROD_MTD],D_D[MT],4,D_D[CAT],SMS,D_D[LOC],$A16),0)) -> 1654 | I16: =IF(ISNA($A16),"",IFERROR(SUMIFS(D_D[ADCM],D_D[MT],4,D_D[CAT],SMS,D_D[LOC],$A16),0)) -> 162.51 | J16: =IF(ISNA($A16),"",IFERROR(SUMIFS(D_D[PROD_FYTD],D_D[MT],4,D_D[CAT],SMS,D_D[LOC],$A16),0)) -> 6496 | K16: =IF(ISNA($A16),"",IFERROR(SUMIFS(D_D[ADCF],D_D[MT],4,D_D[CAT],SMS,D_D[LOC],$A16),0)) -> 151.56
A17: 328 | B17: 5 | C17: Chicago | D17: =IF(ISNA($A17),"",IFERROR(SUMIFS(D_D[INV],D_D[MT],4,D_D[CAT],SMS,D_D[LOC],$A17),0)) -> 19954 | E17: =IF(ISNA($A17),"",IFERROR(SUMIFS(D_D[BL],D_D[MT],4,D_D[CAT],SMS,D_D[LOC],$A17),0)) -> 7831 | F17: 0.3924526411 | G17: =IF(ISNA($A17),"",IFERROR(SUMIFS(D_D[ADP],D_D[MT],4,D_D[CAT],SMS,D_D[LOC],$A17),0)) -> 122.19 | H17: =IF(ISNA($A17),"",IFERROR(SUMIFS(D_D[PROD_MTD],D_D[MT],4,D_D[CAT],SMS,D_D[LOC],$A17),0)) -> 3374 | I17: =IF(ISNA($A17),"",IFERROR(SUMIFS(D_D[ADCM],D_D[MT],4,D_D[CAT],SMS,D_D[LOC],$A17),0)) -> 163.66 | J17: =IF(ISNA($A17),"",IFERROR(SUMIFS(D_D[PROD_FYTD],D_D[MT],4,D_D[CAT],SMS,D_D[LOC],$A17),0)) -> 13398 | K17: =IF(ISNA($A17),"",IFERROR(SUMIFS(D_D[ADCF],D_D[MT],4,D_D[CAT],SMS,D_D[LOC],$A17),0)) -> 155.66
A18: 325 | B18: 6 | C18: Cleveland | D18: =IF(ISNA($A18),"",IFERROR(SUMIFS(D_D[INV],D_D[MT],4,D_D[CAT],SMS,D_D[LOC],$A18),0)) -> 24952 | E18: =IF(ISNA($A18),"",IFERROR(SUMIFS(D_D[BL],D_D[MT],4,D_D[CAT],SMS,D_D[LOC],$A18),0)) -> 9092 | F18: 0.3643796088 | G18: =IF(ISNA($A18),"",IFERROR(SUMIFS(D_D[ADP],D_D[MT],4,D_D[CAT],SMS,D_D[LOC],$A18),0)) -> 118.93 | H18: =IF(ISNA($A18),"",IFERROR(SUMIFS(D_D[PROD_MTD],D_D[MT],4,D_D[CAT],SMS,D_D[LOC],$A18),0)) -> 4465 | I18: =IF(ISNA($A18),"",IFERROR(SUMIFS(D_D[ADCM],D_D[MT],4,D_D[CAT],SMS,D_D[LOC],$A18),0)) -> 156.86 | J18: =IF(ISNA($A18),"",IFERROR(SUMIFS(D_D[PROD_FYTD],D_D[MT],4,D_D[CAT],SMS,D_D[LOC],$A18),0)) -> 17225 | K18: =IF(ISNA($A18),"",IFERROR(SUMIFS(D_D[ADCF],D_D[MT],4,D_D[CAT],SMS,D_D[LOC],$A18),0)) -> 150.9
A19: 329 | B19: 7 | C19: Detroit | D19: =IF(ISNA($A19),"",IFERROR(SUMIFS(D_D[INV],D_D[MT],4,D_D[CAT],SMS,D_D[LOC],$A19),0)) -> 17099 | E19: =IF(ISNA($A19),"",IFERROR(SUMIFS(D_D[BL],D_D[MT],4,D_D[CAT],SMS,D_D[LOC],$A19),0)) -> 6619 | F19: 0.3870986607 | G19: =IF(ISNA($A19),"",IFERROR(SUMIFS(D_D[ADP],D_D[MT],4,D_D[CAT],SMS,D_D[LOC],$A19),0)) -> 119.94 | H19: =IF(ISNA($A19),"",IFERROR(SUMIFS(D_D[PROD_MTD],D_D[MT],4,D_D[CAT],SMS,D_D[LOC],$A19),0)) -> 3186 | I19: =IF(ISNA($A19),"",IFERROR(SUMIFS(D_D[ADCM],D_D[MT],4,D_D[CAT],SMS,D_D[LOC],$A19),0)) -> 154.27 | J19: =IF(ISNA($A19),"",IFERROR(SUMIFS(D_D[PROD_FYTD],D_D[MT],4,D_D[CAT],SMS,D_D[LOC],$A19),0)) -> 12393 | K19: =IF(ISNA($A19),"",IFERROR(SUMIFS(D_D[ADCF],D_D[MT],4,D_D[CAT],SMS,D_D[LOC],$A19),0)) -> 148.13
A20: 308 | B20: 8 | C20: Hartford | D20: =IF(ISNA($A20),"",IFERROR(SUMIFS(D_D[INV],D_D[MT],4,D_D[CAT],SMS,D_D[LOC],$A20),0)) -> 4512 | E20: =IF(ISNA($A20),"",IFERROR(SUMIFS(D_D[BL],D_D[MT],4,D_D[CAT],SMS,D_D[LOC],$A20),0)) -> 1805 | F20: 0.4000443262 | G20: =IF(ISNA($A20),"",IFERROR(SUMIFS(D_D[ADP],D_D[MT],4,D_D[CAT],SMS,D_D[LOC],$A20),0)) -> 122.2 | H20: =IF(ISNA($A20),"",IFERROR(SUMIFS(D_D[PROD_MTD],D_D[MT],4,D_D[CAT],SMS,D_D[LOC],$A20),0)) -> 817 | I20: =IF(ISNA($A20),"",IFERROR(SUMIFS(D_D[ADCM],D_D[MT],4,D_D[CAT],SMS,D_D[LOC],$A20),0)) -> 157.66 | J20: =IF(ISNA($A20),"",IFERROR(SUMIFS(D_D[PROD_FYTD],D_D[MT],4,D_D[CAT],SMS,D_D[LOC],$A20),0)) -> 3275 | K20: =IF(ISNA($A20),"",IFERROR(SUMIFS(D_D[ADCF],D_D[MT],4,D_D[CAT],SMS,D_D[LOC],$A20),0)) -> 149.22
A21: 326 | B21: 9 | C21: Indianapolis | D21: =IF(ISNA($A21),"",IFERROR(SUMIFS(D_D[INV],D_D[MT],4,D_D[CAT],SMS,D_D[LOC],$A21),0)) -> 14838 | E21: =IF(ISNA($A21),"",IFERROR(SUMIFS(D_D[BL],D_D[MT],4,D_D[CAT],SMS,D_D[LOC],$A21),0)) -> 5474 | F21: 0.3689176439 | G21: =IF(ISNA($A21),"",IFERROR(SUMIFS(D_D[ADP],D_D[MT],4,D_D[CAT],SMS,D_D[LOC],$A21),0)) -> 116.79 | H21: =IF(ISNA($A21),"",IFERROR(SUMIFS(D_D[PROD_MTD],D_D[MT],4,D_D[CAT],SMS,D_D[LOC],$A21),0)) -> 2688 | I21: =IF(ISNA($A21),"",IFERROR(SUMIFS(D_D[ADCM],D_D[MT],4,D_D[CAT],SMS,D_D[LOC],$A21),0)) -> 155.83 | J21: =IF(ISNA($A21),"",IFERROR(SUMIFS(D_D[PROD_FYTD],D_D[MT],4,D_D[CAT],SMS,D_D[LOC],$A21),0)) -> 10843 | K21: =IF(ISNA($A21),"",IFERROR(SUMIFS(D_D[ADCF],D_D[MT],4,D_D[CAT],SMS,D_D[LOC],$A21),0)) -> 146.2
A22: 373 | B22: 10 | C22: Manchester | D22: =IF(ISNA($A22),"",IFERROR(SUMIFS(D_D[INV],D_D[MT],4,D_D[CAT],SMS,D_D[LOC],$A22),0)) -> 2614 | E22: =IF(ISNA($A22),"",IFERROR(SUMIFS(D_D[BL],D_D[MT],4,D_D[CAT],SMS,D_D[LOC],$A22),0)) -> 1008 | F22: 0.3856159143 | G22: =IF(ISNA($A22),"",IFERROR(SUMIFS(D_D[ADP],D_D[MT],4,D_D[CAT],SMS,D_D[LOC],$A22),0)) -> 127.6 | H22: =IF(ISNA($A22),"",IFERROR(SUMIFS(D_D[PROD_MTD],D_D[MT],4,D_D[CAT],SMS,D_D[LOC],$A22),0)) -> 459 | I22: =IF(ISNA($A22),"",IFERROR(SUMIFS(D_D[ADCM],D_D[MT],4,D_D[CAT],SMS,D_D[LOC],$A22),0)) -> 159.64 | J22: =IF(ISNA($A22),"",IFERROR(SUMIFS(D_D[PROD_FYTD],D_D[MT],4,D_D[CAT],SMS,D_D[LOC],$A22),0)) -> 1828 | K22: =IF(ISNA($A22),"",IFERROR(SUMIFS(D_D[ADCF],D_D[MT],4,D_D[CAT],SMS,D_D[LOC],$A22),0)) -> 150.45
A23: 330 | B23: 11 | C23: Milwaukee | D23: =IF(ISNA($A23),"",IFERROR(SUMIFS(D_D[INV],D_D[MT],4,D_D[CAT],SMS,D_D[LOC],$A23),0)) -> 14179 | E23: =IF(ISNA($A23),"",IFERROR(SUMIFS(D_D[BL],D_D[MT],4,D_D[CAT],SMS,D_D[LOC],$A23),0)) -> 5524 | F23: 0.3895902391 | G23: =IF(ISNA($A23),"",IFERROR(SUMIFS(D_D[ADP],D_D[MT],4,D_D[CAT],SMS,D_D[LOC],$A23),0)) -> 124.54 | H23: =IF(ISNA($A23),"",IFERROR(SUMIFS(D_D[PROD_MTD],D_D[MT],4,D_D[CAT],SMS,D_D[LOC],$A23),0)) -> 2722 | I23: =IF(ISNA($A23),"",IFERROR(SUMIFS(D_D[ADCM],D_D[MT],4,D_D[CAT],SMS,D_D[LOC],$A23),0)) -> 162.95 | J23: =IF(ISNA($A23),"",IFERROR(SUMIFS(D_D[PROD_FYTD],D_D[MT],4,D_D[CAT],SMS,D_D[LOC],$A23),0)) -> 10779 | K23: =IF(ISNA($A23),"",IFERROR(SUMIFS(D_D[ADCF],D_D[MT],4,D_D[CAT],SMS,D_D[LOC],$A23),0)) -> 155.43
A24: 306 | B24: 12 | C24: New York | D24: =IF(ISNA($A24),"",IFERROR(SUMIFS(D_D[INV],D_D[MT],4,D_D[CAT],SMS,D_D[LOC],$A24),0)) -> 12051 | E24: =IF(ISNA($A24),"",IFERROR(SUMIFS(D_D[BL],D_D[MT],4,D_D[CAT],SMS,D_D[LOC],$A24),0)) -> 4802 | F24: 0.3984731558 | G24: =IF(ISNA($A24),"",IFERROR(SUMIFS(D_D[ADP],D_D[MT],4,D_D[CAT],SMS,D_D[LOC],$A24),0)) -> 123.6 | H24: =IF(ISNA($A24),"",IFERROR(SUMIFS(D_D[PROD_MTD],D_D[MT],4,D_D[CAT],SMS,D_D[LOC],$A24),0)) -> 2213 | I24: =IF(ISNA($A24),"",IFERROR(SUMIFS(D_D[ADCM],D_D[MT],4,D_D[CAT],SMS,D_D[LOC],$A24),0)) -> 160.93 | J24: =IF(ISNA($A24),"",IFERROR(SUMIFS(D_D[PROD_FYTD],D_D[MT],4,D_D[CAT],SMS,D_D[LOC],$A24),0)) -> 8512 | K24: =IF(ISNA($A24),"",IFERROR(SUMIFS(D_D[ADCF],D_D[MT],4,D_D[CAT],SMS,D_D[LOC],$A24),0)) -> 152.92
A25: 309 | B25: 13 | C25: Newark | D25: =IF(ISNA($A25),"",IFERROR(SUMIFS(D_D[INV],D_D[MT],4,D_D[CAT],SMS,D_D[LOC],$A25),0)) -> 7375 | E25: =IF(ISNA($A25),"",IFERROR(SUMIFS(D_D[BL],D_D[MT],4,D_D[CAT],SMS,D_D[LOC],$A25),0)) -> 3019 | F25: 0.4093559322 | G25: =IF(ISNA($A25),"",IFERROR(SUMIFS(D_D[ADP],D_D[MT],4,D_D[CAT],SMS,D_D[LOC],$A25),0)) -> 125.58 | H25: =IF(ISNA($A25),"",IFERROR(SUMIFS(D_D[PROD_MTD],D_D[MT],4,D_D[CAT],SMS,D_D[LOC],$A25),0)) -> 1365 | I25: =IF(ISNA($A25),"",IFERROR(SUMIFS(D_D[ADCM],D_D[MT],4,D_D[CAT],SMS,D_D[LOC],$A25),0)) -> 164.07 | J25: =IF(ISNA($A25),"",IFERROR(SUMIFS(D_D[PROD_FYTD],D_D[MT],4,D_D[CAT],SMS,D_D[LOC],$A25),0)) -> 5198 | K25: =IF(ISNA($A25),"",IFERROR(SUMIFS(D_D[ADCF],D_D[MT],4,D_D[CAT],SMS,D_D[LOC],$A25),0)) -> 152.06
A26: 310 | B26: 14 | C26: Philadelphia | D26: =IF(ISNA($A26),"",IFERROR(SUMIFS(D_D[INV],D_D[MT],4,D_D[CAT],SMS,D_D[LOC],$A26),0)) -> 20316 | E26: =IF(ISNA($A26),"",IFERROR(SUMIFS(D_D[BL],D_D[MT],4,D_D[CAT],SMS,D_D[LOC],$A26),0)) -> 8454 | F26: 0.4161252215 | G26: =IF(ISNA($A26),"",IFERROR(SUMIFS(D_D[ADP],D_D[MT],4,D_D[CAT],SMS,D_D[LOC],$A26),0)) -> 129.44 | H26: =IF(ISNA($A26),"",IFERROR(SUMIFS(D_D[PROD_MTD],D_D[MT],4,D_D[CAT],SMS,D_D[LOC],$A26),0)) -> 3694 | I26: =IF(ISNA($A26),"",IFERROR(SUMIFS(D_D[ADCM],D_D[MT],4,D_D[CAT],SMS,D_D[LOC],$A26),0)) -> 166.36 | J26: =IF(ISNA($A26),"",IFERROR(SUMIFS(D_D[PROD_FYTD],D_D[MT],4,D_D[CAT],SMS,D_D[LOC],$A26),0)) -> 14523 | K26: =IF(ISNA($A26),"",IFERROR(SUMIFS(D_D[ADCF],D_D[MT],4,D_D[CAT],SMS,D_D[LOC],$A26),0)) -> 154.64
A27: 311 | B27: 15 | C27: Pittsburgh | D27: =IF(ISNA($A27),"",IFERROR(SUMIFS(D_D[INV],D_D[MT],4,D_D[CAT],SMS,D_D[LOC],$A27),0)) -> 13915 | E27: =IF(ISNA($A27),"",IFERROR(SUMIFS(D_D[BL],D_D[MT],4,D_D[CAT],SMS,D_D[LOC],$A27),0)) -> 6007 | F27: 0.4316924183 | G27: =IF(ISNA($A27),"",IFERROR(SUMIFS(D_D[ADP],D_D[MT],4,D_D[CAT],SMS,D_D[LOC],$A27),0)) -> 129.59 | H27: =IF(ISNA($A27),"",IFERROR(SUMIFS(D_D[PROD_MTD],D_D[MT],4,D_D[CAT],SMS,D_D[LOC],$A27),0)) -> 2663 | I27: =IF(ISNA($A27),"",IFERROR(SUMIFS(D_D[ADCM],D_D[MT],4,D_D[CAT],SMS,D_D[LOC],$A27),0)) -> 173.5 | J27: =IF(ISNA($A27),"",IFERROR(SUMIFS(D_D[PROD_FYTD],D_D[MT],4,D_D[CAT],SMS,D_D[LOC],$A27),0)) -> 10117 | K27: =IF(ISNA($A27),"",IFERROR(SUMIFS(D_D[ADCF],D_D[MT],4,D_D[CAT],SMS,D_D[LOC],$A27),0)) -> 158.04
A28: 304 | B28: 16 | C28: Providence | D28: =IF(ISNA($A28),"",IFERROR(SUMIFS(D_D[INV],D_D[MT],4,D_D[CAT],SMS,D_D[LOC],$A28),0)) -> 4091 | E28: =IF(ISNA($A28),"",IFERROR(SUMIFS(D_D[BL],D_D[MT],4,D_D[CAT],SMS,D_D[LOC],$A28),0)) -> 1400 | F28: 0.3422146175 | G28: =IF(ISNA($A28),"",IFERROR(SUMIFS(D_D[ADP],D_D[MT],4,D_D[CAT],SMS,D_D[LOC],$A28),0)) -> 111.2 | H28: =IF(ISNA($A28),"",IFERROR(SUMIFS(D_D[PROD_MTD],D_D[MT],4,D_D[CAT],SMS,D_D[LOC],$A28),0)) -> 2566 | I28: =IF(ISNA($A28),"",IFERROR(SUMIFS(D_D[ADCM],D_D[MT],4,D_D[CAT],SMS,D_D[LOC],$A28),0)) -> 57.17 | J28: =IF(ISNA($A28),"",IFERROR(SUMIFS(D_D[PROD_FYTD],D_D[MT],4,D_D[CAT],SMS,D_D[LOC],$A28),0)) -> 10684 | K28: =IF(ISNA($A28),"",IFERROR(SUMIFS(D_D[ADCF],D_D[MT],4,D_D[CAT],SMS,D_D[LOC],$A28),0)) -> 52.99
A29: 376 | B29: 17 | C29: St. Louis RMC | D29: =IF(ISNA($A29),"",IFERROR(SUMIFS(D_D[INV],D_D[MT],4,D_D[CAT],SMS,D_D[LOC],$A29),0)) -> 1 | E29: =IF(ISNA($A29),"",IFERROR(SUMIFS(D_D[BL],D_D[MT],4,D_D[CAT],SMS,D_D[LOC],$A29),0)) -> 1 | F29: 1 | G29: =IF(ISNA($A29),"",IFERROR(SUMIFS(D_D[ADP],D_D[MT],4,D_D[CAT],SMS,D_D[LOC],$A29),0)) -> 997 | H29: =IF(ISNA($A29),"",IFERROR(SUMIFS(D_D[PROD_MTD],D_D[MT],4,D_D[CAT],SMS,D_D[LOC],$A29),0)) -> 0 | I29: =IF(ISNA($A29),"",IFERROR(SUMIFS(D_D[ADCM],D_D[MT],4,D_D[CAT],SMS,D_D[LOC],$A29),0)) -> 0 | J29: =IF(ISNA($A29),"",IFERROR(SUMIFS(D_D[PROD_FYTD],D_D[MT],4,D_D[CAT],SMS,D_D[LOC],$A29),0)) -> 3 | K29: =IF(ISNA($A29),"",IFERROR(SUMIFS(D_D[ADCF],D_D[MT],4,D_D[CAT],SMS,D_D[LOC],$A29),0)) -> 465
A30: 331 | B30: 18 | C30: St. Louis | D30: =IF(ISNA($A30),"",IFERROR(SUMIFS(D_D[INV],D_D[MT],4,D_D[CAT],SMS,D_D[LOC],$A30),0)) -> 15720 | E30: =IF(ISNA($A30),"",IFERROR(SUMIFS(D_D[BL],D_D[MT],4,D_D[CAT],SMS,D_D[LOC],$A30),0)) -> 6022 | F30: 0.3830788804 | G30: =IF(ISNA($A30),"",IFERROR(SUMIFS(D_D[ADP],D_D[MT],4,D_D[CAT],SMS,D_D[LOC],$A30),0)) -> 119.23 | H30: =IF(ISNA($A30),"",IFERROR(SUMIFS(D_D[PROD_MTD],D_D[MT],4,D_D[CAT],SMS,D_D[LOC],$A30),0)) -> 2860 | I30: =IF(ISNA($A30),"",IFERROR(SUMIFS(D_D[ADCM],D_D[MT],4,D_D[CAT],SMS,D_D[LOC],$A30),0)) -> 161.82 | J30: =IF(ISNA($A30),"",IFERROR(SUMIFS(D_D[PROD_FYTD],D_D[MT],4,D_D[CAT],SMS,D_D[LOC],$A30),0)) -> 11321 | K30: =IF(ISNA($A30),"",IFERROR(SUMIFS(D_D[ADCF],D_D[MT],4,D_D[CAT],SMS,D_D[LOC],$A30),0)) -> 150.4
A31: 402 | B31: 19 | C31: Togus | D31: =IF(ISNA($A31),"",IFERROR(SUMIFS(D_D[INV],D_D[MT],4,D_D[CAT],SMS,D_D[LOC],$A31),0)) -> 4058 | E31: =IF(ISNA($A31),"",IFERROR(SUMIFS(D_D[BL],D_D[MT],4,D_D[CAT],SMS,D_D[LOC],$A31),0)) -> 1757 | F31: 0.4329719073 | G31: =IF(ISNA($A31),"",IFERROR(SUMIFS(D_D[ADP],D_D[MT],4,D_D[CAT],SMS,D_D[LOC],$A31),0)) -> 132.26 | H31: =IF(ISNA($A31),"",IFERROR(SUMIFS(D_D[PROD_MTD],D_D[MT],4,D_D[CAT],SMS,D_D[LOC],$A31),0)) -> 696 | I31: =IF(ISNA($A31),"",IFERROR(SUMIFS(D_D[ADCM],D_D[MT],4,D_D[CAT],SMS,D_D[LOC],$A31),0)) -> 170.29 | J31: =IF(ISNA($A31),"",IFERROR(SUMIFS(D_D[PROD_FYTD],D_D[MT],4,D_D[CAT],SMS,D_D[LOC],$A31),0)) -> 2588 | K31: =IF(ISNA($A31),"",IFERROR(SUMIFS(D_D[ADCF],D_D[MT],4,D_D[CAT],SMS,D_D[LOC],$A31),0)) -> 160.24
A32: 372 | B32: 20 | C32: Washington | D32: =IF(ISNA($A32),"",IFERROR(SUMIFS(D_D[INV],D_D[MT],4,D_D[CAT],SMS,D_D[LOC],$A32),0)) -> 370 | E32: =IF(ISNA($A32),"",IFERROR(SUMIFS(D_D[BL],D_D[MT],4,D_D[CAT],SMS,D_D[LOC],$A32),0)) -> 166 | F32: 0.4486486486 | G32: =IF(ISNA($A32),"",IFERROR(SUMIFS(D_D[ADP],D_D[MT],4,D_D[CAT],SMS,D_D[LOC],$A32),0)) -> 120.88 | H32: =IF(ISNA($A32),"",IFERROR(SUMIFS(D_D[PROD_MTD],D_D[MT],4,D_D[CAT],SMS,D_D[LOC],$A32),0)) -> 98 | I32: =IF(ISNA($A32),"",IFERROR(SUMIFS(D_D[ADCM],D_D[MT],4,D_D[CAT],SMS,D_D[LOC],$A32),0)) -> 141.44 | J32: =IF(ISNA($A32),"",IFERROR(SUMIFS(D_D[PROD_FYTD],D_D[MT],4,D_D[CAT],SMS,D_D[LOC],$A32),0)) -> 357 | K32: =IF(ISNA($A32),"",IFERROR(SUMIFS(D_D[ADCF],D_D[MT],4,D_D[CAT],SMS,D_D[LOC],$A32),0)) -> 138.41
A33: 405 | B33: 21 | C33: White River Junction | D33: =IF(ISNA($A33),"",IFERROR(SUMIFS(D_D[INV],D_D[MT],4,D_D[CAT],SMS,D_D[LOC],$A33),0)) -> 926 | E33: =IF(ISNA($A33),"",IFERROR(SUMIFS(D_D[BL],D_D[MT],4,D_D[CAT],SMS,D_D[LOC],$A33),0)) -> 428 | F33: 0.4622030238 | G33: =IF(ISNA($A33),"",IFERROR(SUMIFS(D_D[ADP],D_D[MT],4,D_D[CAT],SMS,D_D[LOC],$A33),0)) -> 143.64 | H33: =IF(ISNA($A33),"",IFERROR(SUMIFS(D_D[PROD_MTD],D_D[MT],4,D_D[CAT],SMS,D_D[LOC],$A33),0)) -> 196 | I33: =IF(ISNA($A33),"",IFERROR(SUMIFS(D_D[ADCM],D_D[MT],4,D_D[CAT],SMS,D_D[LOC],$A33),0)) -> 168.94 | J33: =IF(ISNA($A33),"",IFERROR(SUMIFS(D_D[PROD_FYTD],D_D[MT],4,D_D[CAT],SMS,D_D[LOC],$A33),0)) -> 697 | K33: =IF(ISNA($A33),"",IFERROR(SUMIFS(D_D[ADCF],D_D[MT],4,D_D[CAT],SMS,D_D[LOC],$A33),0)) -> 158.15
A34: 460 | B34: 22 | C34: Wilmington | D34: =IF(ISNA($A34),"",IFERROR(SUMIFS(D_D[INV],D_D[MT],4,D_D[CAT],SMS,D_D[LOC],$A34),0)) -> 2479 | E34: =IF(ISNA($A34),"",IFERROR(SUMIFS(D_D[BL],D_D[MT],4,D_D[CAT],SMS,D_D[LOC],$A34),0)) -> 1020 | F34: 0.4114562324 | G34: =IF(ISNA($A34),"",IFERROR(SUMIFS(D_D[ADP],D_D[MT],4,D_D[CAT],SMS,D_D[LOC],$A34),0)) -> 127.09 | H34: =IF(ISNA($A34),"",IFERROR(SUMIFS(D_D[PROD_MTD],D_D[MT],4,D_D[CAT],SMS,D_D[LOC],$A34),0)) -> 454 | I34: =IF(ISNA($A34),"",IFERROR(SUMIFS(D_D[ADCM],D_D[MT],4,D_D[CAT],SMS,D_D[LOC],$A34),0)) -> 160.8 | J34: =IF(ISNA($A34),"",IFERROR(SUMIFS(D_D[PROD_FYTD],D_D[MT],4,D_D[CAT],SMS,D_D[LOC],$A34),0)) -> 1741 | K34: =IF(ISNA($A34),"",IFERROR(SUMIFS(D_D[ADCF],D_D[MT],4,D_D[CAT],SMS,D_D[LOC],$A34),0)) -> 147.22
B35: 23 | D35: =IF(ISNA($A35),"",IFERROR(SUMIFS(D_D[INV],D_D[MT],4,D_D[CAT],SMS,D_D[LOC],$A35),0)) ->  | E35: =IF(ISNA($A35),"",IFERROR(SUMIFS(D_D[BL],D_D[MT],4,D_D[CAT],SMS,D_D[LOC],$A35),0)) ->  | G35: =IF(ISNA($A35),"",IFERROR(SUMIFS(D_D[ADP],D_D[MT],4,D_D[CAT],SMS,D_D[LOC],$A35),0)) ->  | H35: =IF(ISNA($A35),"",IFERROR(SUMIFS(D_D[PROD_MTD],D_D[MT],4,D_D[CAT],SMS,D_D[LOC],$A35),0)) ->  | I35: =IF(ISNA($A35),"",IFERROR(SUMIFS(D_D[ADCM],D_D[MT],4,D_D[CAT],SMS,D_D[LOC],$A35),0)) ->  | J35: =IF(ISNA($A35),"",IFERROR(SUMIFS(D_D[PROD_FYTD],D_D[MT],4,D_D[CAT],SMS,D_D[LOC],$A35),0)) ->  | K35: =IF(ISNA($A35),"",IFERROR(SUMIFS(D_D[ADCF],D_D[MT],4,D_D[CAT],SMS,D_D[LOC],$A35),0)) -> 

Sheet Rating Bundle - State
C2: DISTRICT SELECTOR | D2: Compensation and Pension Rating Bundle Metrics | L2: Report through
D3: State View | L3: =D_DT[] -> 2024-01-27
D4: The State listed is based on the address associated with the claim, not payment address | L4: ADP = Average Days Pending | O4: MTD = Month to Date
D5: Each Special Mission has distinct claim counts | L5: ADC = Average Days to Complete | O5: FYTD = Fiscal Year to Date
D6: When Special Mission is set to Pension, BDD, or Quickstart, the District Selector has no impact.
L7: Accuracy metrics are available on Rating Bundle - SOJ tab
D8: CLAIM METRICS | L8: ACCURACY METRICS
C9: SPECIAL MISSION SELECTOR | D9: # Pending | E9: # Pending > 125 Days | F9: % Pending > 125 Days | G9: ADP | H9: # Completed MTD | I9: ADC MTD | J9: # Completed FYTD | K9: ADC FYTD | L9: Accuracy measurement is available on the Rating Bundle SOJ tab
A12: 100 | C12: =Driver!$C$20& " Total" -> USA - All Missions Total | D12: =IF(ISNA($A12),"",IFERROR(SUMIFS(D_D[INV],D_D[MT],6,D_D[CAT],SMS,D_D[LOC],$A12),0)) -> 1014814 | E12: =IF(ISNA($A12),"",IFERROR(SUMIFS(D_D[BL],D_D[MT],6,D_D[CAT],SMS,D_D[LOC],$A12),0)) -> 399925 | F12: =IF(ISNA($A12),"",IFERROR(E12/D12,0)) -> 0.3940869953 | G12: =IF(ISNA($A12),"",IFERROR(SUMIFS(D_D[ADP],D_D[MT],6,D_D[CAT],SMS,D_D[LOC],$A12),0)) -> 123.91 | H12: =IF(ISNA($A12),"",IFERROR(SUMIFS(D_D[PROD_MTD],D_D[MT],6,D_D[CAT],SMS,D_D[LOC],$A12),0)) -> 189279 | I12: =IF(ISNA($A12),"",IFERROR(SUMIFS(D_D[ADCM],D_D[MT],6,D_D[CAT],SMS,D_D[LOC],$A12),0)) -> 159.5 | J12: =IF(ISNA($A12),"",IFERROR(SUMIFS(D_D[PROD_FYTD],D_D[MT],6,D_D[CAT],SMS,D_D[LOC],$A12),0)) -> 754126 | K12: =IF(ISNA($A12),"",IFERROR(SUMIFS(D_D[ADCF],D_D[MT],6,D_D[CAT],SMS,D_D[LOC],$A12),0)) -> 151.84
A13: =INDEX(STATE,(MATCH($C13,STATE_D,0))) -> 394 | B13: 1 | C13: =IFERROR(INDEX(INDIRECT(DS_ST),B13),"") -> Northeast District | D13: =IF(ISNA($A13),"",IFERROR(SUMIFS(D_D[INV],D_D[MT],6,D_D[CAT],SMS,D_D[LOC],$A13),0)) -> 245243 | E13: =IF(ISNA($A13),"",IFERROR(SUMIFS(D_D[BL],D_D[MT],6,D_D[CAT],SMS,D_D[LOC],$A13),0)) -> 97234 | F13: =IF(ISNA($A13),"",IFERROR(E13/D13,0)) -> 0.3964802257 | G13: =IF(ISNA($A13),"",IFERROR(SUMIFS(D_D[ADP],D_D[MT],6,D_D[CAT],SMS,D_D[LOC],$A13),0)) -> 124.29 | H13: =IF(ISNA($A13),"",IFERROR(SUMIFS(D_D[PROD_MTD],D_D[MT],6,D_D[CAT],SMS,D_D[LOC],$A13),0)) -> 43131 | I13: =IF(ISNA($A13),"",IFERROR(SUMIFS(D_D[ADCM],D_D[MT],6,D_D[CAT],SMS,D_D[LOC],$A13),0)) -> 160.63 | J13: =IF(ISNA($A13),"",IFERROR(SUMIFS(D_D[PROD_FYTD],D_D[MT],6,D_D[CAT],SMS,D_D[LOC],$A13),0)) -> 171292 | K13: =IF(ISNA($A13),"",IFERROR(SUMIFS(D_D[ADCF],D_D[MT],6,D_D[CAT],SMS,D_D[LOC],$A13),0)) -> 153.03
A14: CT | B14: 2 | C14: Connecticut | D14: =IF(ISNA($A14),"",IFERROR(SUMIFS(D_D[INV],D_D[MT],6,D_D[CAT],SMS,D_D[LOC],$A14),0)) -> 5625 | E14: =IF(ISNA($A14),"",IFERROR(SUMIFS(D_D[BL],D_D[MT],6,D_D[CAT],SMS,D_D[LOC],$A14),0)) -> 2269 | F14: =IF(ISNA($A14),"",IFERROR(E14/D14,0)) -> 0.4033777778 | G14: =IF(ISNA($A14),"",IFERROR(SUMIFS(D_D[ADP],D_D[MT],6,D_D[CAT],SMS,D_D[LOC],$A14),0)) -> 125.01 | H14: =IF(ISNA($A14),"",IFERROR(SUMIFS(D_D[PROD_MTD],D_D[MT],6,D_D[CAT],SMS,D_D[LOC],$A14),0)) -> 962 | I14: =IF(ISNA($A14),"",IFERROR(SUMIFS(D_D[ADCM],D_D[MT],6,D_D[CAT],SMS,D_D[LOC],$A14),0)) -> 155.65 | J14: =IF(ISNA($A14),"",IFERROR(SUMIFS(D_D[PROD_FYTD],D_D[MT],6,D_D[CAT],SMS,D_D[LOC],$A14),0)) -> 3911 | K14: =IF(ISNA($A14),"",IFERROR(SUMIFS(D_D[ADCF],D_D[MT],6,D_D[CAT],SMS,D_D[LOC],$A14),0)) -> 152.2
A15: DE | B15: 3 | C15: =IFERROR(INDEX(INDIRECT(DS_ST),B15),"") -> Delaware | D15: =IF(ISNA($A15),"",IFERROR(SUMIFS(D_D[INV],D_D[MT],6,D_D[CAT],SMS,D_D[LOC],$A15),0)) -> 3180 | E15: =IF(ISNA($A15),"",IFERROR(SUMIFS(D_D[BL],D_D[MT],6,D_D[CAT],SMS,D_D[LOC],$A15),0)) -> 1318 | F15: =IF(ISNA($A15),"",IFERROR(E15/D15,0)) -> 0.4144654088 | G15: =IF(ISNA($A15),"",IFERROR(SUMIFS(D_D[ADP],D_D[MT],6,D_D[CAT],SMS,D_D[LOC],$A15),0)) -> 130.99 | H15: =IF(ISNA($A15),"",IFERROR(SUMIFS(D_D[PROD_MTD],D_D[MT],6,D_D[CAT],SMS,D_D[LOC],$A15),0)) -> 586 | I15: =IF(ISNA($A15),"",IFERROR(SUMIFS(D_D[ADCM],D_D[MT],6,D_D[CAT],SMS,D_D[LOC],$A15),0)) -> 163.44 | J15: =IF(ISNA($A15),"",IFERROR(SUMIFS(D_D[PROD_FYTD],D_D[MT],6,D_D[CAT],SMS,D_D[LOC],$A15),0)) -> 2190 | K15: =IF(ISNA($A15),"",IFERROR(SUMIFS(D_D[ADCF],D_D[MT],6,D_D[CAT],SMS,D_D[LOC],$A15),0)) -> 152.86
A16: DC | B16: 4 | C16: District of Columbia | D16: =IF(ISNA($A16),"",IFERROR(SUMIFS(D_D[INV],D_D[MT],6,D_D[CAT],SMS,D_D[LOC],$A16),0)) -> 1208 | E16: =IF(ISNA($A16),"",IFERROR(SUMIFS(D_D[BL],D_D[MT],6,D_D[CAT],SMS,D_D[LOC],$A16),0)) -> 492 | F16: 0.4072847682 | G16: =IF(ISNA($A16),"",IFERROR(SUMIFS(D_D[ADP],D_D[MT],6,D_D[CAT],SMS,D_D[LOC],$A16),0)) -> 126.51 | H16: =IF(ISNA($A16),"",IFERROR(SUMIFS(D_D[PROD_MTD],D_D[MT],6,D_D[CAT],SMS,D_D[LOC],$A16),0)) -> 222 | I16: =IF(ISNA($A16),"",IFERROR(SUMIFS(D_D[ADCM],D_D[MT],6,D_D[CAT],SMS,D_D[LOC],$A16),0)) -> 161.96 | J16: =IF(ISNA($A16),"",IFERROR(SUMIFS(D_D[PROD_FYTD],D_D[MT],6,D_D[CAT],SMS,D_D[LOC],$A16),0)) -> 898 | K16: =IF(ISNA($A16),"",IFERROR(SUMIFS(D_D[ADCF],D_D[MT],6,D_D[CAT],SMS,D_D[LOC],$A16),0)) -> 156.6
A17: IL | B17: 5 | C17: Illinois | D17: =IF(ISNA($A17),"",IFERROR(SUMIFS(D_D[INV],D_D[MT],6,D_D[CAT],SMS,D_D[LOC],$A17),0)) -> 24216 | E17: =IF(ISNA($A17),"",IFERROR(SUMIFS(D_D[BL],D_D[MT],6,D_D[CAT],SMS,D_D[LOC],$A17),0)) -> 9798 | F17: 0.4046085233 | G17: =IF(ISNA($A17),"",IFERROR(SUMIFS(D_D[ADP],D_D[MT],6,D_D[CAT],SMS,D_D[LOC],$A17),0)) -> 127.05 | H17: =IF(ISNA($A17),"",IFERROR(SUMIFS(D_D[PROD_MTD],D_D[MT],6,D_D[CAT],SMS,D_D[LOC],$A17),0)) -> 3974 | I17: =IF(ISNA($A17),"",IFERROR(SUMIFS(D_D[ADCM],D_D[MT],6,D_D[CAT],SMS,D_D[LOC],$A17),0)) -> 165.41 | J17: =IF(ISNA($A17),"",IFERROR(SUMIFS(D_D[PROD_FYTD],D_D[MT],6,D_D[CAT],SMS,D_D[LOC],$A17),0)) -> 15906 | K17: =IF(ISNA($A17),"",IFERROR(SUMIFS(D_D[ADCF],D_D[MT],6,D_D[CAT],SMS,D_D[LOC],$A17),0)) -> 159.32
A18: IN | B18: 6 | C18: Indiana | D18: =IF(ISNA($A18),"",IFERROR(SUMIFS(D_D[INV],D_D[MT],6,D_D[CAT],SMS,D_D[LOC],$A18),0)) -> 18609 | E18: =IF(ISNA($A18),"",IFERROR(SUMIFS(D_D[BL],D_D[MT],6,D_D[CAT],SMS,D_D[LOC],$A18),0)) -> 7193 | F18: 0.3865333978 | G18: =IF(ISNA($A18),"",IFERROR(SUMIFS(D_D[ADP],D_D[MT],6,D_D[CAT],SMS,D_D[LOC],$A18),0)) -> 121.23 | H18: =IF(ISNA($A18),"",IFERROR(SUMIFS(D_D[PROD_MTD],D_D[MT],6,D_D[CAT],SMS,D_D[LOC],$A18),0)) -> 3206 | I18: =IF(ISNA($A18),"",IFERROR(SUMIFS(D_D[ADCM],D_D[MT],6,D_D[CAT],SMS,D_D[LOC],$A18),0)) -> 157.15 | J18: =IF(ISNA($A18),"",IFERROR(SUMIFS(D_D[PROD_FYTD],D_D[MT],6,D_D[CAT],SMS,D_D[LOC],$A18),0)) -> 13093 | K18: =IF(ISNA($A18),"",IFERROR(SUMIFS(D_D[ADCF],D_D[MT],6,D_D[CAT],SMS,D_D[LOC],$A18),0)) -> 150.26
A19: ME | B19: 7 | C19: Maine | D19: =IF(ISNA($A19),"",IFERROR(SUMIFS(D_D[INV],D_D[MT],6,D_D[CAT],SMS,D_D[LOC],$A19),0)) -> 4732 | E19: =IF(ISNA($A19),"",IFERROR(SUMIFS(D_D[BL],D_D[MT],6,D_D[CAT],SMS,D_D[LOC],$A19),0)) -> 2060 | F19: 0.4353338969 | G19: =IF(ISNA($A19),"",IFERROR(SUMIFS(D_D[ADP],D_D[MT],6,D_D[CAT],SMS,D_D[LOC],$A19),0)) -> 130.82 | H19: =IF(ISNA($A19),"",IFERROR(SUMIFS(D_D[PROD_MTD],D_D[MT],6,D_D[CAT],SMS,D_D[LOC],$A19),0)) -> 808 | I19: =IF(ISNA($A19),"",IFERROR(SUMIFS(D_D[ADCM],D_D[MT],6,D_D[CAT],SMS,D_D[LOC],$A19),0)) -> 164.92 | J19: =IF(ISNA($A19),"",IFERROR(SUMIFS(D_D[PROD_FYTD],D_D[MT],6,D_D[CAT],SMS,D_D[LOC],$A19),0)) -> 3009 | K19: =IF(ISNA($A19),"",IFERROR(SUMIFS(D_D[ADCF],D_D[MT],6,D_D[CAT],SMS,D_D[LOC],$A19),0)) -> 156.33
A20: MD | B20: 8 | C20: Maryland | D20: =IF(ISNA($A20),"",IFERROR(SUMIFS(D_D[INV],D_D[MT],6,D_D[CAT],SMS,D_D[LOC],$A20),0)) -> 19299 | E20: =IF(ISNA($A20),"",IFERROR(SUMIFS(D_D[BL],D_D[MT],6,D_D[CAT],SMS,D_D[LOC],$A20),0)) -> 7465 | F20: 0.3868076066 | G20: =IF(ISNA($A20),"",IFERROR(SUMIFS(D_D[ADP],D_D[MT],6,D_D[CAT],SMS,D_D[LOC],$A20),0)) -> 121.49 | H20: =IF(ISNA($A20),"",IFERROR(SUMIFS(D_D[PROD_MTD],D_D[MT],6,D_D[CAT],SMS,D_D[LOC],$A20),0)) -> 3728 | I20: =IF(ISNA($A20),"",IFERROR(SUMIFS(D_D[ADCM],D_D[MT],6,D_D[CAT],SMS,D_D[LOC],$A20),0)) -> 156.47 | J20: =IF(ISNA($A20),"",IFERROR(SUMIFS(D_D[PROD_FYTD],D_D[MT],6,D_D[CAT],SMS,D_D[LOC],$A20),0)) -> 15280 | K20: =IF(ISNA($A20),"",IFERROR(SUMIFS(D_D[ADCF],D_D[MT],6,D_D[CAT],SMS,D_D[LOC],$A20),0)) -> 146.8
A21: MA | B21: 9 | C21: Massachusetts | D21: =IF(ISNA($A21),"",IFERROR(SUMIFS(D_D[INV],D_D[MT],6,D_D[CAT],SMS,D_D[LOC],$A21),0)) -> 10093 | E21: =IF(ISNA($A21),"",IFERROR(SUMIFS(D_D[BL],D_D[MT],6,D_D[CAT],SMS,D_D[LOC],$A21),0)) -> 3949 | F21: 0.3912612702 | G21: =IF(ISNA($A21),"",IFERROR(SUMIFS(D_D[ADP],D_D[MT],6,D_D[CAT],SMS,D_D[LOC],$A21),0)) -> 124.79 | H21: =IF(ISNA($A21),"",IFERROR(SUMIFS(D_D[PROD_MTD],D_D[MT],6,D_D[CAT],SMS,D_D[LOC],$A21),0)) -> 1953 | I21: =IF(ISNA($A21),"",IFERROR(SUMIFS(D_D[ADCM],D_D[MT],6,D_D[CAT],SMS,D_D[LOC],$A21),0)) -> 161.11 | J21: =IF(ISNA($A21),"",IFERROR(SUMIFS(D_D[PROD_FYTD],D_D[MT],6,D_D[CAT],SMS,D_D[LOC],$A21),0)) -> 7635 | K21: =IF(ISNA($A21),"",IFERROR(SUMIFS(D_D[ADCF],D_D[MT],6,D_D[CAT],SMS,D_D[LOC],$A21),0)) -> 152.46
A22: MI | B22: 10 | C22: Michigan | D22: =IF(ISNA($A22),"",IFERROR(SUMIFS(D_D[INV],D_D[MT],6,D_D[CAT],SMS,D_D[LOC],$A22),0)) -> 21865 | E22: =IF(ISNA($A22),"",IFERROR(SUMIFS(D_D[BL],D_D[MT],6,D_D[CAT],SMS,D_D[LOC],$A22),0)) -> 8627 | F22: 0.394557512 | G22: =IF(ISNA($A22),"",IFERROR(SUMIFS(D_D[ADP],D_D[MT],6,D_D[CAT],SMS,D_D[LOC],$A22),0)) -> 123.18 | H22: =IF(ISNA($A22),"",IFERROR(SUMIFS(D_D[PROD_MTD],D_D[MT],6,D_D[CAT],SMS,D_D[LOC],$A22),0)) -> 3878 | I22: =IF(ISNA($A22),"",IFERROR(SUMIFS(D_D[ADCM],D_D[MT],6,D_D[CAT],SMS,D_D[LOC],$A22),0)) -> 156.61 | J22: =IF(ISNA($A22),"",IFERROR(SUMIFS(D_D[PROD_FYTD],D_D[MT],6,D_D[CAT],SMS,D_D[LOC],$A22),0)) -> 15267 | K22: =IF(ISNA($A22),"",IFERROR(SUMIFS(D_D[ADCF],D_D[MT],6,D_D[CAT],SMS,D_D[LOC],$A22),0)) -> 151.78
A23: MO | B23: 11 | C23: Missouri | D23: =IF(ISNA($A23),"",IFERROR(SUMIFS(D_D[INV],D_D[MT],6,D_D[CAT],SMS,D_D[LOC],$A23),0)) -> 18478 | E23: =IF(ISNA($A23),"",IFERROR(SUMIFS(D_D[BL],D_D[MT],6,D_D[CAT],SMS,D_D[LOC],$A23),0)) -> 7264 | F23: 0.3931161381 | G23: =IF(ISNA($A23),"",IFERROR(SUMIFS(D_D[ADP],D_D[MT],6,D_D[CAT],SMS,D_D[LOC],$A23),0)) -> 122.34 | H23: =IF(ISNA($A23),"",IFERROR(SUMIFS(D_D[PROD_MTD],D_D[MT],6,D_D[CAT],SMS,D_D[LOC],$A23),0)) -> 3285 | I23: =IF(ISNA($A23),"",IFERROR(SUMIFS(D_D[ADCM],D_D[MT],6,D_D[CAT],SMS,D_D[LOC],$A23),0)) -> 160.44 | J23: =IF(ISNA($A23),"",IFERROR(SUMIFS(D_D[PROD_FYTD],D_D[MT],6,D_D[CAT],SMS,D_D[LOC],$A23),0)) -> 13232 | K23: =IF(ISNA($A23),"",IFERROR(SUMIFS(D_D[ADCF],D_D[MT],6,D_D[CAT],SMS,D_D[LOC],$A23),0)) -> 151.87
A24: NH | B24: 12 | C24: New Hampshire | D24: =IF(ISNA($A24),"",IFERROR(SUMIFS(D_D[INV],D_D[MT],6,D_D[CAT],SMS,D_D[LOC],$A24),0)) -> 3312 | E24: =IF(ISNA($A24),"",IFERROR(SUMIFS(D_D[BL],D_D[MT],6,D_D[CAT],SMS,D_D[LOC],$A24),0)) -> 1334 | F24: 0.4027777778 | G24: =IF(ISNA($A24),"",IFERROR(SUMIFS(D_D[ADP],D_D[MT],6,D_D[CAT],SMS,D_D[LOC],$A24),0)) -> 133.29 | H24: =IF(ISNA($A24),"",IFERROR(SUMIFS(D_D[PROD_MTD],D_D[MT],6,D_D[CAT],SMS,D_D[LOC],$A24),0)) -> 555 | I24: =IF(ISNA($A24),"",IFERROR(SUMIFS(D_D[ADCM],D_D[MT],6,D_D[CAT],SMS,D_D[LOC],$A24),0)) -> 162.12 | J24: =IF(ISNA($A24),"",IFERROR(SUMIFS(D_D[PROD_FYTD],D_D[MT],6,D_D[CAT],SMS,D_D[LOC],$A24),0)) -> 2252 | K24: =IF(ISNA($A24),"",IFERROR(SUMIFS(D_D[ADCF],D_D[MT],6,D_D[CAT],SMS,D_D[LOC],$A24),0)) -> 151.86
A25: NJ | B25: 13 | C25: New Jersey | D25: =IF(ISNA($A25),"",IFERROR(SUMIFS(D_D[INV],D_D[MT],6,D_D[CAT],SMS,D_D[LOC],$A25),0)) -> 12976 | E25: =IF(ISNA($A25),"",IFERROR(SUMIFS(D_D[BL],D_D[MT],6,D_D[CAT],SMS,D_D[LOC],$A25),0)) -> 5456 | F25: 0.4204685573 | G25: =IF(ISNA($A25),"",IFERROR(SUMIFS(D_D[ADP],D_D[MT],6,D_D[CAT],SMS,D_D[LOC],$A25),0)) -> 129.47 | H25: =IF(ISNA($A25),"",IFERROR(SUMIFS(D_D[PROD_MTD],D_D[MT],6,D_D[CAT],SMS,D_D[LOC],$A25),0)) -> 2174 | I25: =IF(ISNA($A25),"",IFERROR(SUMIFS(D_D[ADCM],D_D[MT],6,D_D[CAT],SMS,D_D[LOC],$A25),0)) -> 166.69 | J25: =IF(ISNA($A25),"",IFERROR(SUMIFS(D_D[PROD_FYTD],D_D[MT],6,D_D[CAT],SMS,D_D[LOC],$A25),0)) -> 8601 | K25: =IF(ISNA($A25),"",IFERROR(SUMIFS(D_D[ADCF],D_D[MT],6,D_D[CAT],SMS,D_D[LOC],$A25),0)) -> 156.37
A26: NY | B26: 14 | C26: New York | D26: =IF(ISNA($A26),"",IFERROR(SUMIFS(D_D[INV],D_D[MT],6,D_D[CAT],SMS,D_D[LOC],$A26),0)) -> 24679 | E26: =IF(ISNA($A26),"",IFERROR(SUMIFS(D_D[BL],D_D[MT],6,D_D[CAT],SMS,D_D[LOC],$A26),0)) -> 9878 | F26: 0.4002593298 | G26: =IF(ISNA($A26),"",IFERROR(SUMIFS(D_D[ADP],D_D[MT],6,D_D[CAT],SMS,D_D[LOC],$A26),0)) -> 124 | H26: =IF(ISNA($A26),"",IFERROR(SUMIFS(D_D[PROD_MTD],D_D[MT],6,D_D[CAT],SMS,D_D[LOC],$A26),0)) -> 4415 | I26: =IF(ISNA($A26),"",IFERROR(SUMIFS(D_D[ADCM],D_D[MT],6,D_D[CAT],SMS,D_D[LOC],$A26),0)) -> 158.23 | J26: =IF(ISNA($A26),"",IFERROR(SUMIFS(D_D[PROD_FYTD],D_D[MT],6,D_D[CAT],SMS,D_D[LOC],$A26),0)) -> 17309 | K26: =IF(ISNA($A26),"",IFERROR(SUMIFS(D_D[ADCF],D_D[MT],6,D_D[CAT],SMS,D_D[LOC],$A26),0)) -> 151.77
A27: OH | B27: 15 | C27: Ohio | D27: =IF(ISNA($A27),"",IFERROR(SUMIFS(D_D[INV],D_D[MT],6,D_D[CAT],SMS,D_D[LOC],$A27),0)) -> 30548 | E27: =IF(ISNA($A27),"",IFERROR(SUMIFS(D_D[BL],D_D[MT],6,D_D[CAT],SMS,D_D[LOC],$A27),0)) -> 11449 | F27: 0.3747872201 | G27: =IF(ISNA($A27),"",IFERROR(SUMIFS(D_D[ADP],D_D[MT],6,D_D[CAT],SMS,D_D[LOC],$A27),0)) -> 121.38 | H27: =IF(ISNA($A27),"",IFERROR(SUMIFS(D_D[PROD_MTD],D_D[MT],6,D_D[CAT],SMS,D_D[LOC],$A27),0)) -> 5250 | I27: =IF(ISNA($A27),"",IFERROR(SUMIFS(D_D[ADCM],D_D[MT],6,D_D[CAT],SMS,D_D[LOC],$A27),0)) -> 158.8 | J27: =IF(ISNA($A27),"",IFERROR(SUMIFS(D_D[PROD_FYTD],D_D[MT],6,D_D[CAT],SMS,D_D[LOC],$A27),0)) -> 20645 | K27: =IF(ISNA($A27),"",IFERROR(SUMIFS(D_D[ADCF],D_D[MT],6,D_D[CAT],SMS,D_D[LOC],$A27),0)) -> 152.27
A28: PA | B28: 16 | C28: Pennsylvania | D28: =IF(ISNA($A28),"",IFERROR(SUMIFS(D_D[INV],D_D[MT],6,D_D[CAT],SMS,D_D[LOC],$A28),0)) -> 28529 | E28: =IF(ISNA($A28),"",IFERROR(SUMIFS(D_D[BL],D_D[MT],6,D_D[CAT],SMS,D_D[LOC],$A28),0)) -> 11844 | F28: 0.4151565074 | G28: =IF(ISNA($A28),"",IFERROR(SUMIFS(D_D[ADP],D_D[MT],6,D_D[CAT],SMS,D_D[LOC],$A28),0)) -> 127.92 | H28: =IF(ISNA($A28),"",IFERROR(SUMIFS(D_D[PROD_MTD],D_D[MT],6,D_D[CAT],SMS,D_D[LOC],$A28),0)) -> 4847 | I28: =IF(ISNA($A28),"",IFERROR(SUMIFS(D_D[ADCM],D_D[MT],6,D_D[CAT],SMS,D_D[LOC],$A28),0)) -> 167.24 | J28: =IF(ISNA($A28),"",IFERROR(SUMIFS(D_D[PROD_FYTD],D_D[MT],6,D_D[CAT],SMS,D_D[LOC],$A28),0)) -> 19141 | K28: =IF(ISNA($A28),"",IFERROR(SUMIFS(D_D[ADCF],D_D[MT],6,D_D[CAT],SMS,D_D[LOC],$A28),0)) -> 156.67
A29: RI | B29: 17 | C29: Rhode Island | D29: =IF(ISNA($A29),"",IFERROR(SUMIFS(D_D[INV],D_D[MT],6,D_D[CAT],SMS,D_D[LOC],$A29),0)) -> 2316 | E29: =IF(ISNA($A29),"",IFERROR(SUMIFS(D_D[BL],D_D[MT],6,D_D[CAT],SMS,D_D[LOC],$A29),0)) -> 886 | F29: 0.3825561313 | G29: =IF(ISNA($A29),"",IFERROR(SUMIFS(D_D[ADP],D_D[MT],6,D_D[CAT],SMS,D_D[LOC],$A29),0)) -> 121.37 | H29: =IF(ISNA($A29),"",IFERROR(SUMIFS(D_D[PROD_MTD],D_D[MT],6,D_D[CAT],SMS,D_D[LOC],$A29),0)) -> 470 | I29: =IF(ISNA($A29),"",IFERROR(SUMIFS(D_D[ADCM],D_D[MT],6,D_D[CAT],SMS,D_D[LOC],$A29),0)) -> 157.75 | J29: =IF(ISNA($A29),"",IFERROR(SUMIFS(D_D[PROD_FYTD],D_D[MT],6,D_D[CAT],SMS,D_D[LOC],$A29),0)) -> 1890 | K29: =IF(ISNA($A29),"",IFERROR(SUMIFS(D_D[ADCF],D_D[MT],6,D_D[CAT],SMS,D_D[LOC],$A29),0)) -> 145.17
A30: VT | B30: 18 | C30: Vermont | D30: =IF(ISNA($A30),"",IFERROR(SUMIFS(D_D[INV],D_D[MT],6,D_D[CAT],SMS,D_D[LOC],$A30),0)) -> 1120 | E30: =IF(ISNA($A30),"",IFERROR(SUMIFS(D_D[BL],D_D[MT],6,D_D[CAT],SMS,D_D[LOC],$A30),0)) -> 511 | F30: 0.45625 | G30: =IF(ISNA($A30),"",IFERROR(SUMIFS(D_D[ADP],D_D[MT],6,D_D[CAT],SMS,D_D[LOC],$A30),0)) -> 134.79 | H30: =IF(ISNA($A30),"",IFERROR(SUMIFS(D_D[PROD_MTD],D_D[MT],6,D_D[CAT],SMS,D_D[LOC],$A30),0)) -> 216 | I30: =IF(ISNA($A30),"",IFERROR(SUMIFS(D_D[ADCM],D_D[MT],6,D_D[CAT],SMS,D_D[LOC],$A30),0)) -> 174.88 | J30: =IF(ISNA($A30),"",IFERROR(SUMIFS(D_D[PROD_FYTD],D_D[MT],6,D_D[CAT],SMS,D_D[LOC],$A30),0)) -> 768 | K30: =IF(ISNA($A30),"",IFERROR(SUMIFS(D_D[ADCF],D_D[MT],6,D_D[CAT],SMS,D_D[LOC],$A30),0)) -> 161.98
A31: WI | B31: 19 | C31: Wisconsin | D31: =IF(ISNA($A31),"",IFERROR(SUMIFS(D_D[INV],D_D[MT],6,D_D[CAT],SMS,D_D[LOC],$A31),0)) -> 14458 | E31: =IF(ISNA($A31),"",IFERROR(SUMIFS(D_D[BL],D_D[MT],6,D_D[CAT],SMS,D_D[LOC],$A31),0)) -> 5441 | F31: 0.3763314428 | G31: =IF(ISNA($A31),"",IFERROR(SUMIFS(D_D[ADP],D_D[MT],6,D_D[CAT],SMS,D_D[LOC],$A31),0)) -> 119.44 | H31: =IF(ISNA($A31),"",IFERROR(SUMIFS(D_D[PROD_MTD],D_D[MT],6,D_D[CAT],SMS,D_D[LOC],$A31),0)) -> 2602 | I31: =IF(ISNA($A31),"",IFERROR(SUMIFS(D_D[ADCM],D_D[MT],6,D_D[CAT],SMS,D_D[LOC],$A31),0)) -> 158.55 | J31: =IF(ISNA($A31),"",IFERROR(SUMIFS(D_D[PROD_FYTD],D_D[MT],6,D_D[CAT],SMS,D_D[LOC],$A31),0)) -> 10265 | K31: =IF(ISNA($A31),"",IFERROR(SUMIFS(D_D[ADCF],D_D[MT],6,D_D[CAT],SMS,D_D[LOC],$A31),0)) -> 154.02
B32: 20 | D32: =IF(ISNA($A32),"",IFERROR(SUMIFS(D_D[INV],D_D[MT],6,D_D[CAT],SMS,D_D[LOC],$A32),0)) ->  | E32: =IF(ISNA($A32),"",IFERROR(SUMIFS(D_D[BL],D_D[MT],6,D_D[CAT],SMS,D_D[LOC],$A32),0)) ->  | G32: =IF(ISNA($A32),"",IFERROR(SUMIFS(D_D[ADP],D_D[MT],6,D_D[CAT],SMS,D_D[LOC],$A32),0)) ->  | H32: =IF(ISNA($A32),"",IFERROR(SUMIFS(D_D[PROD_MTD],D_D[MT],6,D_D[CAT],SMS,D_D[LOC],$A32),0)) ->  | I32: =IF(ISNA($A32),"",IFERROR(SUMIFS(D_D[ADCM],D_D[MT],6,D_D[CAT],SMS,D_D[LOC],$A32),0)) ->  | J32: =IF(ISNA($A32),"",IFERROR(SUMIFS(D_D[PROD_FYTD],D_D[MT],6,D_D[CAT],SMS,D_D[LOC],$A32),0)) ->  | K32: =IF(ISNA($A32),"",IFERROR(SUMIFS(D_D[ADCF],D_D[MT],6,D_D[CAT],SMS,D_D[LOC],$A32),0)) -> 
B33: 21 | D33: =IF(ISNA($A33),"",IFERROR(SUMIFS(D_D[INV],D_D[MT],6,D_D[CAT],SMS,D_D[LOC],$A33),0)) ->  | E33: =IF(ISNA($A33),"",IFERROR(SUMIFS(D_D[BL],D_D[MT],6,D_D[CAT],SMS,D_D[LOC],$A33),0)) ->  | G33: =IF(ISNA($A33),"",IFERROR(SUMIFS(D_D[ADP],D_D[MT],6,D_D[CAT],SMS,D_D[LOC],$A33),0)) ->  | H33: =IF(ISNA($A33),"",IFERROR(SUMIFS(D_D[PROD_MTD],D_D[MT],6,D_D[CAT],SMS,D_D[LOC],$A33),0)) ->  | I33: =IF(ISNA($A33),"",IFERROR(SUMIFS(D_D[ADCM],D_D[MT],6,D_D[CAT],SMS,D_D[LOC],$A33),0)) ->  | J33: =IF(ISNA($A33),"",IFERROR(SUMIFS(D_D[PROD_FYTD],D_D[MT],6,D_D[CAT],SMS,D_D[LOC],$A33),0)) ->  | K33: =IF(ISNA($A33),"",IFERROR(SUMIFS(D_D[ADCF],D_D[MT],6,D_D[CAT],SMS,D_D[LOC],$A33),0)) -> 
B34: 22 | D34: =IF(ISNA($A34),"",IFERROR(SUMIFS(D_D[INV],D_D[MT],6,D_D[CAT],SMS,D_D[LOC],$A34),0)) ->  | E34: =IF(ISNA($A34),"",IFERROR(SUMIFS(D_D[BL],D_D[MT],6,D_D[CAT],SMS,D_D[LOC],$A34),0)) ->  | G34: =IF(ISNA($A34),"",IFERROR(SUMIFS(D_D[ADP],D_D[MT],6,D_D[CAT],SMS,D_D[LOC],$A34),0)) ->  | H34: =IF(ISNA($A34),"",IFERROR(SUMIFS(D_D[PROD_MTD],D_D[MT],6,D_D[CAT],SMS,D_D[LOC],$A34),0)) ->  | I34: =IF(ISNA($A34),"",IFERROR(SUMIFS(D_D[ADCM],D_D[MT],6,D_D[CAT],SMS,D_D[LOC],$A34),0)) ->  | J34: =IF(ISNA($A34),"",IFERROR(SUMIFS(D_D[PROD_FYTD],D_D[MT],6,D_D[CAT],SMS,D_D[LOC],$A34),0)) ->  | K34: =IF(ISNA($A34),"",IFERROR(SUMIFS(D_D[ADCF],D_D[MT],6,D_D[CAT],SMS,D_D[LOC],$A34),0)) -> 
B35: 23 | D35: =IF(ISNA($A35),"",IFERROR(SUMIFS(D_D[INV],D_D[MT],6,D_D[CAT],SMS,D_D[LOC],$A35),0)) ->  | E35: =IF(ISNA($A35),"",IFERROR(SUMIFS(D_D[BL],D_D[MT],6,D_D[CAT],SMS,D_D[LOC],$A35),0)) ->  | G35: =IF(ISNA($A35),"",IFERROR(SUMIFS(D_D[ADP],D_D[MT],6,D_D[CAT],SMS,D_D[LOC],$A35),0)) ->  | H35: =IF(ISNA($A35),"",IFERROR(SUMIFS(D_D[PROD_MTD],D_D[MT],6,D_D[CAT],SMS,D_D[LOC],$A35),0)) ->  | I35: =IF(ISNA($A35),"",IFERROR(SUMIFS(D_D[ADCM],D_D[MT],6,D_D[CAT],SMS,D_D[LOC],$A35),0)) ->  | J35: =IF(ISNA($A35),"",IFERROR(SUMIFS(D_D[PROD_FYTD],D_D[MT],6,D_D[CAT],SMS,D_D[LOC],$A35),0)) ->  | K35: =IF(ISNA($A35),"",IFERROR(SUMIFS(D_D[ADCF],D_D[MT],6,D_D[CAT],SMS,D_D[LOC],$A35),0)) -> 

Sheet Rating Bundle - SOJ - NWQ
C2: DISTRICT SELECTOR | D2: Compensation and Pension Rating Bundle Metrics | J2: Report through
D3: NWQ-Station of Jurisdiction View | J3: =D_DT[] -> 2024-01-27
D4: The Station of Jurisdiction (SOJ) is the regional office assigned to work the claim | J4: ADP = Average Days Pending
D5: Each Special Mission has distinct claim counts
D6: When Special Mission is set to Pension, BDD, or Quickstart, the District Selector has | J6: Life Cycle Metrics defined on Legend tab
D7: no impact
D8: CLAIM METRICS | H8: LIFE CYCLE METRICS (as Percent of # Pending)
C9: SPECIAL MISSION SELECTOR | D9: # Pending | E9: # Pending > 125 Days | F9: % Pending > 125 Days | G9: ADP | H9: Pending Development | I9: Pending Evidence | J9: Pending Decision | K9: Pending Award | L9: Pending Authorization
A12: 100 | C12: =Driver!$C$20& " Total" -> USA - All Missions Total | D12: =IF(ISNA($A12),"",IFERROR(SUMIFS(D_D[INV],D_D[MT],5,D_D[CAT],SMS, D_D[EP],-1,D_D[LOC],$A12),0)) -> 1014814 | E12: =IF(ISNA($A12),"",IFERROR(SUMIFS(D_D[BL],D_D[MT],5,D_D[CAT],SMS, D_D[EP],-1,D_D[LOC],$A12),0)) -> 399925 | F12: =IF(ISNA($A12),"",IFERROR(E12/D12,0)) -> 0.3940869953 | G12: =IF(ISNA($A12),"",IFERROR(SUMIFS(D_D[ADP],D_D[MT],5,D_D[CAT],SMS, D_D[EP],-1,D_D[LOC],$A12),0)) -> 123.91 | H12: =IF(ISNA($A12),"",IFERROR(SUMIFS(D_D[DEV],D_D[MT],5,D_D[CAT],SMS, D_D[EP],-1,D_D[LOC],$A12)/$D12,0)) -> 0.04498065655 | I12: =IF(ISNA($A12),"",IFERROR(SUMIFS(D_D[EVD],D_D[MT],5,D_D[CAT],SMS, D_D[EP],-1,D_D[LOC],$A12)/$D12,0)) -> 0.6360446348 | J12: =IF(ISNA($A12),"",IFERROR(SUMIFS(D_D[DEC],D_D[MT],5,D_D[CAT],SMS, D_D[EP],-1,D_D[LOC],$A12)/$D12,0)) -> 0.2988833422 | K12: =IF(ISNA($A12),"",IFERROR(SUMIFS(D_D[AWD],D_D[MT],5,D_D[CAT],SMS, D_D[EP],-1,D_D[LOC],$A12)/$D12,0)) -> 0.01352070429 | L12: =IF(ISNA($A12),"",IFERROR(SUMIFS(D_D[AUT],D_D[MT],5,D_D[CAT],SMS, D_D[EP],-1,D_D[LOC],$A12)/$D12,0)) -> 0.00657066221
A13: 499 | C13: ="NWQ-"&Driver!$C$20& " Total" -> NWQ-USA - All Missions Total | D13: =IF(ISNA($A13),"",IFERROR(SUMIFS(D_D[INV],D_D[MT],5,D_D[CAT],SMS, D_D[EP],-1,D_D[LOC],$A13),0)) -> 865975 | E13: =IF(ISNA($A13),"",IFERROR(SUMIFS(D_D[BL],D_D[MT],5,D_D[CAT],SMS, D_D[EP],-1,D_D[LOC],$A13),0)) -> 325954 | F13: =IF(ISNA($A13),"",IFERROR(E13/D13,0)) -> 0.3764011663 | G13: =IF(ISNA($A13),"",IFERROR(SUMIFS(D_D[ADP],D_D[MT],5,D_D[CAT],SMS, D_D[EP],-1,D_D[LOC],$A13),0)) -> 123.5 | H13: =IF(ISNA($A13),"",IFERROR(SUMIFS(D_D[DEV],D_D[MT],5,D_D[CAT],SMS, D_D[EP],-1,D_D[LOC],$A13)/$D13,0)) -> 0.02729293571 | I13: =IF(ISNA($A13),"",IFERROR(SUMIFS(D_D[EVD],D_D[MT],5,D_D[CAT],SMS, D_D[EP],-1,D_D[LOC],$A13)/$D13,0)) -> 0.6643655995 | J13: =IF(ISNA($A13),"",IFERROR(SUMIFS(D_D[DEC],D_D[MT],5,D_D[CAT],SMS, D_D[EP],-1,D_D[LOC],$A13)/$D13,0)) -> 0.3075423655 | K13: =IF(ISNA($A13),"",IFERROR(SUMIFS(D_D[AWD],D_D[MT],5,D_D[CAT],SMS, D_D[EP],-1,D_D[LOC],$A13)/$D13,0)) -> 0.0007990992812 | L13: =IF(ISNA($A13),"",IFERROR(SUMIFS(D_D[AUT],D_D[MT],5,D_D[CAT],SMS, D_D[EP],-1,D_D[LOC],$A13)/$D13,0)) -> 0
A14: =INDEX(RO,(MATCH($C14,RO_D,0))) -> 394 | B14: 1 | C14: =IFERROR(INDEX(INDIRECT(DS_RO),B14),"") -> Northeast District | D14: =IF(ISNA($A14),"",IFERROR(SUMIFS(D_D[INV],D_D[MT],5,D_D[CAT],SMS, D_D[EP],-1,D_D[LOC],$A14),0)) -> 38230 | E14: =IF(ISNA($A14),"",IFERROR(SUMIFS(D_D[BL],D_D[MT],5,D_D[CAT],SMS, D_D[EP],-1,D_D[LOC],$A14),0)) -> 19365 | F14: =IF(ISNA($A14),"",IFERROR(E14/D14,0)) -> 0.506539367 | G14: =IF(ISNA($A14),"",IFERROR(SUMIFS(D_D[ADP],D_D[MT],5,D_D[CAT],SMS, D_D[EP],-1,D_D[LOC],$A14),0)) -> 134.95 | H14: =IF(ISNA($A14),"",IFERROR(SUMIFS(D_D[DEV],D_D[MT],5,D_D[CAT],SMS, D_D[EP],-1,D_D[LOC],$A14)/$D14,0)) -> 0.1316505362 | I14: =IF(ISNA($A14),"",IFERROR(SUMIFS(D_D[EVD],D_D[MT],5,D_D[CAT],SMS, D_D[EP],-1,D_D[LOC],$A14)/$D14,0)) -> 0.479152498 | J14: =IF(ISNA($A14),"",IFERROR(SUMIFS(D_D[DEC],D_D[MT],5,D_D[CAT],SMS, D_D[EP],-1,D_D[LOC],$A14)/$D14,0)) -> 0.2380068009 | K14: =IF(ISNA($A14),"",IFERROR(SUMIFS(D_D[AWD],D_D[MT],5,D_D[CAT],SMS, D_D[EP],-1,D_D[LOC],$A14)/$D14,0)) -> 0.1072456186 | L14: =IF(ISNA($A14),"",IFERROR(SUMIFS(D_D[AUT],D_D[MT],5,D_D[CAT],SMS, D_D[EP],-1,D_D[LOC],$A14)/$D14,0)) -> 0.04394454617
A15: 313 | B15: 2 | C15: =IFERROR(INDEX(INDIRECT(DS_RO),B15),"") -> Baltimore | D15: =IF(ISNA($A15),"",IFERROR(SUMIFS(D_D[INV],D_D[MT],5,D_D[CAT],SMS, D_D[EP],-1,D_D[LOC],$A15),0)) -> 926 | E15: =IF(ISNA($A15),"",IFERROR(SUMIFS(D_D[BL],D_D[MT],5,D_D[CAT],SMS, D_D[EP],-1,D_D[LOC],$A15),0)) -> 280 | F15: =IF(ISNA($A15),"",IFERROR(E15/D15,0)) -> 0.3023758099 | G15: =IF(ISNA($A15),"",IFERROR(SUMIFS(D_D[ADP],D_D[MT],5,D_D[CAT],SMS, D_D[EP],-1,D_D[LOC],$A15),0)) -> 83.16 | H15: =IF(ISNA($A15),"",IFERROR(SUMIFS(D_D[DEV],D_D[MT],5,D_D[CAT],SMS, D_D[EP],-1,D_D[LOC],$A15)/$D15,0)) -> 0.2494600432 | I15: =IF(ISNA($A15),"",IFERROR(SUMIFS(D_D[EVD],D_D[MT],5,D_D[CAT],SMS, D_D[EP],-1,D_D[LOC],$A15)/$D15,0)) -> 0.5680345572 | J15: =IF(ISNA($A15),"",IFERROR(SUMIFS(D_D[DEC],D_D[MT],5,D_D[CAT],SMS, D_D[EP],-1,D_D[LOC],$A15)/$D15,0)) -> 0.1555075594 | K15: =IF(ISNA($A15),"",IFERROR(SUMIFS(D_D[AWD],D_D[MT],5,D_D[CAT],SMS, D_D[EP],-1,D_D[LOC],$A15)/$D15,0)) -> 0.02267818575 | L15: =IF(ISNA($A15),"",IFERROR(SUMIFS(D_D[AUT],D_D[MT],5,D_D[CAT],SMS, D_D[EP],-1,D_D[LOC],$A15)/$D15,0)) -> 0.004319654428
A16: 301 | B16: 3 | C16: Boston | D16: =IF(ISNA($A16),"",IFERROR(SUMIFS(D_D[INV],D_D[MT],5,D_D[CAT],SMS, D_D[EP],-1,D_D[LOC],$A16),0)) -> 1197 | E16: =IF(ISNA($A16),"",IFERROR(SUMIFS(D_D[BL],D_D[MT],5,D_D[CAT],SMS, D_D[EP],-1,D_D[LOC],$A16),0)) -> 683 | F16: 0.5705931495 | G16: =IF(ISNA($A16),"",IFERROR(SUMIFS(D_D[ADP],D_D[MT],5,D_D[CAT],SMS, D_D[EP],-1,D_D[LOC],$A16),0)) -> 122.46 | H16: =IF(ISNA($A16),"",IFERROR(SUMIFS(D_D[DEV],D_D[MT],5,D_D[CAT],SMS, D_D[EP],-1,D_D[LOC],$A16)/$D16,0)) -> 0.1361737678 | I16: =IF(ISNA($A16),"",IFERROR(SUMIFS(D_D[EVD],D_D[MT],5,D_D[CAT],SMS, D_D[EP],-1,D_D[LOC],$A16)/$D16,0)) -> 0.3884711779 | J16: =IF(ISNA($A16),"",IFERROR(SUMIFS(D_D[DEC],D_D[MT],5,D_D[CAT],SMS, D_D[EP],-1,D_D[LOC],$A16)/$D16,0)) -> 0.1403508772 | K16: =IF(ISNA($A16),"",IFERROR(SUMIFS(D_D[AWD],D_D[MT],5,D_D[CAT],SMS, D_D[EP],-1,D_D[LOC],$A16)/$D16,0)) -> 0.1846282373 | L16: =IF(ISNA($A16),"",IFERROR(SUMIFS(D_D[AUT],D_D[MT],5,D_D[CAT],SMS, D_D[EP],-1,D_D[LOC],$A16)/$D16,0)) -> 0.1503759398
A17: 307 | B17: 4 | C17: Buffalo | D17: =IF(ISNA($A17),"",IFERROR(SUMIFS(D_D[INV],D_D[MT],5,D_D[CAT],SMS, D_D[EP],-1,D_D[LOC],$A17),0)) -> 1643 | E17: =IF(ISNA($A17),"",IFERROR(SUMIFS(D_D[BL],D_D[MT],5,D_D[CAT],SMS, D_D[EP],-1,D_D[LOC],$A17),0)) -> 711 | F17: 0.4327449787 | G17: =IF(ISNA($A17),"",IFERROR(SUMIFS(D_D[ADP],D_D[MT],5,D_D[CAT],SMS, D_D[EP],-1,D_D[LOC],$A17),0)) -> 113.16 | H17: =IF(ISNA($A17),"",IFERROR(SUMIFS(D_D[DEV],D_D[MT],5,D_D[CAT],SMS, D_D[EP],-1,D_D[LOC],$A17)/$D17,0)) -> 0.1278149726 | I17: =IF(ISNA($A17),"",IFERROR(SUMIFS(D_D[EVD],D_D[MT],5,D_D[CAT],SMS, D_D[EP],-1,D_D[LOC],$A17)/$D17,0)) -> 0.5289105295 | J17: =IF(ISNA($A17),"",IFERROR(SUMIFS(D_D[DEC],D_D[MT],5,D_D[CAT],SMS, D_D[EP],-1,D_D[LOC],$A17)/$D17,0)) -> 0.3097991479 | K17: =IF(ISNA($A17),"",IFERROR(SUMIFS(D_D[AWD],D_D[MT],5,D_D[CAT],SMS, D_D[EP],-1,D_D[LOC],$A17)/$D17,0)) -> 0.02982349361 | L17: =IF(ISNA($A17),"",IFERROR(SUMIFS(D_D[AUT],D_D[MT],5,D_D[CAT],SMS, D_D[EP],-1,D_D[LOC],$A17)/$D17,0)) -> 0.00365185636
A18: 328 | B18: 5 | C18: Chicago | D18: =IF(ISNA($A18),"",IFERROR(SUMIFS(D_D[INV],D_D[MT],5,D_D[CAT],SMS, D_D[EP],-1,D_D[LOC],$A18),0)) -> 2108 | E18: =IF(ISNA($A18),"",IFERROR(SUMIFS(D_D[BL],D_D[MT],5,D_D[CAT],SMS, D_D[EP],-1,D_D[LOC],$A18),0)) -> 876 | F18: 0.4155597723 | G18: =IF(ISNA($A18),"",IFERROR(SUMIFS(D_D[ADP],D_D[MT],5,D_D[CAT],SMS, D_D[EP],-1,D_D[LOC],$A18),0)) -> 108.05 | H18: =IF(ISNA($A18),"",IFERROR(SUMIFS(D_D[DEV],D_D[MT],5,D_D[CAT],SMS, D_D[EP],-1,D_D[LOC],$A18)/$D18,0)) -> 0.1612903226 | I18: =IF(ISNA($A18),"",IFERROR(SUMIFS(D_D[EVD],D_D[MT],5,D_D[CAT],SMS, D_D[EP],-1,D_D[LOC],$A18)/$D18,0)) -> 0.4848197343 | J18: =IF(ISNA($A18),"",IFERROR(SUMIFS(D_D[DEC],D_D[MT],5,D_D[CAT],SMS, D_D[EP],-1,D_D[LOC],$A18)/$D18,0)) -> 0.2822580645 | K18: =IF(ISNA($A18),"",IFERROR(SUMIFS(D_D[AWD],D_D[MT],5,D_D[CAT],SMS, D_D[EP],-1,D_D[LOC],$A18)/$D18,0)) -> 0.03652751423 | L18: =IF(ISNA($A18),"",IFERROR(SUMIFS(D_D[AUT],D_D[MT],5,D_D[CAT],SMS, D_D[EP],-1,D_D[LOC],$A18)/$D18,0)) -> 0.03510436433
A19: 325 | B19: 6 | C19: Cleveland | D19: =IF(ISNA($A19),"",IFERROR(SUMIFS(D_D[INV],D_D[MT],5,D_D[CAT],SMS, D_D[EP],-1,D_D[LOC],$A19),0)) -> 3021 | E19: =IF(ISNA($A19),"",IFERROR(SUMIFS(D_D[BL],D_D[MT],5,D_D[CAT],SMS, D_D[EP],-1,D_D[LOC],$A19),0)) -> 1465 | F19: 0.484938762 | G19: =IF(ISNA($A19),"",IFERROR(SUMIFS(D_D[ADP],D_D[MT],5,D_D[CAT],SMS, D_D[EP],-1,D_D[LOC],$A19),0)) -> 110.31 | H19: =IF(ISNA($A19),"",IFERROR(SUMIFS(D_D[DEV],D_D[MT],5,D_D[CAT],SMS, D_D[EP],-1,D_D[LOC],$A19)/$D19,0)) -> 0.1863621317 | I19: =IF(ISNA($A19),"",IFERROR(SUMIFS(D_D[EVD],D_D[MT],5,D_D[CAT],SMS, D_D[EP],-1,D_D[LOC],$A19)/$D19,0)) -> 0.52101953 | J19: =IF(ISNA($A19),"",IFERROR(SUMIFS(D_D[DEC],D_D[MT],5,D_D[CAT],SMS, D_D[EP],-1,D_D[LOC],$A19)/$D19,0)) -> 0.1919894075 | K19: =IF(ISNA($A19),"",IFERROR(SUMIFS(D_D[AWD],D_D[MT],5,D_D[CAT],SMS, D_D[EP],-1,D_D[LOC],$A19)/$D19,0)) -> 0.04568023833 | L19: =IF(ISNA($A19),"",IFERROR(SUMIFS(D_D[AUT],D_D[MT],5,D_D[CAT],SMS, D_D[EP],-1,D_D[LOC],$A19)/$D19,0)) -> 0.05494869249
A20: 329 | B20: 7 | C20: Detroit | D20: =IF(ISNA($A20),"",IFERROR(SUMIFS(D_D[INV],D_D[MT],5,D_D[CAT],SMS, D_D[EP],-1,D_D[LOC],$A20),0)) -> 2046 | E20: =IF(ISNA($A20),"",IFERROR(SUMIFS(D_D[BL],D_D[MT],5,D_D[CAT],SMS, D_D[EP],-1,D_D[LOC],$A20),0)) -> 880 | F20: 0.4301075269 | G20: =IF(ISNA($A20),"",IFERROR(SUMIFS(D_D[ADP],D_D[MT],5,D_D[CAT],SMS, D_D[EP],-1,D_D[LOC],$A20),0)) -> 125.34 | H20: =IF(ISNA($A20),"",IFERROR(SUMIFS(D_D[DEV],D_D[MT],5,D_D[CAT],SMS, D_D[EP],-1,D_D[LOC],$A20)/$D20,0)) -> 0.1138807429 | I20: =IF(ISNA($A20),"",IFERROR(SUMIFS(D_D[EVD],D_D[MT],5,D_D[CAT],SMS, D_D[EP],-1,D_D[LOC],$A20)/$D20,0)) -> 0.4090909091 | J20: =IF(ISNA($A20),"",IFERROR(SUMIFS(D_D[DEC],D_D[MT],5,D_D[CAT],SMS, D_D[EP],-1,D_D[LOC],$A20)/$D20,0)) -> 0.3670576735 | K20: =IF(ISNA($A20),"",IFERROR(SUMIFS(D_D[AWD],D_D[MT],5,D_D[CAT],SMS, D_D[EP],-1,D_D[LOC],$A20)/$D20,0)) -> 0.0156402737 | L20: =IF(ISNA($A20),"",IFERROR(SUMIFS(D_D[AUT],D_D[MT],5,D_D[CAT],SMS, D_D[EP],-1,D_D[LOC],$A20)/$D20,0)) -> 0.09433040078
A21: 308 | B21: 8 | C21: Hartford | D21: =IF(ISNA($A21),"",IFERROR(SUMIFS(D_D[INV],D_D[MT],5,D_D[CAT],SMS, D_D[EP],-1,D_D[LOC],$A21),0)) -> 868 | E21: =IF(ISNA($A21),"",IFERROR(SUMIFS(D_D[BL],D_D[MT],5,D_D[CAT],SMS, D_D[EP],-1,D_D[LOC],$A21),0)) -> 394 | F21: 0.4539170507 | G21: =IF(ISNA($A21),"",IFERROR(SUMIFS(D_D[ADP],D_D[MT],5,D_D[CAT],SMS, D_D[EP],-1,D_D[LOC],$A21),0)) -> 115.68 | H21: =IF(ISNA($A21),"",IFERROR(SUMIFS(D_D[DEV],D_D[MT],5,D_D[CAT],SMS, D_D[EP],-1,D_D[LOC],$A21)/$D21,0)) -> 0.1394009217 | I21: =IF(ISNA($A21),"",IFERROR(SUMIFS(D_D[EVD],D_D[MT],5,D_D[CAT],SMS, D_D[EP],-1,D_D[LOC],$A21)/$D21,0)) -> 0.6013824885 | J21: =IF(ISNA($A21),"",IFERROR(SUMIFS(D_D[DEC],D_D[MT],5,D_D[CAT],SMS, D_D[EP],-1,D_D[LOC],$A21)/$D21,0)) -> 0.1923963134 | K21: =IF(ISNA($A21),"",IFERROR(SUMIFS(D_D[AWD],D_D[MT],5,D_D[CAT],SMS, D_D[EP],-1,D_D[LOC],$A21)/$D21,0)) -> 0.06451612903 | L21: =IF(ISNA($A21),"",IFERROR(SUMIFS(D_D[AUT],D_D[MT],5,D_D[CAT],SMS, D_D[EP],-1,D_D[LOC],$A21)/$D21,0)) -> 0.002304147465
A22: 326 | B22: 9 | C22: Indianapolis | D22: =IF(ISNA($A22),"",IFERROR(SUMIFS(D_D[INV],D_D[MT],5,D_D[CAT],SMS, D_D[EP],-1,D_D[LOC],$A22),0)) -> 1531 | E22: =IF(ISNA($A22),"",IFERROR(SUMIFS(D_D[BL],D_D[MT],5,D_D[CAT],SMS, D_D[EP],-1,D_D[LOC],$A22),0)) -> 618 | F22: 0.40365774 | G22: =IF(ISNA($A22),"",IFERROR(SUMIFS(D_D[ADP],D_D[MT],5,D_D[CAT],SMS, D_D[EP],-1,D_D[LOC],$A22),0)) -> 106.17 | H22: =IF(ISNA($A22),"",IFERROR(SUMIFS(D_D[DEV],D_D[MT],5,D_D[CAT],SMS, D_D[EP],-1,D_D[LOC],$A22)/$D22,0)) -> 0.1678641411 | I22: =IF(ISNA($A22),"",IFERROR(SUMIFS(D_D[EVD],D_D[MT],5,D_D[CAT],SMS, D_D[EP],-1,D_D[LOC],$A22)/$D22,0)) -> 0.5427824951 | J22: =IF(ISNA($A22),"",IFERROR(SUMIFS(D_D[DEC],D_D[MT],5,D_D[CAT],SMS, D_D[EP],-1,D_D[LOC],$A22)/$D22,0)) -> 0.2384062704 | K22: =IF(ISNA($A22),"",IFERROR(SUMIFS(D_D[AWD],D_D[MT],5,D_D[CAT],SMS, D_D[EP],-1,D_D[LOC],$A22)/$D22,0)) -> 0.04441541476 | L22: =IF(ISNA($A22),"",IFERROR(SUMIFS(D_D[AUT],D_D[MT],5,D_D[CAT],SMS, D_D[EP],-1,D_D[LOC],$A22)/$D22,0)) -> 0.006531678641
A23: 373 | B23: 10 | C23: Manchester | D23: =IF(ISNA($A23),"",IFERROR(SUMIFS(D_D[INV],D_D[MT],5,D_D[CAT],SMS, D_D[EP],-1,D_D[LOC],$A23),0)) -> 562 | E23: =IF(ISNA($A23),"",IFERROR(SUMIFS(D_D[BL],D_D[MT],5,D_D[CAT],SMS, D_D[EP],-1,D_D[LOC],$A23),0)) -> 218 | F23: 0.3879003559 | G23: =IF(ISNA($A23),"",IFERROR(SUMIFS(D_D[ADP],D_D[MT],5,D_D[CAT],SMS, D_D[EP],-1,D_D[LOC],$A23),0)) -> 106.53 | H23: =IF(ISNA($A23),"",IFERROR(SUMIFS(D_D[DEV],D_D[MT],5,D_D[CAT],SMS, D_D[EP],-1,D_D[LOC],$A23)/$D23,0)) -> 0.1565836299 | I23: =IF(ISNA($A23),"",IFERROR(SUMIFS(D_D[EVD],D_D[MT],5,D_D[CAT],SMS, D_D[EP],-1,D_D[LOC],$A23)/$D23,0)) -> 0.4537366548 | J23: =IF(ISNA($A23),"",IFERROR(SUMIFS(D_D[DEC],D_D[MT],5,D_D[CAT],SMS, D_D[EP],-1,D_D[LOC],$A23)/$D23,0)) -> 0.3149466192 | K23: =IF(ISNA($A23),"",IFERROR(SUMIFS(D_D[AWD],D_D[MT],5,D_D[CAT],SMS, D_D[EP],-1,D_D[LOC],$A23)/$D23,0)) -> 0.05516014235 | L23: =IF(ISNA($A23),"",IFERROR(SUMIFS(D_D[AUT],D_D[MT],5,D_D[CAT],SMS, D_D[EP],-1,D_D[LOC],$A23)/$D23,0)) -> 0.01957295374
A24: 330 | B24: 11 | C24: Milwaukee | D24: =IF(ISNA($A24),"",IFERROR(SUMIFS(D_D[INV],D_D[MT],5,D_D[CAT],SMS, D_D[EP],-1,D_D[LOC],$A24),0)) -> 3039 | E24: =IF(ISNA($A24),"",IFERROR(SUMIFS(D_D[BL],D_D[MT],5,D_D[CAT],SMS, D_D[EP],-1,D_D[LOC],$A24),0)) -> 1277 | F24: 0.4202040145 | G24: =IF(ISNA($A24),"",IFERROR(SUMIFS(D_D[ADP],D_D[MT],5,D_D[CAT],SMS, D_D[EP],-1,D_D[LOC],$A24),0)) -> 120.83 | H24: =IF(ISNA($A24),"",IFERROR(SUMIFS(D_D[DEV],D_D[MT],5,D_D[CAT],SMS, D_D[EP],-1,D_D[LOC],$A24)/$D24,0)) -> 0.2036854228 | I24: =IF(ISNA($A24),"",IFERROR(SUMIFS(D_D[EVD],D_D[MT],5,D_D[CAT],SMS, D_D[EP],-1,D_D[LOC],$A24)/$D24,0)) -> 0.4666008555 | J24: =IF(ISNA($A24),"",IFERROR(SUMIFS(D_D[DEC],D_D[MT],5,D_D[CAT],SMS, D_D[EP],-1,D_D[LOC],$A24)/$D24,0)) -> 0.1609081935 | K24: =IF(ISNA($A24),"",IFERROR(SUMIFS(D_D[AWD],D_D[MT],5,D_D[CAT],SMS, D_D[EP],-1,D_D[LOC],$A24)/$D24,0)) -> 0.1108917407 | L24: =IF(ISNA($A24),"",IFERROR(SUMIFS(D_D[AUT],D_D[MT],5,D_D[CAT],SMS, D_D[EP],-1,D_D[LOC],$A24)/$D24,0)) -> 0.05791378743
A25: 306 | B25: 12 | C25: New York | D25: =IF(ISNA($A25),"",IFERROR(SUMIFS(D_D[INV],D_D[MT],5,D_D[CAT],SMS, D_D[EP],-1,D_D[LOC],$A25),0)) -> 1238 | E25: =IF(ISNA($A25),"",IFERROR(SUMIFS(D_D[BL],D_D[MT],5,D_D[CAT],SMS, D_D[EP],-1,D_D[LOC],$A25),0)) -> 580 | F25: 0.4684975767 | G25: =IF(ISNA($A25),"",IFERROR(SUMIFS(D_D[ADP],D_D[MT],5,D_D[CAT],SMS, D_D[EP],-1,D_D[LOC],$A25),0)) -> 126.05 | H25: =IF(ISNA($A25),"",IFERROR(SUMIFS(D_D[DEV],D_D[MT],5,D_D[CAT],SMS, D_D[EP],-1,D_D[LOC],$A25)/$D25,0)) -> 0.1437802908 | I25: =IF(ISNA($A25),"",IFERROR(SUMIFS(D_D[EVD],D_D[MT],5,D_D[CAT],SMS, D_D[EP],-1,D_D[LOC],$A25)/$D25,0)) -> 0.5040387722 | J25: =IF(ISNA($A25),"",IFERROR(SUMIFS(D_D[DEC],D_D[MT],5,D_D[CAT],SMS, D_D[EP],-1,D_D[LOC],$A25)/$D25,0)) -> 0.3109854604 | K25: =IF(ISNA($A25),"",IFERROR(SUMIFS(D_D[AWD],D_D[MT],5,D_D[CAT],SMS, D_D[EP],-1,D_D[LOC],$A25)/$D25,0)) -> 0.02746365105 | L25: =IF(ISNA($A25),"",IFERROR(SUMIFS(D_D[AUT],D_D[MT],5,D_D[CAT],SMS, D_D[EP],-1,D_D[LOC],$A25)/$D25,0)) -> 0.01373182553
A26: 309 | B26: 13 | C26: Newark | D26: =IF(ISNA($A26),"",IFERROR(SUMIFS(D_D[INV],D_D[MT],5,D_D[CAT],SMS, D_D[EP],-1,D_D[LOC],$A26),0)) -> 574 | E26: =IF(ISNA($A26),"",IFERROR(SUMIFS(D_D[BL],D_D[MT],5,D_D[CAT],SMS, D_D[EP],-1,D_D[LOC],$A26),0)) -> 275 | F26: 0.4790940767 | G26: =IF(ISNA($A26),"",IFERROR(SUMIFS(D_D[ADP],D_D[MT],5,D_D[CAT],SMS, D_D[EP],-1,D_D[LOC],$A26),0)) -> 103.83 | H26: =IF(ISNA($A26),"",IFERROR(SUMIFS(D_D[DEV],D_D[MT],5,D_D[CAT],SMS, D_D[EP],-1,D_D[LOC],$A26)/$D26,0)) -> 0.1358885017 | I26: =IF(ISNA($A26),"",IFERROR(SUMIFS(D_D[EVD],D_D[MT],5,D_D[CAT],SMS, D_D[EP],-1,D_D[LOC],$A26)/$D26,0)) -> 0.5801393728 | J26: =IF(ISNA($A26),"",IFERROR(SUMIFS(D_D[DEC],D_D[MT],5,D_D[CAT],SMS, D_D[EP],-1,D_D[LOC],$A26)/$D26,0)) -> 0.1149825784 | K26: =IF(ISNA($A26),"",IFERROR(SUMIFS(D_D[AWD],D_D[MT],5,D_D[CAT],SMS, D_D[EP],-1,D_D[LOC],$A26)/$D26,0)) -> 0.07839721254 | L26: =IF(ISNA($A26),"",IFERROR(SUMIFS(D_D[AUT],D_D[MT],5,D_D[CAT],SMS, D_D[EP],-1,D_D[LOC],$A26)/$D26,0)) -> 0.09059233449
A27: 310 | B27: 14 | C27: Philadelphia | D27: =IF(ISNA($A27),"",IFERROR(SUMIFS(D_D[INV],D_D[MT],5,D_D[CAT],SMS, D_D[EP],-1,D_D[LOC],$A27),0)) -> 8034 | E27: =IF(ISNA($A27),"",IFERROR(SUMIFS(D_D[BL],D_D[MT],5,D_D[CAT],SMS, D_D[EP],-1,D_D[LOC],$A27),0)) -> 4728 | F27: 0.5884988798 | G27: =IF(ISNA($A27),"",IFERROR(SUMIFS(D_D[ADP],D_D[MT],5,D_D[CAT],SMS, D_D[EP],-1,D_D[LOC],$A27),0)) -> 170.79 | H27: =IF(ISNA($A27),"",IFERROR(SUMIFS(D_D[DEV],D_D[MT],5,D_D[CAT],SMS, D_D[EP],-1,D_D[LOC],$A27)/$D27,0)) -> 0.1111526014 | I27: =IF(ISNA($A27),"",IFERROR(SUMIFS(D_D[EVD],D_D[MT],5,D_D[CAT],SMS, D_D[EP],-1,D_D[LOC],$A27)/$D27,0)) -> 0.4739855614 | J27: =IF(ISNA($A27),"",IFERROR(SUMIFS(D_D[DEC],D_D[MT],5,D_D[CAT],SMS, D_D[EP],-1,D_D[LOC],$A27)/$D27,0)) -> 0.2291511078 | K27: =IF(ISNA($A27),"",IFERROR(SUMIFS(D_D[AWD],D_D[MT],5,D_D[CAT],SMS, D_D[EP],-1,D_D[LOC],$A27)/$D27,0)) -> 0.141274583 | L27: =IF(ISNA($A27),"",IFERROR(SUMIFS(D_D[AUT],D_D[MT],5,D_D[CAT],SMS, D_D[EP],-1,D_D[LOC],$A27)/$D27,0)) -> 0.04443614638
A28: 311 | B28: 15 | C28: Pittsburgh | D28: =IF(ISNA($A28),"",IFERROR(SUMIFS(D_D[INV],D_D[MT],5,D_D[CAT],SMS, D_D[EP],-1,D_D[LOC],$A28),0)) -> 2056 | E28: =IF(ISNA($A28),"",IFERROR(SUMIFS(D_D[BL],D_D[MT],5,D_D[CAT],SMS, D_D[EP],-1,D_D[LOC],$A28),0)) -> 1013 | F28: 0.4927042802 | G28: =IF(ISNA($A28),"",IFERROR(SUMIFS(D_D[ADP],D_D[MT],5,D_D[CAT],SMS, D_D[EP],-1,D_D[LOC],$A28),0)) -> 160.79 | H28: =IF(ISNA($A28),"",IFERROR(SUMIFS(D_D[DEV],D_D[MT],5,D_D[CAT],SMS, D_D[EP],-1,D_D[LOC],$A28)/$D28,0)) -> 0.1619649805 | I28: =IF(ISNA($A28),"",IFERROR(SUMIFS(D_D[EVD],D_D[MT],5,D_D[CAT],SMS, D_D[EP],-1,D_D[LOC],$A28)/$D28,0)) -> 0.5068093385 | J28: =IF(ISNA($A28),"",IFERROR(SUMIFS(D_D[DEC],D_D[MT],5,D_D[CAT],SMS, D_D[EP],-1,D_D[LOC],$A28)/$D28,0)) -> 0.2461089494 | K28: =IF(ISNA($A28),"",IFERROR(SUMIFS(D_D[AWD],D_D[MT],5,D_D[CAT],SMS, D_D[EP],-1,D_D[LOC],$A28)/$D28,0)) -> 0.06079766537 | L28: =IF(ISNA($A28),"",IFERROR(SUMIFS(D_D[AUT],D_D[MT],5,D_D[CAT],SMS, D_D[EP],-1,D_D[LOC],$A28)/$D28,0)) -> 0.02431906615
A29: 304 | B29: 16 | C29: Providence | D29: =IF(ISNA($A29),"",IFERROR(SUMIFS(D_D[INV],D_D[MT],5,D_D[CAT],SMS, D_D[EP],-1,D_D[LOC],$A29),0)) -> 1925 | E29: =IF(ISNA($A29),"",IFERROR(SUMIFS(D_D[BL],D_D[MT],5,D_D[CAT],SMS, D_D[EP],-1,D_D[LOC],$A29),0)) -> 762 | F29: 0.3958441558 | G29: =IF(ISNA($A29),"",IFERROR(SUMIFS(D_D[ADP],D_D[MT],5,D_D[CAT],SMS, D_D[EP],-1,D_D[LOC],$A29),0)) -> 105.08 | H29: =IF(ISNA($A29),"",IFERROR(SUMIFS(D_D[DEV],D_D[MT],5,D_D[CAT],SMS, D_D[EP],-1,D_D[LOC],$A29)/$D29,0)) -> 0.08779220779 | I29: =IF(ISNA($A29),"",IFERROR(SUMIFS(D_D[EVD],D_D[MT],5,D_D[CAT],SMS, D_D[EP],-1,D_D[LOC],$A29)/$D29,0)) -> 0.4368831169 | J29: =IF(ISNA($A29),"",IFERROR(SUMIFS(D_D[DEC],D_D[MT],5,D_D[CAT],SMS, D_D[EP],-1,D_D[LOC],$A29)/$D29,0)) -> 0.332987013 | K29: =IF(ISNA($A29),"",IFERROR(SUMIFS(D_D[AWD],D_D[MT],5,D_D[CAT],SMS, D_D[EP],-1,D_D[LOC],$A29)/$D29,0)) -> 0.07948051948 | L29: =IF(ISNA($A29),"",IFERROR(SUMIFS(D_D[AUT],D_D[MT],5,D_D[CAT],SMS, D_D[EP],-1,D_D[LOC],$A29)/$D29,0)) -> 0.06285714286
A30: 376 | B30: 17 | C30: St. Louis RMC | D30: =IF(ISNA($A30),"",IFERROR(SUMIFS(D_D[INV],D_D[MT],5,D_D[CAT],SMS, D_D[EP],-1,D_D[LOC],$A30),0)) -> 0 | E30: =IF(ISNA($A30),"",IFERROR(SUMIFS(D_D[BL],D_D[MT],5,D_D[CAT],SMS, D_D[EP],-1,D_D[LOC],$A30),0)) -> 0 | F30: 0 | G30: =IF(ISNA($A30),"",IFERROR(SUMIFS(D_D[ADP],D_D[MT],5,D_D[CAT],SMS, D_D[EP],-1,D_D[LOC],$A30),0)) -> 0 | H30: =IF(ISNA($A30),"",IFERROR(SUMIFS(D_D[DEV],D_D[MT],5,D_D[CAT],SMS, D_D[EP],-1,D_D[LOC],$A30)/$D30,0)) -> 0 | I30: =IF(ISNA($A30),"",IFERROR(SUMIFS(D_D[EVD],D_D[MT],5,D_D[CAT],SMS, D_D[EP],-1,D_D[LOC],$A30)/$D30,0)) -> 0 | J30: =IF(ISNA($A30),"",IFERROR(SUMIFS(D_D[DEC],D_D[MT],5,D_D[CAT],SMS, D_D[EP],-1,D_D[LOC],$A30)/$D30,0)) -> 0 | K30: =IF(ISNA($A30),"",IFERROR(SUMIFS(D_D[AWD],D_D[MT],5,D_D[CAT],SMS, D_D[EP],-1,D_D[LOC],$A30)/$D30,0)) -> 0 | L30: =IF(ISNA($A30),"",IFERROR(SUMIFS(D_D[AUT],D_D[MT],5,D_D[CAT],SMS, D_D[EP],-1,D_D[LOC],$A30)/$D30,0)) -> 0
A31: 331 | B31: 18 | C31: St. Louis | D31: =IF(ISNA($A31),"",IFERROR(SUMIFS(D_D[INV],D_D[MT],5,D_D[CAT],SMS, D_D[EP],-1,D_D[LOC],$A31),0)) -> 5111 | E31: =IF(ISNA($A31),"",IFERROR(SUMIFS(D_D[BL],D_D[MT],5,D_D[CAT],SMS, D_D[EP],-1,D_D[LOC],$A31),0)) -> 3338 | F31: 0.6531011544 | G31: =IF(ISNA($A31),"",IFERROR(SUMIFS(D_D[ADP],D_D[MT],5,D_D[CAT],SMS, D_D[EP],-1,D_D[LOC],$A31),0)) -> 161.27 | H31: =IF(ISNA($A31),"",IFERROR(SUMIFS(D_D[DEV],D_D[MT],5,D_D[CAT],SMS, D_D[EP],-1,D_D[LOC],$A31)/$D31,0)) -> 0.06671884171 | I31: =IF(ISNA($A31),"",IFERROR(SUMIFS(D_D[EVD],D_D[MT],5,D_D[CAT],SMS, D_D[EP],-1,D_D[LOC],$A31)/$D31,0)) -> 0.4196830366 | J31: =IF(ISNA($A31),"",IFERROR(SUMIFS(D_D[DEC],D_D[MT],5,D_D[CAT],SMS, D_D[EP],-1,D_D[LOC],$A31)/$D31,0)) -> 0.2028957151 | K31: =IF(ISNA($A31),"",IFERROR(SUMIFS(D_D[AWD],D_D[MT],5,D_D[CAT],SMS, D_D[EP],-1,D_D[LOC],$A31)/$D31,0)) -> 0.2801800039 | L31: =IF(ISNA($A31),"",IFERROR(SUMIFS(D_D[AUT],D_D[MT],5,D_D[CAT],SMS, D_D[EP],-1,D_D[LOC],$A31)/$D31,0)) -> 0.03052240266
A32: 402 | B32: 19 | C32: Togus | D32: =IF(ISNA($A32),"",IFERROR(SUMIFS(D_D[INV],D_D[MT],5,D_D[CAT],SMS, D_D[EP],-1,D_D[LOC],$A32),0)) -> 1844 | E32: =IF(ISNA($A32),"",IFERROR(SUMIFS(D_D[BL],D_D[MT],5,D_D[CAT],SMS, D_D[EP],-1,D_D[LOC],$A32),0)) -> 1103 | F32: 0.5981561822 | G32: =IF(ISNA($A32),"",IFERROR(SUMIFS(D_D[ADP],D_D[MT],5,D_D[CAT],SMS, D_D[EP],-1,D_D[LOC],$A32),0)) -> 133.26 | H32: =IF(ISNA($A32),"",IFERROR(SUMIFS(D_D[DEV],D_D[MT],5,D_D[CAT],SMS, D_D[EP],-1,D_D[LOC],$A32)/$D32,0)) -> 0.06670281996 | I32: =IF(ISNA($A32),"",IFERROR(SUMIFS(D_D[EVD],D_D[MT],5,D_D[CAT],SMS, D_D[EP],-1,D_D[LOC],$A32)/$D32,0)) -> 0.5119305857 | J32: =IF(ISNA($A32),"",IFERROR(SUMIFS(D_D[DEC],D_D[MT],5,D_D[CAT],SMS, D_D[EP],-1,D_D[LOC],$A32)/$D32,0)) -> 0.3069414317 | K32: =IF(ISNA($A32),"",IFERROR(SUMIFS(D_D[AWD],D_D[MT],5,D_D[CAT],SMS, D_D[EP],-1,D_D[LOC],$A32)/$D32,0)) -> 0.06236442516 | L32: =IF(ISNA($A32),"",IFERROR(SUMIFS(D_D[AUT],D_D[MT],5,D_D[CAT],SMS, D_D[EP],-1,D_D[LOC],$A32)/$D32,0)) -> 0.05206073753
A33: 372 | B33: 20 | C33: Washington | D33: =IF(ISNA($A33),"",IFERROR(SUMIFS(D_D[INV],D_D[MT],5,D_D[CAT],SMS, D_D[EP],-1,D_D[LOC],$A33),0)) -> 15 | E33: =IF(ISNA($A33),"",IFERROR(SUMIFS(D_D[BL],D_D[MT],5,D_D[CAT],SMS, D_D[EP],-1,D_D[LOC],$A33),0)) -> 5 | F33: 0.3333333333 | G33: =IF(ISNA($A33),"",IFERROR(SUMIFS(D_D[ADP],D_D[MT],5,D_D[CAT],SMS, D_D[EP],-1,D_D[LOC],$A33),0)) -> 84.87 | H33: =IF(ISNA($A33),"",IFERROR(SUMIFS(D_D[DEV],D_D[MT],5,D_D[CAT],SMS, D_D[EP],-1,D_D[LOC],$A33)/$D33,0)) -> 0.4 | I33: =IF(ISNA($A33),"",IFERROR(SUMIFS(D_D[EVD],D_D[MT],5,D_D[CAT],SMS, D_D[EP],-1,D_D[LOC],$A33)/$D33,0)) -> 0.2 | J33: =IF(ISNA($A33),"",IFERROR(SUMIFS(D_D[DEC],D_D[MT],5,D_D[CAT],SMS, D_D[EP],-1,D_D[LOC],$A33)/$D33,0)) -> 0.06666666667 | K33: =IF(ISNA($A33),"",IFERROR(SUMIFS(D_D[AWD],D_D[MT],5,D_D[CAT],SMS, D_D[EP],-1,D_D[LOC],$A33)/$D33,0)) -> 0.3333333333 | L33: =IF(ISNA($A33),"",IFERROR(SUMIFS(D_D[AUT],D_D[MT],5,D_D[CAT],SMS, D_D[EP],-1,D_D[LOC],$A33)/$D33,0)) -> 0
A34: 405 | B34: 21 | C34: White River Junction | D34: =IF(ISNA($A34),"",IFERROR(SUMIFS(D_D[INV],D_D[MT],5,D_D[CAT],SMS, D_D[EP],-1,D_D[LOC],$A34),0)) -> 202 | E34: =IF(ISNA($A34),"",IFERROR(SUMIFS(D_D[BL],D_D[MT],5,D_D[CAT],SMS, D_D[EP],-1,D_D[LOC],$A34),0)) -> 49 | F34: 0.2425742574 | G34: =IF(ISNA($A34),"",IFERROR(SUMIFS(D_D[ADP],D_D[MT],5,D_D[CAT],SMS, D_D[EP],-1,D_D[LOC],$A34),0)) -> 86.19 | H34: =IF(ISNA($A34),"",IFERROR(SUMIFS(D_D[DEV],D_D[MT],5,D_D[CAT],SMS, D_D[EP],-1,D_D[LOC],$A34)/$D34,0)) -> 0.1534653465 | I34: =IF(ISNA($A34),"",IFERROR(SUMIFS(D_D[EVD],D_D[MT],5,D_D[CAT],SMS, D_D[EP],-1,D_D[LOC],$A34)/$D34,0)) -> 0.6188118812 | J34: =IF(ISNA($A34),"",IFERROR(SUMIFS(D_D[DEC],D_D[MT],5,D_D[CAT],SMS, D_D[EP],-1,D_D[LOC],$A34)/$D34,0)) -> 0.202970297 | K34: =IF(ISNA($A34),"",IFERROR(SUMIFS(D_D[AWD],D_D[MT],5,D_D[CAT],SMS, D_D[EP],-1,D_D[LOC],$A34)/$D34,0)) -> 0.009900990099 | L34: =IF(ISNA($A34),"",IFERROR(SUMIFS(D_D[AUT],D_D[MT],5,D_D[CAT],SMS, D_D[EP],-1,D_D[LOC],$A34)/$D34,0)) -> 0.01485148515
A35: 460 | B35: 22 | C35: Wilmington | D35: =IF(ISNA($A35),"",IFERROR(SUMIFS(D_D[INV],D_D[MT],5,D_D[CAT],SMS, D_D[EP],-1,D_D[LOC],$A35),0)) -> 290 | E35: =IF(ISNA($A35),"",IFERROR(SUMIFS(D_D[BL],D_D[MT],5,D_D[CAT],SMS, D_D[EP],-1,D_D[LOC],$A35),0)) -> 110 | F35: 0.3793103448 | G35: =IF(ISNA($A35),"",IFERROR(SUMIFS(D_D[ADP],D_D[MT],5,D_D[CAT],SMS, D_D[EP],-1,D_D[LOC],$A35),0)) -> 113.46 | H35: =IF(ISNA($A35),"",IFERROR(SUMIFS(D_D[DEV],D_D[MT],5,D_D[CAT],SMS, D_D[EP],-1,D_D[LOC],$A35)/$D35,0)) -> 0.1931034483 | I35: =IF(ISNA($A35),"",IFERROR(SUMIFS(D_D[EVD],D_D[MT],5,D_D[CAT],SMS, D_D[EP],-1,D_D[LOC],$A35)/$D35,0)) -> 0.4620689655 | J35: =IF(ISNA($A35),"",IFERROR(SUMIFS(D_D[DEC],D_D[MT],5,D_D[CAT],SMS, D_D[EP],-1,D_D[LOC],$A35)/$D35,0)) -> 0.2413793103 | K35: =IF(ISNA($A35),"",IFERROR(SUMIFS(D_D[AWD],D_D[MT],5,D_D[CAT],SMS, D_D[EP],-1,D_D[LOC],$A35)/$D35,0)) -> 0.08275862069 | L35: =IF(ISNA($A35),"",IFERROR(SUMIFS(D_D[AUT],D_D[MT],5,D_D[CAT],SMS, D_D[EP],-1,D_D[LOC],$A35)/$D35,0)) -> 0.02068965517
B36: 23 | D36: =IF(ISNA($A36),"",IFERROR(SUMIFS(D_D[INV],D_D[MT],5,D_D[CAT],SMS, D_D[EP],-1,D_D[LOC],$A36),0)) ->  | E36: =IF(ISNA($A36),"",IFERROR(SUMIFS(D_D[BL],D_D[MT],5,D_D[CAT],SMS, D_D[EP],-1,D_D[LOC],$A36),0)) ->  | G36: =IF(ISNA($A36),"",IFERROR(SUMIFS(D_D[ADP],D_D[MT],5,D_D[CAT],SMS, D_D[EP],-1,D_D[LOC],$A36),0)) ->  | H36: =IF(ISNA($A36),"",IFERROR(SUMIFS(D_D[DEV],D_D[MT],5,D_D[CAT],SMS, D_D[EP],-1,D_D[LOC],$A36)/$D36,0)) ->  | I36: =IF(ISNA($A36),"",IFERROR(SUMIFS(D_D[EVD],D_D[MT],5,D_D[CAT],SMS, D_D[EP],-1,D_D[LOC],$A36)/$D36,0)) ->  | J36: =IF(ISNA($A36),"",IFERROR(SUMIFS(D_D[DEC],D_D[MT],5,D_D[CAT],SMS, D_D[EP],-1,D_D[LOC],$A36)/$D36,0)) ->  | K36: =IF(ISNA($A36),"",IFERROR(SUMIFS(D_D[AWD],D_D[MT],5,D_D[CAT],SMS, D_D[EP],-1,D_D[LOC],$A36)/$D36,0)) ->  | L36: =IF(ISNA($A36),"",IFERROR(SUMIFS(D_D[AUT],D_D[MT],5,D_D[CAT],SMS, D_D[EP],-1,D_D[LOC],$A36)/$D36,0)) -> 

Sheet Rating Bundle - NWQ - State
C2: DISTRICT SELECTOR | E2: Compensation and Pension Rating Bundle Metrics | J2: Report through
E3: NWQ State View | J3: =D_DT[] -> 2024-01-27
E4: The State listed is based on the address associated with the claim, not payment address
E6: Each Special Mission has distinct claim counts | J6: Life Cycle Metrics defined on Legend tab
E8: CLAIM METRICS | H8: LIFE CYCLE METRICS (as Percent of # Pending)
C9: SPECIAL MISSION SELECTOR | E9: # Pending | F9: # Pending > 125 Days | G9: % Pending > 125 Days | H9: Pending Development | I9: Pending Evidence | J9: Pending Decision | K9: Pending Award | L9: Pending Authorization
A12: 100 | C12: =Driver!$C$20 -> USA - All Missions | D12: Total | E12: =IF(ISNA($A12),"",IFERROR(SUMIFS(D_D[INV],D_D[MT],5,D_D[CAT],SMS, D_D[EP],-1,D_D[LOC],$A12),0)) -> 1014814 | F12: =IF(ISNA($A12),"",IFERROR(SUMIFS(D_D[BL],D_D[MT],5,D_D[CAT],SMS, D_D[EP],-1,D_D[LOC],$A12),0)) -> 399925 | G12: =IF(ISNA($A12),"",IFERROR(F12/E12,0)) -> 0.3940869953 | H12: =IF(ISNA($A12),"",IFERROR(SUMIFS(D_D[DEV],D_D[MT],5,D_D[CAT],SMS, D_D[EP],-1,D_D[LOC],$A12)/$E12,0)) -> 0.04498065655 | I12: =IF(ISNA($A12),"",IFERROR(SUMIFS(D_D[EVD],D_D[MT],5,D_D[CAT],SMS, D_D[EP],-1,D_D[LOC],$A12)/$E12,0)) -> 0.6360446348 | J12: =IF(ISNA($A12),"",IFERROR(SUMIFS(D_D[DEC],D_D[MT],5,D_D[CAT],SMS, D_D[EP],-1,D_D[LOC],$A12)/$E12,0)) -> 0.2988833422 | K12: =IF(ISNA($A12),"",IFERROR(SUMIFS(D_D[AWD],D_D[MT],5,D_D[CAT],SMS, D_D[EP],-1,D_D[LOC],$A12)/$E12,0)) -> 0.01352070429 | L12: =IF(ISNA($A12),"",IFERROR(SUMIFS(D_D[AUT],D_D[MT],5,D_D[CAT],SMS, D_D[EP],-1,D_D[LOC],$A12)/$E12,0)) -> 0.00657066221
A13: 499 | C13: ="NWQ-"&Driver!$C$20 -> NWQ-USA - All Missions | D13: Total | E13: =IF(ISNA($A13),"",IFERROR(SUMIFS(D_D[INV],D_D[MT],5,D_D[CAT],SMS, D_D[EP],-1,D_D[LOC],$A13),0)) -> 865975 | F13: =IF(ISNA($A13),"",IFERROR(SUMIFS(D_D[BL],D_D[MT],5,D_D[CAT],SMS, D_D[EP],-1,D_D[LOC],$A13),0)) -> 325954 | G13: =IF(ISNA($A13),"",IFERROR(F13/E13,0)) -> 0.3764011663 | H13: =IF(ISNA($A13),"",IFERROR(SUMIFS(D_D[DEV],D_D[MT],5,D_D[CAT],SMS, D_D[EP],-1,D_D[LOC],$A13)/$E13,0)) -> 0.02729293571 | I13: =IF(ISNA($A13),"",IFERROR(SUMIFS(D_D[EVD],D_D[MT],5,D_D[CAT],SMS, D_D[EP],-1,D_D[LOC],$A13)/$E13,0)) -> 0.6643655995 | J13: =IF(ISNA($A13),"",IFERROR(SUMIFS(D_D[DEC],D_D[MT],5,D_D[CAT],SMS, D_D[EP],-1,D_D[LOC],$A13)/$E13,0)) -> 0.3075423655 | K13: =IF(ISNA($A13),"",IFERROR(SUMIFS(D_D[AWD],D_D[MT],5,D_D[CAT],SMS, D_D[EP],-1,D_D[LOC],$A13)/$E13,0)) -> 0.0007990992812 | L13: =IF(ISNA($A13),"",IFERROR(SUMIFS(D_D[AUT],D_D[MT],5,D_D[CAT],SMS, D_D[EP],-1,D_D[LOC],$A13)/$E13,0)) -> 0
A14: =INDEX(STATE,(MATCH($C14,STATE_D,0))) -> 394 | B14: 1 | C14: =IFERROR(INDEX(INDIRECT(DS_NWQ),B14),"") -> Northeast District | D14: =IFERROR(INDEX(INDIRECT(DS_NWQD),B14),"") ->  | E14: =IF(ISNA($A14),"",IFERROR(SUMIFS(D_D[INV],D_D[MT],5,D_D[CAT],SMS, D_D[EP],499,D_D[LOC],$A14),0)) -> 245243 | F14: =IF(ISNA($A14),"",IFERROR(SUMIFS(D_D[BL],D_D[MT],5,D_D[CAT],SMS, D_D[EP],499,D_D[LOC],$A14),0)) -> 97234 | G14: =IF(ISNA($A14),"",IFERROR(F14/E14,0)) -> 0.3964802257 | H14: =IF(ISNA($A14),"",IFERROR(SUMIFS(D_D[DEV],D_D[MT],5,D_D[CAT],SMS, D_D[EP],499,D_D[LOC],$A14)/$E14,0)) -> 0.04805845631 | I14: =IF(ISNA($A14),"",IFERROR(SUMIFS(D_D[EVD],D_D[MT],5,D_D[CAT],SMS, D_D[EP],499,D_D[LOC],$A14)/$E14,0)) -> 0.6582369323 | J14: =IF(ISNA($A14),"",IFERROR(SUMIFS(D_D[DEC],D_D[MT],5,D_D[CAT],SMS, D_D[EP],499,D_D[LOC],$A14)/$E14,0)) -> 0.2741403424 | K14: =IF(ISNA($A14),"",IFERROR(SUMIFS(D_D[AWD],D_D[MT],5,D_D[CAT],SMS, D_D[EP],499,D_D[LOC],$A14)/$E14,0)) -> 0.01333371391 | L14: =IF(ISNA($A14),"",IFERROR(SUMIFS(D_D[AUT],D_D[MT],5,D_D[CAT],SMS, D_D[EP],499,D_D[LOC],$A14)/$E14,0)) -> 0.006230555001
A15: =IFERROR(INDEX(INDIRECT(DS_NWQI),B15),#N/A) -> CT100 | B15: 2 | C15: Connecticut | D15: =IFERROR(INDEX(INDIRECT(DS_NWQD),B15),"") -> Connecticut-Total | E15: =IF(ISNA($A15),"",IFERROR(SUMIFS(D_D[INV],D_D[MT],5,D_D[CAT],SMS, D_D[EP],499,D_D[LOC],$A15),0)) -> 5625 | F15: =IF(ISNA($A15),"",IFERROR(SUMIFS(D_D[BL],D_D[MT],5,D_D[CAT],SMS, D_D[EP],499,D_D[LOC],$A15),0)) -> 2269 | G15: 0.4033777778 | H15: =IF(ISNA($A15),"",IFERROR(SUMIFS(D_D[DEV],D_D[MT],5,D_D[CAT],SMS, D_D[EP],499,D_D[LOC],$A15)/$E15,0)) -> 0.05297777778 | I15: =IF(ISNA($A15),"",IFERROR(SUMIFS(D_D[EVD],D_D[MT],5,D_D[CAT],SMS, D_D[EP],499,D_D[LOC],$A15)/$E15,0)) -> 0.6736 | J15: =IF(ISNA($A15),"",IFERROR(SUMIFS(D_D[DEC],D_D[MT],5,D_D[CAT],SMS, D_D[EP],499,D_D[LOC],$A15)/$E15,0)) -> 0.2563555556 | K15: =IF(ISNA($A15),"",IFERROR(SUMIFS(D_D[AWD],D_D[MT],5,D_D[CAT],SMS, D_D[EP],499,D_D[LOC],$A15)/$E15,0)) -> 0.0128 | L15: =IF(ISNA($A15),"",IFERROR(SUMIFS(D_D[AUT],D_D[MT],5,D_D[CAT],SMS, D_D[EP],499,D_D[LOC],$A15)/$E15,0)) -> 0.004266666667
A16: CT308 | B16: 3 | C16: 0 | D16: Hartford RO | E16: =IF(ISNA($A16),"",IFERROR(SUMIFS(D_D[INV],D_D[MT],5,D_D[CAT],SMS, D_D[EP],499,D_D[LOC],$A16),0)) -> 82 | F16: =IF(ISNA($A16),"",IFERROR(SUMIFS(D_D[BL],D_D[MT],5,D_D[CAT],SMS, D_D[EP],499,D_D[LOC],$A16),0)) -> 11 | G16: 0.1341463415 | H16: =IF(ISNA($A16),"",IFERROR(SUMIFS(D_D[DEV],D_D[MT],5,D_D[CAT],SMS, D_D[EP],499,D_D[LOC],$A16)/$E16,0)) -> 0.6951219512 | I16: =IF(ISNA($A16),"",IFERROR(SUMIFS(D_D[EVD],D_D[MT],5,D_D[CAT],SMS, D_D[EP],499,D_D[LOC],$A16)/$E16,0)) -> 0.243902439 | J16: =IF(ISNA($A16),"",IFERROR(SUMIFS(D_D[DEC],D_D[MT],5,D_D[CAT],SMS, D_D[EP],499,D_D[LOC],$A16)/$E16,0)) -> 0.03658536585 | K16: =IF(ISNA($A16),"",IFERROR(SUMIFS(D_D[AWD],D_D[MT],5,D_D[CAT],SMS, D_D[EP],499,D_D[LOC],$A16)/$E16,0)) -> 0.01219512195 | L16: =IF(ISNA($A16),"",IFERROR(SUMIFS(D_D[AUT],D_D[MT],5,D_D[CAT],SMS, D_D[EP],499,D_D[LOC],$A16)/$E16,0)) -> 0.01219512195
A17: CT-1 | B17: 4 | D17: Connecticut-Other RO | E17: =IF(ISNA($A17),"",IFERROR(SUMIFS(D_D[INV],D_D[MT],5,D_D[CAT],SMS, D_D[EP],499,D_D[LOC],$A17),0)) -> 741 | F17: =IF(ISNA($A17),"",IFERROR(SUMIFS(D_D[BL],D_D[MT],5,D_D[CAT],SMS, D_D[EP],499,D_D[LOC],$A17),0)) -> 385 | G17: 0.5195681511 | H17: =IF(ISNA($A17),"",IFERROR(SUMIFS(D_D[DEV],D_D[MT],5,D_D[CAT],SMS, D_D[EP],499,D_D[LOC],$A17)/$E17,0)) -> 0.1174089069 | I17: =IF(ISNA($A17),"",IFERROR(SUMIFS(D_D[EVD],D_D[MT],5,D_D[CAT],SMS, D_D[EP],499,D_D[LOC],$A17)/$E17,0)) -> 0.5114709852 | J17: =IF(ISNA($A17),"",IFERROR(SUMIFS(D_D[DEC],D_D[MT],5,D_D[CAT],SMS, D_D[EP],499,D_D[LOC],$A17)/$E17,0)) -> 0.2510121457 | K17: =IF(ISNA($A17),"",IFERROR(SUMIFS(D_D[AWD],D_D[MT],5,D_D[CAT],SMS, D_D[EP],499,D_D[LOC],$A17)/$E17,0)) -> 0.08906882591 | L17: =IF(ISNA($A17),"",IFERROR(SUMIFS(D_D[AUT],D_D[MT],5,D_D[CAT],SMS, D_D[EP],499,D_D[LOC],$A17)/$E17,0)) -> 0.0310391363
A18: CT499 | B18: 5 | D18: Connecticut-NWQ | E18: =IF(ISNA($A18),"",IFERROR(SUMIFS(D_D[INV],D_D[MT],5,D_D[CAT],SMS, D_D[EP],499,D_D[LOC],$A18),0)) -> 4802 | F18: =IF(ISNA($A18),"",IFERROR(SUMIFS(D_D[BL],D_D[MT],5,D_D[CAT],SMS, D_D[EP],499,D_D[LOC],$A18),0)) -> 1873 | G18: 0.3900458142 | H18: =IF(ISNA($A18),"",IFERROR(SUMIFS(D_D[DEV],D_D[MT],5,D_D[CAT],SMS, D_D[EP],499,D_D[LOC],$A18)/$E18,0)) -> 0.03206997085 | I18: =IF(ISNA($A18),"",IFERROR(SUMIFS(D_D[EVD],D_D[MT],5,D_D[CAT],SMS, D_D[EP],499,D_D[LOC],$A18)/$E18,0)) -> 0.7059558517 | J18: =IF(ISNA($A18),"",IFERROR(SUMIFS(D_D[DEC],D_D[MT],5,D_D[CAT],SMS, D_D[EP],499,D_D[LOC],$A18)/$E18,0)) -> 0.2609329446 | K18: =IF(ISNA($A18),"",IFERROR(SUMIFS(D_D[AWD],D_D[MT],5,D_D[CAT],SMS, D_D[EP],499,D_D[LOC],$A18)/$E18,0)) -> 0.00104123282 | L18: =IF(ISNA($A18),"",IFERROR(SUMIFS(D_D[AUT],D_D[MT],5,D_D[CAT],SMS, D_D[EP],499,D_D[LOC],$A18)/$E18,0)) -> 0
A19: DE100 | B19: 6 | C19: Delaware | D19: Delaware-Total | E19: =IF(ISNA($A19),"",IFERROR(SUMIFS(D_D[INV],D_D[MT],5,D_D[CAT],SMS, D_D[EP],499,D_D[LOC],$A19),0)) -> 3180 | F19: =IF(ISNA($A19),"",IFERROR(SUMIFS(D_D[BL],D_D[MT],5,D_D[CAT],SMS, D_D[EP],499,D_D[LOC],$A19),0)) -> 1318 | G19: 0.4144654088 | H19: =IF(ISNA($A19),"",IFERROR(SUMIFS(D_D[DEV],D_D[MT],5,D_D[CAT],SMS, D_D[EP],499,D_D[LOC],$A19)/$E19,0)) -> 0.04150943396 | I19: =IF(ISNA($A19),"",IFERROR(SUMIFS(D_D[EVD],D_D[MT],5,D_D[CAT],SMS, D_D[EP],499,D_D[LOC],$A19)/$E19,0)) -> 0.6377358491 | J19: =IF(ISNA($A19),"",IFERROR(SUMIFS(D_D[DEC],D_D[MT],5,D_D[CAT],SMS, D_D[EP],499,D_D[LOC],$A19)/$E19,0)) -> 0.3028301887 | K19: =IF(ISNA($A19),"",IFERROR(SUMIFS(D_D[AWD],D_D[MT],5,D_D[CAT],SMS, D_D[EP],499,D_D[LOC],$A19)/$E19,0)) -> 0.0106918239 | L19: =IF(ISNA($A19),"",IFERROR(SUMIFS(D_D[AUT],D_D[MT],5,D_D[CAT],SMS, D_D[EP],499,D_D[LOC],$A19)/$E19,0)) -> 0.007232704403
A20: DE460 | B20: 7 | C20: 0 | D20: Wilmington RO | E20: =IF(ISNA($A20),"",IFERROR(SUMIFS(D_D[INV],D_D[MT],5,D_D[CAT],SMS, D_D[EP],499,D_D[LOC],$A20),0)) -> 53 | F20: =IF(ISNA($A20),"",IFERROR(SUMIFS(D_D[BL],D_D[MT],5,D_D[CAT],SMS, D_D[EP],499,D_D[LOC],$A20),0)) -> 9 | G20: 0.1698113208 | H20: =IF(ISNA($A20),"",IFERROR(SUMIFS(D_D[DEV],D_D[MT],5,D_D[CAT],SMS, D_D[EP],499,D_D[LOC],$A20)/$E20,0)) -> 0.5849056604 | I20: =IF(ISNA($A20),"",IFERROR(SUMIFS(D_D[EVD],D_D[MT],5,D_D[CAT],SMS, D_D[EP],499,D_D[LOC],$A20)/$E20,0)) -> 0.3396226415 | J20: =IF(ISNA($A20),"",IFERROR(SUMIFS(D_D[DEC],D_D[MT],5,D_D[CAT],SMS, D_D[EP],499,D_D[LOC],$A20)/$E20,0)) -> 0.05660377358 | K20: =IF(ISNA($A20),"",IFERROR(SUMIFS(D_D[AWD],D_D[MT],5,D_D[CAT],SMS, D_D[EP],499,D_D[LOC],$A20)/$E20,0)) -> 0.01886792453 | L20: =IF(ISNA($A20),"",IFERROR(SUMIFS(D_D[AUT],D_D[MT],5,D_D[CAT],SMS, D_D[EP],499,D_D[LOC],$A20)/$E20,0)) -> 0
A21: DE-1 | B21: 8 | D21: Delaware-Other RO | E21: =IF(ISNA($A21),"",IFERROR(SUMIFS(D_D[INV],D_D[MT],5,D_D[CAT],SMS, D_D[EP],499,D_D[LOC],$A21),0)) -> 446 | F21: =IF(ISNA($A21),"",IFERROR(SUMIFS(D_D[BL],D_D[MT],5,D_D[CAT],SMS, D_D[EP],499,D_D[LOC],$A21),0)) -> 247 | G21: 0.5538116592 | H21: =IF(ISNA($A21),"",IFERROR(SUMIFS(D_D[DEV],D_D[MT],5,D_D[CAT],SMS, D_D[EP],499,D_D[LOC],$A21)/$E21,0)) -> 0.08071748879 | I21: =IF(ISNA($A21),"",IFERROR(SUMIFS(D_D[EVD],D_D[MT],5,D_D[CAT],SMS, D_D[EP],499,D_D[LOC],$A21)/$E21,0)) -> 0.5201793722 | J21: =IF(ISNA($A21),"",IFERROR(SUMIFS(D_D[DEC],D_D[MT],5,D_D[CAT],SMS, D_D[EP],499,D_D[LOC],$A21)/$E21,0)) -> 0.2735426009 | K21: =IF(ISNA($A21),"",IFERROR(SUMIFS(D_D[AWD],D_D[MT],5,D_D[CAT],SMS, D_D[EP],499,D_D[LOC],$A21)/$E21,0)) -> 0.07399103139 | L21: =IF(ISNA($A21),"",IFERROR(SUMIFS(D_D[AUT],D_D[MT],5,D_D[CAT],SMS, D_D[EP],499,D_D[LOC],$A21)/$E21,0)) -> 0.05156950673
A22: DE499 | B22: 9 | D22: =IFERROR(INDEX(INDIRECT(DS_NWQD),B22),"") -> Delaware-NWQ | E22: =IF(ISNA($A22),"",IFERROR(SUMIFS(D_D[INV],D_D[MT],5,D_D[CAT],SMS, D_D[EP],499,D_D[LOC],$A22),0)) -> 2681 | F22: =IF(ISNA($A22),"",IFERROR(SUMIFS(D_D[BL],D_D[MT],5,D_D[CAT],SMS, D_D[EP],499,D_D[LOC],$A22),0)) -> 1062 | G22: =IF(ISNA($A22),"",IFERROR(F22/E22,0)) -> 0.3961208504 | H22: =IF(ISNA($A22),"",IFERROR(SUMIFS(D_D[DEV],D_D[MT],5,D_D[CAT],SMS, D_D[EP],499,D_D[LOC],$A22)/$E22,0)) -> 0.02424468482 | I22: =IF(ISNA($A22),"",IFERROR(SUMIFS(D_D[EVD],D_D[MT],5,D_D[CAT],SMS, D_D[EP],499,D_D[LOC],$A22)/$E22,0)) -> 0.6631853786 | J22: =IF(ISNA($A22),"",IFERROR(SUMIFS(D_D[DEC],D_D[MT],5,D_D[CAT],SMS, D_D[EP],499,D_D[LOC],$A22)/$E22,0)) -> 0.3125699366 | K22: =IF(ISNA($A22),"",IFERROR(SUMIFS(D_D[AWD],D_D[MT],5,D_D[CAT],SMS, D_D[EP],499,D_D[LOC],$A22)/$E22,0)) -> 0 | L22: =IF(ISNA($A22),"",IFERROR(SUMIFS(D_D[AUT],D_D[MT],5,D_D[CAT],SMS, D_D[EP],499,D_D[LOC],$A22)/$E22,0)) -> 0
A23: DC100 | B23: 10 | C23: DC | D23: DC-Total | E23: =IF(ISNA($A23),"",IFERROR(SUMIFS(D_D[INV],D_D[MT],5,D_D[CAT],SMS, D_D[EP],499,D_D[LOC],$A23),0)) -> 1208 | F23: =IF(ISNA($A23),"",IFERROR(SUMIFS(D_D[BL],D_D[MT],5,D_D[CAT],SMS, D_D[EP],499,D_D[LOC],$A23),0)) -> 492 | G23: 0.4072847682 | H23: =IF(ISNA($A23),"",IFERROR(SUMIFS(D_D[DEV],D_D[MT],5,D_D[CAT],SMS, D_D[EP],499,D_D[LOC],$A23)/$E23,0)) -> 0.0380794702 | I23: =IF(ISNA($A23),"",IFERROR(SUMIFS(D_D[EVD],D_D[MT],5,D_D[CAT],SMS, D_D[EP],499,D_D[LOC],$A23)/$E23,0)) -> 0.6043046358 | J23: =IF(ISNA($A23),"",IFERROR(SUMIFS(D_D[DEC],D_D[MT],5,D_D[CAT],SMS, D_D[EP],499,D_D[LOC],$A23)/$E23,0)) -> 0.3427152318 | K23: =IF(ISNA($A23),"",IFERROR(SUMIFS(D_D[AWD],D_D[MT],5,D_D[CAT],SMS, D_D[EP],499,D_D[LOC],$A23)/$E23,0)) -> 0.01158940397 | L23: =IF(ISNA($A23),"",IFERROR(SUMIFS(D_D[AUT],D_D[MT],5,D_D[CAT],SMS, D_D[EP],499,D_D[LOC],$A23)/$E23,0)) -> 0.003311258278
A24: DC372 | B24: 11 | D24: Washington DC RO | E24: =IF(ISNA($A24),"",IFERROR(SUMIFS(D_D[INV],D_D[MT],5,D_D[CAT],SMS, D_D[EP],499,D_D[LOC],$A24),0)) -> 0 | F24: =IF(ISNA($A24),"",IFERROR(SUMIFS(D_D[BL],D_D[MT],5,D_D[CAT],SMS, D_D[EP],499,D_D[LOC],$A24),0)) -> 0 | G24: 0 | H24: =IF(ISNA($A24),"",IFERROR(SUMIFS(D_D[DEV],D_D[MT],5,D_D[CAT],SMS, D_D[EP],499,D_D[LOC],$A24)/$E24,0)) -> 0 | I24: =IF(ISNA($A24),"",IFERROR(SUMIFS(D_D[EVD],D_D[MT],5,D_D[CAT],SMS, D_D[EP],499,D_D[LOC],$A24)/$E24,0)) -> 0 | J24: =IF(ISNA($A24),"",IFERROR(SUMIFS(D_D[DEC],D_D[MT],5,D_D[CAT],SMS, D_D[EP],499,D_D[LOC],$A24)/$E24,0)) -> 0 | K24: =IF(ISNA($A24),"",IFERROR(SUMIFS(D_D[AWD],D_D[MT],5,D_D[CAT],SMS, D_D[EP],499,D_D[LOC],$A24)/$E24,0)) -> 0 | L24: =IF(ISNA($A24),"",IFERROR(SUMIFS(D_D[AUT],D_D[MT],5,D_D[CAT],SMS, D_D[EP],499,D_D[LOC],$A24)/$E24,0)) -> 0
A25: DC-1 | B25: 12 | D25: DC-Other RO | E25: =IF(ISNA($A25),"",IFERROR(SUMIFS(D_D[INV],D_D[MT],5,D_D[CAT],SMS, D_D[EP],499,D_D[LOC],$A25),0)) -> 178 | F25: =IF(ISNA($A25),"",IFERROR(SUMIFS(D_D[BL],D_D[MT],5,D_D[CAT],SMS, D_D[EP],499,D_D[LOC],$A25),0)) -> 103 | G25: 0.5786516854 | H25: =IF(ISNA($A25),"",IFERROR(SUMIFS(D_D[DEV],D_D[MT],5,D_D[CAT],SMS, D_D[EP],499,D_D[LOC],$A25)/$E25,0)) -> 0.1292134831 | I25: =IF(ISNA($A25),"",IFERROR(SUMIFS(D_D[EVD],D_D[MT],5,D_D[CAT],SMS, D_D[EP],499,D_D[LOC],$A25)/$E25,0)) -> 0.5280898876 | J25: =IF(ISNA($A25),"",IFERROR(SUMIFS(D_D[DEC],D_D[MT],5,D_D[CAT],SMS, D_D[EP],499,D_D[LOC],$A25)/$E25,0)) -> 0.2528089888 | K25: =IF(ISNA($A25),"",IFERROR(SUMIFS(D_D[AWD],D_D[MT],5,D_D[CAT],SMS, D_D[EP],499,D_D[LOC],$A25)/$E25,0)) -> 0.06741573034 | L25: =IF(ISNA($A25),"",IFERROR(SUMIFS(D_D[AUT],D_D[MT],5,D_D[CAT],SMS, D_D[EP],499,D_D[LOC],$A25)/$E25,0)) -> 0.02247191011
A26: DC499 | B26: 13 | D26: DC-NWQ | E26: =IF(ISNA($A26),"",IFERROR(SUMIFS(D_D[INV],D_D[MT],5,D_D[CAT],SMS, D_D[EP],499,D_D[LOC],$A26),0)) -> 1030 | F26: =IF(ISNA($A26),"",IFERROR(SUMIFS(D_D[BL],D_D[MT],5,D_D[CAT],SMS, D_D[EP],499,D_D[LOC],$A26),0)) -> 389 | G26: 0.3776699029 | H26: =IF(ISNA($A26),"",IFERROR(SUMIFS(D_D[DEV],D_D[MT],5,D_D[CAT],SMS, D_D[EP],499,D_D[LOC],$A26)/$E26,0)) -> 0.02233009709 | I26: =IF(ISNA($A26),"",IFERROR(SUMIFS(D_D[EVD],D_D[MT],5,D_D[CAT],SMS, D_D[EP],499,D_D[LOC],$A26)/$E26,0)) -> 0.6174757282 | J26: =IF(ISNA($A26),"",IFERROR(SUMIFS(D_D[DEC],D_D[MT],5,D_D[CAT],SMS, D_D[EP],499,D_D[LOC],$A26)/$E26,0)) -> 0.3582524272 | K26: =IF(ISNA($A26),"",IFERROR(SUMIFS(D_D[AWD],D_D[MT],5,D_D[CAT],SMS, D_D[EP],499,D_D[LOC],$A26)/$E26,0)) -> 0.001941747573 | L26: =IF(ISNA($A26),"",IFERROR(SUMIFS(D_D[AUT],D_D[MT],5,D_D[CAT],SMS, D_D[EP],499,D_D[LOC],$A26)/$E26,0)) -> 0
A27: IL100 | B27: 14 | C27: Illinois | D27: Illinois-Total | E27: =IF(ISNA($A27),"",IFERROR(SUMIFS(D_D[INV],D_D[MT],5,D_D[CAT],SMS, D_D[EP],499,D_D[LOC],$A27),0)) -> 24216 | F27: =IF(ISNA($A27),"",IFERROR(SUMIFS(D_D[BL],D_D[MT],5,D_D[CAT],SMS, D_D[EP],499,D_D[LOC],$A27),0)) -> 9798 | G27: 0.4046085233 | H27: =IF(ISNA($A27),"",IFERROR(SUMIFS(D_D[DEV],D_D[MT],5,D_D[CAT],SMS, D_D[EP],499,D_D[LOC],$A27)/$E27,0)) -> 0.042864222 | I27: =IF(ISNA($A27),"",IFERROR(SUMIFS(D_D[EVD],D_D[MT],5,D_D[CAT],SMS, D_D[EP],499,D_D[LOC],$A27)/$E27,0)) -> 0.6758754542 | J27: =IF(ISNA($A27),"",IFERROR(SUMIFS(D_D[DEC],D_D[MT],5,D_D[CAT],SMS, D_D[EP],499,D_D[LOC],$A27)/$E27,0)) -> 0.264329369 | K27: =IF(ISNA($A27),"",IFERROR(SUMIFS(D_D[AWD],D_D[MT],5,D_D[CAT],SMS, D_D[EP],499,D_D[LOC],$A27)/$E27,0)) -> 0.01218202841 | L27: =IF(ISNA($A27),"",IFERROR(SUMIFS(D_D[AUT],D_D[MT],5,D_D[CAT],SMS, D_D[EP],499,D_D[LOC],$A27)/$E27,0)) -> 0.00474892633
A28: IL328 | B28: 15 | C28: 0 | D28: =IFERROR(INDEX(INDIRECT(DS_NWQD),B28),"") -> Chicago RO | E28: =IF(ISNA($A28),"",IFERROR(SUMIFS(D_D[INV],D_D[MT],5,D_D[CAT],SMS, D_D[EP],499,D_D[LOC],$A28),0)) -> 404 | F28: =IF(ISNA($A28),"",IFERROR(SUMIFS(D_D[BL],D_D[MT],5,D_D[CAT],SMS, D_D[EP],499,D_D[LOC],$A28),0)) -> 78 | G28: =IF(ISNA($A28),"",IFERROR(F28/E28,0)) -> 0.1930693069 | H28: =IF(ISNA($A28),"",IFERROR(SUMIFS(D_D[DEV],D_D[MT],5,D_D[CAT],SMS, D_D[EP],499,D_D[LOC],$A28)/$E28,0)) -> 0.5569306931 | I28: =IF(ISNA($A28),"",IFERROR(SUMIFS(D_D[EVD],D_D[MT],5,D_D[CAT],SMS, D_D[EP],499,D_D[LOC],$A28)/$E28,0)) -> 0.2747524752 | J28: =IF(ISNA($A28),"",IFERROR(SUMIFS(D_D[DEC],D_D[MT],5,D_D[CAT],SMS, D_D[EP],499,D_D[LOC],$A28)/$E28,0)) -> 0.1311881188 | K28: =IF(ISNA($A28),"",IFERROR(SUMIFS(D_D[AWD],D_D[MT],5,D_D[CAT],SMS, D_D[EP],499,D_D[LOC],$A28)/$E28,0)) -> 0.0297029703 | L28: =IF(ISNA($A28),"",IFERROR(SUMIFS(D_D[AUT],D_D[MT],5,D_D[CAT],SMS, D_D[EP],499,D_D[LOC],$A28)/$E28,0)) -> 0.007425742574
A29: IL-1 | B29: 16 | D29: Illinois-Other RO | E29: =IF(ISNA($A29),"",IFERROR(SUMIFS(D_D[INV],D_D[MT],5,D_D[CAT],SMS, D_D[EP],499,D_D[LOC],$A29),0)) -> 3021 | F29: =IF(ISNA($A29),"",IFERROR(SUMIFS(D_D[BL],D_D[MT],5,D_D[CAT],SMS, D_D[EP],499,D_D[LOC],$A29),0)) -> 1617 | G29: 0.5352532274 | H29: =IF(ISNA($A29),"",IFERROR(SUMIFS(D_D[DEV],D_D[MT],5,D_D[CAT],SMS, D_D[EP],499,D_D[LOC],$A29)/$E29,0)) -> 0.0953326713 | I29: =IF(ISNA($A29),"",IFERROR(SUMIFS(D_D[EVD],D_D[MT],5,D_D[CAT],SMS, D_D[EP],499,D_D[LOC],$A29)/$E29,0)) -> 0.5226746111 | J29: =IF(ISNA($A29),"",IFERROR(SUMIFS(D_D[DEC],D_D[MT],5,D_D[CAT],SMS, D_D[EP],499,D_D[LOC],$A29)/$E29,0)) -> 0.2558755379 | K29: =IF(ISNA($A29),"",IFERROR(SUMIFS(D_D[AWD],D_D[MT],5,D_D[CAT],SMS, D_D[EP],499,D_D[LOC],$A29)/$E29,0)) -> 0.08904336312 | L29: =IF(ISNA($A29),"",IFERROR(SUMIFS(D_D[AUT],D_D[MT],5,D_D[CAT],SMS, D_D[EP],499,D_D[LOC],$A29)/$E29,0)) -> 0.03707381662
A30: IL499 | B30: 17 | D30: Illinois-NWQ | E30: =IF(ISNA($A30),"",IFERROR(SUMIFS(D_D[INV],D_D[MT],5,D_D[CAT],SMS, D_D[EP],499,D_D[LOC],$A30),0)) -> 20791 | F30: =IF(ISNA($A30),"",IFERROR(SUMIFS(D_D[BL],D_D[MT],5,D_D[CAT],SMS, D_D[EP],499,D_D[LOC],$A30),0)) -> 8103 | G30: 0.3897359434 | H30: =IF(ISNA($A30),"",IFERROR(SUMIFS(D_D[DEV],D_D[MT],5,D_D[CAT],SMS, D_D[EP],499,D_D[LOC],$A30)/$E30,0)) -> 0.02525131066 | I30: =IF(ISNA($A30),"",IFERROR(SUMIFS(D_D[EVD],D_D[MT],5,D_D[CAT],SMS, D_D[EP],499,D_D[LOC],$A30)/$E30,0)) -> 0.7059304507 | J30: =IF(ISNA($A30),"",IFERROR(SUMIFS(D_D[DEC],D_D[MT],5,D_D[CAT],SMS, D_D[EP],499,D_D[LOC],$A30)/$E30,0)) -> 0.2681448704 | K30: =IF(ISNA($A30),"",IFERROR(SUMIFS(D_D[AWD],D_D[MT],5,D_D[CAT],SMS, D_D[EP],499,D_D[LOC],$A30)/$E30,0)) -> 0.0006733682844 | L30: =IF(ISNA($A30),"",IFERROR(SUMIFS(D_D[AUT],D_D[MT],5,D_D[CAT],SMS, D_D[EP],499,D_D[LOC],$A30)/$E30,0)) -> 0
A31: IN100 | B31: 18 | C31: Indiana | D31: Indiana-Total | E31: =IF(ISNA($A31),"",IFERROR(SUMIFS(D_D[INV],D_D[MT],5,D_D[CAT],SMS, D_D[EP],499,D_D[LOC],$A31),0)) -> 18609 | F31: =IF(ISNA($A31),"",IFERROR(SUMIFS(D_D[BL],D_D[MT],5,D_D[CAT],SMS, D_D[EP],499,D_D[LOC],$A31),0)) -> 7193 | G31: 0.3865333978 | H31: =IF(ISNA($A31),"",IFERROR(SUMIFS(D_D[DEV],D_D[MT],5,D_D[CAT],SMS, D_D[EP],499,D_D[LOC],$A31)/$E31,0)) -> 0.04637540975 | I31: =IF(ISNA($A31),"",IFERROR(SUMIFS(D_D[EVD],D_D[MT],5,D_D[CAT],SMS, D_D[EP],499,D_D[LOC],$A31)/$E31,0)) -> 0.6608092858 | J31: =IF(ISNA($A31),"",IFERROR(SUMIFS(D_D[DEC],D_D[MT],5,D_D[CAT],SMS, D_D[EP],499,D_D[LOC],$A31)/$E31,0)) -> 0.2734698264 | K31: =IF(ISNA($A31),"",IFERROR(SUMIFS(D_D[AWD],D_D[MT],5,D_D[CAT],SMS, D_D[EP],499,D_D[LOC],$A31)/$E31,0)) -> 0.01284324789 | L31: =IF(ISNA($A31),"",IFERROR(SUMIFS(D_D[AUT],D_D[MT],5,D_D[CAT],SMS, D_D[EP],499,D_D[LOC],$A31)/$E31,0)) -> 0.006502230104
A32: IN326 | B32: 19 | C32: 0 | D32: Indianapolis RO | E32: =IF(ISNA($A32),"",IFERROR(SUMIFS(D_D[INV],D_D[MT],5,D_D[CAT],SMS, D_D[EP],499,D_D[LOC],$A32),0)) -> 304 | F32: =IF(ISNA($A32),"",IFERROR(SUMIFS(D_D[BL],D_D[MT],5,D_D[CAT],SMS, D_D[EP],499,D_D[LOC],$A32),0)) -> 31 | G32: 0.1019736842 | H32: =IF(ISNA($A32),"",IFERROR(SUMIFS(D_D[DEV],D_D[MT],5,D_D[CAT],SMS, D_D[EP],499,D_D[LOC],$A32)/$E32,0)) -> 0.5888157895 | I32: =IF(ISNA($A32),"",IFERROR(SUMIFS(D_D[EVD],D_D[MT],5,D_D[CAT],SMS, D_D[EP],499,D_D[LOC],$A32)/$E32,0)) -> 0.2894736842 | J32: =IF(ISNA($A32),"",IFERROR(SUMIFS(D_D[DEC],D_D[MT],5,D_D[CAT],SMS, D_D[EP],499,D_D[LOC],$A32)/$E32,0)) -> 0.09868421053 | K32: =IF(ISNA($A32),"",IFERROR(SUMIFS(D_D[AWD],D_D[MT],5,D_D[CAT],SMS, D_D[EP],499,D_D[LOC],$A32)/$E32,0)) -> 0.02302631579 | L32: =IF(ISNA($A32),"",IFERROR(SUMIFS(D_D[AUT],D_D[MT],5,D_D[CAT],SMS, D_D[EP],499,D_D[LOC],$A32)/$E32,0)) -> 0
A33: IN-1 | B33: 20 | D33: Indiana-Other RO | E33: =IF(ISNA($A33),"",IFERROR(SUMIFS(D_D[INV],D_D[MT],5,D_D[CAT],SMS, D_D[EP],499,D_D[LOC],$A33),0)) -> 2293 | F33: =IF(ISNA($A33),"",IFERROR(SUMIFS(D_D[BL],D_D[MT],5,D_D[CAT],SMS, D_D[EP],499,D_D[LOC],$A33),0)) -> 1205 | G33: 0.5255124291 | H33: =IF(ISNA($A33),"",IFERROR(SUMIFS(D_D[DEV],D_D[MT],5,D_D[CAT],SMS, D_D[EP],499,D_D[LOC],$A33)/$E33,0)) -> 0.1007413868 | I33: =IF(ISNA($A33),"",IFERROR(SUMIFS(D_D[EVD],D_D[MT],5,D_D[CAT],SMS, D_D[EP],499,D_D[LOC],$A33)/$E33,0)) -> 0.4941125164 | J33: =IF(ISNA($A33),"",IFERROR(SUMIFS(D_D[DEC],D_D[MT],5,D_D[CAT],SMS, D_D[EP],499,D_D[LOC],$A33)/$E33,0)) -> 0.2573048408 | K33: =IF(ISNA($A33),"",IFERROR(SUMIFS(D_D[AWD],D_D[MT],5,D_D[CAT],SMS, D_D[EP],499,D_D[LOC],$A33)/$E33,0)) -> 0.09507195813 | L33: =IF(ISNA($A33),"",IFERROR(SUMIFS(D_D[AUT],D_D[MT],5,D_D[CAT],SMS, D_D[EP],499,D_D[LOC],$A33)/$E33,0)) -> 0.05276929786
A34: IN499 | B34: 21 | D34: Indiana-NWQ | E34: =IF(ISNA($A34),"",IFERROR(SUMIFS(D_D[INV],D_D[MT],5,D_D[CAT],SMS, D_D[EP],499,D_D[LOC],$A34),0)) -> 16012 | F34: =IF(ISNA($A34),"",IFERROR(SUMIFS(D_D[BL],D_D[MT],5,D_D[CAT],SMS, D_D[EP],499,D_D[LOC],$A34),0)) -> 5957 | G34: 0.3720334749 | H34: =IF(ISNA($A34),"",IFERROR(SUMIFS(D_D[DEV],D_D[MT],5,D_D[CAT],SMS, D_D[EP],499,D_D[LOC],$A34)/$E34,0)) -> 0.02829128154 | I34: =IF(ISNA($A34),"",IFERROR(SUMIFS(D_D[EVD],D_D[MT],5,D_D[CAT],SMS, D_D[EP],499,D_D[LOC],$A34)/$E34,0)) -> 0.6917312016 | J34: =IF(ISNA($A34),"",IFERROR(SUMIFS(D_D[DEC],D_D[MT],5,D_D[CAT],SMS, D_D[EP],499,D_D[LOC],$A34)/$E34,0)) -> 0.2791031726 | K34: =IF(ISNA($A34),"",IFERROR(SUMIFS(D_D[AWD],D_D[MT],5,D_D[CAT],SMS, D_D[EP],499,D_D[LOC],$A34)/$E34,0)) -> 0.0008743442418 | L34: =IF(ISNA($A34),"",IFERROR(SUMIFS(D_D[AUT],D_D[MT],5,D_D[CAT],SMS, D_D[EP],499,D_D[LOC],$A34)/$E34,0)) -> 0
A35: ME100 | B35: 22 | C35: Maine | D35: Maine-Total | E35: =IF(ISNA($A35),"",IFERROR(SUMIFS(D_D[INV],D_D[MT],5,D_D[CAT],SMS, D_D[EP],499,D_D[LOC],$A35),0)) -> 4732 | F35: =IF(ISNA($A35),"",IFERROR(SUMIFS(D_D[BL],D_D[MT],5,D_D[CAT],SMS, D_D[EP],499,D_D[LOC],$A35),0)) -> 2060 | G35: 0.4353338969 | H35: =IF(ISNA($A35),"",IFERROR(SUMIFS(D_D[DEV],D_D[MT],5,D_D[CAT],SMS, D_D[EP],499,D_D[LOC],$A35)/$E35,0)) -> 0.03571428571 | I35: =IF(ISNA($A35),"",IFERROR(SUMIFS(D_D[EVD],D_D[MT],5,D_D[CAT],SMS, D_D[EP],499,D_D[LOC],$A35)/$E35,0)) -> 0.7299239222 | J35: =IF(ISNA($A35),"",IFERROR(SUMIFS(D_D[DEC],D_D[MT],5,D_D[CAT],SMS, D_D[EP],499,D_D[LOC],$A35)/$E35,0)) -> 0.2159763314 | K35: =IF(ISNA($A35),"",IFERROR(SUMIFS(D_D[AWD],D_D[MT],5,D_D[CAT],SMS, D_D[EP],499,D_D[LOC],$A35)/$E35,0)) -> 0.01246830093 | L35: =IF(ISNA($A35),"",IFERROR(SUMIFS(D_D[AUT],D_D[MT],5,D_D[CAT],SMS, D_D[EP],499,D_D[LOC],$A35)/$E35,0)) -> 0.005917159763
A36: ME402 | B36: 23 | C36: 0 | D36: Togus RO | E36: =IF(ISNA($A36),"",IFERROR(SUMIFS(D_D[INV],D_D[MT],5,D_D[CAT],SMS, D_D[EP],499,D_D[LOC],$A36),0)) -> 60 | F36: =IF(ISNA($A36),"",IFERROR(SUMIFS(D_D[BL],D_D[MT],5,D_D[CAT],SMS, D_D[EP],499,D_D[LOC],$A36),0)) -> 17 | G36: 0.2833333333 | H36: =IF(ISNA($A36),"",IFERROR(SUMIFS(D_D[DEV],D_D[MT],5,D_D[CAT],SMS, D_D[EP],499,D_D[LOC],$A36)/$E36,0)) -> 0.2833333333 | I36: =IF(ISNA($A36),"",IFERROR(SUMIFS(D_D[EVD],D_D[MT],5,D_D[CAT],SMS, D_D[EP],499,D_D[LOC],$A36)/$E36,0)) -> 0.55 | J36: =IF(ISNA($A36),"",IFERROR(SUMIFS(D_D[DEC],D_D[MT],5,D_D[CAT],SMS, D_D[EP],499,D_D[LOC],$A36)/$E36,0)) -> 0.1333333333 | K36: =IF(ISNA($A36),"",IFERROR(SUMIFS(D_D[AWD],D_D[MT],5,D_D[CAT],SMS, D_D[EP],499,D_D[LOC],$A36)/$E36,0)) -> 0.03333333333 | L36: =IF(ISNA($A36),"",IFERROR(SUMIFS(D_D[AUT],D_D[MT],5,D_D[CAT],SMS, D_D[EP],499,D_D[LOC],$A36)/$E36,0)) -> 0
A37: ME-1 | B37: 24 | C37: 0 | D37: Maine-Other RO | E37: =IF(ISNA($A37),"",IFERROR(SUMIFS(D_D[INV],D_D[MT],5,D_D[CAT],SMS, D_D[EP],499,D_D[LOC],$A37),0)) -> 613 | F37: =IF(ISNA($A37),"",IFERROR(SUMIFS(D_D[BL],D_D[MT],5,D_D[CAT],SMS, D_D[EP],499,D_D[LOC],$A37),0)) -> 331 | G37: 0.5399673736 | H37: =IF(ISNA($A37),"",IFERROR(SUMIFS(D_D[DEV],D_D[MT],5,D_D[CAT],SMS, D_D[EP],499,D_D[LOC],$A37)/$E37,0)) -> 0.088091354 | I37: =IF(ISNA($A37),"",IFERROR(SUMIFS(D_D[EVD],D_D[MT],5,D_D[CAT],SMS, D_D[EP],499,D_D[LOC],$A37)/$E37,0)) -> 0.5628058728 | J37: =IF(ISNA($A37),"",IFERROR(SUMIFS(D_D[DEC],D_D[MT],5,D_D[CAT],SMS, D_D[EP],499,D_D[LOC],$A37)/$E37,0)) -> 0.2169657423 | K37: =IF(ISNA($A37),"",IFERROR(SUMIFS(D_D[AWD],D_D[MT],5,D_D[CAT],SMS, D_D[EP],499,D_D[LOC],$A37)/$E37,0)) -> 0.08646003263 | L37: =IF(ISNA($A37),"",IFERROR(SUMIFS(D_D[AUT],D_D[MT],5,D_D[CAT],SMS, D_D[EP],499,D_D[LOC],$A37)/$E37,0)) -> 0.04567699837
A38: ME499 | B38: 25 | C38: 0 | D38: Maine-NWQ | E38: =IF(ISNA($A38),"",IFERROR(SUMIFS(D_D[INV],D_D[MT],5,D_D[CAT],SMS, D_D[EP],499,D_D[LOC],$A38),0)) -> 4059 | F38: =IF(ISNA($A38),"",IFERROR(SUMIFS(D_D[BL],D_D[MT],5,D_D[CAT],SMS, D_D[EP],499,D_D[LOC],$A38),0)) -> 1712 | G38: 0.4217787632 | H38: =IF(ISNA($A38),"",IFERROR(SUMIFS(D_D[DEV],D_D[MT],5,D_D[CAT],SMS, D_D[EP],499,D_D[LOC],$A38)/$E38,0)) -> 0.0241438778 | I38: =IF(ISNA($A38),"",IFERROR(SUMIFS(D_D[EVD],D_D[MT],5,D_D[CAT],SMS, D_D[EP],499,D_D[LOC],$A38)/$E38,0)) -> 0.7578221237 | J38: =IF(ISNA($A38),"",IFERROR(SUMIFS(D_D[DEC],D_D[MT],5,D_D[CAT],SMS, D_D[EP],499,D_D[LOC],$A38)/$E38,0)) -> 0.2170485341 | K38: =IF(ISNA($A38),"",IFERROR(SUMIFS(D_D[AWD],D_D[MT],5,D_D[CAT],SMS, D_D[EP],499,D_D[LOC],$A38)/$E38,0)) -> 0.0009854644001 | L38: =IF(ISNA($A38),"",IFERROR(SUMIFS(D_D[AUT],D_D[MT],5,D_D[CAT],SMS, D_D[EP],499,D_D[LOC],$A38)/$E38,0)) -> 0
A39: MD100 | B39: 26 | C39: Maryland | D39: Maryland-Total | E39: =IF(ISNA($A39),"",IFERROR(SUMIFS(D_D[INV],D_D[MT],5,D_D[CAT],SMS, D_D[EP],499,D_D[LOC],$A39),0)) -> 19299 | F39: =IF(ISNA($A39),"",IFERROR(SUMIFS(D_D[BL],D_D[MT],5,D_D[CAT],SMS, D_D[EP],499,D_D[LOC],$A39),0)) -> 7465 | G39: 0.3868076066 | H39: =IF(ISNA($A39),"",IFERROR(SUMIFS(D_D[DEV],D_D[MT],5,D_D[CAT],SMS, D_D[EP],499,D_D[LOC],$A39)/$E39,0)) -> 0.04052023421 | I39: =IF(ISNA($A39),"",IFERROR(SUMIFS(D_D[EVD],D_D[MT],5,D_D[CAT],SMS, D_D[EP],499,D_D[LOC],$A39)/$E39,0)) -> 0.5957821649 | J39: =IF(ISNA($A39),"",IFERROR(SUMIFS(D_D[DEC],D_D[MT],5,D_D[CAT],SMS, D_D[EP],499,D_D[LOC],$A39)/$E39,0)) -> 0.3433338515 | K39: =IF(ISNA($A39),"",IFERROR(SUMIFS(D_D[AWD],D_D[MT],5,D_D[CAT],SMS, D_D[EP],499,D_D[LOC],$A39)/$E39,0)) -> 0.01321311985 | L39: =IF(ISNA($A39),"",IFERROR(SUMIFS(D_D[AUT],D_D[MT],5,D_D[CAT],SMS, D_D[EP],499,D_D[LOC],$A39)/$E39,0)) -> 0.007150629566
A40: MD313 | B40: 27 | C40: 0 | D40: Baltimore RO | E40: =IF(ISNA($A40),"",IFERROR(SUMIFS(D_D[INV],D_D[MT],5,D_D[CAT],SMS, D_D[EP],499,D_D[LOC],$A40),0)) -> 340 | F40: =IF(ISNA($A40),"",IFERROR(SUMIFS(D_D[BL],D_D[MT],5,D_D[CAT],SMS, D_D[EP],499,D_D[LOC],$A40),0)) -> 47 | G40: 0.1382352941 | H40: =IF(ISNA($A40),"",IFERROR(SUMIFS(D_D[DEV],D_D[MT],5,D_D[CAT],SMS, D_D[EP],499,D_D[LOC],$A40)/$E40,0)) -> 0.4676470588 | I40: =IF(ISNA($A40),"",IFERROR(SUMIFS(D_D[EVD],D_D[MT],5,D_D[CAT],SMS, D_D[EP],499,D_D[LOC],$A40)/$E40,0)) -> 0.4264705882 | J40: =IF(ISNA($A40),"",IFERROR(SUMIFS(D_D[DEC],D_D[MT],5,D_D[CAT],SMS, D_D[EP],499,D_D[LOC],$A40)/$E40,0)) -> 0.09117647059 | K40: =IF(ISNA($A40),"",IFERROR(SUMIFS(D_D[AWD],D_D[MT],5,D_D[CAT],SMS, D_D[EP],499,D_D[LOC],$A40)/$E40,0)) -> 0.01470588235 | L40: =IF(ISNA($A40),"",IFERROR(SUMIFS(D_D[AUT],D_D[MT],5,D_D[CAT],SMS, D_D[EP],499,D_D[LOC],$A40)/$E40,0)) -> 0
A41: MD-1 | B41: 28 | C41: 0 | D41: Maryland-Other RO | E41: =IF(ISNA($A41),"",IFERROR(SUMIFS(D_D[INV],D_D[MT],5,D_D[CAT],SMS, D_D[EP],499,D_D[LOC],$A41),0)) -> 2637 | F41: =IF(ISNA($A41),"",IFERROR(SUMIFS(D_D[BL],D_D[MT],5,D_D[CAT],SMS, D_D[EP],499,D_D[LOC],$A41),0)) -> 1401 | G41: 0.5312855518 | H41: =IF(ISNA($A41),"",IFERROR(SUMIFS(D_D[DEV],D_D[MT],5,D_D[CAT],SMS, D_D[EP],499,D_D[LOC],$A41)/$E41,0)) -> 0.09290860827 | I41: =IF(ISNA($A41),"",IFERROR(SUMIFS(D_D[EVD],D_D[MT],5,D_D[CAT],SMS, D_D[EP],499,D_D[LOC],$A41)/$E41,0)) -> 0.4945013273 | J41: =IF(ISNA($A41),"",IFERROR(SUMIFS(D_D[DEC],D_D[MT],5,D_D[CAT],SMS, D_D[EP],499,D_D[LOC],$A41)/$E41,0)) -> 0.270383011 | K41: =IF(ISNA($A41),"",IFERROR(SUMIFS(D_D[AWD],D_D[MT],5,D_D[CAT],SMS, D_D[EP],499,D_D[LOC],$A41)/$E41,0)) -> 0.08987485779 | L41: =IF(ISNA($A41),"",IFERROR(SUMIFS(D_D[AUT],D_D[MT],5,D_D[CAT],SMS, D_D[EP],499,D_D[LOC],$A41)/$E41,0)) -> 0.05233219568
A42: MD499 | B42: 29 | C42: 0 | D42: Maryland-NWQ | E42: =IF(ISNA($A42),"",IFERROR(SUMIFS(D_D[INV],D_D[MT],5,D_D[CAT],SMS, D_D[EP],499,D_D[LOC],$A42),0)) -> 16322 | F42: =IF(ISNA($A42),"",IFERROR(SUMIFS(D_D[BL],D_D[MT],5,D_D[CAT],SMS, D_D[EP],499,D_D[LOC],$A42),0)) -> 6017 | G42: 0.3686435486 | H42: =IF(ISNA($A42),"",IFERROR(SUMIFS(D_D[DEV],D_D[MT],5,D_D[CAT],SMS, D_D[EP],499,D_D[LOC],$A42)/$E42,0)) -> 0.0231589266 | I42: =IF(ISNA($A42),"",IFERROR(SUMIFS(D_D[EVD],D_D[MT],5,D_D[CAT],SMS, D_D[EP],499,D_D[LOC],$A42)/$E42,0)) -> 0.615672099 | J42: =IF(ISNA($A42),"",IFERROR(SUMIFS(D_D[DEC],D_D[MT],5,D_D[CAT],SMS, D_D[EP],499,D_D[LOC],$A42)/$E42,0)) -> 0.3603725034 | K42: =IF(ISNA($A42),"",IFERROR(SUMIFS(D_D[AWD],D_D[MT],5,D_D[CAT],SMS, D_D[EP],499,D_D[LOC],$A42)/$E42,0)) -> 0.0007964710207 | L42: =IF(ISNA($A42),"",IFERROR(SUMIFS(D_D[AUT],D_D[MT],5,D_D[CAT],SMS, D_D[EP],499,D_D[LOC],$A42)/$E42,0)) -> 0
A43: MA100 | B43: 30 | C43: Massachusetts | D43: Massachusetts-Total | E43: =IF(ISNA($A43),"",IFERROR(SUMIFS(D_D[INV],D_D[MT],5,D_D[CAT],SMS, D_D[EP],499,D_D[LOC],$A43),0)) -> 10093 | F43: =IF(ISNA($A43),"",IFERROR(SUMIFS(D_D[BL],D_D[MT],5,D_D[CAT],SMS, D_D[EP],499,D_D[LOC],$A43),0)) -> 3949 | G43: 0.3912612702 | H43: =IF(ISNA($A43),"",IFERROR(SUMIFS(D_D[DEV],D_D[MT],5,D_D[CAT],SMS, D_D[EP],499,D_D[LOC],$A43)/$E43,0)) -> 0.05062914892 | I43: =IF(ISNA($A43),"",IFERROR(SUMIFS(D_D[EVD],D_D[MT],5,D_D[CAT],SMS, D_D[EP],499,D_D[LOC],$A43)/$E43,0)) -> 0.6542157931 | J43: =IF(ISNA($A43),"",IFERROR(SUMIFS(D_D[DEC],D_D[MT],5,D_D[CAT],SMS, D_D[EP],499,D_D[LOC],$A43)/$E43,0)) -> 0.2754384227 | K43: =IF(ISNA($A43),"",IFERROR(SUMIFS(D_D[AWD],D_D[MT],5,D_D[CAT],SMS, D_D[EP],499,D_D[LOC],$A43)/$E43,0)) -> 0.01327652829 | L43: =IF(ISNA($A43),"",IFERROR(SUMIFS(D_D[AUT],D_D[MT],5,D_D[CAT],SMS, D_D[EP],499,D_D[LOC],$A43)/$E43,0)) -> 0.006440107005
A44: MA301 | B44: 31 | C44: 0 | D44: Boston RO | E44: =IF(ISNA($A44),"",IFERROR(SUMIFS(D_D[INV],D_D[MT],5,D_D[CAT],SMS, D_D[EP],499,D_D[LOC],$A44),0)) -> 137 | F44: =IF(ISNA($A44),"",IFERROR(SUMIFS(D_D[BL],D_D[MT],5,D_D[CAT],SMS, D_D[EP],499,D_D[LOC],$A44),0)) -> 24 | G44: 0.1751824818 | H44: =IF(ISNA($A44),"",IFERROR(SUMIFS(D_D[DEV],D_D[MT],5,D_D[CAT],SMS, D_D[EP],499,D_D[LOC],$A44)/$E44,0)) -> 0.5328467153 | I44: =IF(ISNA($A44),"",IFERROR(SUMIFS(D_D[EVD],D_D[MT],5,D_D[CAT],SMS, D_D[EP],499,D_D[LOC],$A44)/$E44,0)) -> 0.2627737226 | J44: =IF(ISNA($A44),"",IFERROR(SUMIFS(D_D[DEC],D_D[MT],5,D_D[CAT],SMS, D_D[EP],499,D_D[LOC],$A44)/$E44,0)) -> 0.0802919708 | K44: =IF(ISNA($A44),"",IFERROR(SUMIFS(D_D[AWD],D_D[MT],5,D_D[CAT],SMS, D_D[EP],499,D_D[LOC],$A44)/$E44,0)) -> 0.06569343066 | L44: =IF(ISNA($A44),"",IFERROR(SUMIFS(D_D[AUT],D_D[MT],5,D_D[CAT],SMS, D_D[EP],499,D_D[LOC],$A44)/$E44,0)) -> 0.05839416058
A45: MA-1 | B45: 32 | C45: 0 | D45: Massachusetts-Other RO | E45: =IF(ISNA($A45),"",IFERROR(SUMIFS(D_D[INV],D_D[MT],5,D_D[CAT],SMS, D_D[EP],499,D_D[LOC],$A45),0)) -> 1491 | F45: =IF(ISNA($A45),"",IFERROR(SUMIFS(D_D[BL],D_D[MT],5,D_D[CAT],SMS, D_D[EP],499,D_D[LOC],$A45),0)) -> 711 | G45: 0.476861167 | H45: =IF(ISNA($A45),"",IFERROR(SUMIFS(D_D[DEV],D_D[MT],5,D_D[CAT],SMS, D_D[EP],499,D_D[LOC],$A45)/$E45,0)) -> 0.1260898726 | I45: =IF(ISNA($A45),"",IFERROR(SUMIFS(D_D[EVD],D_D[MT],5,D_D[CAT],SMS, D_D[EP],499,D_D[LOC],$A45)/$E45,0)) -> 0.5157612341 | J45: =IF(ISNA($A45),"",IFERROR(SUMIFS(D_D[DEC],D_D[MT],5,D_D[CAT],SMS, D_D[EP],499,D_D[LOC],$A45)/$E45,0)) -> 0.2414486922 | K45: =IF(ISNA($A45),"",IFERROR(SUMIFS(D_D[AWD],D_D[MT],5,D_D[CAT],SMS, D_D[EP],499,D_D[LOC],$A45)/$E45,0)) -> 0.07847082495 | L45: =IF(ISNA($A45),"",IFERROR(SUMIFS(D_D[AUT],D_D[MT],5,D_D[CAT],SMS, D_D[EP],499,D_D[LOC],$A45)/$E45,0)) -> 0.03822937626
A46: MA499 | B46: 33 | C46: 0 | D46: Massachusetts-NWQ | E46: =IF(ISNA($A46),"",IFERROR(SUMIFS(D_D[INV],D_D[MT],5,D_D[CAT],SMS, D_D[EP],499,D_D[LOC],$A46),0)) -> 8465 | F46: =IF(ISNA($A46),"",IFERROR(SUMIFS(D_D[BL],D_D[MT],5,D_D[CAT],SMS, D_D[EP],499,D_D[LOC],$A46),0)) -> 3214 | G46: 0.3796810396 | H46: =IF(ISNA($A46),"",IFERROR(SUMIFS(D_D[DEV],D_D[MT],5,D_D[CAT],SMS, D_D[EP],499,D_D[LOC],$A46)/$E46,0)) -> 0.02953337271 | I46: =IF(ISNA($A46),"",IFERROR(SUMIFS(D_D[EVD],D_D[MT],5,D_D[CAT],SMS, D_D[EP],499,D_D[LOC],$A46)/$E46,0)) -> 0.6849379799 | J46: =IF(ISNA($A46),"",IFERROR(SUMIFS(D_D[DEC],D_D[MT],5,D_D[CAT],SMS, D_D[EP],499,D_D[LOC],$A46)/$E46,0)) -> 0.2845835794 | K46: =IF(ISNA($A46),"",IFERROR(SUMIFS(D_D[AWD],D_D[MT],5,D_D[CAT],SMS, D_D[EP],499,D_D[LOC],$A46)/$E46,0)) -> 0.0009450679268 | L46: =IF(ISNA($A46),"",IFERROR(SUMIFS(D_D[AUT],D_D[MT],5,D_D[CAT],SMS, D_D[EP],499,D_D[LOC],$A46)/$E46,0)) -> 0
A47: =IFERROR(INDEX(INDIRECT(DS_NWQI),B47),#N/A) -> MI100 | B47: 34 | C47: Michigan | D47: Michigan-Total | E47: =IF(ISNA($A47),"",IFERROR(SUMIFS(D_D[INV],D_D[MT],5,D_D[CAT],SMS, D_D[EP],499,D_D[LOC],$A47),0)) -> 21865 | F47: =IF(ISNA($A47),"",IFERROR(SUMIFS(D_D[BL],D_D[MT],5,D_D[CAT],SMS, D_D[EP],499,D_D[LOC],$A47),0)) -> 8627 | G47: 0.394557512 | H47: =IF(ISNA($A47),"",IFERROR(SUMIFS(D_D[DEV],D_D[MT],5,D_D[CAT],SMS, D_D[EP],499,D_D[LOC],$A47)/$E47,0)) -> 0.05195517951 | I47: =IF(ISNA($A47),"",IFERROR(SUMIFS(D_D[EVD],D_D[MT],5,D_D[CAT],SMS, D_D[EP],499,D_D[LOC],$A47)/$E47,0)) -> 0.6714383718 | J47: =IF(ISNA($A47),"",IFERROR(SUMIFS(D_D[DEC],D_D[MT],5,D_D[CAT],SMS, D_D[EP],499,D_D[LOC],$A47)/$E47,0)) -> 0.2577178139 | K47: =IF(ISNA($A47),"",IFERROR(SUMIFS(D_D[AWD],D_D[MT],5,D_D[CAT],SMS, D_D[EP],499,D_D[LOC],$A47)/$E47,0)) -> 0.01294305968 | L47: =IF(ISNA($A47),"",IFERROR(SUMIFS(D_D[AUT],D_D[MT],5,D_D[CAT],SMS, D_D[EP],499,D_D[LOC],$A47)/$E47,0)) -> 0.00594557512
A48: MI329 | B48: 35 | C48: 0 | D48: Detroit RO | E48: =IF(ISNA($A48),"",IFERROR(SUMIFS(D_D[INV],D_D[MT],5,D_D[CAT],SMS, D_D[EP],499,D_D[LOC],$A48),0)) -> 317 | F48: =IF(ISNA($A48),"",IFERROR(SUMIFS(D_D[BL],D_D[MT],5,D_D[CAT],SMS, D_D[EP],499,D_D[LOC],$A48),0)) -> 41 | G48: 0.1293375394 | H48: =IF(ISNA($A48),"",IFERROR(SUMIFS(D_D[DEV],D_D[MT],5,D_D[CAT],SMS, D_D[EP],499,D_D[LOC],$A48)/$E48,0)) -> 0.6246056782 | I48: =IF(ISNA($A48),"",IFERROR(SUMIFS(D_D[EVD],D_D[MT],5,D_D[CAT],SMS, D_D[EP],499,D_D[LOC],$A48)/$E48,0)) -> 0.2365930599 | J48: =IF(ISNA($A48),"",IFERROR(SUMIFS(D_D[DEC],D_D[MT],5,D_D[CAT],SMS, D_D[EP],499,D_D[LOC],$A48)/$E48,0)) -> 0.1293375394 | K48: =IF(ISNA($A48),"",IFERROR(SUMIFS(D_D[AWD],D_D[MT],5,D_D[CAT],SMS, D_D[EP],499,D_D[LOC],$A48)/$E48,0)) -> 0 | L48: =IF(ISNA($A48),"",IFERROR(SUMIFS(D_D[AUT],D_D[MT],5,D_D[CAT],SMS, D_D[EP],499,D_D[LOC],$A48)/$E48,0)) -> 0.009463722397
A49: MI-1 | B49: 36 | C49: 0 | D49: =IFERROR(INDEX(INDIRECT(DS_NWQD),B49),"") -> Michigan-Other RO | E49: =IF(ISNA($A49),"",IFERROR(SUMIFS(D_D[INV],D_D[MT],5,D_D[CAT],SMS, D_D[EP],499,D_D[LOC],$A49),0)) -> 2787 | F49: =IF(ISNA($A49),"",IFERROR(SUMIFS(D_D[BL],D_D[MT],5,D_D[CAT],SMS, D_D[EP],499,D_D[LOC],$A49),0)) -> 1461 | G49: =IF(ISNA($A49),"",IFERROR(F49/E49,0)) -> 0.524219591 | H49: =IF(ISNA($A49),"",IFERROR(SUMIFS(D_D[DEV],D_D[MT],5,D_D[CAT],SMS, D_D[EP],499,D_D[LOC],$A49)/$E49,0)) -> 0.108360244 | I49: =IF(ISNA($A49),"",IFERROR(SUMIFS(D_D[EVD],D_D[MT],5,D_D[CAT],SMS, D_D[EP],499,D_D[LOC],$A49)/$E49,0)) -> 0.5102260495 | J49: =IF(ISNA($A49),"",IFERROR(SUMIFS(D_D[DEC],D_D[MT],5,D_D[CAT],SMS, D_D[EP],499,D_D[LOC],$A49)/$E49,0)) -> 0.2414782921 | K49: =IF(ISNA($A49),"",IFERROR(SUMIFS(D_D[AWD],D_D[MT],5,D_D[CAT],SMS, D_D[EP],499,D_D[LOC],$A49)/$E49,0)) -> 0.09436670255 | L49: =IF(ISNA($A49),"",IFERROR(SUMIFS(D_D[AUT],D_D[MT],5,D_D[CAT],SMS, D_D[EP],499,D_D[LOC],$A49)/$E49,0)) -> 0.04556871188
A50: MI499 | B50: 37 | C50: 0 | D50: Michigan-NWQ | E50: =IF(ISNA($A50),"",IFERROR(SUMIFS(D_D[INV],D_D[MT],5,D_D[CAT],SMS, D_D[EP],499,D_D[LOC],$A50),0)) -> 18761 | F50: =IF(ISNA($A50),"",IFERROR(SUMIFS(D_D[BL],D_D[MT],5,D_D[CAT],SMS, D_D[EP],499,D_D[LOC],$A50),0)) -> 7125 | G50: 0.3797771974 | H50: =IF(ISNA($A50),"",IFERROR(SUMIFS(D_D[DEV],D_D[MT],5,D_D[CAT],SMS, D_D[EP],499,D_D[LOC],$A50)/$E50,0)) -> 0.03390011193 | I50: =IF(ISNA($A50),"",IFERROR(SUMIFS(D_D[EVD],D_D[MT],5,D_D[CAT],SMS, D_D[EP],499,D_D[LOC],$A50)/$E50,0)) -> 0.7027343958 | J50: =IF(ISNA($A50),"",IFERROR(SUMIFS(D_D[DEC],D_D[MT],5,D_D[CAT],SMS, D_D[EP],499,D_D[LOC],$A50)/$E50,0)) -> 0.262299451 | K50: =IF(ISNA($A50),"",IFERROR(SUMIFS(D_D[AWD],D_D[MT],5,D_D[CAT],SMS, D_D[EP],499,D_D[LOC],$A50)/$E50,0)) -> 0.001066041256 | L50: =IF(ISNA($A50),"",IFERROR(SUMIFS(D_D[AUT],D_D[MT],5,D_D[CAT],SMS, D_D[EP],499,D_D[LOC],$A50)/$E50,0)) -> 0
A51: MO100 | B51: 38 | C51: Missouri | D51: Missouri-Total | E51: =IF(ISNA($A51),"",IFERROR(SUMIFS(D_D[INV],D_D[MT],5,D_D[CAT],SMS, D_D[EP],499,D_D[LOC],$A51),0)) -> 18478 | F51: =IF(ISNA($A51),"",IFERROR(SUMIFS(D_D[BL],D_D[MT],5,D_D[CAT],SMS, D_D[EP],499,D_D[LOC],$A51),0)) -> 7264 | G51: 0.3931161381 | H51: =IF(ISNA($A51),"",IFERROR(SUMIFS(D_D[DEV],D_D[MT],5,D_D[CAT],SMS, D_D[EP],499,D_D[LOC],$A51)/$E51,0)) -> 0.04740772811 | I51: =IF(ISNA($A51),"",IFERROR(SUMIFS(D_D[EVD],D_D[MT],5,D_D[CAT],SMS, D_D[EP],499,D_D[LOC],$A51)/$E51,0)) -> 0.6542374716 | J51: =IF(ISNA($A51),"",IFERROR(SUMIFS(D_D[DEC],D_D[MT],5,D_D[CAT],SMS, D_D[EP],499,D_D[LOC],$A51)/$E51,0)) -> 0.273568568 | K51: =IF(ISNA($A51),"",IFERROR(SUMIFS(D_D[AWD],D_D[MT],5,D_D[CAT],SMS, D_D[EP],499,D_D[LOC],$A51)/$E51,0)) -> 0.01650611538 | L51: =IF(ISNA($A51),"",IFERROR(SUMIFS(D_D[AUT],D_D[MT],5,D_D[CAT],SMS, D_D[EP],499,D_D[LOC],$A51)/$E51,0)) -> 0.008280116896
A52: MO331 | B52: 39 | C52: 0 | D52: St. Louis RO | E52: =IF(ISNA($A52),"",IFERROR(SUMIFS(D_D[INV],D_D[MT],5,D_D[CAT],SMS, D_D[EP],499,D_D[LOC],$A52),0)) -> 393 | F52: =IF(ISNA($A52),"",IFERROR(SUMIFS(D_D[BL],D_D[MT],5,D_D[CAT],SMS, D_D[EP],499,D_D[LOC],$A52),0)) -> 111 | G52: 0.2824427481 | H52: =IF(ISNA($A52),"",IFERROR(SUMIFS(D_D[DEV],D_D[MT],5,D_D[CAT],SMS, D_D[EP],499,D_D[LOC],$A52)/$E52,0)) -> 0.4351145038 | I52: =IF(ISNA($A52),"",IFERROR(SUMIFS(D_D[EVD],D_D[MT],5,D_D[CAT],SMS, D_D[EP],499,D_D[LOC],$A52)/$E52,0)) -> 0.2442748092 | J52: =IF(ISNA($A52),"",IFERROR(SUMIFS(D_D[DEC],D_D[MT],5,D_D[CAT],SMS, D_D[EP],499,D_D[LOC],$A52)/$E52,0)) -> 0.1450381679 | K52: =IF(ISNA($A52),"",IFERROR(SUMIFS(D_D[AWD],D_D[MT],5,D_D[CAT],SMS, D_D[EP],499,D_D[LOC],$A52)/$E52,0)) -> 0.155216285 | L52: =IF(ISNA($A52),"",IFERROR(SUMIFS(D_D[AUT],D_D[MT],5,D_D[CAT],SMS, D_D[EP],499,D_D[LOC],$A52)/$E52,0)) -> 0.0203562341
A53: MO-1 | B53: 40 | C53: 0 | D53: Missouri-Other RO | E53: =IF(ISNA($A53),"",IFERROR(SUMIFS(D_D[INV],D_D[MT],5,D_D[CAT],SMS, D_D[EP],499,D_D[LOC],$A53),0)) -> 2359 | F53: =IF(ISNA($A53),"",IFERROR(SUMIFS(D_D[BL],D_D[MT],5,D_D[CAT],SMS, D_D[EP],499,D_D[LOC],$A53),0)) -> 1295 | G53: 0.5489614243 | H53: =IF(ISNA($A53),"",IFERROR(SUMIFS(D_D[DEV],D_D[MT],5,D_D[CAT],SMS, D_D[EP],499,D_D[LOC],$A53)/$E53,0)) -> 0.09919457397 | I53: =IF(ISNA($A53),"",IFERROR(SUMIFS(D_D[EVD],D_D[MT],5,D_D[CAT],SMS, D_D[EP],499,D_D[LOC],$A53)/$E53,0)) -> 0.4993641373 | J53: =IF(ISNA($A53),"",IFERROR(SUMIFS(D_D[DEC],D_D[MT],5,D_D[CAT],SMS, D_D[EP],499,D_D[LOC],$A53)/$E53,0)) -> 0.244171259 | K53: =IF(ISNA($A53),"",IFERROR(SUMIFS(D_D[AWD],D_D[MT],5,D_D[CAT],SMS, D_D[EP],499,D_D[LOC],$A53)/$E53,0)) -> 0.09580330649 | L53: =IF(ISNA($A53),"",IFERROR(SUMIFS(D_D[AUT],D_D[MT],5,D_D[CAT],SMS, D_D[EP],499,D_D[LOC],$A53)/$E53,0)) -> 0.06146672319
A54: MO499 | B54: 41 | C54: 0 | D54: Missouri-NWQ | E54: =IF(ISNA($A54),"",IFERROR(SUMIFS(D_D[INV],D_D[MT],5,D_D[CAT],SMS, D_D[EP],499,D_D[LOC],$A54),0)) -> 15726 | F54: =IF(ISNA($A54),"",IFERROR(SUMIFS(D_D[BL],D_D[MT],5,D_D[CAT],SMS, D_D[EP],499,D_D[LOC],$A54),0)) -> 5858 | G54: 0.3725041333 | H54: =IF(ISNA($A54),"",IFERROR(SUMIFS(D_D[DEV],D_D[MT],5,D_D[CAT],SMS, D_D[EP],499,D_D[LOC],$A54)/$E54,0)) -> 0.02995040061 | I54: =IF(ISNA($A54),"",IFERROR(SUMIFS(D_D[EVD],D_D[MT],5,D_D[CAT],SMS, D_D[EP],499,D_D[LOC],$A54)/$E54,0)) -> 0.6877146127 | J54: =IF(ISNA($A54),"",IFERROR(SUMIFS(D_D[DEC],D_D[MT],5,D_D[CAT],SMS, D_D[EP],499,D_D[LOC],$A54)/$E54,0)) -> 0.2811903853 | K54: =IF(ISNA($A54),"",IFERROR(SUMIFS(D_D[AWD],D_D[MT],5,D_D[CAT],SMS, D_D[EP],499,D_D[LOC],$A54)/$E54,0)) -> 0.001144601297 | L54: =IF(ISNA($A54),"",IFERROR(SUMIFS(D_D[AUT],D_D[MT],5,D_D[CAT],SMS, D_D[EP],499,D_D[LOC],$A54)/$E54,0)) -> 0
A55: NH100 | B55: 42 | C55: New Hampshire | D55: New Hampshire-Total | E55: =IF(ISNA($A55),"",IFERROR(SUMIFS(D_D[INV],D_D[MT],5,D_D[CAT],SMS, D_D[EP],499,D_D[LOC],$A55),0)) -> 3312 | F55: =IF(ISNA($A55),"",IFERROR(SUMIFS(D_D[BL],D_D[MT],5,D_D[CAT],SMS, D_D[EP],499,D_D[LOC],$A55),0)) -> 1334 | G55: 0.4027777778 | H55: =IF(ISNA($A55),"",IFERROR(SUMIFS(D_D[DEV],D_D[MT],5,D_D[CAT],SMS, D_D[EP],499,D_D[LOC],$A55)/$E55,0)) -> 0.04619565217 | I55: =IF(ISNA($A55),"",IFERROR(SUMIFS(D_D[EVD],D_D[MT],5,D_D[CAT],SMS, D_D[EP],499,D_D[LOC],$A55)/$E55,0)) -> 0.6781400966 | J55: =IF(ISNA($A55),"",IFERROR(SUMIFS(D_D[DEC],D_D[MT],5,D_D[CAT],SMS, D_D[EP],499,D_D[LOC],$A55)/$E55,0)) -> 0.2587560386 | K55: =IF(ISNA($A55),"",IFERROR(SUMIFS(D_D[AWD],D_D[MT],5,D_D[CAT],SMS, D_D[EP],499,D_D[LOC],$A55)/$E55,0)) -> 0.01298309179 | L55: =IF(ISNA($A55),"",IFERROR(SUMIFS(D_D[AUT],D_D[MT],5,D_D[CAT],SMS, D_D[EP],499,D_D[LOC],$A55)/$E55,0)) -> 0.003925120773
A56: NH373 | B56: 43 | C56: 0 | D56: Manchester RO | E56: =IF(ISNA($A56),"",IFERROR(SUMIFS(D_D[INV],D_D[MT],5,D_D[CAT],SMS, D_D[EP],499,D_D[LOC],$A56),0)) -> 49 | F56: =IF(ISNA($A56),"",IFERROR(SUMIFS(D_D[BL],D_D[MT],5,D_D[CAT],SMS, D_D[EP],499,D_D[LOC],$A56),0)) -> 5 | G56: 0.1020408163 | H56: =IF(ISNA($A56),"",IFERROR(SUMIFS(D_D[DEV],D_D[MT],5,D_D[CAT],SMS, D_D[EP],499,D_D[LOC],$A56)/$E56,0)) -> 0.5714285714 | I56: =IF(ISNA($A56),"",IFERROR(SUMIFS(D_D[EVD],D_D[MT],5,D_D[CAT],SMS, D_D[EP],499,D_D[LOC],$A56)/$E56,0)) -> 0.3469387755 | J56: =IF(ISNA($A56),"",IFERROR(SUMIFS(D_D[DEC],D_D[MT],5,D_D[CAT],SMS, D_D[EP],499,D_D[LOC],$A56)/$E56,0)) -> 0.08163265306 | K56: =IF(ISNA($A56),"",IFERROR(SUMIFS(D_D[AWD],D_D[MT],5,D_D[CAT],SMS, D_D[EP],499,D_D[LOC],$A56)/$E56,0)) -> 0 | L56: =IF(ISNA($A56),"",IFERROR(SUMIFS(D_D[AUT],D_D[MT],5,D_D[CAT],SMS, D_D[EP],499,D_D[LOC],$A56)/$E56,0)) -> 0
A57: NH-1 | B57: 44 | C57: 0 | D57: New Hampshire-Other RO | E57: =IF(ISNA($A57),"",IFERROR(SUMIFS(D_D[INV],D_D[MT],5,D_D[CAT],SMS, D_D[EP],499,D_D[LOC],$A57),0)) -> 398 | F57: =IF(ISNA($A57),"",IFERROR(SUMIFS(D_D[BL],D_D[MT],5,D_D[CAT],SMS, D_D[EP],499,D_D[LOC],$A57),0)) -> 213 | G57: 0.5351758794 | H57: =IF(ISNA($A57),"",IFERROR(SUMIFS(D_D[DEV],D_D[MT],5,D_D[CAT],SMS, D_D[EP],499,D_D[LOC],$A57)/$E57,0)) -> 0.07537688442 | I57: =IF(ISNA($A57),"",IFERROR(SUMIFS(D_D[EVD],D_D[MT],5,D_D[CAT],SMS, D_D[EP],499,D_D[LOC],$A57)/$E57,0)) -> 0.5376884422 | J57: =IF(ISNA($A57),"",IFERROR(SUMIFS(D_D[DEC],D_D[MT],5,D_D[CAT],SMS, D_D[EP],499,D_D[LOC],$A57)/$E57,0)) -> 0.2487437186 | K57: =IF(ISNA($A57),"",IFERROR(SUMIFS(D_D[AWD],D_D[MT],5,D_D[CAT],SMS, D_D[EP],499,D_D[LOC],$A57)/$E57,0)) -> 0.1055276382 | L57: =IF(ISNA($A57),"",IFERROR(SUMIFS(D_D[AUT],D_D[MT],5,D_D[CAT],SMS, D_D[EP],499,D_D[LOC],$A57)/$E57,0)) -> 0.03266331658
A58: NH499 | B58: 45 | C58: 0 | D58: New Hampshire-NWQ | E58: =IF(ISNA($A58),"",IFERROR(SUMIFS(D_D[INV],D_D[MT],5,D_D[CAT],SMS, D_D[EP],499,D_D[LOC],$A58),0)) -> 2865 | F58: =IF(ISNA($A58),"",IFERROR(SUMIFS(D_D[BL],D_D[MT],5,D_D[CAT],SMS, D_D[EP],499,D_D[LOC],$A58),0)) -> 1116 | G58: 0.3895287958 | H58: =IF(ISNA($A58),"",IFERROR(SUMIFS(D_D[DEV],D_D[MT],5,D_D[CAT],SMS, D_D[EP],499,D_D[LOC],$A58)/$E58,0)) -> 0.03315881326 | I58: =IF(ISNA($A58),"",IFERROR(SUMIFS(D_D[EVD],D_D[MT],5,D_D[CAT],SMS, D_D[EP],499,D_D[LOC],$A58)/$E58,0)) -> 0.7033158813 | J58: =IF(ISNA($A58),"",IFERROR(SUMIFS(D_D[DEC],D_D[MT],5,D_D[CAT],SMS, D_D[EP],499,D_D[LOC],$A58)/$E58,0)) -> 0.2631762653 | K58: =IF(ISNA($A58),"",IFERROR(SUMIFS(D_D[AWD],D_D[MT],5,D_D[CAT],SMS, D_D[EP],499,D_D[LOC],$A58)/$E58,0)) -> 0.0003490401396 | L58: =IF(ISNA($A58),"",IFERROR(SUMIFS(D_D[AUT],D_D[MT],5,D_D[CAT],SMS, D_D[EP],499,D_D[LOC],$A58)/$E58,0)) -> 0
A59: NJ100 | B59: 46 | C59: New Jersey | D59: New Jersey-Total | E59: =IF(ISNA($A59),"",IFERROR(SUMIFS(D_D[INV],D_D[MT],5,D_D[CAT],SMS, D_D[EP],499,D_D[LOC],$A59),0)) -> 12976 | F59: =IF(ISNA($A59),"",IFERROR(SUMIFS(D_D[BL],D_D[MT],5,D_D[CAT],SMS, D_D[EP],499,D_D[LOC],$A59),0)) -> 5456 | G59: 0.4204685573 | H59: =IF(ISNA($A59),"",IFERROR(SUMIFS(D_D[DEV],D_D[MT],5,D_D[CAT],SMS, D_D[EP],499,D_D[LOC],$A59)/$E59,0)) -> 0.05263563502 | I59: =IF(ISNA($A59),"",IFERROR(SUMIFS(D_D[EVD],D_D[MT],5,D_D[CAT],SMS, D_D[EP],499,D_D[LOC],$A59)/$E59,0)) -> 0.6875 | J59: =IF(ISNA($A59),"",IFERROR(SUMIFS(D_D[DEC],D_D[MT],5,D_D[CAT],SMS, D_D[EP],499,D_D[LOC],$A59)/$E59,0)) -> 0.2398273736 | K59: =IF(ISNA($A59),"",IFERROR(SUMIFS(D_D[AWD],D_D[MT],5,D_D[CAT],SMS, D_D[EP],499,D_D[LOC],$A59)/$E59,0)) -> 0.01464241677 | L59: =IF(ISNA($A59),"",IFERROR(SUMIFS(D_D[AUT],D_D[MT],5,D_D[CAT],SMS, D_D[EP],499,D_D[LOC],$A59)/$E59,0)) -> 0.005394574599
A60: NJ309 | B60: 47 | C60: 0 | D60: =IFERROR(INDEX(INDIRECT(DS_NWQD),B60),"") -> Newark RO | E60: =IF(ISNA($A60),"",IFERROR(SUMIFS(D_D[INV],D_D[MT],5,D_D[CAT],SMS, D_D[EP],499,D_D[LOC],$A60),0)) -> 93 | F60: =IF(ISNA($A60),"",IFERROR(SUMIFS(D_D[BL],D_D[MT],5,D_D[CAT],SMS, D_D[EP],499,D_D[LOC],$A60),0)) -> 10 | G60: =IF(ISNA($A60),"",IFERROR(F60/E60,0)) -> 0.1075268817 | H60: =IF(ISNA($A60),"",IFERROR(SUMIFS(D_D[DEV],D_D[MT],5,D_D[CAT],SMS, D_D[EP],499,D_D[LOC],$A60)/$E60,0)) -> 0.6129032258 | I60: =IF(ISNA($A60),"",IFERROR(SUMIFS(D_D[EVD],D_D[MT],5,D_D[CAT],SMS, D_D[EP],499,D_D[LOC],$A60)/$E60,0)) -> 0.2903225806 | J60: =IF(ISNA($A60),"",IFERROR(SUMIFS(D_D[DEC],D_D[MT],5,D_D[CAT],SMS, D_D[EP],499,D_D[LOC],$A60)/$E60,0)) -> 0.03225806452 | K60: =IF(ISNA($A60),"",IFERROR(SUMIFS(D_D[AWD],D_D[MT],5,D_D[CAT],SMS, D_D[EP],499,D_D[LOC],$A60)/$E60,0)) -> 0.02150537634 | L60: =IF(ISNA($A60),"",IFERROR(SUMIFS(D_D[AUT],D_D[MT],5,D_D[CAT],SMS, D_D[EP],499,D_D[LOC],$A60)/$E60,0)) -> 0.04301075269
A61: NJ-1 | B61: 48 | C61: 0 | D61: New Jersey-Other RO | E61: =IF(ISNA($A61),"",IFERROR(SUMIFS(D_D[INV],D_D[MT],5,D_D[CAT],SMS, D_D[EP],499,D_D[LOC],$A61),0)) -> 1741 | F61: =IF(ISNA($A61),"",IFERROR(SUMIFS(D_D[BL],D_D[MT],5,D_D[CAT],SMS, D_D[EP],499,D_D[LOC],$A61),0)) -> 882 | G61: 0.5066053992 | H61: =IF(ISNA($A61),"",IFERROR(SUMIFS(D_D[DEV],D_D[MT],5,D_D[CAT],SMS, D_D[EP],499,D_D[LOC],$A61)/$E61,0)) -> 0.1240666284 | I61: =IF(ISNA($A61),"",IFERROR(SUMIFS(D_D[EVD],D_D[MT],5,D_D[CAT],SMS, D_D[EP],499,D_D[LOC],$A61)/$E61,0)) -> 0.5100516944 | J61: =IF(ISNA($A61),"",IFERROR(SUMIFS(D_D[DEC],D_D[MT],5,D_D[CAT],SMS, D_D[EP],499,D_D[LOC],$A61)/$E61,0)) -> 0.2286042504 | K61: =IF(ISNA($A61),"",IFERROR(SUMIFS(D_D[AWD],D_D[MT],5,D_D[CAT],SMS, D_D[EP],499,D_D[LOC],$A61)/$E61,0)) -> 0.09936817921 | L61: =IF(ISNA($A61),"",IFERROR(SUMIFS(D_D[AUT],D_D[MT],5,D_D[CAT],SMS, D_D[EP],499,D_D[LOC],$A61)/$E61,0)) -> 0.03790924756
A62: NJ499 | B62: 49 | C62: 0 | D62: New Jersey-NWQ | E62: =IF(ISNA($A62),"",IFERROR(SUMIFS(D_D[INV],D_D[MT],5,D_D[CAT],SMS, D_D[EP],499,D_D[LOC],$A62),0)) -> 11142 | F62: =IF(ISNA($A62),"",IFERROR(SUMIFS(D_D[BL],D_D[MT],5,D_D[CAT],SMS, D_D[EP],499,D_D[LOC],$A62),0)) -> 4564 | G62: 0.4096212529 | H62: =IF(ISNA($A62),"",IFERROR(SUMIFS(D_D[DEV],D_D[MT],5,D_D[CAT],SMS, D_D[EP],499,D_D[LOC],$A62)/$E62,0)) -> 0.03679770239 | I62: =IF(ISNA($A62),"",IFERROR(SUMIFS(D_D[EVD],D_D[MT],5,D_D[CAT],SMS, D_D[EP],499,D_D[LOC],$A62)/$E62,0)) -> 0.718542452 | J62: =IF(ISNA($A62),"",IFERROR(SUMIFS(D_D[DEC],D_D[MT],5,D_D[CAT],SMS, D_D[EP],499,D_D[LOC],$A62)/$E62,0)) -> 0.2433135882 | K62: =IF(ISNA($A62),"",IFERROR(SUMIFS(D_D[AWD],D_D[MT],5,D_D[CAT],SMS, D_D[EP],499,D_D[LOC],$A62)/$E62,0)) -> 0.001346257404 | L62: =IF(ISNA($A62),"",IFERROR(SUMIFS(D_D[AUT],D_D[MT],5,D_D[CAT],SMS, D_D[EP],499,D_D[LOC],$A62)/$E62,0)) -> 0
A63: NY100 | B63: 50 | C63: =IFERROR(INDEX(INDIRECT(DS_NWQ),B63),"") -> New York | D63: New York-Total | E63: =IF(ISNA($A63),"",IFERROR(SUMIFS(D_D[INV],D_D[MT],5,D_D[CAT],SMS, D_D[EP],499,D_D[LOC],$A63),0)) -> 24679 | F63: =IF(ISNA($A63),"",IFERROR(SUMIFS(D_D[BL],D_D[MT],5,D_D[CAT],SMS, D_D[EP],499,D_D[LOC],$A63),0)) -> 9878 | G63: 0.4002593298 | H63: =IF(ISNA($A63),"",IFERROR(SUMIFS(D_D[DEV],D_D[MT],5,D_D[CAT],SMS, D_D[EP],499,D_D[LOC],$A63)/$E63,0)) -> 0.05198751975 | I63: =IF(ISNA($A63),"",IFERROR(SUMIFS(D_D[EVD],D_D[MT],5,D_D[CAT],SMS, D_D[EP],499,D_D[LOC],$A63)/$E63,0)) -> 0.6553344949 | J63: =IF(ISNA($A63),"",IFERROR(SUMIFS(D_D[DEC],D_D[MT],5,D_D[CAT],SMS, D_D[EP],499,D_D[LOC],$A63)/$E63,0)) -> 0.272539406 | K63: =IF(ISNA($A63),"",IFERROR(SUMIFS(D_D[AWD],D_D[MT],5,D_D[CAT],SMS, D_D[EP],499,D_D[LOC],$A63)/$E63,0)) -> 0.01357429393 | L63: =IF(ISNA($A63),"",IFERROR(SUMIFS(D_D[AUT],D_D[MT],5,D_D[CAT],SMS, D_D[EP],499,D_D[LOC],$A63)/$E63,0)) -> 0.006564285425
A64: NY307 | B64: 51 | C64: 0 | D64: =IFERROR(INDEX(INDIRECT(DS_NWQD),B64),"") -> Buffalo RO | E64: =IF(ISNA($A64),"",IFERROR(SUMIFS(D_D[INV],D_D[MT],5,D_D[CAT],SMS, D_D[EP],499,D_D[LOC],$A64),0)) -> 189 | F64: =IF(ISNA($A64),"",IFERROR(SUMIFS(D_D[BL],D_D[MT],5,D_D[CAT],SMS, D_D[EP],499,D_D[LOC],$A64),0)) -> 43 | G64: =IF(ISNA($A64),"",IFERROR(F64/E64,0)) -> 0.2275132275 | H64: =IF(ISNA($A64),"",IFERROR(SUMIFS(D_D[DEV],D_D[MT],5,D_D[CAT],SMS, D_D[EP],499,D_D[LOC],$A64)/$E64,0)) -> 0.4497354497 | I64: =IF(ISNA($A64),"",IFERROR(SUMIFS(D_D[EVD],D_D[MT],5,D_D[CAT],SMS, D_D[EP],499,D_D[LOC],$A64)/$E64,0)) -> 0.3968253968 | J64: =IF(ISNA($A64),"",IFERROR(SUMIFS(D_D[DEC],D_D[MT],5,D_D[CAT],SMS, D_D[EP],499,D_D[LOC],$A64)/$E64,0)) -> 0.1322751323 | K64: =IF(ISNA($A64),"",IFERROR(SUMIFS(D_D[AWD],D_D[MT],5,D_D[CAT],SMS, D_D[EP],499,D_D[LOC],$A64)/$E64,0)) -> 0.02116402116 | L64: =IF(ISNA($A64),"",IFERROR(SUMIFS(D_D[AUT],D_D[MT],5,D_D[CAT],SMS, D_D[EP],499,D_D[LOC],$A64)/$E64,0)) -> 0
A65: NY306 | B65: 52 | C65: 0 | D65: New York RO | E65: =IF(ISNA($A65),"",IFERROR(SUMIFS(D_D[INV],D_D[MT],5,D_D[CAT],SMS, D_D[EP],499,D_D[LOC],$A65),0)) -> 215 | F65: =IF(ISNA($A65),"",IFERROR(SUMIFS(D_D[BL],D_D[MT],5,D_D[CAT],SMS, D_D[EP],499,D_D[LOC],$A65),0)) -> 29 | G65: 0.1348837209 | H65: =IF(ISNA($A65),"",IFERROR(SUMIFS(D_D[DEV],D_D[MT],5,D_D[CAT],SMS, D_D[EP],499,D_D[LOC],$A65)/$E65,0)) -> 0.5162790698 | I65: =IF(ISNA($A65),"",IFERROR(SUMIFS(D_D[EVD],D_D[MT],5,D_D[CAT],SMS, D_D[EP],499,D_D[LOC],$A65)/$E65,0)) -> 0.3906976744 | J65: =IF(ISNA($A65),"",IFERROR(SUMIFS(D_D[DEC],D_D[MT],5,D_D[CAT],SMS, D_D[EP],499,D_D[LOC],$A65)/$E65,0)) -> 0.08372093023 | K65: =IF(ISNA($A65),"",IFERROR(SUMIFS(D_D[AWD],D_D[MT],5,D_D[CAT],SMS, D_D[EP],499,D_D[LOC],$A65)/$E65,0)) -> 0.009302325581 | L65: =IF(ISNA($A65),"",IFERROR(SUMIFS(D_D[AUT],D_D[MT],5,D_D[CAT],SMS, D_D[EP],499,D_D[LOC],$A65)/$E65,0)) -> 0
A66: NY-1 | B66: 53 | C66: 0 | D66: New York-Other RO | E66: =IF(ISNA($A66),"",IFERROR(SUMIFS(D_D[INV],D_D[MT],5,D_D[CAT],SMS, D_D[EP],499,D_D[LOC],$A66),0)) -> 3210 | F66: =IF(ISNA($A66),"",IFERROR(SUMIFS(D_D[BL],D_D[MT],5,D_D[CAT],SMS, D_D[EP],499,D_D[LOC],$A66),0)) -> 1671 | G66: 0.5205607477 | H66: =IF(ISNA($A66),"",IFERROR(SUMIFS(D_D[DEV],D_D[MT],5,D_D[CAT],SMS, D_D[EP],499,D_D[LOC],$A66)/$E66,0)) -> 0.09657320872 | I66: =IF(ISNA($A66),"",IFERROR(SUMIFS(D_D[EVD],D_D[MT],5,D_D[CAT],SMS, D_D[EP],499,D_D[LOC],$A66)/$E66,0)) -> 0.5186915888 | J66: =IF(ISNA($A66),"",IFERROR(SUMIFS(D_D[DEC],D_D[MT],5,D_D[CAT],SMS, D_D[EP],499,D_D[LOC],$A66)/$E66,0)) -> 0.2380062305 | K66: =IF(ISNA($A66),"",IFERROR(SUMIFS(D_D[AWD],D_D[MT],5,D_D[CAT],SMS, D_D[EP],499,D_D[LOC],$A66)/$E66,0)) -> 0.09626168224 | L66: =IF(ISNA($A66),"",IFERROR(SUMIFS(D_D[AUT],D_D[MT],5,D_D[CAT],SMS, D_D[EP],499,D_D[LOC],$A66)/$E66,0)) -> 0.05046728972
A67: NY499 | B67: 54 | C67: 0 | D67: New York-NWQ | E67: =IF(ISNA($A67),"",IFERROR(SUMIFS(D_D[INV],D_D[MT],5,D_D[CAT],SMS, D_D[EP],499,D_D[LOC],$A67),0)) -> 21065 | F67: =IF(ISNA($A67),"",IFERROR(SUMIFS(D_D[BL],D_D[MT],5,D_D[CAT],SMS, D_D[EP],499,D_D[LOC],$A67),0)) -> 8135 | G67: 0.386185616 | H67: =IF(ISNA($A67),"",IFERROR(SUMIFS(D_D[DEV],D_D[MT],5,D_D[CAT],SMS, D_D[EP],499,D_D[LOC],$A67)/$E67,0)) -> 0.03688582958 | I67: =IF(ISNA($A67),"",IFERROR(SUMIFS(D_D[EVD],D_D[MT],5,D_D[CAT],SMS, D_D[EP],499,D_D[LOC],$A67)/$E67,0)) -> 0.6811773083 | J67: =IF(ISNA($A67),"",IFERROR(SUMIFS(D_D[DEC],D_D[MT],5,D_D[CAT],SMS, D_D[EP],499,D_D[LOC],$A67)/$E67,0)) -> 0.2809874199 | K67: =IF(ISNA($A67),"",IFERROR(SUMIFS(D_D[AWD],D_D[MT],5,D_D[CAT],SMS, D_D[EP],499,D_D[LOC],$A67)/$E67,0)) -> 0.0009494422027 | L67: =IF(ISNA($A67),"",IFERROR(SUMIFS(D_D[AUT],D_D[MT],5,D_D[CAT],SMS, D_D[EP],499,D_D[LOC],$A67)/$E67,0)) -> 0
A68: OH100 | B68: 55 | C68: Ohio | D68: Ohio-Total | E68: =IF(ISNA($A68),"",IFERROR(SUMIFS(D_D[INV],D_D[MT],5,D_D[CAT],SMS, D_D[EP],499,D_D[LOC],$A68),0)) -> 30548 | F68: =IF(ISNA($A68),"",IFERROR(SUMIFS(D_D[BL],D_D[MT],5,D_D[CAT],SMS, D_D[EP],499,D_D[LOC],$A68),0)) -> 11449 | G68: 0.3747872201 | H68: =IF(ISNA($A68),"",IFERROR(SUMIFS(D_D[DEV],D_D[MT],5,D_D[CAT],SMS, D_D[EP],499,D_D[LOC],$A68)/$E68,0)) -> 0.05132905591 | I68: =IF(ISNA($A68),"",IFERROR(SUMIFS(D_D[EVD],D_D[MT],5,D_D[CAT],SMS, D_D[EP],499,D_D[LOC],$A68)/$E68,0)) -> 0.6440356161 | J68: =IF(ISNA($A68),"",IFERROR(SUMIFS(D_D[DEC],D_D[MT],5,D_D[CAT],SMS, D_D[EP],499,D_D[LOC],$A68)/$E68,0)) -> 0.2855178735 | K68: =IF(ISNA($A68),"",IFERROR(SUMIFS(D_D[AWD],D_D[MT],5,D_D[CAT],SMS, D_D[EP],499,D_D[LOC],$A68)/$E68,0)) -> 0.01342150059 | L68: =IF(ISNA($A68),"",IFERROR(SUMIFS(D_D[AUT],D_D[MT],5,D_D[CAT],SMS, D_D[EP],499,D_D[LOC],$A68)/$E68,0)) -> 0.005695953909
A69: OH325 | B69: 56 | C69: 0 | D69: Cleveland RO | E69: =IF(ISNA($A69),"",IFERROR(SUMIFS(D_D[INV],D_D[MT],5,D_D[CAT],SMS, D_D[EP],499,D_D[LOC],$A69),0)) -> 572 | F69: =IF(ISNA($A69),"",IFERROR(SUMIFS(D_D[BL],D_D[MT],5,D_D[CAT],SMS, D_D[EP],499,D_D[LOC],$A69),0)) -> 80 | G69: 0.1398601399 | H69: =IF(ISNA($A69),"",IFERROR(SUMIFS(D_D[DEV],D_D[MT],5,D_D[CAT],SMS, D_D[EP],499,D_D[LOC],$A69)/$E69,0)) -> 0.6520979021 | I69: =IF(ISNA($A69),"",IFERROR(SUMIFS(D_D[EVD],D_D[MT],5,D_D[CAT],SMS, D_D[EP],499,D_D[LOC],$A69)/$E69,0)) -> 0.2517482517 | J69: =IF(ISNA($A69),"",IFERROR(SUMIFS(D_D[DEC],D_D[MT],5,D_D[CAT],SMS, D_D[EP],499,D_D[LOC],$A69)/$E69,0)) -> 0.06468531469 | K69: =IF(ISNA($A69),"",IFERROR(SUMIFS(D_D[AWD],D_D[MT],5,D_D[CAT],SMS, D_D[EP],499,D_D[LOC],$A69)/$E69,0)) -> 0.01748251748 | L69: =IF(ISNA($A69),"",IFERROR(SUMIFS(D_D[AUT],D_D[MT],5,D_D[CAT],SMS, D_D[EP],499,D_D[LOC],$A69)/$E69,0)) -> 0.01398601399
A70: OH-1 | B70: 57 | C70: 0 | D70: Ohio-Other RO | E70: =IF(ISNA($A70),"",IFERROR(SUMIFS(D_D[INV],D_D[MT],5,D_D[CAT],SMS, D_D[EP],499,D_D[LOC],$A70),0)) -> 3747 | F70: =IF(ISNA($A70),"",IFERROR(SUMIFS(D_D[BL],D_D[MT],5,D_D[CAT],SMS, D_D[EP],499,D_D[LOC],$A70),0)) -> 1948 | G70: 0.5198825727 | H70: =IF(ISNA($A70),"",IFERROR(SUMIFS(D_D[DEV],D_D[MT],5,D_D[CAT],SMS, D_D[EP],499,D_D[LOC],$A70)/$E70,0)) -> 0.106218308 | I70: =IF(ISNA($A70),"",IFERROR(SUMIFS(D_D[EVD],D_D[MT],5,D_D[CAT],SMS, D_D[EP],499,D_D[LOC],$A70)/$E70,0)) -> 0.5036028823 | J70: =IF(ISNA($A70),"",IFERROR(SUMIFS(D_D[DEC],D_D[MT],5,D_D[CAT],SMS, D_D[EP],499,D_D[LOC],$A70)/$E70,0)) -> 0.2463303977 | K70: =IF(ISNA($A70),"",IFERROR(SUMIFS(D_D[AWD],D_D[MT],5,D_D[CAT],SMS, D_D[EP],499,D_D[LOC],$A70)/$E70,0)) -> 0.09954630371 | L70: =IF(ISNA($A70),"",IFERROR(SUMIFS(D_D[AUT],D_D[MT],5,D_D[CAT],SMS, D_D[EP],499,D_D[LOC],$A70)/$E70,0)) -> 0.04430210835
A71: OH499 | B71: 58 | C71: 0 | D71: Ohio-NWQ | E71: =IF(ISNA($A71),"",IFERROR(SUMIFS(D_D[INV],D_D[MT],5,D_D[CAT],SMS, D_D[EP],499,D_D[LOC],$A71),0)) -> 26229 | F71: =IF(ISNA($A71),"",IFERROR(SUMIFS(D_D[BL],D_D[MT],5,D_D[CAT],SMS, D_D[EP],499,D_D[LOC],$A71),0)) -> 9421 | G71: 0.3591825842 | H71: =IF(ISNA($A71),"",IFERROR(SUMIFS(D_D[DEV],D_D[MT],5,D_D[CAT],SMS, D_D[EP],499,D_D[LOC],$A71)/$E71,0)) -> 0.03038621373 | I71: =IF(ISNA($A71),"",IFERROR(SUMIFS(D_D[EVD],D_D[MT],5,D_D[CAT],SMS, D_D[EP],499,D_D[LOC],$A71)/$E71,0)) -> 0.6726524076 | J71: =IF(ISNA($A71),"",IFERROR(SUMIFS(D_D[DEC],D_D[MT],5,D_D[CAT],SMS, D_D[EP],499,D_D[LOC],$A71)/$E71,0)) -> 0.2959319837 | K71: =IF(ISNA($A71),"",IFERROR(SUMIFS(D_D[AWD],D_D[MT],5,D_D[CAT],SMS, D_D[EP],499,D_D[LOC],$A71)/$E71,0)) -> 0.001029394945 | L71: =IF(ISNA($A71),"",IFERROR(SUMIFS(D_D[AUT],D_D[MT],5,D_D[CAT],SMS, D_D[EP],499,D_D[LOC],$A71)/$E71,0)) -> 0
A72: PA100 | B72: 59 | C72: Pennsylvania | D72: Pennsylvania-Total | E72: =IF(ISNA($A72),"",IFERROR(SUMIFS(D_D[INV],D_D[MT],5,D_D[CAT],SMS, D_D[EP],499,D_D[LOC],$A72),0)) -> 28529 | F72: =IF(ISNA($A72),"",IFERROR(SUMIFS(D_D[BL],D_D[MT],5,D_D[CAT],SMS, D_D[EP],499,D_D[LOC],$A72),0)) -> 11844 | G72: 0.4151565074 | H72: =IF(ISNA($A72),"",IFERROR(SUMIFS(D_D[DEV],D_D[MT],5,D_D[CAT],SMS, D_D[EP],499,D_D[LOC],$A72)/$E72,0)) -> 0.05093063199 | I72: =IF(ISNA($A72),"",IFERROR(SUMIFS(D_D[EVD],D_D[MT],5,D_D[CAT],SMS, D_D[EP],499,D_D[LOC],$A72)/$E72,0)) -> 0.6686880017 | J72: =IF(ISNA($A72),"",IFERROR(SUMIFS(D_D[DEC],D_D[MT],5,D_D[CAT],SMS, D_D[EP],499,D_D[LOC],$A72)/$E72,0)) -> 0.260086228 | K72: =IF(ISNA($A72),"",IFERROR(SUMIFS(D_D[AWD],D_D[MT],5,D_D[CAT],SMS, D_D[EP],499,D_D[LOC],$A72)/$E72,0)) -> 0.01349504013 | L72: =IF(ISNA($A72),"",IFERROR(SUMIFS(D_D[AUT],D_D[MT],5,D_D[CAT],SMS, D_D[EP],499,D_D[LOC],$A72)/$E72,0)) -> 0.006800098146
A73: PA310 | B73: 60 | C73: 0 | D73: Philadelphia RO | E73: =IF(ISNA($A73),"",IFERROR(SUMIFS(D_D[INV],D_D[MT],5,D_D[CAT],SMS, D_D[EP],499,D_D[LOC],$A73),0)) -> 469 | F73: =IF(ISNA($A73),"",IFERROR(SUMIFS(D_D[BL],D_D[MT],5,D_D[CAT],SMS, D_D[EP],499,D_D[LOC],$A73),0)) -> 162 | G73: 0.3454157783 | H73: =IF(ISNA($A73),"",IFERROR(SUMIFS(D_D[DEV],D_D[MT],5,D_D[CAT],SMS, D_D[EP],499,D_D[LOC],$A73)/$E73,0)) -> 0.3454157783 | I73: =IF(ISNA($A73),"",IFERROR(SUMIFS(D_D[EVD],D_D[MT],5,D_D[CAT],SMS, D_D[EP],499,D_D[LOC],$A73)/$E73,0)) -> 0.3837953092 | J73: =IF(ISNA($A73),"",IFERROR(SUMIFS(D_D[DEC],D_D[MT],5,D_D[CAT],SMS, D_D[EP],499,D_D[LOC],$A73)/$E73,0)) -> 0.1535181237 | K73: =IF(ISNA($A73),"",IFERROR(SUMIFS(D_D[AWD],D_D[MT],5,D_D[CAT],SMS, D_D[EP],499,D_D[LOC],$A73)/$E73,0)) -> 0.09168443497 | L73: =IF(ISNA($A73),"",IFERROR(SUMIFS(D_D[AUT],D_D[MT],5,D_D[CAT],SMS, D_D[EP],499,D_D[LOC],$A73)/$E73,0)) -> 0.02558635394
A74: PA311 | B74: 61 | C74: 0 | D74: Pittsburgh RO | E74: =IF(ISNA($A74),"",IFERROR(SUMIFS(D_D[INV],D_D[MT],5,D_D[CAT],SMS, D_D[EP],499,D_D[LOC],$A74),0)) -> 175 | F74: =IF(ISNA($A74),"",IFERROR(SUMIFS(D_D[BL],D_D[MT],5,D_D[CAT],SMS, D_D[EP],499,D_D[LOC],$A74),0)) -> 18 | G74: 0.1028571429 | H74: =IF(ISNA($A74),"",IFERROR(SUMIFS(D_D[DEV],D_D[MT],5,D_D[CAT],SMS, D_D[EP],499,D_D[LOC],$A74)/$E74,0)) -> 0.5885714286 | I74: =IF(ISNA($A74),"",IFERROR(SUMIFS(D_D[EVD],D_D[MT],5,D_D[CAT],SMS, D_D[EP],499,D_D[LOC],$A74)/$E74,0)) -> 0.3028571429 | J74: =IF(ISNA($A74),"",IFERROR(SUMIFS(D_D[DEC],D_D[MT],5,D_D[CAT],SMS, D_D[EP],499,D_D[LOC],$A74)/$E74,0)) -> 0.08 | K74: =IF(ISNA($A74),"",IFERROR(SUMIFS(D_D[AWD],D_D[MT],5,D_D[CAT],SMS, D_D[EP],499,D_D[LOC],$A74)/$E74,0)) -> 0.01714285714 | L74: =IF(ISNA($A74),"",IFERROR(SUMIFS(D_D[AUT],D_D[MT],5,D_D[CAT],SMS, D_D[EP],499,D_D[LOC],$A74)/$E74,0)) -> 0.01142857143
A75: PA-1 | B75: 62 | C75: 0 | D75: Pennsylvania-Other RO | E75: =IF(ISNA($A75),"",IFERROR(SUMIFS(D_D[INV],D_D[MT],5,D_D[CAT],SMS, D_D[EP],499,D_D[LOC],$A75),0)) -> 3391 | F75: =IF(ISNA($A75),"",IFERROR(SUMIFS(D_D[BL],D_D[MT],5,D_D[CAT],SMS, D_D[EP],499,D_D[LOC],$A75),0)) -> 1755 | G75: 0.5175464465 | H75: =IF(ISNA($A75),"",IFERROR(SUMIFS(D_D[DEV],D_D[MT],5,D_D[CAT],SMS, D_D[EP],499,D_D[LOC],$A75)/$E75,0)) -> 0.100855205 | I75: =IF(ISNA($A75),"",IFERROR(SUMIFS(D_D[EVD],D_D[MT],5,D_D[CAT],SMS, D_D[EP],499,D_D[LOC],$A75)/$E75,0)) -> 0.51017399 | J75: =IF(ISNA($A75),"",IFERROR(SUMIFS(D_D[DEC],D_D[MT],5,D_D[CAT],SMS, D_D[EP],499,D_D[LOC],$A75)/$E75,0)) -> 0.2459451489 | K75: =IF(ISNA($A75),"",IFERROR(SUMIFS(D_D[AWD],D_D[MT],5,D_D[CAT],SMS, D_D[EP],499,D_D[LOC],$A75)/$E75,0)) -> 0.08994396933 | L75: =IF(ISNA($A75),"",IFERROR(SUMIFS(D_D[AUT],D_D[MT],5,D_D[CAT],SMS, D_D[EP],499,D_D[LOC],$A75)/$E75,0)) -> 0.05308168682
A76: PA499 | B76: 63 | C76: 0 | D76: Pennsylvania-NWQ | E76: =IF(ISNA($A76),"",IFERROR(SUMIFS(D_D[INV],D_D[MT],5,D_D[CAT],SMS, D_D[EP],499,D_D[LOC],$A76),0)) -> 24494 | F76: =IF(ISNA($A76),"",IFERROR(SUMIFS(D_D[BL],D_D[MT],5,D_D[CAT],SMS, D_D[EP],499,D_D[LOC],$A76),0)) -> 9909 | G76: 0.4045480526 | H76: =IF(ISNA($A76),"",IFERROR(SUMIFS(D_D[DEV],D_D[MT],5,D_D[CAT],SMS, D_D[EP],499,D_D[LOC],$A76)/$E76,0)) -> 0.03453907079 | I76: =IF(ISNA($A76),"",IFERROR(SUMIFS(D_D[EVD],D_D[MT],5,D_D[CAT],SMS, D_D[EP],499,D_D[LOC],$A76)/$E76,0)) -> 0.6987017229 | J76: =IF(ISNA($A76),"",IFERROR(SUMIFS(D_D[DEC],D_D[MT],5,D_D[CAT],SMS, D_D[EP],499,D_D[LOC],$A76)/$E76,0)) -> 0.2653711113 | K76: =IF(ISNA($A76),"",IFERROR(SUMIFS(D_D[AWD],D_D[MT],5,D_D[CAT],SMS, D_D[EP],499,D_D[LOC],$A76)/$E76,0)) -> 0.001388095044 | L76: =IF(ISNA($A76),"",IFERROR(SUMIFS(D_D[AUT],D_D[MT],5,D_D[CAT],SMS, D_D[EP],499,D_D[LOC],$A76)/$E76,0)) -> 0
A77: RI100 | B77: 64 | C77: Rhode Island | D77: Rhode Island-Total | E77: =IF(ISNA($A77),"",IFERROR(SUMIFS(D_D[INV],D_D[MT],5,D_D[CAT],SMS, D_D[EP],499,D_D[LOC],$A77),0)) -> 2316 | F77: =IF(ISNA($A77),"",IFERROR(SUMIFS(D_D[BL],D_D[MT],5,D_D[CAT],SMS, D_D[EP],499,D_D[LOC],$A77),0)) -> 886 | G77: 0.3825561313 | H77: =IF(ISNA($A77),"",IFERROR(SUMIFS(D_D[DEV],D_D[MT],5,D_D[CAT],SMS, D_D[EP],499,D_D[LOC],$A77)/$E77,0)) -> 0.04749568221 | I77: =IF(ISNA($A77),"",IFERROR(SUMIFS(D_D[EVD],D_D[MT],5,D_D[CAT],SMS, D_D[EP],499,D_D[LOC],$A77)/$E77,0)) -> 0.6368739206 | J77: =IF(ISNA($A77),"",IFERROR(SUMIFS(D_D[DEC],D_D[MT],5,D_D[CAT],SMS, D_D[EP],499,D_D[LOC],$A77)/$E77,0)) -> 0.2910189983 | K77: =IF(ISNA($A77),"",IFERROR(SUMIFS(D_D[AWD],D_D[MT],5,D_D[CAT],SMS, D_D[EP],499,D_D[LOC],$A77)/$E77,0)) -> 0.01295336788 | L77: =IF(ISNA($A77),"",IFERROR(SUMIFS(D_D[AUT],D_D[MT],5,D_D[CAT],SMS, D_D[EP],499,D_D[LOC],$A77)/$E77,0)) -> 0.01165803109
A78: RI304 | B78: 65 | C78: 0 | D78: Providence RO | E78: =IF(ISNA($A78),"",IFERROR(SUMIFS(D_D[INV],D_D[MT],5,D_D[CAT],SMS, D_D[EP],499,D_D[LOC],$A78),0)) -> 56 | F78: =IF(ISNA($A78),"",IFERROR(SUMIFS(D_D[BL],D_D[MT],5,D_D[CAT],SMS, D_D[EP],499,D_D[LOC],$A78),0)) -> 5 | G78: 0.08928571429 | H78: =IF(ISNA($A78),"",IFERROR(SUMIFS(D_D[DEV],D_D[MT],5,D_D[CAT],SMS, D_D[EP],499,D_D[LOC],$A78)/$E78,0)) -> 0.6785714286 | I78: =IF(ISNA($A78),"",IFERROR(SUMIFS(D_D[EVD],D_D[MT],5,D_D[CAT],SMS, D_D[EP],499,D_D[LOC],$A78)/$E78,0)) -> 0.1964285714 | J78: =IF(ISNA($A78),"",IFERROR(SUMIFS(D_D[DEC],D_D[MT],5,D_D[CAT],SMS, D_D[EP],499,D_D[LOC],$A78)/$E78,0)) -> 0.08928571429 | K78: =IF(ISNA($A78),"",IFERROR(SUMIFS(D_D[AWD],D_D[MT],5,D_D[CAT],SMS, D_D[EP],499,D_D[LOC],$A78)/$E78,0)) -> 0.01785714286 | L78: =IF(ISNA($A78),"",IFERROR(SUMIFS(D_D[AUT],D_D[MT],5,D_D[CAT],SMS, D_D[EP],499,D_D[LOC],$A78)/$E78,0)) -> 0.01785714286
A79: RI-1 | B79: 66 | C79: 0 | D79: Rhode Island-Other RO | E79: =IF(ISNA($A79),"",IFERROR(SUMIFS(D_D[INV],D_D[MT],5,D_D[CAT],SMS, D_D[EP],499,D_D[LOC],$A79),0)) -> 276 | F79: =IF(ISNA($A79),"",IFERROR(SUMIFS(D_D[BL],D_D[MT],5,D_D[CAT],SMS, D_D[EP],499,D_D[LOC],$A79),0)) -> 140 | G79: 0.5072463768 | H79: =IF(ISNA($A79),"",IFERROR(SUMIFS(D_D[DEV],D_D[MT],5,D_D[CAT],SMS, D_D[EP],499,D_D[LOC],$A79)/$E79,0)) -> 0.07608695652 | I79: =IF(ISNA($A79),"",IFERROR(SUMIFS(D_D[EVD],D_D[MT],5,D_D[CAT],SMS, D_D[EP],499,D_D[LOC],$A79)/$E79,0)) -> 0.5144927536 | J79: =IF(ISNA($A79),"",IFERROR(SUMIFS(D_D[DEC],D_D[MT],5,D_D[CAT],SMS, D_D[EP],499,D_D[LOC],$A79)/$E79,0)) -> 0.2173913043 | K79: =IF(ISNA($A79),"",IFERROR(SUMIFS(D_D[AWD],D_D[MT],5,D_D[CAT],SMS, D_D[EP],499,D_D[LOC],$A79)/$E79,0)) -> 0.09782608696 | L79: =IF(ISNA($A79),"",IFERROR(SUMIFS(D_D[AUT],D_D[MT],5,D_D[CAT],SMS, D_D[EP],499,D_D[LOC],$A79)/$E79,0)) -> 0.09420289855
A80: RI499 | B80: 67 | C80: 0 | D80: Rhode Island-NWQ | E80: =IF(ISNA($A80),"",IFERROR(SUMIFS(D_D[INV],D_D[MT],5,D_D[CAT],SMS, D_D[EP],499,D_D[LOC],$A80),0)) -> 1984 | F80: =IF(ISNA($A80),"",IFERROR(SUMIFS(D_D[BL],D_D[MT],5,D_D[CAT],SMS, D_D[EP],499,D_D[LOC],$A80),0)) -> 741 | G80: 0.3734879032 | H80: =IF(ISNA($A80),"",IFERROR(SUMIFS(D_D[DEV],D_D[MT],5,D_D[CAT],SMS, D_D[EP],499,D_D[LOC],$A80)/$E80,0)) -> 0.02570564516 | I80: =IF(ISNA($A80),"",IFERROR(SUMIFS(D_D[EVD],D_D[MT],5,D_D[CAT],SMS, D_D[EP],499,D_D[LOC],$A80)/$E80,0)) -> 0.6663306452 | J80: =IF(ISNA($A80),"",IFERROR(SUMIFS(D_D[DEC],D_D[MT],5,D_D[CAT],SMS, D_D[EP],499,D_D[LOC],$A80)/$E80,0)) -> 0.3069556452 | K80: =IF(ISNA($A80),"",IFERROR(SUMIFS(D_D[AWD],D_D[MT],5,D_D[CAT],SMS, D_D[EP],499,D_D[LOC],$A80)/$E80,0)) -> 0.001008064516 | L80: =IF(ISNA($A80),"",IFERROR(SUMIFS(D_D[AUT],D_D[MT],5,D_D[CAT],SMS, D_D[EP],499,D_D[LOC],$A80)/$E80,0)) -> 0
A81: VT100 | B81: 68 | C81: =IFERROR(INDEX(INDIRECT(DS_NWQ),B81),"") -> Vermont | D81: Vermont-Total | E81: =IF(ISNA($A81),"",IFERROR(SUMIFS(D_D[INV],D_D[MT],5,D_D[CAT],SMS, D_D[EP],499,D_D[LOC],$A81),0)) -> 1120 | F81: =IF(ISNA($A81),"",IFERROR(SUMIFS(D_D[BL],D_D[MT],5,D_D[CAT],SMS, D_D[EP],499,D_D[LOC],$A81),0)) -> 511 | G81: 0.45625 | H81: =IF(ISNA($A81),"",IFERROR(SUMIFS(D_D[DEV],D_D[MT],5,D_D[CAT],SMS, D_D[EP],499,D_D[LOC],$A81)/$E81,0)) -> 0.04375 | I81: =IF(ISNA($A81),"",IFERROR(SUMIFS(D_D[EVD],D_D[MT],5,D_D[CAT],SMS, D_D[EP],499,D_D[LOC],$A81)/$E81,0)) -> 0.6848214286 | J81: =IF(ISNA($A81),"",IFERROR(SUMIFS(D_D[DEC],D_D[MT],5,D_D[CAT],SMS, D_D[EP],499,D_D[LOC],$A81)/$E81,0)) -> 0.2544642857 | K81: =IF(ISNA($A81),"",IFERROR(SUMIFS(D_D[AWD],D_D[MT],5,D_D[CAT],SMS, D_D[EP],499,D_D[LOC],$A81)/$E81,0)) -> 0.01071428571 | L81: =IF(ISNA($A81),"",IFERROR(SUMIFS(D_D[AUT],D_D[MT],5,D_D[CAT],SMS, D_D[EP],499,D_D[LOC],$A81)/$E81,0)) -> 0.00625
A82: VT405 | B82: 69 | C82: 0 | D82: =IFERROR(INDEX(INDIRECT(DS_NWQD),B82),"") -> White River RO | E82: =IF(ISNA($A82),"",IFERROR(SUMIFS(D_D[INV],D_D[MT],5,D_D[CAT],SMS, D_D[EP],499,D_D[LOC],$A82),0)) -> 16 | F82: =IF(ISNA($A82),"",IFERROR(SUMIFS(D_D[BL],D_D[MT],5,D_D[CAT],SMS, D_D[EP],499,D_D[LOC],$A82),0)) -> 3 | G82: =IF(ISNA($A82),"",IFERROR(F82/E82,0)) -> 0.1875 | H82: =IF(ISNA($A82),"",IFERROR(SUMIFS(D_D[DEV],D_D[MT],5,D_D[CAT],SMS, D_D[EP],499,D_D[LOC],$A82)/$E82,0)) -> 0.5 | I82: =IF(ISNA($A82),"",IFERROR(SUMIFS(D_D[EVD],D_D[MT],5,D_D[CAT],SMS, D_D[EP],499,D_D[LOC],$A82)/$E82,0)) -> 0.4375 | J82: =IF(ISNA($A82),"",IFERROR(SUMIFS(D_D[DEC],D_D[MT],5,D_D[CAT],SMS, D_D[EP],499,D_D[LOC],$A82)/$E82,0)) -> 0.0625 | K82: =IF(ISNA($A82),"",IFERROR(SUMIFS(D_D[AWD],D_D[MT],5,D_D[CAT],SMS, D_D[EP],499,D_D[LOC],$A82)/$E82,0)) -> 0 | L82: =IF(ISNA($A82),"",IFERROR(SUMIFS(D_D[AUT],D_D[MT],5,D_D[CAT],SMS, D_D[EP],499,D_D[LOC],$A82)/$E82,0)) -> 0
A83: VT-1 | B83: 70 | C83: 0 | D83: Vermont-Other RO | E83: =IF(ISNA($A83),"",IFERROR(SUMIFS(D_D[INV],D_D[MT],5,D_D[CAT],SMS, D_D[EP],499,D_D[LOC],$A83),0)) -> 141 | F83: =IF(ISNA($A83),"",IFERROR(SUMIFS(D_D[BL],D_D[MT],5,D_D[CAT],SMS, D_D[EP],499,D_D[LOC],$A83),0)) -> 85 | G83: 0.6028368794 | H83: =IF(ISNA($A83),"",IFERROR(SUMIFS(D_D[DEV],D_D[MT],5,D_D[CAT],SMS, D_D[EP],499,D_D[LOC],$A83)/$E83,0)) -> 0.09929078014 | I83: =IF(ISNA($A83),"",IFERROR(SUMIFS(D_D[EVD],D_D[MT],5,D_D[CAT],SMS, D_D[EP],499,D_D[LOC],$A83)/$E83,0)) -> 0.5035460993 | J83: =IF(ISNA($A83),"",IFERROR(SUMIFS(D_D[DEC],D_D[MT],5,D_D[CAT],SMS, D_D[EP],499,D_D[LOC],$A83)/$E83,0)) -> 0.2695035461 | K83: =IF(ISNA($A83),"",IFERROR(SUMIFS(D_D[AWD],D_D[MT],5,D_D[CAT],SMS, D_D[EP],499,D_D[LOC],$A83)/$E83,0)) -> 0.0780141844 | L83: =IF(ISNA($A83),"",IFERROR(SUMIFS(D_D[AUT],D_D[MT],5,D_D[CAT],SMS, D_D[EP],499,D_D[LOC],$A83)/$E83,0)) -> 0.04964539007
A84: VT499 | B84: 71 | C84: 0 | D84: Vermont-NWQ | E84: =IF(ISNA($A84),"",IFERROR(SUMIFS(D_D[INV],D_D[MT],5,D_D[CAT],SMS, D_D[EP],499,D_D[LOC],$A84),0)) -> 963 | F84: =IF(ISNA($A84),"",IFERROR(SUMIFS(D_D[BL],D_D[MT],5,D_D[CAT],SMS, D_D[EP],499,D_D[LOC],$A84),0)) -> 423 | G84: 0.4392523364 | H84: =IF(ISNA($A84),"",IFERROR(SUMIFS(D_D[DEV],D_D[MT],5,D_D[CAT],SMS, D_D[EP],499,D_D[LOC],$A84)/$E84,0)) -> 0.02803738318 | I84: =IF(ISNA($A84),"",IFERROR(SUMIFS(D_D[EVD],D_D[MT],5,D_D[CAT],SMS, D_D[EP],499,D_D[LOC],$A84)/$E84,0)) -> 0.7154724818 | J84: =IF(ISNA($A84),"",IFERROR(SUMIFS(D_D[DEC],D_D[MT],5,D_D[CAT],SMS, D_D[EP],499,D_D[LOC],$A84)/$E84,0)) -> 0.2554517134 | K84: =IF(ISNA($A84),"",IFERROR(SUMIFS(D_D[AWD],D_D[MT],5,D_D[CAT],SMS, D_D[EP],499,D_D[LOC],$A84)/$E84,0)) -> 0.001038421599 | L84: =IF(ISNA($A84),"",IFERROR(SUMIFS(D_D[AUT],D_D[MT],5,D_D[CAT],SMS, D_D[EP],499,D_D[LOC],$A84)/$E84,0)) -> 0
A85: WI100 | B85: 72 | C85: Wisconsin | D85: Wisconsin-Total | E85: =IF(ISNA($A85),"",IFERROR(SUMIFS(D_D[INV],D_D[MT],5,D_D[CAT],SMS, D_D[EP],499,D_D[LOC],$A85),0)) -> 14458 | F85: =IF(ISNA($A85),"",IFERROR(SUMIFS(D_D[BL],D_D[MT],5,D_D[CAT],SMS, D_D[EP],499,D_D[LOC],$A85),0)) -> 5441 | G85: 0.3763314428 | H85: =IF(ISNA($A85),"",IFERROR(SUMIFS(D_D[DEV],D_D[MT],5,D_D[CAT],SMS, D_D[EP],499,D_D[LOC],$A85)/$E85,0)) -> 0.04398948679 | I85: =IF(ISNA($A85),"",IFERROR(SUMIFS(D_D[EVD],D_D[MT],5,D_D[CAT],SMS, D_D[EP],499,D_D[LOC],$A85)/$E85,0)) -> 0.6611564532 | J85: =IF(ISNA($A85),"",IFERROR(SUMIFS(D_D[DEC],D_D[MT],5,D_D[CAT],SMS, D_D[EP],499,D_D[LOC],$A85)/$E85,0)) -> 0.2772167658 | K85: =IF(ISNA($A85),"",IFERROR(SUMIFS(D_D[AWD],D_D[MT],5,D_D[CAT],SMS, D_D[EP],499,D_D[LOC],$A85)/$E85,0)) -> 0.01210402545 | L85: =IF(ISNA($A85),"",IFERROR(SUMIFS(D_D[AUT],D_D[MT],5,D_D[CAT],SMS, D_D[EP],499,D_D[LOC],$A85)/$E85,0)) -> 0.005533268779
A86: WI330 | B86: 73 | C86: 0 | D86: Milwaukee RO | E86: =IF(ISNA($A86),"",IFERROR(SUMIFS(D_D[INV],D_D[MT],5,D_D[CAT],SMS, D_D[EP],499,D_D[LOC],$A86),0)) -> 225 | F86: =IF(ISNA($A86),"",IFERROR(SUMIFS(D_D[BL],D_D[MT],5,D_D[CAT],SMS, D_D[EP],499,D_D[LOC],$A86),0)) -> 31 | G86: 0.1377777778 | H86: =IF(ISNA($A86),"",IFERROR(SUMIFS(D_D[DEV],D_D[MT],5,D_D[CAT],SMS, D_D[EP],499,D_D[LOC],$A86)/$E86,0)) -> 0.6311111111 | I86: =IF(ISNA($A86),"",IFERROR(SUMIFS(D_D[EVD],D_D[MT],5,D_D[CAT],SMS, D_D[EP],499,D_D[LOC],$A86)/$E86,0)) -> 0.2844444444 | J86: =IF(ISNA($A86),"",IFERROR(SUMIFS(D_D[DEC],D_D[MT],5,D_D[CAT],SMS, D_D[EP],499,D_D[LOC],$A86)/$E86,0)) -> 0.05777777778 | K86: =IF(ISNA($A86),"",IFERROR(SUMIFS(D_D[AWD],D_D[MT],5,D_D[CAT],SMS, D_D[EP],499,D_D[LOC],$A86)/$E86,0)) -> 0.02222222222 | L86: =IF(ISNA($A86),"",IFERROR(SUMIFS(D_D[AUT],D_D[MT],5,D_D[CAT],SMS, D_D[EP],499,D_D[LOC],$A86)/$E86,0)) -> 0.004444444444
A87: WI-1 | B87: 74 | C87: 0 | D87: Wisconsin-Other RO | E87: =IF(ISNA($A87),"",IFERROR(SUMIFS(D_D[INV],D_D[MT],5,D_D[CAT],SMS, D_D[EP],499,D_D[LOC],$A87),0)) -> 1805 | F87: =IF(ISNA($A87),"",IFERROR(SUMIFS(D_D[BL],D_D[MT],5,D_D[CAT],SMS, D_D[EP],499,D_D[LOC],$A87),0)) -> 956 | G87: 0.5296398892 | H87: =IF(ISNA($A87),"",IFERROR(SUMIFS(D_D[DEV],D_D[MT],5,D_D[CAT],SMS, D_D[EP],499,D_D[LOC],$A87)/$E87,0)) -> 0.08587257618 | I87: =IF(ISNA($A87),"",IFERROR(SUMIFS(D_D[EVD],D_D[MT],5,D_D[CAT],SMS, D_D[EP],499,D_D[LOC],$A87)/$E87,0)) -> 0.5457063712 | J87: =IF(ISNA($A87),"",IFERROR(SUMIFS(D_D[DEC],D_D[MT],5,D_D[CAT],SMS, D_D[EP],499,D_D[LOC],$A87)/$E87,0)) -> 0.2349030471 | K87: =IF(ISNA($A87),"",IFERROR(SUMIFS(D_D[AWD],D_D[MT],5,D_D[CAT],SMS, D_D[EP],499,D_D[LOC],$A87)/$E87,0)) -> 0.08975069252 | L87: =IF(ISNA($A87),"",IFERROR(SUMIFS(D_D[AUT],D_D[MT],5,D_D[CAT],SMS, D_D[EP],499,D_D[LOC],$A87)/$E87,0)) -> 0.04376731302
A88: WI499 | B88: 75 | C88: 0 | D88: Wisconsin-NWQ | E88: =IF(ISNA($A88),"",IFERROR(SUMIFS(D_D[INV],D_D[MT],5,D_D[CAT],SMS, D_D[EP],499,D_D[LOC],$A88),0)) -> 12428 | F88: =IF(ISNA($A88),"",IFERROR(SUMIFS(D_D[BL],D_D[MT],5,D_D[CAT],SMS, D_D[EP],499,D_D[LOC],$A88),0)) -> 4454 | G88: 0.3583842935 | H88: =IF(ISNA($A88),"",IFERROR(SUMIFS(D_D[DEV],D_D[MT],5,D_D[CAT],SMS, D_D[EP],499,D_D[LOC],$A88)/$E88,0)) -> 0.02727711619 | I88: =IF(ISNA($A88),"",IFERROR(SUMIFS(D_D[EVD],D_D[MT],5,D_D[CAT],SMS, D_D[EP],499,D_D[LOC],$A88)/$E88,0)) -> 0.6847441262 | J88: =IF(ISNA($A88),"",IFERROR(SUMIFS(D_D[DEC],D_D[MT],5,D_D[CAT],SMS, D_D[EP],499,D_D[LOC],$A88)/$E88,0)) -> 0.2873350499 | K88: =IF(ISNA($A88),"",IFERROR(SUMIFS(D_D[AWD],D_D[MT],5,D_D[CAT],SMS, D_D[EP],499,D_D[LOC],$A88)/$E88,0)) -> 0.0006437077567 | L88: =IF(ISNA($A88),"",IFERROR(SUMIFS(D_D[AUT],D_D[MT],5,D_D[CAT],SMS, D_D[EP],499,D_D[LOC],$A88)/$E88,0)) -> 0
B89: 77 | D89: =IFERROR(INDEX(INDIRECT(DS_NWQD),B89),"") ->  | E89: =IF(ISNA($A89),"",IFERROR(SUMIFS(D_D[INV],D_D[MT],5,D_D[CAT],SMS, D_D[EP],499,D_D[LOC],$A89),0)) ->  | F89: =IF(ISNA($A89),"",IFERROR(SUMIFS(D_D[BL],D_D[MT],5,D_D[CAT],SMS, D_D[EP],499,D_D[LOC],$A89),0)) ->  | G89: =IF(ISNA($A89),"",IFERROR(F89/E89,0)) ->  | H89: =IF(ISNA($A89),"",IFERROR(SUMIFS(D_D[DEV],D_D[MT],5,D_D[CAT],SMS, D_D[EP],499,D_D[LOC],$A89)/$E89,0)) ->  | I89: =IF(ISNA($A89),"",IFERROR(SUMIFS(D_D[EVD],D_D[MT],5,D_D[CAT],SMS, D_D[EP],499,D_D[LOC],$A89)/$E89,0)) ->  | J89: =IF(ISNA($A89),"",IFERROR(SUMIFS(D_D[DEC],D_D[MT],5,D_D[CAT],SMS, D_D[EP],499,D_D[LOC],$A89)/$E89,0)) ->  | K89: =IF(ISNA($A89),"",IFERROR(SUMIFS(D_D[AWD],D_D[MT],5,D_D[CAT],SMS, D_D[EP],499,D_D[LOC],$A89)/$E89,0)) ->  | L89: =IF(ISNA($A89),"",IFERROR(SUMIFS(D_D[AUT],D_D[MT],5,D_D[CAT],SMS, D_D[EP],499,D_D[LOC],$A89)/$E89,0)) -> 

Sheet Traditional Aggregate (TA)
B2: ="Compensation and Pension National Inventory - Historical Reporting Bundles* - Data through " -> Compensation and Pension National Inventory - Historical Reporting Bundles* - Data through | H2: =D_DT[] -> 2024-01-27
B3: *The data on this page represents historical, alternative reporting on VBA claims processing. VBA actively measures and monitors these workloads, but the bundles are not specifically tied to VBA's strategic target 125 Days and 98% Accuracy. The Rating Bundle measures are the only claims processing bundle that is directly related to the strategic 2015 goals. End products which are included in the Rating Bundle group are highlighted in green.
B4: Compensation Entitlement | G4: Pension Entitlement | L4: Legacy Appeals
B5: Measurement | C5: Claims Pending | D5: Pending over 125 days | E5: Percent Pending over 125 days | G5: Measurement | H5: Claims Pending | I5: Pending over 125 days | J5: Percent Pending over 125 days | L5: Measurement | M5: Appeals Pending | N5: Average Days Pending
B6: Original Entitlement - Veterans1 | C6: =SUM(C7:C9) -> 234683 | D6: =SUM(D7:D9) -> 113566 | E6: =IFERROR(D6/C6,0) -> 0.4839123413 | G6: Original Entitlement | H6: =SUM(H7:H9) -> 25179 | I6: =SUM(I7:I9) -> 7749 | J6: =IFERROR(I6/H6,0) -> 0.3077564637 | K6: 1 | L6: Notice of Disagreements | M6: =IFERROR(SUMIFS(D_D[INV],D_D[MT],7,D_D[CAT],1,D_D[EP],$K6),0) -> 148 | N6: =IFERROR(SUMIFS(D_D[ADP],D_D[MT],7,D_D[CAT],1,D_D[EP],$K6),0) -> 2239.58
A7: 095 | B7: EP 095 - Initial entitlement decisions for Voc Rehab | C7: =IFERROR(SUMIFS(D_D[INV],D_D[MT],3,D_D[CAT],TA_21,D_D[EP],$A7),0) -> 11 | D7: =IFERROR(SUMIFS(D_D[BL],D_D[MT],3,D_D[CAT],TA_21,D_D[EP],$A7),0) -> 4 | E7: =IFERROR(D7/C7,0) -> 0.3636363636 | F7: 180 | G7: EP 180 - Initial entitlement - Veteran | H7: =IFERROR(SUMIFS(D_D[INV],D_D[MT],3,D_D[CAT],TA_31,D_D[EP],$F7),0) -> 9145 | I7: =IFERROR(SUMIFS(D_D[BL],D_D[MT],3,D_D[CAT],TA_31,D_D[EP],$F7),0) -> 2915 | J7: 0.3187534172 | K7: 9 | L7: Statement of the Case* | M7: =IFERROR(SUMIFS(D_D[INV],D_D[MT],7,D_D[CAT],1,D_D[EP],$K7),0) -> 185 | N7: =IFERROR(SUMIFS(D_D[ADP],D_D[MT],7,D_D[CAT],1,D_D[EP],$K7),0) -> 2327.77
A8: 010 | B8: EP 010 - Initial entitlement for service-connected disability (=>8) | C8: =IFERROR(SUMIFS(D_D[INV],D_D[MT],3,D_D[CAT],TA_21,D_D[EP],$A8),0) -> 90726 | D8: =IFERROR(SUMIFS(D_D[BL],D_D[MT],3,D_D[CAT],TA_21,D_D[EP],$A8),0) -> 46885 | E8: 0.5167757864 | F8: 120 | G8: EP 120 - Increased entitlement and/or reconsideration | H8: =IFERROR(SUMIFS(D_D[INV],D_D[MT],3,D_D[CAT],TA_31,D_D[EP],$F8),0) -> 4986 | I8: =IFERROR(SUMIFS(D_D[BL],D_D[MT],3,D_D[CAT],TA_31,D_D[EP],$F8),0) -> 1172 | J8: 0.2350581629 | K8: 2 | L8: Form 9s | M8: =IFERROR(SUMIFS(D_D[INV],D_D[MT],7,D_D[CAT],1,D_D[EP],$K8),0) -> 64 | N8: =IFERROR(SUMIFS(D_D[ADP],D_D[MT],7,D_D[CAT],1,D_D[EP],$K8),0) -> 1584.69
A9: 110 | B9: EP 110 - Initial entitlement for service-connected disability (<=7) | C9: =IFERROR(SUMIFS(D_D[INV],D_D[MT],3,D_D[CAT],TA_21,D_D[EP],$A9),0) -> 143946 | D9: =IFERROR(SUMIFS(D_D[BL],D_D[MT],3,D_D[CAT],TA_21,D_D[EP],$A9),0) -> 66677 | E9: 0.4632084254 | F9: 190 | G9: EP 190 - Initial entitlement - Survivor | H9: =IFERROR(SUMIFS(D_D[INV],D_D[MT],3,D_D[CAT],TA_31,D_D[EP],$F9),0) -> 11048 | I9: =IFERROR(SUMIFS(D_D[BL],D_D[MT],3,D_D[CAT],TA_31,D_D[EP],$F9),0) -> 3662 | J9: 0.3314627082 | K9: 3 | L9: Remands | M9: =IFERROR(SUMIFS(D_D[INV],D_D[MT],7,D_D[CAT],1,D_D[EP],$K9),0) -> 32541 | N9: =IFERROR(SUMIFS(D_D[ADP],D_D[MT],7,D_D[CAT],1,D_D[EP],$K9),0) -> 227.53
B10: Original Entitlement - Survivors2 | C10: =SUM(C11:C12) -> 92 | D10: =SUM(D11:D12) -> 46 | E10: 0.5 | G10: Pension Award Adjustments | H10: =SUM(H11:H16) -> 6768 | I10: =SUM(I11:I16) -> 2442 | J10: 0.3608156028 | L10: Total Appeals Pending Under VBA control | M10: =M6+M7+M8+M9 -> 32938
A11: 140 | B11: EP 140 - Initial claims from surviving spouses, children or parents | C11: =IFERROR(SUMIFS(D_D[INV],D_D[MT],3,D_D[CAT],TA_21,D_D[EP],$A11),0) -> 0 | D11: =IFERROR(SUMIFS(D_D[BL],D_D[MT],3,D_D[CAT],TA_21,D_D[EP],$A11),0) -> 0 | E11: 0 | F11: 135 | G11: EP 135 - Hospitalization adjustment (non-rating) | H11: =IFERROR(SUMIFS(D_D[INV],D_D[MT],3,D_D[CAT],TA_32,D_D[EP],$F11),0) -> 94 | I11: =IFERROR(SUMIFS(D_D[BL],D_D[MT],3,D_D[CAT],TA_32,D_D[EP],$F11),0) -> 24 | J11: =IFERROR(I11/H11,0) -> 0.2553191489 | L11: *the veteran has 60 days to respond to an SOC to continue onto the Form 9 stage
A12: 410 | B12: EP 410 - Initial claims from Veterans' children with Spina bifida and/or birth defects | C12: =IFERROR(SUMIFS(D_D[INV],D_D[MT],3,D_D[CAT],TA_21,D_D[EP],$A12),0) -> 92 | D12: =IFERROR(SUMIFS(D_D[BL],D_D[MT],3,D_D[CAT],TA_21,D_D[EP],$A12),0) -> 46 | E12: 0.5 | F12: 137 | G12: EP 137 - Dependency | H12: =IFERROR(SUMIFS(D_D[INV],D_D[MT],3,D_D[CAT],TA_32,D_D[EP],$F12),0) -> 53 | I12: =IFERROR(SUMIFS(D_D[BL],D_D[MT],3,D_D[CAT],TA_32,D_D[EP],$F12),0) -> 4 | J12: 0.07547169811 | L12: RAMP (Rapid Appeals Modernization Program)
B13: Supplemental Entitlement | C13: =SUM(C14:C17) -> 650535 | D13: =SUM(D14:D17) -> 260726 | E13: 0.4007870445 | F13: 150G | G13: EP 150 - Income adjustments | H13: =IFERROR(SUMIFS(D_D[INV],D_D[MT],3,D_D[CAT],TA_32,D_D[EP],$F13),0) -> 6619 | I13: =IFERROR(SUMIFS(D_D[BL],D_D[MT],3,D_D[CAT],TA_32,D_D[EP],$F13),0) -> 2414 | J13: 0.3647076598 | K13: 7 | L13: EP 682 - Higher Level Review | M13: =IFERROR(SUMIFS(D_D[INV],D_D[MT],7,D_D[CAT],1,D_D[EP],$K13),0) -> 0 | N13: =IFERROR(SUMIFS(D_D[ADP],D_D[MT],7,D_D[CAT],1,D_D[EP],$K13),0) -> 0
A14: 040 | B14: EP 040 - Supplemental Claims (AMA) | C14: =IFERROR(SUMIFS(D_D[INV],D_D[MT],3,D_D[CAT],TA_21,D_D[EP],$A14),0) -> 194113 | D14: =IFERROR(SUMIFS(D_D[BL],D_D[MT],3,D_D[CAT],TA_21,D_D[EP],$A14),0) -> 91670 | E14: 0.4722506993 | F14: 155 | G14: EP 155 - Annual eligibility verification reporting (EVRs) | H14: =IFERROR(SUMIFS(D_D[INV],D_D[MT],3,D_D[CAT],TA_32,D_D[EP],$F14),0) -> 0 | I14: =IFERROR(SUMIFS(D_D[BL],D_D[MT],3,D_D[CAT],TA_32,D_D[EP],$F14),0) -> 0 | J14: 0 | K14: 8 | L14: EP 683 - Supplemental Evidence | M14: =IFERROR(SUMIFS(D_D[INV],D_D[MT],7,D_D[CAT],1,D_D[EP],$K14),0) -> 0 | N14: =IFERROR(SUMIFS(D_D[ADP],D_D[MT],7,D_D[CAT],1,D_D[EP],$K14),0) -> 0
A15: 020 | B15: EP 020 - Increased evaluation and/or additional claimed conditions | C15: =IFERROR(SUMIFS(D_D[INV],D_D[MT],3,D_D[CAT],TA_21,D_D[EP],$A15),0) -> 453515 | D15: =IFERROR(SUMIFS(D_D[BL],D_D[MT],3,D_D[CAT],TA_21,D_D[EP],$A15),0) -> 168745 | E15: 0.3720825111 | F15: 297 | G15: EP 297 - Misc determinations | H15: =IFERROR(SUMIFS(D_D[INV],D_D[MT],3,D_D[CAT],TA_32,D_D[EP],$F15),0) -> 2 | I15: =IFERROR(SUMIFS(D_D[BL],D_D[MT],3,D_D[CAT],TA_32,D_D[EP],$F15),0) -> 0 | J15: 0 | K15: 6 | L15: Total RAMP | M15: =IFERROR(SUMIFS(D_D[INV],D_D[MT],7,D_D[CAT],1,D_D[EP],$K15),0) -> 0 | N15: =IFERROR(SUMIFS(D_D[ADP],D_D[MT],7,D_D[CAT],1,D_D[EP],$K15),0) -> 0
A16: 320 | B16: EP 320 -Increased entitlement due to hospitalization or surgery | C16: =IFERROR(SUMIFS(D_D[INV],D_D[MT],3,D_D[CAT],TA_21,D_D[EP],$A16),0) -> 2896 | D16: =IFERROR(SUMIFS(D_D[BL],D_D[MT],3,D_D[CAT],TA_21,D_D[EP],$A16),0) -> 306 | E16: 0.1056629834 | F16: 607 | G16: EP 607 - Due process | H16: =IFERROR(SUMIFS(D_D[INV],D_D[MT],3,D_D[CAT],TA_32,D_D[EP],$F16),0) -> 0 | I16: =IFERROR(SUMIFS(D_D[BL],D_D[MT],3,D_D[CAT],TA_32,D_D[EP],$F16),0) -> 0 | J16: 0
A17: 420 | B17: EP 420 - Spina bifida and/or birth defects reconsideration | C17: =IFERROR(SUMIFS(D_D[INV],D_D[MT],3,D_D[CAT],TA_21,D_D[EP],$A17),0) -> 11 | D17: =IFERROR(SUMIFS(D_D[BL],D_D[MT],3,D_D[CAT],TA_21,D_D[EP],$A17),0) -> 5 | E17: 0.4545454545 | G17: Program Reviews | H17: =SUM(H18:H20) -> 16180 | I17: =SUM(I18:I20) -> 113 | J17: =IFERROR(I17/H17,0) -> 0.006983930779 | L17: DROC Decision Review Workload (AMA)
A18: 12 | B18: Award Adjustments | C18: =SUM(C19:C25) -> 551778 | D18: =SUM(D19:D25) -> 127379 | E18: 0.2308519006 | F18: 154 | G18: EP 154 - Income Verification Match | H18: =IFERROR(SUMIFS(D_D[INV],D_D[MT],3,D_D[CAT],TA_33,D_D[EP],$F18),0) -> 51 | I18: =IFERROR(SUMIFS(D_D[BL],D_D[MT],3,D_D[CAT],TA_33,D_D[EP],$F18),0) -> 50 | J18: 0.9803921569 | M18: Claims Pending | N18: Average Days Pending
A19: 130G | B19: EP 130 - Dependency | C19: =IFERROR(SUMIFS(D_D[INV],D_D[MT],3,D_D[CAT],TA_22,D_D[EP],$A19),0) -> 230310 | D19: =IFERROR(SUMIFS(D_D[BL],D_D[MT],3,D_D[CAT],TA_22,D_D[EP],$A19),0) -> 54088 | E19: =IFERROR(D19/C19,0) -> 0.2348486822 | F19: 696 | G19: EP 696 - Cost of Living Adjustments | H19: =IFERROR(SUMIFS(D_D[INV],D_D[MT],3,D_D[CAT],TA_33,D_D[EP],$F19),0) -> 16129 | I19: =IFERROR(SUMIFS(D_D[BL],D_D[MT],3,D_D[CAT],TA_33,D_D[EP],$F19),0) -> 63 | J19: 0.003906007812 | K19: 1 | L19: EP 030 - Higher-Level Reviews (HLR) | M19: =IFERROR(SUMIFS(D_D[INV],D_D[MT],12,D_D[CAT],9000,D_D[EP],$K19),0) -> 61629 | N19: =IFERROR(SUMIFS(D_D[ADP],D_D[MT],12,D_D[CAT],9000,D_D[EP],$K19),0) -> 66.04978176
A20: 133 | B20: EP 133 - Survivor restored entitlement | C20: =IFERROR(SUMIFS(D_D[INV],D_D[MT],3,D_D[CAT],TA_22,D_D[EP],$A20),0) -> 31 | D20: =IFERROR(SUMIFS(D_D[BL],D_D[MT],3,D_D[CAT],TA_22,D_D[EP],$A20),0) -> 12 | E20: 0.3870967742 | F20: 697 | G20: EP 697 - Non-entitlement reviews | H20: =IFERROR(SUMIFS(D_D[INV],D_D[MT],3,D_D[CAT],TA_33,D_D[EP],$F20),0) -> 0 | I20: =IFERROR(SUMIFS(D_D[BL],D_D[MT],3,D_D[CAT],TA_33,D_D[EP],$F20),0) -> 0 | J20: 0 | K20: 1.1 | L20: HLR - Compensation | M20: =IFERROR(SUMIFS(D_D[INV],D_D[MT],12,D_D[CAT],9000,D_D[EP],$K20),0) -> 60036 | N20: =IFERROR(SUMIFS(D_D[ADP],D_D[MT],12,D_D[CAT],9000,D_D[EP],$K20),0) -> 64.91281898
A21: 135 | B21: EP 135 - Hospitalization adjustment (non-rating) | C21: =IFERROR(SUMIFS(D_D[INV],D_D[MT],3,D_D[CAT],TA_22,D_D[EP],$A21),0) -> 227 | D21: =IFERROR(SUMIFS(D_D[BL],D_D[MT],3,D_D[CAT],TA_22,D_D[EP],$A21),0) -> 26 | E21: 0.1145374449 | G21: Pension Other | H21: =SUM(H22:H25) -> 8 | I21: =SUM(I22:I25) -> 3 | J21: =IFERROR(I21/H21,0) -> 0.375 | K21: 1.2 | L21: HLR - Pension | M21: =IFERROR(SUMIFS(D_D[INV],D_D[MT],12,D_D[CAT],9000,D_D[EP],$K21),0) -> 1593 | N21: =IFERROR(SUMIFS(D_D[ADP],D_D[MT],12,D_D[CAT],9000,D_D[EP],$K21),0) -> 108.8989328
A22: 290G | B22: EP 290 - Misc determinations | C22: =IFERROR(SUMIFS(D_D[INV],D_D[MT],3,D_D[CAT],TA_22,D_D[EP],$A22),0) -> 66241 | D22: =IFERROR(SUMIFS(D_D[BL],D_D[MT],3,D_D[CAT],TA_22,D_D[EP],$A22),0) -> 13077 | E22: 0.197415498 | F22: 407 | G22: EP 407 - Correspondence | H22: =IFERROR(SUMIFS(D_D[INV],D_D[MT],3,D_D[CAT],TA_34,D_D[EP],$F22),0) -> 8 | I22: =IFERROR(SUMIFS(D_D[BL],D_D[MT],3,D_D[CAT],TA_34,D_D[EP],$F22),0) -> 3 | J22: 0.375 | K22: 2 | L22: EP 040 - Higher-Level Review Returns (HLRR) | M22: =IFERROR(SUMIFS(D_D[INV],D_D[MT],12,D_D[CAT],9000,D_D[EP],$K22),0) -> 54440 | N22: =IFERROR(SUMIFS(D_D[ADP],D_D[MT],12,D_D[CAT],9000,D_D[EP],$K22),0) -> 157.7382439
A23: 450 | B23: EP 450 - Spina bifida and/or birth defects adjustments | C23: =IFERROR(SUMIFS(D_D[INV],D_D[MT],3,D_D[CAT],TA_22,D_D[EP],$A23),0) -> 10 | D23: =IFERROR(SUMIFS(D_D[BL],D_D[MT],3,D_D[CAT],TA_22,D_D[EP],$A23),0) -> 5 | E23: 0.5 | F23: 507 | G23: EP 507 - Congressional correspondence | H23: =IFERROR(SUMIFS(D_D[INV],D_D[MT],3,D_D[CAT],TA_34,D_D[EP],$F23),0) -> 0 | I23: =IFERROR(SUMIFS(D_D[BL],D_D[MT],3,D_D[CAT],TA_34,D_D[EP],$F23),0) -> 0 | J23: 0 | K23: 2.1 | L23: HLRR - Compensation | M23: =IFERROR(SUMIFS(D_D[INV],D_D[MT],12,D_D[CAT],9000,D_D[EP],$K23),0) -> 53867 | N23: =IFERROR(SUMIFS(D_D[ADP],D_D[MT],12,D_D[CAT],9000,D_D[EP],$K23),0) -> 157.6041547
A24: 310G | B24: EP 310 -Future examination for disabilities | C24: =IFERROR(SUMIFS(D_D[INV],D_D[MT],3,D_D[CAT],TA_22,D_D[EP],$A24),0) -> 13552 | D24: =IFERROR(SUMIFS(D_D[BL],D_D[MT],3,D_D[CAT],TA_22,D_D[EP],$A24),0) -> 940 | E24: 0.06936245573 | F24: 937 | G24: EP 937 - Internal quality reviews | H24: =IFERROR(SUMIFS(D_D[INV],D_D[MT],3,D_D[CAT],TA_34,D_D[EP],$F24),0) -> 0 | I24: =IFERROR(SUMIFS(D_D[BL],D_D[MT],3,D_D[CAT],TA_34,D_D[EP],$F24),0) -> 0 | J24: 0 | K24: 2.2 | L24: HLRR - Pension | M24: =IFERROR(SUMIFS(D_D[INV],D_D[MT],12,D_D[CAT],9000,D_D[EP],$K24),0) -> 573 | N24: =IFERROR(SUMIFS(D_D[ADP],D_D[MT],12,D_D[CAT],9000,D_D[EP],$K24),0) -> 170.3438045
A25: 600G | B25: EP 600 - Due process | C25: =IFERROR(SUMIFS(D_D[INV],D_D[MT],3,D_D[CAT],TA_22,D_D[EP],$A25),0) -> 241407 | D25: =IFERROR(SUMIFS(D_D[BL],D_D[MT],3,D_D[CAT],TA_22,D_D[EP],$A25),0) -> 59231 | E25: 0.2453574254 | F25: 967 | G25: EP 967 - Correction of errors | H25: =IFERROR(SUMIFS(D_D[INV],D_D[MT],3,D_D[CAT],TA_34,D_D[EP],$F25),0) -> 0 | I25: =IFERROR(SUMIFS(D_D[BL],D_D[MT],3,D_D[CAT],TA_34,D_D[EP],$F25),0) -> 0 | J25: 0 | K25: 3 | L25: EP 040 - Board AMA Returns (Remands) | M25: =IFERROR(SUMIFS(D_D[INV],D_D[MT],12,D_D[CAT],9000,D_D[EP],$K25),0) -> 12887 | N25: =IFERROR(SUMIFS(D_D[ADP],D_D[MT],12,D_D[CAT],9000,D_D[EP],$K25),0) -> 165.5003492
B26: Program Reviews | C26: =SUM(C27:C33) -> 5968 | D26: =SUM(D27:D33) -> 108 | E26: =IFERROR(D26/C26,0) -> 0.01809651475 | G26: Pension Burial/Accrued | H26: =SUM(H27:H29) -> 2549 | I26: =SUM(I27:I29) -> 1578 | J26: =IFERROR(I26/H26,0) -> 0.6190663005 | K26: 3.1 | L26: Remands - Compensation | M26: =IFERROR(SUMIFS(D_D[INV],D_D[MT],12,D_D[CAT],9000,D_D[EP],$K26),0) -> 12598 | N26: =IFERROR(SUMIFS(D_D[ADP],D_D[MT],12,D_D[CAT],9000,D_D[EP],$K26),0) -> 165.3421178
A27: 314 | B27: EP 314 - Income verification for unemployability | C27: =IFERROR(SUMIFS(D_D[INV],D_D[MT],3,D_D[CAT],TA_23,D_D[EP],$A27),0) -> 0 | D27: =IFERROR(SUMIFS(D_D[BL],D_D[MT],3,D_D[CAT],TA_23,D_D[EP],$A27),0) -> 0 | E27: 0 | F27: 167 | G27: EP 167 - Burials | H27: =IFERROR(SUMIFS(D_D[INV],D_D[MT],3,D_D[CAT],TA_35,D_D[EP],$F27),0) -> 0 | I27: =IFERROR(SUMIFS(D_D[BL],D_D[MT],3,D_D[CAT],TA_35,D_D[EP],$F27),0) -> 0 | J27: 0 | K27: 3.2 | L27: Remands - Pension | M27: =IFERROR(SUMIFS(D_D[INV],D_D[MT],12,D_D[CAT],9000,D_D[EP],$K27),0) -> 289 | N27: =IFERROR(SUMIFS(D_D[ADP],D_D[MT],12,D_D[CAT],9000,D_D[EP],$K27),0) -> 172.3979239
A28: 680G | B28: EP 680 - Review of Hemodialysis related cases/conditions | C28: =IFERROR(SUMIFS(D_D[INV],D_D[MT],3,D_D[CAT],TA_23,D_D[EP],$A28),0) -> 2 | D28: =IFERROR(SUMIFS(D_D[BL],D_D[MT],3,D_D[CAT],TA_23,D_D[EP],$A28),0) -> 1 | E28: 0.5 | F28: 165 | G28: EP 165 - Accrued | H28: =IFERROR(SUMIFS(D_D[INV],D_D[MT],3,D_D[CAT],TA_36,D_D[EP],$F28),0) -> 2549 | I28: =IFERROR(SUMIFS(D_D[BL],D_D[MT],3,D_D[CAT],TA_36,D_D[EP],$F28),0) -> 1578 | J28: 0.6190663005 | K28: 4 | L28: EP 030 - Board AMA Full Grants | M28: =IFERROR(SUMIFS(D_D[INV],D_D[MT],12,D_D[CAT],9000,D_D[EP],$K28),0) -> 922 | N28: =IFERROR(SUMIFS(D_D[ADP],D_D[MT],12,D_D[CAT],9000,D_D[EP],$K28),0) -> 51.72885033
A29: 682 | B29: EP 682 - Review of Radiation related cases/conditions | C29: =IFERROR(SUMIFS(D_D[INV],D_D[MT],3,D_D[CAT],TA_23,D_D[EP],$A29),0) -> 0 | D29: =IFERROR(SUMIFS(D_D[BL],D_D[MT],3,D_D[CAT],TA_23,D_D[EP],$A29),0) -> 0 | E29: 0 | K29: 4.1 | L29: Grants - Compensation | M29: =IFERROR(SUMIFS(D_D[INV],D_D[MT],12,D_D[CAT],9000,D_D[EP],$K29),0) -> 886 | N29: =IFERROR(SUMIFS(D_D[ADP],D_D[MT],12,D_D[CAT],9000,D_D[EP],$K29),0) -> 52.23702032
A30: 684 | B30: EP 684 - Review of Misc cases referred to central office | C30: =IFERROR(SUMIFS(D_D[INV],D_D[MT],3,D_D[CAT],TA_23,D_D[EP],$A30),0) -> 0 | D30: =IFERROR(SUMIFS(D_D[BL],D_D[MT],3,D_D[CAT],TA_23,D_D[EP],$A30),0) -> 0 | E30: 0 | K30: 4.2 | L30: Grants - Pension | M30: =IFERROR(SUMIFS(D_D[INV],D_D[MT],12,D_D[CAT],9000,D_D[EP],$K30),0) -> 36 | N30: =IFERROR(SUMIFS(D_D[ADP],D_D[MT],12,D_D[CAT],9000,D_D[EP],$K30),0) -> 39.22222222
A31: 685 | B31: EP 685 - Review of effective date related to herbicide exposure | C31: =IFERROR(SUMIFS(D_D[INV],D_D[MT],3,D_D[CAT],TA_23,D_D[EP],$A31),0) -> 4 | D31: =IFERROR(SUMIFS(D_D[BL],D_D[MT],3,D_D[CAT],TA_23,D_D[EP],$A31),0) -> 4 | E31: 1
A32: 690G | B32: EP 690 - Cost of Living Adjustments (COLAs) and other reviews | C32: =IFERROR(SUMIFS(D_D[INV],D_D[MT],3,D_D[CAT],TA_23,D_D[EP],$A32),0) -> 5951 | D32: =IFERROR(SUMIFS(D_D[BL],D_D[MT],3,D_D[CAT],TA_23,D_D[EP],$A32),0) -> 99 | E32: 0.01663585952 | L32: Integrated Disability Evaluation System (IDES)
A33: 690 | B33: EP 690 - Social Security number verification | C33: =IFERROR(SUMIFS(D_D[INV],D_D[MT],3,D_D[CAT],TA_23,D_D[EP],$A33),0) -> 11 | D33: =IFERROR(SUMIFS(D_D[BL],D_D[MT],3,D_D[CAT],TA_23,D_D[EP],$A33),0) -> 4 | E33: 0.3636363636 | L33: Number of IDES claims pending | N33: =IFERROR(SUMIFS(D_D[INV],D_D[MT],10,D_D[CAT],1,D_D[EP],-1),0) -> 0
B34: Compensation Other | C34: =SUM(C35:C45) -> 103667 | D34: =SUM(D35:D45) -> 39046 | E34: =IFERROR(D34/C34,0) -> 0.3766483066
A35: 335 | B35: EP 335 - Blue Water Navy (Agent Orange) | C35: =IFERROR(SUMIFS(D_D[INV],D_D[MT],3,D_D[CAT],TA_24,D_D[EP],$A35),0) -> 10363 | D35: =IFERROR(SUMIFS(D_D[BL],D_D[MT],3,D_D[CAT],TA_24,D_D[EP],$A35),0) -> 8726 | E35: =IFERROR(D35/C35,0) -> 0.84203416
A36: 400G | B36: EP 400 - Correspondence | C36: =IFERROR(SUMIFS(D_D[INV],D_D[MT],3,D_D[CAT],TA_24,D_D[EP],$A36),0) -> 17856 | D36: =IFERROR(SUMIFS(D_D[BL],D_D[MT],3,D_D[CAT],TA_24,D_D[EP],$A36),0) -> 2748 | E36: 0.1538978495
A37: 500G | B37: EP 500 - Congressional correspondence | C37: =IFERROR(SUMIFS(D_D[INV],D_D[MT],3,D_D[CAT],TA_24,D_D[EP],$A37),0) -> 351 | D37: =IFERROR(SUMIFS(D_D[BL],D_D[MT],3,D_D[CAT],TA_24,D_D[EP],$A37),0) -> 21 | E37: 0.05982905983
A38: 510 | B38: EP 510 - Freedom of Information Act (FOIA) requests | C38: =IFERROR(SUMIFS(D_D[INV],D_D[MT],3,D_D[CAT],TA_24,D_D[EP],$A38),0) -> 57687 | D38: =IFERROR(SUMIFS(D_D[BL],D_D[MT],3,D_D[CAT],TA_24,D_D[EP],$A38),0) -> 15050 | E38: 0.2608906686
A39: 930G | B39: EP 930 - Review, including quality assurance | C39: =IFERROR(SUMIFS(D_D[INV],D_D[MT],3,D_D[CAT],TA_24,D_D[EP],$A39),0) -> 16464 | D39: =IFERROR(SUMIFS(D_D[BL],D_D[MT],3,D_D[CAT],TA_24,D_D[EP],$A39),0) -> 12046 | E39: 0.7316569485
A40: 960G | B40: EP 960 - Correction of errors | C40: =IFERROR(SUMIFS(D_D[INV],D_D[MT],3,D_D[CAT],TA_24,D_D[EP],$A40),0) -> 540 | D40: =IFERROR(SUMIFS(D_D[BL],D_D[MT],3,D_D[CAT],TA_24,D_D[EP],$A40),0) -> 114 | E40: 0.2111111111
A41: 681 | B41: EP 681 - Used to control claims under the Nehmer Agent Orange stipulation | C41: =IFERROR(SUMIFS(D_D[INV],D_D[MT],3,D_D[CAT],TA_24,D_D[EP],$A41),0) -> 101 | D41: =IFERROR(SUMIFS(D_D[BL],D_D[MT],3,D_D[CAT],TA_24,D_D[EP],$A41),0) -> 63 | E41: =IFERROR(D41/C41,0) -> 0.6237623762
A42: 687 | B42: EP 687 - Blue Water Navy Agent Orange Nehmer Reviews | C42: =IFERROR(SUMIFS(D_D[INV],D_D[MT],3,D_D[CAT],TA_24,D_D[EP],$A42),0) -> 1 | D42: =IFERROR(SUMIFS(D_D[BL],D_D[MT],3,D_D[CAT],TA_24,D_D[EP],$A42),0) -> 1 | E42: =IFERROR(D42/C42,0) -> 1
A43: 688 | B43: EP 688 - NDAA Agent Orange Nehmer Reviews (3 new authorized AO disabilities) | C43: =IFERROR(SUMIFS(D_D[INV],D_D[MT],3,D_D[CAT],TA_24,D_D[EP],$A43),0) -> 303 | D43: =IFERROR(SUMIFS(D_D[BL],D_D[MT],3,D_D[CAT],TA_24,D_D[EP],$A43),0) -> 277 | E43: =IFERROR(D43/C43,0) -> 0.9141914191
A44: 405 | B44: EP 405 - Reopened or new Agent Orange claims between 9/01/10 and 10/24/2011 | C44: =IFERROR(SUMIFS(D_D[INV],D_D[MT],3,D_D[CAT],TA_24,D_D[EP],$A44),0) -> 0 | D44: =IFERROR(SUMIFS(D_D[BL],D_D[MT],3,D_D[CAT],TA_24,D_D[EP],$A44),0) -> 0 | E44: =IFERROR(D44/C44,0) -> 0
A45: 409 | B45: EP 409 - Agent Orange claims where an interim decision was provided; No longer used as of 10/24/2011 | C45: =IFERROR(SUMIFS(D_D[INV],D_D[MT],3,D_D[CAT],TA_24,D_D[EP],$A45),0) -> 1 | D45: =IFERROR(SUMIFS(D_D[BL],D_D[MT],3,D_D[CAT],TA_24,D_D[EP],$A45),0) -> 0 | E45: =IFERROR(D45/C45,0) -> 0
B46: Compensation Burial/Accrued | C46: =SUM(C47:C49) -> 16589 | D46: =SUM(D47:D49) -> 6027 | E46: =IFERROR(D46/C46,0) -> 0.3633130388
A47: 160G | B47: EP 160 - Burials | C47: =IFERROR(SUMIFS(D_D[INV],D_D[MT],3,D_D[CAT],TA_25,D_D[EP],$A47),0) -> 15136 | D47: =IFERROR(SUMIFS(D_D[BL],D_D[MT],3,D_D[CAT],TA_25,D_D[EP],$A47),0) -> 5382 | E47: 0.3555761099
A48: 165 | B48: EP 165 - Accrued | C48: =IFERROR(SUMIFS(D_D[INV],D_D[MT],3,D_D[CAT],TA_26,D_D[EP],$A48),0) -> 1453 | D48: =IFERROR(SUMIFS(D_D[BL],D_D[MT],3,D_D[CAT],TA_26,D_D[EP],$A48),0) -> 645 | E48: 0.4439091535

Sheet Diarys and Future Claims
B1: Compensation and Pension Diary and Future Claims - Historical Reporting Bundles* - Data through | F1: =D_DT[] -> 2024-01-27
B2: The data on this page represents future claims that VA is aware of. A portion of these claims roll into the traditional Rating Bundle group of end-products (EP) once the date of claim matures.
B3: Compensation Entitlement | E3: Pension Entitlement
B4: Measurement | C4: Claims Pending | E4: Measurement | F4: Claims Pending
B5: Original Entitlement - Veterans1 | C5: =SUM(C6:C8) -> 16060 | E5: Original Entitlement | F5: =SUM(F6:F8) -> 0
A6: 095 | B6: EP 095 - Initial entitlement decisions for Voc Rehab | C6: =IFERROR(SUMIFS(D_D[INV],D_D[MT],11,D_D[CAT],TA_21,D_D[EP],$A6),0) -> 0 | D6: 180 | E6: EP 180 - Initial entitlement - Veteran | F6: =IFERROR(SUMIFS(D_D[INV],D_D[MT],11,D_D[CAT],TA_31,D_D[EP],$D6),0) -> 0
A7: 010 | B7: EP 010 - Initial entitlement for service-connected disability (=>8) | C7: =IFERROR(SUMIFS(D_D[INV],D_D[MT],11,D_D[CAT],TA_21,D_D[EP],$A7),0) -> 14508 | D7: 120 | E7: EP 120 - Increased entitlement and/or reconsideration | F7: =IFERROR(SUMIFS(D_D[INV],D_D[MT],11,D_D[CAT],TA_31,D_D[EP],$D7),0) -> 0
A8: 110 | B8: EP 110 - Initial entitlement for service-connected disability (<=7) | C8: =IFERROR(SUMIFS(D_D[INV],D_D[MT],11,D_D[CAT],TA_21,D_D[EP],$A8),0) -> 1552 | D8: 190 | E8: EP 190 - Initial entitlement - Survivor | F8: =IFERROR(SUMIFS(D_D[INV],D_D[MT],11,D_D[CAT],TA_31,D_D[EP],$D8),0) -> 0
B9: Original Entitlement - Survivors2 | C9: =SUM(C10:C11) -> 0 | E9: Pension Award Adjustments | F9: =SUM(F10:F15) -> 0
A10: 140 | B10: EP 140 - Initial claims from surviving spouses, children or parents | C10: =IFERROR(SUMIFS(D_D[INV],D_D[MT],11,D_D[CAT],TA_21,D_D[EP],$A10),0) -> 0 | D10: 135 | E10: EP 135 - Hospitalization adjustment (non-rating) | F10: =IFERROR(SUMIFS(D_D[INV],D_D[MT],11,D_D[CAT],TA_31,D_D[EP],$D10),0) -> 0
A11: 410 | B11: EP 410 - Initial claims from Veterans' children with Spina bifida and/or birth defects | C11: =IFERROR(SUMIFS(D_D[INV],D_D[MT],11,D_D[CAT],TA_21,D_D[EP],$A11),0) -> 0 | D11: 137 | E11: EP 137 - Dependency | F11: =IFERROR(SUMIFS(D_D[INV],D_D[MT],11,D_D[CAT],TA_31,D_D[EP],$D11),0) -> 0
B12: Supplemental Entitlement | C12: =SUM(C13:C16) -> 371 | D12: 150G | E12: EP 150 - Income adjustments | F12: =IFERROR(SUMIFS(D_D[INV],D_D[MT],11,D_D[CAT],TA_31,D_D[EP],$D12),0) -> 0
A13: 040 | B13: EP 040 - Decision Review Request | C13: =IFERROR(SUMIFS(D_D[INV],D_D[MT],11,D_D[CAT],TA_21,D_D[EP],$A13),0) -> 0 | D13: 155 | E13: EP 155 - Annual eligibility verification reporting (EVRs) | F13: =IFERROR(SUMIFS(D_D[INV],D_D[MT],11,D_D[CAT],TA_31,D_D[EP],$D13),0) -> 0
A14: 020 | B14: EP 020 - Increased evaluation and/or additional claimed conditions | C14: =IFERROR(SUMIFS(D_D[INV],D_D[MT],11,D_D[CAT],TA_21,D_D[EP],$A14),0) -> 371 | D14: 297 | E14: EP 297 - Misc determinations | F14: =IFERROR(SUMIFS(D_D[INV],D_D[MT],11,D_D[CAT],TA_31,D_D[EP],$D14),0) -> 0
A15: 320 | B15: EP 320 -Increased entitlement due to hospitalization or surgery | C15: =IFERROR(SUMIFS(D_D[INV],D_D[MT],11,D_D[CAT],TA_21,D_D[EP],$A15),0) -> 0 | D15: 607 | E15: EP 607 - Due process | F15: =IFERROR(SUMIFS(D_D[INV],D_D[MT],11,D_D[CAT],TA_31,D_D[EP],$D15),0) -> 0
A16: 420 | B16: EP 420 - Spina bifida and/or birth defects reconsideration | C16: =IFERROR(SUMIFS(D_D[INV],D_D[MT],11,D_D[CAT],TA_21,D_D[EP],$A16),0) -> 0 | E16: Program Reviews | F16: =SUM(F17:F19) -> 0
A17: 12 | B17: Award Adjustments | C17: =SUM(C18:C24) -> 77 | D17: 154 | E17: EP 154 - Income Verification Match | F17: =IFERROR(SUMIFS(D_D[INV],D_D[MT],11,D_D[CAT],TA_31,D_D[EP],$D17),0) -> 0
A18: 130G | B18: EP 130 - Dependency | C18: =IFERROR(SUMIFS(D_D[INV],D_D[MT],11,D_D[CAT],TA_22,D_D[EP],$A18),0) -> 67 | D18: 696 | E18: EP 696 - Cost of Living Adjustments | F18: =IFERROR(SUMIFS(D_D[INV],D_D[MT],11,D_D[CAT],TA_31,D_D[EP],$D18),0) -> 0
A19: 133 | B19: EP 133 - Survivor restored entitlement | C19: =IFERROR(SUMIFS(D_D[INV],D_D[MT],11,D_D[CAT],TA_22,D_D[EP],$A19),0) -> 0 | D19: 697 | E19: EP 697 - Non-entitlement reviews | F19: =IFERROR(SUMIFS(D_D[INV],D_D[MT],11,D_D[CAT],TA_31,D_D[EP],$D19),0) -> 0
A20: 135 | B20: EP 135 - Hospitalization adjustment (non-rating) | C20: =IFERROR(SUMIFS(D_D[INV],D_D[MT],11,D_D[CAT],TA_22,D_D[EP],$A20),0) -> 0 | E20: Pension Other | F20: =SUM(F21:F24) -> 0
A21: 290G | B21: EP 290 - Misc determinations | C21: =IFERROR(SUMIFS(D_D[INV],D_D[MT],11,D_D[CAT],TA_22,D_D[EP],$A21),0) -> 9 | D21: 407 | E21: EP 407 - Correspondence | F21: =IFERROR(SUMIFS(D_D[INV],D_D[MT],11,D_D[CAT],TA_31,D_D[EP],$D21),0) -> 0
A22: 450 | B22: EP 450 - Spina bifida and/or birth defects adjustments | C22: =IFERROR(SUMIFS(D_D[INV],D_D[MT],11,D_D[CAT],TA_22,D_D[EP],$A22),0) -> 0 | D22: 507 | E22: EP 507 - Congressional correspondence | F22: =IFERROR(SUMIFS(D_D[INV],D_D[MT],11,D_D[CAT],TA_31,D_D[EP],$D22),0) -> 0
A23: 310G | B23: EP 310 -Future examination for disabilities | C23: =IFERROR(SUMIFS(D_D[INV],D_D[MT],11,D_D[CAT],TA_22,D_D[EP],$A23),0) -> 1 | D23: 937 | E23: EP 937 - Internal quality reviews | F23: =IFERROR(SUMIFS(D_D[INV],D_D[MT],11,D_D[CAT],TA_31,D_D[EP],$D23),0) -> 0
A24: 600G | B24: EP 600 - Due process | C24: =IFERROR(SUMIFS(D_D[INV],D_D[MT],11,D_D[CAT],TA_22,D_D[EP],$A24),0) -> 0 | D24: 967 | E24: EP 967 - Correction of errors | F24: =IFERROR(SUMIFS(D_D[INV],D_D[MT],11,D_D[CAT],TA_31,D_D[EP],$D24),0) -> 0
B25: Program Reviews | C25: =SUM(C26:C33) -> 1497 | E25: Pension Burial/Accrued | F25: =SUM(F26:F27) -> 0
A26: 314 | B26: EP 314 - Income verification for unemployability | C26: =IFERROR(SUMIFS(D_D[INV],D_D[MT],11,D_D[CAT],TA_23,D_D[EP],$A26),0) -> 0 | D26: 167 | E26: EP 167 - Burials | F26: =IFERROR(SUMIFS(D_D[INV],D_D[MT],11,D_D[CAT],TA_31,D_D[EP],$D26),0) -> 0
A27: 330 | B27: EP 330 - Reviews | C27: =IFERROR(SUMIFS(D_D[INV],D_D[MT],11,D_D[CAT],TA_23,D_D[EP],$A27),0) -> 1452 | D27: 165 | E27: EP 165 - Accrued | F27: =IFERROR(SUMIFS(D_D[INV],D_D[MT],11,D_D[CAT],TA_31,D_D[EP],$D27),0) -> 0
A28: 680G | B28: EP 680 - Review of Hemodialysis related cases/conditions | C28: =IFERROR(SUMIFS(D_D[INV],D_D[MT],11,D_D[CAT],TA_23,D_D[EP],$A28),0) -> 0
A29: 682 | B29: EP 682 - Review of Radiation related cases/conditions | C29: =IFERROR(SUMIFS(D_D[INV],D_D[MT],11,D_D[CAT],TA_23,D_D[EP],$A29),0) -> 0
A30: 684 | B30: EP 684 - Review of Misc cases referred to central office | C30: =IFERROR(SUMIFS(D_D[INV],D_D[MT],11,D_D[CAT],TA_23,D_D[EP],$A30),0) -> 0 | E30: Integrated Disability Evaluation System (IDES)
A31: 685 | B31: EP 685 - Review of effective date related to herbicide exposure | C31: =IFERROR(SUMIFS(D_D[INV],D_D[MT],11,D_D[CAT],TA_23,D_D[EP],$A31),0) -> 0 | E31: EP 689 - IDES | F31: =IFERROR(SUMIFS(D_D[INV],D_D[MT],11,D_D[CAT],1,D_D[EP],-1),0) -> 0
A32: 690G | B32: EP 690 - Cost of Living Adjustments (COLAs) and other reviews | C32: =IFERROR(SUMIFS(D_D[INV],D_D[MT],11,D_D[CAT],TA_23,D_D[EP],$A32),0) -> 45
A33: 690 | B33: EP 690 - Social Security number verification | C33: =IFERROR(SUMIFS(D_D[INV],D_D[MT],11,D_D[CAT],TA_23,D_D[EP],$A33),0) -> 0
B34: Compensation Other | C34: =SUM(C35:C44) -> 32
A35: 335 | B35: EP 335 - Blue Water Navy (Agent Orange) | C35: =IFERROR(SUMIFS(D_D[INV],D_D[MT],11,D_D[CAT],TA_24,D_D[EP],$A35),0) -> 0
A36: 400G | B36: EP 400 - Correspondence | C36: =IFERROR(SUMIFS(D_D[INV],D_D[MT],11,D_D[CAT],TA_24,D_D[EP],$A36),0) -> 32
A37: 500G | B37: EP 500 - Congressional correspondence | C37: =IFERROR(SUMIFS(D_D[INV],D_D[MT],11,D_D[CAT],TA_24,D_D[EP],$A37),0) -> 0
A38: 510 | B38: EP 510 - Freedom of Information Act (FOIA) requests | C38: =IFERROR(SUMIFS(D_D[INV],D_D[MT],11,D_D[CAT],TA_24,D_D[EP],$A38),0) -> 0
A39: 930G | B39: EP 930 - Review, including quality assurance | C39: =IFERROR(SUMIFS(D_D[INV],D_D[MT],11,D_D[CAT],TA_24,D_D[EP],$A39),0) -> 0
A40: 960G | B40: EP 960 - Correction of errors | C40: =IFERROR(SUMIFS(D_D[INV],D_D[MT],11,D_D[CAT],TA_24,D_D[EP],$A40),0) -> 0
A41: 681 | B41: EP 681 - Used to control claims under the Nehmer Agent Orange stipulation | C41: =IFERROR(SUMIFS(D_D[INV],D_D[MT],11,D_D[CAT],TA_24,D_D[EP],$A41),0) -> 0
A42: 687 | B42: EP 687 - Previously used for Nehmer Agent Orange presumptive issues | C42: =IFERROR(SUMIFS(D_D[INV],D_D[MT],11,D_D[CAT],TA_24,D_D[EP],$A42),0) -> 0
A43: 405 | B43: EP 405 - Reopened or new Agent Orange claims between 9/01/10 and 10/24/2011 | C43: =IFERROR(SUMIFS(D_D[INV],D_D[MT],11,D_D[CAT],TA_24,D_D[EP],$A43),0) -> 0
A44: 409 | B44: EP 409 - Agent Orange claims where an interim decision was provided; No longer used as of 10/24/2011 | C44: =IFERROR(SUMIFS(D_D[INV],D_D[MT],11,D_D[CAT],TA_24,D_D[EP],$A44),0) -> 0
B45: Compensation Burial/Accrued | C45: =SUM(C46:C47) -> 0
A46: 160G | B46: EP 160 - Burials | C46: =IFERROR(SUMIFS(D_D[INV],D_D[MT],11,D_D[CAT],TA_25,D_D[EP],$A46),0) -> 0
A47: 165 | B47: EP 165 - Accrued | C47: =IFERROR(SUMIFS(D_D[INV],D_D[MT],11,D_D[CAT],TA_25,D_D[EP],$A47),0) -> 0

Sheet TA-Regional Office
C1: 2000 | D1: 2000 | E1: 11 | F1: 11 | H1: 12 | I1: 12 | K1: 13 | L1: 13 | N1: 14 | O1: 14 | Q1: 15 | R1: 16 | S1: 1
B2: Scroll down to see Pension | C2: =("Inventory by Regional Office - Data through ") -> Inventory by Regional Office - Data through | G2: =D_DT[] -> 2024-01-27
C3: *The claims pending under 'Non-Rating' are a subset of claims listed under the 'Award Adjustment' column and should not be counted twice when computing totals
C4: Non-Rating | E4: Entitlement | H4: Award Adjustment | K4: Program Review | N4: Other | Q4: Burial | R4: Accrued | S4: Legacy Appeals
C5: Claims Pending | D5: Avg. Days Pending | E5: Claims Pending | F5: Pending over 125 days | G5: Percent Pending over 125 days | H5: Claims Pending | I5: Pending over 125 days | J5: Percent Pending over 125 days | K5: Claims Pending | L5: Pending over 125 days | M5: Percent Pending over 125 days | N5: Claims Pending | O5: Pending over 125 days | P5: Percent Pending over 125 days | Q5: Claims Pending | R5: Claims Pending | S5: Appeals Pending
C6: Compensation
A7: 100 | B7: USA Compensation | C7: =IFERROR(SUMIFS(D_D[INV],D_D[MT],1,D_D[CAT],TA_20,D_D[EP],-1, D_D[LOC],$A7),0) -> 296551 | D7: =IFERROR(SUMIFS(D_D[ADP],D_D[MT],1,D_D[CAT],D$1,D_D[EP],-1, D_D[LOC],$A7),0) -> 91.72 | E7: =IFERROR(SUMIFS(D_D[INV],D_D[MT],2,D_D[CAT],TA_21,D_D[EP],-1, D_D[LOC],$A7),0) -> 952637 | F7: =IFERROR(SUMIFS(D_D[BL],D_D[MT],2,D_D[CAT],TA_21,D_D[EP],-1, D_D[LOC],$A7),0) -> 374338 | G7: =IFERROR(F7/E7,"0%") -> 0.3929492556 | H7: =IFERROR(SUMIFS(D_D[INV],D_D[MT],2,D_D[CAT],TA_22,D_D[EP],-1, D_D[LOC],$A7),0) -> 551778 | I7: =IFERROR(SUMIFS(D_D[BL],D_D[MT],2,D_D[CAT],TA_22,D_D[EP],-1, D_D[LOC],$A7),0) -> 127379 | J7: =IFERROR(I7/H7,"0%") -> 0.2308519006 | K7: =IFERROR(SUMIFS(D_D[INV],D_D[MT],2,D_D[CAT],TA_23,D_D[EP],-1, D_D[LOC],$A7),0) -> 14290 | L7: =IFERROR(SUMIFS(D_D[BL],D_D[MT],2,D_D[CAT],TA_23,D_D[EP],-1, D_D[LOC],$A7),0) -> 4061 | M7: =IFERROR(L7/K7,"0%") -> 0.2841847446 | N7: =IFERROR(SUMIFS(D_D[INV],D_D[MT],2,D_D[CAT],TA_24,D_D[EP],-1, D_D[LOC],$A7),0) - 'Diarys and Future Claims'!C35 -> 103670 | O7: =IFERROR(SUMIFS(D_D[BL],D_D[MT],2,D_D[CAT],TA_24,D_D[EP],-1, D_D[LOC],$A7),0) -> 39047 | P7: =IFERROR(O7/N7,"0%") -> 0.3766470531 | Q7: =IFERROR(SUMIFS(D_D[INV],D_D[MT],2,D_D[CAT],TA_25,D_D[EP],-1, D_D[LOC],$A7),0) -> 15136 | R7: =IFERROR(SUMIFS(D_D[INV],D_D[MT],2,D_D[CAT],TA_26,D_D[EP],-1, D_D[LOC],$A7),0) -> 1453 | S7: =IFERROR(SUMIFS(D_D[INV],D_D[MT],7,D_D[CAT],2,D_D[EP],TA_20, D_D[LOC],$A7),0) -> 32488
A8: 394 | B8: Northeast | C8: =IFERROR(SUMIFS(D_D[INV],D_D[MT],1,D_D[CAT],TA_20,D_D[EP],-1, D_D[LOC],$A8),0) -> 65252 | D8: =IFERROR(SUMIFS(D_D[ADP],D_D[MT],1,D_D[CAT],D$1,D_D[EP],-1, D_D[LOC],$A8),0) -> 96.93 | E8: =IFERROR(SUMIFS(D_D[INV],D_D[MT],2,D_D[CAT],TA_21,D_D[EP],-1, D_D[LOC],$A8),0) -> 194169 | F8: =IFERROR(SUMIFS(D_D[BL],D_D[MT],2,D_D[CAT],TA_21,D_D[EP],-1, D_D[LOC],$A8),0) -> 75490 | G8: =IFERROR(F8/E8,"0%") -> 0.3887850275 | H8: =IFERROR(SUMIFS(D_D[INV],D_D[MT],2,D_D[CAT],TA_22,D_D[EP],-1, D_D[LOC],$A8),0) -> 143989 | I8: =IFERROR(SUMIFS(D_D[BL],D_D[MT],2,D_D[CAT],TA_22,D_D[EP],-1, D_D[LOC],$A8),0) -> 34365 | J8: =IFERROR(I8/H8,"0%") -> 0.2386640646 | K8: =IFERROR(SUMIFS(D_D[INV],D_D[MT],2,D_D[CAT],TA_23,D_D[EP],-1, D_D[LOC],$A8),0) -> 3908 | L8: =IFERROR(SUMIFS(D_D[BL],D_D[MT],2,D_D[CAT],TA_23,D_D[EP],-1, D_D[LOC],$A8),0) -> 940 | M8: =IFERROR(L8/K8,"0%") -> 0.2405322416 | N8: =IFERROR(SUMIFS(D_D[INV],D_D[MT],2,D_D[CAT],TA_24,D_D[EP],-1, D_D[LOC],$A8),0) -> 51641 | O8: =IFERROR(SUMIFS(D_D[BL],D_D[MT],2,D_D[CAT],TA_24,D_D[EP],-1, D_D[LOC],$A8),0) -> 15946 | P8: =IFERROR(O8/N8,"0%") -> 0.3087856548 | Q8: =IFERROR(SUMIFS(D_D[INV],D_D[MT],2,D_D[CAT],TA_25,D_D[EP],-1, D_D[LOC],$A8),0) -> 3637 | R8: =IFERROR(SUMIFS(D_D[INV],D_D[MT],2,D_D[CAT],TA_26,D_D[EP],-1, D_D[LOC],$A8),0) -> 89 | S8: =IFERROR(SUMIFS(D_D[INV],D_D[MT],7,D_D[CAT],2,D_D[EP],TA_20, D_D[LOC],$A8),0) -> 27
A9: 313 | B9: Baltimore | C9: =IFERROR(SUMIFS(D_D[INV],D_D[MT],1,D_D[CAT],TA_20,D_D[EP],-1, D_D[LOC],$A9),0) -> 4889 | D9: =IFERROR(SUMIFS(D_D[ADP],D_D[MT],1,D_D[CAT],D$1,D_D[EP],-1, D_D[LOC],$A9),0) -> 225.66 | E9: =IFERROR(SUMIFS(D_D[INV],D_D[MT],2,D_D[CAT],TA_21,D_D[EP],-1, D_D[LOC],$A9),0) -> 14609 | F9: =IFERROR(SUMIFS(D_D[BL],D_D[MT],2,D_D[CAT],TA_21,D_D[EP],-1, D_D[LOC],$A9),0) -> 5525 | G9: 0.3781915258 | H9: =IFERROR(SUMIFS(D_D[INV],D_D[MT],2,D_D[CAT],TA_22,D_D[EP],-1, D_D[LOC],$A9),0) -> 7968 | I9: =IFERROR(SUMIFS(D_D[BL],D_D[MT],2,D_D[CAT],TA_22,D_D[EP],-1, D_D[LOC],$A9),0) -> 1193 | J9: 0.1497238956 | K9: =IFERROR(SUMIFS(D_D[INV],D_D[MT],2,D_D[CAT],TA_23,D_D[EP],-1, D_D[LOC],$A9),0) -> 663 | L9: =IFERROR(SUMIFS(D_D[BL],D_D[MT],2,D_D[CAT],TA_23,D_D[EP],-1, D_D[LOC],$A9),0) -> 103 | M9: 0.1553544495 | N9: =IFERROR(SUMIFS(D_D[INV],D_D[MT],2,D_D[CAT],TA_24,D_D[EP],-1, D_D[LOC],$A9),0) -> 981 | O9: =IFERROR(SUMIFS(D_D[BL],D_D[MT],2,D_D[CAT],TA_24,D_D[EP],-1, D_D[LOC],$A9),0) -> 203 | P9: 0.2069317023 | Q9: =IFERROR(SUMIFS(D_D[INV],D_D[MT],2,D_D[CAT],TA_25,D_D[EP],-1, D_D[LOC],$A9),0) -> 106 | R9: =IFERROR(SUMIFS(D_D[INV],D_D[MT],2,D_D[CAT],TA_26,D_D[EP],-1, D_D[LOC],$A9),0) -> 3 | S9: =IFERROR(SUMIFS(D_D[INV],D_D[MT],7,D_D[CAT],2,D_D[EP],TA_20, D_D[LOC],$A9),0) -> 2
A10: 301 | B10: Boston | C10: =IFERROR(SUMIFS(D_D[INV],D_D[MT],1,D_D[CAT],TA_20,D_D[EP],-1, D_D[LOC],$A10),0) -> 1808 | D10: =IFERROR(SUMIFS(D_D[ADP],D_D[MT],1,D_D[CAT],D$1,D_D[EP],-1, D_D[LOC],$A10),0) -> 91.43 | E10: =IFERROR(SUMIFS(D_D[INV],D_D[MT],2,D_D[CAT],TA_21,D_D[EP],-1, D_D[LOC],$A10),0) -> 6391 | F10: =IFERROR(SUMIFS(D_D[BL],D_D[MT],2,D_D[CAT],TA_21,D_D[EP],-1, D_D[LOC],$A10),0) -> 2431 | G10: =IFERROR(F10/E10,"0%") -> 0.3803786575 | H10: =IFERROR(SUMIFS(D_D[INV],D_D[MT],2,D_D[CAT],TA_22,D_D[EP],-1, D_D[LOC],$A10),0) -> 3979 | I10: =IFERROR(SUMIFS(D_D[BL],D_D[MT],2,D_D[CAT],TA_22,D_D[EP],-1, D_D[LOC],$A10),0) -> 480 | J10: =IFERROR(I10/H10,"0%") -> 0.120633325 | K10: =IFERROR(SUMIFS(D_D[INV],D_D[MT],2,D_D[CAT],TA_23,D_D[EP],-1, D_D[LOC],$A10),0) -> 86 | L10: =IFERROR(SUMIFS(D_D[BL],D_D[MT],2,D_D[CAT],TA_23,D_D[EP],-1, D_D[LOC],$A10),0) -> 28 | M10: =IFERROR(L10/K10,"0%") -> 0.3255813953 | N10: =IFERROR(SUMIFS(D_D[INV],D_D[MT],2,D_D[CAT],TA_24,D_D[EP],-1, D_D[LOC],$A10),0) -> 230 | O10: =IFERROR(SUMIFS(D_D[BL],D_D[MT],2,D_D[CAT],TA_24,D_D[EP],-1, D_D[LOC],$A10),0) -> 145 | P10: =IFERROR(O10/N10,"0%") -> 0.6304347826 | Q10: =IFERROR(SUMIFS(D_D[INV],D_D[MT],2,D_D[CAT],TA_25,D_D[EP],-1, D_D[LOC],$A10),0) -> 94 | R10: =IFERROR(SUMIFS(D_D[INV],D_D[MT],2,D_D[CAT],TA_26,D_D[EP],-1, D_D[LOC],$A10),0) -> 1 | S10: =IFERROR(SUMIFS(D_D[INV],D_D[MT],7,D_D[CAT],2,D_D[EP],TA_20, D_D[LOC],$A10),0) -> 1
A11: 307 | B11: Buffalo | C11: =IFERROR(SUMIFS(D_D[INV],D_D[MT],1,D_D[CAT],TA_20,D_D[EP],-1, D_D[LOC],$A11),0) -> 2443 | D11: =IFERROR(SUMIFS(D_D[ADP],D_D[MT],1,D_D[CAT],D$1,D_D[EP],-1, D_D[LOC],$A11),0) -> 87.29 | E11: =IFERROR(SUMIFS(D_D[INV],D_D[MT],2,D_D[CAT],TA_21,D_D[EP],-1, D_D[LOC],$A11),0) -> 7982 | F11: =IFERROR(SUMIFS(D_D[BL],D_D[MT],2,D_D[CAT],TA_21,D_D[EP],-1, D_D[LOC],$A11),0) -> 3056 | G11: 0.3828614382 | H11: =IFERROR(SUMIFS(D_D[INV],D_D[MT],2,D_D[CAT],TA_22,D_D[EP],-1, D_D[LOC],$A11),0) -> 4246 | I11: =IFERROR(SUMIFS(D_D[BL],D_D[MT],2,D_D[CAT],TA_22,D_D[EP],-1, D_D[LOC],$A11),0) -> 670 | J11: 0.1577955723 | K11: =IFERROR(SUMIFS(D_D[INV],D_D[MT],2,D_D[CAT],TA_23,D_D[EP],-1, D_D[LOC],$A11),0) -> 121 | L11: =IFERROR(SUMIFS(D_D[BL],D_D[MT],2,D_D[CAT],TA_23,D_D[EP],-1, D_D[LOC],$A11),0) -> 33 | M11: 0.2727272727 | N11: =IFERROR(SUMIFS(D_D[INV],D_D[MT],2,D_D[CAT],TA_24,D_D[EP],-1, D_D[LOC],$A11),0) -> 320 | O11: =IFERROR(SUMIFS(D_D[BL],D_D[MT],2,D_D[CAT],TA_24,D_D[EP],-1, D_D[LOC],$A11),0) -> 207 | P11: 0.646875 | Q11: =IFERROR(SUMIFS(D_D[INV],D_D[MT],2,D_D[CAT],TA_25,D_D[EP],-1, D_D[LOC],$A11),0) -> 142 | R11: =IFERROR(SUMIFS(D_D[INV],D_D[MT],2,D_D[CAT],TA_26,D_D[EP],-1, D_D[LOC],$A11),0) -> 4 | S11: =IFERROR(SUMIFS(D_D[INV],D_D[MT],7,D_D[CAT],2,D_D[EP],TA_20, D_D[LOC],$A11),0) -> 2
A12: 328 | B12: Chicago | C12: =IFERROR(SUMIFS(D_D[INV],D_D[MT],1,D_D[CAT],TA_20,D_D[EP],-1, D_D[LOC],$A12),0) -> 4877 | D12: =IFERROR(SUMIFS(D_D[ADP],D_D[MT],1,D_D[CAT],D$1,D_D[EP],-1, D_D[LOC],$A12),0) -> 89.36 | E12: =IFERROR(SUMIFS(D_D[INV],D_D[MT],2,D_D[CAT],TA_21,D_D[EP],-1, D_D[LOC],$A12),0) -> 18774 | F12: =IFERROR(SUMIFS(D_D[BL],D_D[MT],2,D_D[CAT],TA_21,D_D[EP],-1, D_D[LOC],$A12),0) -> 7402 | G12: 0.3942686694 | H12: =IFERROR(SUMIFS(D_D[INV],D_D[MT],2,D_D[CAT],TA_22,D_D[EP],-1, D_D[LOC],$A12),0) -> 7965 | I12: =IFERROR(SUMIFS(D_D[BL],D_D[MT],2,D_D[CAT],TA_22,D_D[EP],-1, D_D[LOC],$A12),0) -> 1207 | J12: 0.1515379787 | K12: =IFERROR(SUMIFS(D_D[INV],D_D[MT],2,D_D[CAT],TA_23,D_D[EP],-1, D_D[LOC],$A12),0) -> 213 | L12: =IFERROR(SUMIFS(D_D[BL],D_D[MT],2,D_D[CAT],TA_23,D_D[EP],-1, D_D[LOC],$A12),0) -> 80 | M12: 0.3755868545 | N12: =IFERROR(SUMIFS(D_D[INV],D_D[MT],2,D_D[CAT],TA_24,D_D[EP],-1, D_D[LOC],$A12),0) -> 651 | O12: =IFERROR(SUMIFS(D_D[BL],D_D[MT],2,D_D[CAT],TA_24,D_D[EP],-1, D_D[LOC],$A12),0) -> 371 | P12: 0.5698924731 | Q12: =IFERROR(SUMIFS(D_D[INV],D_D[MT],2,D_D[CAT],TA_25,D_D[EP],-1, D_D[LOC],$A12),0) -> 240 | R12: =IFERROR(SUMIFS(D_D[INV],D_D[MT],2,D_D[CAT],TA_26,D_D[EP],-1, D_D[LOC],$A12),0) -> 8 | S12: =IFERROR(SUMIFS(D_D[INV],D_D[MT],7,D_D[CAT],2,D_D[EP],TA_20, D_D[LOC],$A12),0) -> 2
A13: 325 | B13: Cleveland | C13: =IFERROR(SUMIFS(D_D[INV],D_D[MT],1,D_D[CAT],TA_20,D_D[EP],-1, D_D[LOC],$A13),0) -> 6874 | D13: =IFERROR(SUMIFS(D_D[ADP],D_D[MT],1,D_D[CAT],D$1,D_D[EP],-1, D_D[LOC],$A13),0) -> 94.6 | E13: =IFERROR(SUMIFS(D_D[INV],D_D[MT],2,D_D[CAT],TA_21,D_D[EP],-1, D_D[LOC],$A13),0) -> 23326 | F13: =IFERROR(SUMIFS(D_D[BL],D_D[MT],2,D_D[CAT],TA_21,D_D[EP],-1, D_D[LOC],$A13),0) -> 8437 | G13: 0.3616993912 | H13: =IFERROR(SUMIFS(D_D[INV],D_D[MT],2,D_D[CAT],TA_22,D_D[EP],-1, D_D[LOC],$A13),0) -> 10794 | I13: =IFERROR(SUMIFS(D_D[BL],D_D[MT],2,D_D[CAT],TA_22,D_D[EP],-1, D_D[LOC],$A13),0) -> 2001 | J13: 0.1853807671 | K13: =IFERROR(SUMIFS(D_D[INV],D_D[MT],2,D_D[CAT],TA_23,D_D[EP],-1, D_D[LOC],$A13),0) -> 298 | L13: =IFERROR(SUMIFS(D_D[BL],D_D[MT],2,D_D[CAT],TA_23,D_D[EP],-1, D_D[LOC],$A13),0) -> 74 | M13: 0.2483221477 | N13: =IFERROR(SUMIFS(D_D[INV],D_D[MT],2,D_D[CAT],TA_24,D_D[EP],-1, D_D[LOC],$A13),0) -> 997 | O13: =IFERROR(SUMIFS(D_D[BL],D_D[MT],2,D_D[CAT],TA_24,D_D[EP],-1, D_D[LOC],$A13),0) -> 597 | P13: 0.5987963892 | Q13: =IFERROR(SUMIFS(D_D[INV],D_D[MT],2,D_D[CAT],TA_25,D_D[EP],-1, D_D[LOC],$A13),0) -> 299 | R13: =IFERROR(SUMIFS(D_D[INV],D_D[MT],2,D_D[CAT],TA_26,D_D[EP],-1, D_D[LOC],$A13),0) -> 10 | S13: =IFERROR(SUMIFS(D_D[INV],D_D[MT],7,D_D[CAT],2,D_D[EP],TA_20, D_D[LOC],$A13),0) -> 3
A14: 329 | B14: Detroit | C14: =IFERROR(SUMIFS(D_D[INV],D_D[MT],1,D_D[CAT],TA_20,D_D[EP],-1, D_D[LOC],$A14),0) -> 6215 | D14: =IFERROR(SUMIFS(D_D[ADP],D_D[MT],1,D_D[CAT],D$1,D_D[EP],-1, D_D[LOC],$A14),0) -> 88.86 | E14: =IFERROR(SUMIFS(D_D[INV],D_D[MT],2,D_D[CAT],TA_21,D_D[EP],-1, D_D[LOC],$A14),0) -> 15940 | F14: =IFERROR(SUMIFS(D_D[BL],D_D[MT],2,D_D[CAT],TA_21,D_D[EP],-1, D_D[LOC],$A14),0) -> 6176 | G14: 0.3874529486 | H14: =IFERROR(SUMIFS(D_D[INV],D_D[MT],2,D_D[CAT],TA_22,D_D[EP],-1, D_D[LOC],$A14),0) -> 16210 | I14: =IFERROR(SUMIFS(D_D[BL],D_D[MT],2,D_D[CAT],TA_22,D_D[EP],-1, D_D[LOC],$A14),0) -> 6393 | J14: 0.3943861814 | K14: =IFERROR(SUMIFS(D_D[INV],D_D[MT],2,D_D[CAT],TA_23,D_D[EP],-1, D_D[LOC],$A14),0) -> 220 | L14: =IFERROR(SUMIFS(D_D[BL],D_D[MT],2,D_D[CAT],TA_23,D_D[EP],-1, D_D[LOC],$A14),0) -> 54 | M14: 0.2454545455 | N14: =IFERROR(SUMIFS(D_D[INV],D_D[MT],2,D_D[CAT],TA_24,D_D[EP],-1, D_D[LOC],$A14),0) -> 692 | O14: =IFERROR(SUMIFS(D_D[BL],D_D[MT],2,D_D[CAT],TA_24,D_D[EP],-1, D_D[LOC],$A14),0) -> 417 | P14: 0.6026011561 | Q14: =IFERROR(SUMIFS(D_D[INV],D_D[MT],2,D_D[CAT],TA_25,D_D[EP],-1, D_D[LOC],$A14),0) -> 242 | R14: =IFERROR(SUMIFS(D_D[INV],D_D[MT],2,D_D[CAT],TA_26,D_D[EP],-1, D_D[LOC],$A14),0) -> 14 | S14: =IFERROR(SUMIFS(D_D[INV],D_D[MT],7,D_D[CAT],2,D_D[EP],TA_20, D_D[LOC],$A14),0) -> 1
A15: 308 | B15: Hartford | C15: =IFERROR(SUMIFS(D_D[INV],D_D[MT],1,D_D[CAT],TA_20,D_D[EP],-1, D_D[LOC],$A15),0) -> 982 | D15: =IFERROR(SUMIFS(D_D[ADP],D_D[MT],1,D_D[CAT],D$1,D_D[EP],-1, D_D[LOC],$A15),0) -> 86.65 | E15: =IFERROR(SUMIFS(D_D[INV],D_D[MT],2,D_D[CAT],TA_21,D_D[EP],-1, D_D[LOC],$A15),0) -> 4238 | F15: =IFERROR(SUMIFS(D_D[BL],D_D[MT],2,D_D[CAT],TA_21,D_D[EP],-1, D_D[LOC],$A15),0) -> 1715 | G15: 0.4046720151 | H15: =IFERROR(SUMIFS(D_D[INV],D_D[MT],2,D_D[CAT],TA_22,D_D[EP],-1, D_D[LOC],$A15),0) -> 2446 | I15: =IFERROR(SUMIFS(D_D[BL],D_D[MT],2,D_D[CAT],TA_22,D_D[EP],-1, D_D[LOC],$A15),0) -> 290 | J15: 0.1185609158 | K15: =IFERROR(SUMIFS(D_D[INV],D_D[MT],2,D_D[CAT],TA_23,D_D[EP],-1, D_D[LOC],$A15),0) -> 82 | L15: =IFERROR(SUMIFS(D_D[BL],D_D[MT],2,D_D[CAT],TA_23,D_D[EP],-1, D_D[LOC],$A15),0) -> 11 | M15: 0.1341463415 | N15: =IFERROR(SUMIFS(D_D[INV],D_D[MT],2,D_D[CAT],TA_24,D_D[EP],-1, D_D[LOC],$A15),0) -> 373 | O15: =IFERROR(SUMIFS(D_D[BL],D_D[MT],2,D_D[CAT],TA_24,D_D[EP],-1, D_D[LOC],$A15),0) -> 175 | P15: 0.4691689008 | Q15: =IFERROR(SUMIFS(D_D[INV],D_D[MT],2,D_D[CAT],TA_25,D_D[EP],-1, D_D[LOC],$A15),0) -> 50 | R15: =IFERROR(SUMIFS(D_D[INV],D_D[MT],2,D_D[CAT],TA_26,D_D[EP],-1, D_D[LOC],$A15),0) -> 7 | S15: =IFERROR(SUMIFS(D_D[INV],D_D[MT],7,D_D[CAT],2,D_D[EP],TA_20, D_D[LOC],$A15),0) -> 0
A16: 326 | B16: Indianapolis | C16: =IFERROR(SUMIFS(D_D[INV],D_D[MT],1,D_D[CAT],TA_20,D_D[EP],-1, D_D[LOC],$A16),0) -> 6459 | D16: =IFERROR(SUMIFS(D_D[ADP],D_D[MT],1,D_D[CAT],D$1,D_D[EP],-1, D_D[LOC],$A16),0) -> 75.8 | E16: =IFERROR(SUMIFS(D_D[INV],D_D[MT],2,D_D[CAT],TA_21,D_D[EP],-1, D_D[LOC],$A16),0) -> 13963 | F16: =IFERROR(SUMIFS(D_D[BL],D_D[MT],2,D_D[CAT],TA_21,D_D[EP],-1, D_D[LOC],$A16),0) -> 5128 | G16: 0.3672563203 | H16: =IFERROR(SUMIFS(D_D[INV],D_D[MT],2,D_D[CAT],TA_22,D_D[EP],-1, D_D[LOC],$A16),0) -> 9127 | I16: =IFERROR(SUMIFS(D_D[BL],D_D[MT],2,D_D[CAT],TA_22,D_D[EP],-1, D_D[LOC],$A16),0) -> 1334 | J16: 0.1461597458 | K16: =IFERROR(SUMIFS(D_D[INV],D_D[MT],2,D_D[CAT],TA_23,D_D[EP],-1, D_D[LOC],$A16),0) -> 231 | L16: =IFERROR(SUMIFS(D_D[BL],D_D[MT],2,D_D[CAT],TA_23,D_D[EP],-1, D_D[LOC],$A16),0) -> 41 | M16: 0.1774891775 | N16: =IFERROR(SUMIFS(D_D[INV],D_D[MT],2,D_D[CAT],TA_24,D_D[EP],-1, D_D[LOC],$A16),0) -> 516 | O16: =IFERROR(SUMIFS(D_D[BL],D_D[MT],2,D_D[CAT],TA_24,D_D[EP],-1, D_D[LOC],$A16),0) -> 243 | P16: 0.4709302326 | Q16: =IFERROR(SUMIFS(D_D[INV],D_D[MT],2,D_D[CAT],TA_25,D_D[EP],-1, D_D[LOC],$A16),0) -> 152 | R16: =IFERROR(SUMIFS(D_D[INV],D_D[MT],2,D_D[CAT],TA_26,D_D[EP],-1, D_D[LOC],$A16),0) -> 9 | S16: =IFERROR(SUMIFS(D_D[INV],D_D[MT],7,D_D[CAT],2,D_D[EP],TA_20, D_D[LOC],$A16),0) -> 0
A17: 373 | B17: Manchester | C17: =IFERROR(SUMIFS(D_D[INV],D_D[MT],1,D_D[CAT],TA_20,D_D[EP],-1, D_D[LOC],$A17),0) -> 670 | D17: =IFERROR(SUMIFS(D_D[ADP],D_D[MT],1,D_D[CAT],D$1,D_D[EP],-1, D_D[LOC],$A17),0) -> 93.71 | E17: =IFERROR(SUMIFS(D_D[INV],D_D[MT],2,D_D[CAT],TA_21,D_D[EP],-1, D_D[LOC],$A17),0) -> 2445 | F17: =IFERROR(SUMIFS(D_D[BL],D_D[MT],2,D_D[CAT],TA_21,D_D[EP],-1, D_D[LOC],$A17),0) -> 939 | G17: 0.3840490798 | H17: =IFERROR(SUMIFS(D_D[INV],D_D[MT],2,D_D[CAT],TA_22,D_D[EP],-1, D_D[LOC],$A17),0) -> 1364 | I17: =IFERROR(SUMIFS(D_D[BL],D_D[MT],2,D_D[CAT],TA_22,D_D[EP],-1, D_D[LOC],$A17),0) -> 209 | J17: 0.1532258065 | K17: =IFERROR(SUMIFS(D_D[INV],D_D[MT],2,D_D[CAT],TA_23,D_D[EP],-1, D_D[LOC],$A17),0) -> 28 | L17: =IFERROR(SUMIFS(D_D[BL],D_D[MT],2,D_D[CAT],TA_23,D_D[EP],-1, D_D[LOC],$A17),0) -> 8 | M17: 0.2857142857 | N17: =IFERROR(SUMIFS(D_D[INV],D_D[MT],2,D_D[CAT],TA_24,D_D[EP],-1, D_D[LOC],$A17),0) -> 102 | O17: =IFERROR(SUMIFS(D_D[BL],D_D[MT],2,D_D[CAT],TA_24,D_D[EP],-1, D_D[LOC],$A17),0) -> 64 | P17: 0.6274509804 | Q17: =IFERROR(SUMIFS(D_D[INV],D_D[MT],2,D_D[CAT],TA_25,D_D[EP],-1, D_D[LOC],$A17),0) -> 51 | R17: =IFERROR(SUMIFS(D_D[INV],D_D[MT],2,D_D[CAT],TA_26,D_D[EP],-1, D_D[LOC],$A17),0) -> 3 | S17: =IFERROR(SUMIFS(D_D[INV],D_D[MT],7,D_D[CAT],2,D_D[EP],TA_20, D_D[LOC],$A17),0) -> 1
A18: 330 | B18: Milwaukee | C18: =IFERROR(SUMIFS(D_D[INV],D_D[MT],1,D_D[CAT],TA_20,D_D[EP],-1, D_D[LOC],$A18),0) -> 7070 | D18: =IFERROR(SUMIFS(D_D[ADP],D_D[MT],1,D_D[CAT],D$1,D_D[EP],-1, D_D[LOC],$A18),0) -> 78.98 | E18: =IFERROR(SUMIFS(D_D[INV],D_D[MT],2,D_D[CAT],TA_21,D_D[EP],-1, D_D[LOC],$A18),0) -> 12107 | F18: =IFERROR(SUMIFS(D_D[BL],D_D[MT],2,D_D[CAT],TA_21,D_D[EP],-1, D_D[LOC],$A18),0) -> 4530 | G18: 0.3741637069 | H18: =IFERROR(SUMIFS(D_D[INV],D_D[MT],2,D_D[CAT],TA_22,D_D[EP],-1, D_D[LOC],$A18),0) -> 32883 | I18: =IFERROR(SUMIFS(D_D[BL],D_D[MT],2,D_D[CAT],TA_22,D_D[EP],-1, D_D[LOC],$A18),0) -> 13555 | J18: 0.4122190798 | K18: =IFERROR(SUMIFS(D_D[INV],D_D[MT],2,D_D[CAT],TA_23,D_D[EP],-1, D_D[LOC],$A18),0) -> 327 | L18: =IFERROR(SUMIFS(D_D[BL],D_D[MT],2,D_D[CAT],TA_23,D_D[EP],-1, D_D[LOC],$A18),0) -> 70 | M18: 0.2140672783 | N18: =IFERROR(SUMIFS(D_D[INV],D_D[MT],2,D_D[CAT],TA_24,D_D[EP],-1, D_D[LOC],$A18),0) -> 857 | O18: =IFERROR(SUMIFS(D_D[BL],D_D[MT],2,D_D[CAT],TA_24,D_D[EP],-1, D_D[LOC],$A18),0) -> 526 | P18: 0.6137689615 | Q18: =IFERROR(SUMIFS(D_D[INV],D_D[MT],2,D_D[CAT],TA_25,D_D[EP],-1, D_D[LOC],$A18),0) -> 606 | R18: =IFERROR(SUMIFS(D_D[INV],D_D[MT],2,D_D[CAT],TA_26,D_D[EP],-1, D_D[LOC],$A18),0) -> 0 | S18: =IFERROR(SUMIFS(D_D[INV],D_D[MT],7,D_D[CAT],2,D_D[EP],TA_20, D_D[LOC],$A18),0) -> 2
A19: 306 | B19: New York | C19: =IFERROR(SUMIFS(D_D[INV],D_D[MT],1,D_D[CAT],TA_20,D_D[EP],-1, D_D[LOC],$A19),0) -> 2832 | D19: =IFERROR(SUMIFS(D_D[ADP],D_D[MT],1,D_D[CAT],D$1,D_D[EP],-1, D_D[LOC],$A19),0) -> 84.76 | E19: =IFERROR(SUMIFS(D_D[INV],D_D[MT],2,D_D[CAT],TA_21,D_D[EP],-1, D_D[LOC],$A19),0) -> 11371 | F19: =IFERROR(SUMIFS(D_D[BL],D_D[MT],2,D_D[CAT],TA_21,D_D[EP],-1, D_D[LOC],$A19),0) -> 4561 | G19: 0.401108082 | H19: =IFERROR(SUMIFS(D_D[INV],D_D[MT],2,D_D[CAT],TA_22,D_D[EP],-1, D_D[LOC],$A19),0) -> 5941 | I19: =IFERROR(SUMIFS(D_D[BL],D_D[MT],2,D_D[CAT],TA_22,D_D[EP],-1, D_D[LOC],$A19),0) -> 703 | J19: 0.1183302474 | K19: =IFERROR(SUMIFS(D_D[INV],D_D[MT],2,D_D[CAT],TA_23,D_D[EP],-1, D_D[LOC],$A19),0) -> 200 | L19: =IFERROR(SUMIFS(D_D[BL],D_D[MT],2,D_D[CAT],TA_23,D_D[EP],-1, D_D[LOC],$A19),0) -> 60 | M19: 0.3 | N19: =IFERROR(SUMIFS(D_D[INV],D_D[MT],2,D_D[CAT],TA_24,D_D[EP],-1, D_D[LOC],$A19),0) -> 285 | O19: =IFERROR(SUMIFS(D_D[BL],D_D[MT],2,D_D[CAT],TA_24,D_D[EP],-1, D_D[LOC],$A19),0) -> 189 | P19: 0.6631578947 | Q19: =IFERROR(SUMIFS(D_D[INV],D_D[MT],2,D_D[CAT],TA_25,D_D[EP],-1, D_D[LOC],$A19),0) -> 128 | R19: =IFERROR(SUMIFS(D_D[INV],D_D[MT],2,D_D[CAT],TA_26,D_D[EP],-1, D_D[LOC],$A19),0) -> 2 | S19: =IFERROR(SUMIFS(D_D[INV],D_D[MT],7,D_D[CAT],2,D_D[EP],TA_20, D_D[LOC],$A19),0) -> 4
A20: 309 | B20: Newark | C20: =IFERROR(SUMIFS(D_D[INV],D_D[MT],1,D_D[CAT],TA_20,D_D[EP],-1, D_D[LOC],$A20),0) -> 1796 | D20: =IFERROR(SUMIFS(D_D[ADP],D_D[MT],1,D_D[CAT],D$1,D_D[EP],-1, D_D[LOC],$A20),0) -> 86.73 | E20: =IFERROR(SUMIFS(D_D[INV],D_D[MT],2,D_D[CAT],TA_21,D_D[EP],-1, D_D[LOC],$A20),0) -> 6973 | F20: =IFERROR(SUMIFS(D_D[BL],D_D[MT],2,D_D[CAT],TA_21,D_D[EP],-1, D_D[LOC],$A20),0) -> 2874 | G20: 0.4121611932 | H20: =IFERROR(SUMIFS(D_D[INV],D_D[MT],2,D_D[CAT],TA_22,D_D[EP],-1, D_D[LOC],$A20),0) -> 3642 | I20: =IFERROR(SUMIFS(D_D[BL],D_D[MT],2,D_D[CAT],TA_22,D_D[EP],-1, D_D[LOC],$A20),0) -> 488 | J20: 0.1339923119 | K20: =IFERROR(SUMIFS(D_D[INV],D_D[MT],2,D_D[CAT],TA_23,D_D[EP],-1, D_D[LOC],$A20),0) -> 84 | L20: =IFERROR(SUMIFS(D_D[BL],D_D[MT],2,D_D[CAT],TA_23,D_D[EP],-1, D_D[LOC],$A20),0) -> 17 | M20: 0.2023809524 | N20: =IFERROR(SUMIFS(D_D[INV],D_D[MT],2,D_D[CAT],TA_24,D_D[EP],-1, D_D[LOC],$A20),0) -> 321 | O20: =IFERROR(SUMIFS(D_D[BL],D_D[MT],2,D_D[CAT],TA_24,D_D[EP],-1, D_D[LOC],$A20),0) -> 189 | P20: 0.5887850467 | Q20: =IFERROR(SUMIFS(D_D[INV],D_D[MT],2,D_D[CAT],TA_25,D_D[EP],-1, D_D[LOC],$A20),0) -> 77 | R20: =IFERROR(SUMIFS(D_D[INV],D_D[MT],2,D_D[CAT],TA_26,D_D[EP],-1, D_D[LOC],$A20),0) -> 4 | S20: =IFERROR(SUMIFS(D_D[INV],D_D[MT],7,D_D[CAT],2,D_D[EP],TA_20, D_D[LOC],$A20),0) -> 3
A21: 310 | B21: Philadelphia | C21: =IFERROR(SUMIFS(D_D[INV],D_D[MT],1,D_D[CAT],TA_20,D_D[EP],-1, D_D[LOC],$A21),0) -> 6077 | D21: =IFERROR(SUMIFS(D_D[ADP],D_D[MT],1,D_D[CAT],D$1,D_D[EP],-1, D_D[LOC],$A21),0) -> 82.25 | E21: =IFERROR(SUMIFS(D_D[INV],D_D[MT],2,D_D[CAT],TA_21,D_D[EP],-1, D_D[LOC],$A21),0) -> 17041 | F21: =IFERROR(SUMIFS(D_D[BL],D_D[MT],2,D_D[CAT],TA_21,D_D[EP],-1, D_D[LOC],$A21),0) -> 6933 | G21: 0.4068423215 | H21: =IFERROR(SUMIFS(D_D[INV],D_D[MT],2,D_D[CAT],TA_22,D_D[EP],-1, D_D[LOC],$A21),0) -> 16295 | I21: =IFERROR(SUMIFS(D_D[BL],D_D[MT],2,D_D[CAT],TA_22,D_D[EP],-1, D_D[LOC],$A21),0) -> 1807 | J21: 0.1108929119 | K21: =IFERROR(SUMIFS(D_D[INV],D_D[MT],2,D_D[CAT],TA_23,D_D[EP],-1, D_D[LOC],$A21),0) -> 353 | L21: =IFERROR(SUMIFS(D_D[BL],D_D[MT],2,D_D[CAT],TA_23,D_D[EP],-1, D_D[LOC],$A21),0) -> 108 | M21: 0.3059490085 | N21: =IFERROR(SUMIFS(D_D[INV],D_D[MT],2,D_D[CAT],TA_24,D_D[EP],-1, D_D[LOC],$A21),0) -> 1047 | O21: =IFERROR(SUMIFS(D_D[BL],D_D[MT],2,D_D[CAT],TA_24,D_D[EP],-1, D_D[LOC],$A21),0) -> 642 | P21: 0.6131805158 | Q21: =IFERROR(SUMIFS(D_D[INV],D_D[MT],2,D_D[CAT],TA_25,D_D[EP],-1, D_D[LOC],$A21),0) -> 944 | R21: =IFERROR(SUMIFS(D_D[INV],D_D[MT],2,D_D[CAT],TA_26,D_D[EP],-1, D_D[LOC],$A21),0) -> 0 | S21: =IFERROR(SUMIFS(D_D[INV],D_D[MT],7,D_D[CAT],2,D_D[EP],TA_20, D_D[LOC],$A21),0) -> 4
A22: 311 | B22: Pittsburgh | C22: =IFERROR(SUMIFS(D_D[INV],D_D[MT],1,D_D[CAT],TA_20,D_D[EP],-1, D_D[LOC],$A22),0) -> 3977 | D22: =IFERROR(SUMIFS(D_D[ADP],D_D[MT],1,D_D[CAT],D$1,D_D[EP],-1, D_D[LOC],$A22),0) -> 87.17 | E22: =IFERROR(SUMIFS(D_D[INV],D_D[MT],2,D_D[CAT],TA_21,D_D[EP],-1, D_D[LOC],$A22),0) -> 13120 | F22: =IFERROR(SUMIFS(D_D[BL],D_D[MT],2,D_D[CAT],TA_21,D_D[EP],-1, D_D[LOC],$A22),0) -> 5687 | G22: 0.4334603659 | H22: =IFERROR(SUMIFS(D_D[INV],D_D[MT],2,D_D[CAT],TA_22,D_D[EP],-1, D_D[LOC],$A22),0) -> 6948 | I22: =IFERROR(SUMIFS(D_D[BL],D_D[MT],2,D_D[CAT],TA_22,D_D[EP],-1, D_D[LOC],$A22),0) -> 1307 | J22: 0.1881116868 | K22: =IFERROR(SUMIFS(D_D[INV],D_D[MT],2,D_D[CAT],TA_23,D_D[EP],-1, D_D[LOC],$A22),0) -> 495 | L22: =IFERROR(SUMIFS(D_D[BL],D_D[MT],2,D_D[CAT],TA_23,D_D[EP],-1, D_D[LOC],$A22),0) -> 141 | M22: 0.2848484848 | N22: =IFERROR(SUMIFS(D_D[INV],D_D[MT],2,D_D[CAT],TA_24,D_D[EP],-1, D_D[LOC],$A22),0) -> 455 | O22: =IFERROR(SUMIFS(D_D[BL],D_D[MT],2,D_D[CAT],TA_24,D_D[EP],-1, D_D[LOC],$A22),0) -> 273 | P22: 0.6 | Q22: =IFERROR(SUMIFS(D_D[INV],D_D[MT],2,D_D[CAT],TA_25,D_D[EP],-1, D_D[LOC],$A22),0) -> 123 | R22: =IFERROR(SUMIFS(D_D[INV],D_D[MT],2,D_D[CAT],TA_26,D_D[EP],-1, D_D[LOC],$A22),0) -> 2 | S22: =IFERROR(SUMIFS(D_D[INV],D_D[MT],7,D_D[CAT],2,D_D[EP],TA_20, D_D[LOC],$A22),0) -> 0
A23: 304 | B23: Providence | C23: =IFERROR(SUMIFS(D_D[INV],D_D[MT],1,D_D[CAT],TA_20,D_D[EP],-1, D_D[LOC],$A23),0) -> 1164 | D23: =IFERROR(SUMIFS(D_D[ADP],D_D[MT],1,D_D[CAT],D$1,D_D[EP],-1, D_D[LOC],$A23),0) -> 77.88 | E23: =IFERROR(SUMIFS(D_D[INV],D_D[MT],2,D_D[CAT],TA_21,D_D[EP],-1, D_D[LOC],$A23),0) -> 3880 | F23: =IFERROR(SUMIFS(D_D[BL],D_D[MT],2,D_D[CAT],TA_21,D_D[EP],-1, D_D[LOC],$A23),0) -> 1322 | G23: 0.3407216495 | H23: =IFERROR(SUMIFS(D_D[INV],D_D[MT],2,D_D[CAT],TA_22,D_D[EP],-1, D_D[LOC],$A23),0) -> 2259 | I23: =IFERROR(SUMIFS(D_D[BL],D_D[MT],2,D_D[CAT],TA_22,D_D[EP],-1, D_D[LOC],$A23),0) -> 295 | J23: 0.1305887561 | K23: =IFERROR(SUMIFS(D_D[INV],D_D[MT],2,D_D[CAT],TA_23,D_D[EP],-1, D_D[LOC],$A23),0) -> 60 | L23: =IFERROR(SUMIFS(D_D[BL],D_D[MT],2,D_D[CAT],TA_23,D_D[EP],-1, D_D[LOC],$A23),0) -> 17 | M23: 0.2833333333 | N23: =IFERROR(SUMIFS(D_D[INV],D_D[MT],2,D_D[CAT],TA_24,D_D[EP],-1, D_D[LOC],$A23),0) -> 197 | O23: =IFERROR(SUMIFS(D_D[BL],D_D[MT],2,D_D[CAT],TA_24,D_D[EP],-1, D_D[LOC],$A23),0) -> 106 | P23: 0.538071066 | Q23: =IFERROR(SUMIFS(D_D[INV],D_D[MT],2,D_D[CAT],TA_25,D_D[EP],-1, D_D[LOC],$A23),0) -> 42 | R23: =IFERROR(SUMIFS(D_D[INV],D_D[MT],2,D_D[CAT],TA_26,D_D[EP],-1, D_D[LOC],$A23),0) -> 4 | S23: =IFERROR(SUMIFS(D_D[INV],D_D[MT],7,D_D[CAT],2,D_D[EP],TA_20, D_D[LOC],$A23),0) -> 0
A24: 376 | B24: St. Louis RMC | C24: =IFERROR(SUMIFS(D_D[INV],D_D[MT],1,D_D[CAT],TA_20,D_D[EP],-1, D_D[LOC],$A24),0) -> 5 | D24: =IFERROR(SUMIFS(D_D[ADP],D_D[MT],1,D_D[CAT],D$1,D_D[EP],-1, D_D[LOC],$A24),0) -> 295 | E24: =IFERROR(SUMIFS(D_D[INV],D_D[MT],2,D_D[CAT],TA_21,D_D[EP],-1, D_D[LOC],$A24),0) -> 1 | F24: =IFERROR(SUMIFS(D_D[BL],D_D[MT],2,D_D[CAT],TA_21,D_D[EP],-1, D_D[LOC],$A24),0) -> 1 | G24: 1 | H24: =IFERROR(SUMIFS(D_D[INV],D_D[MT],2,D_D[CAT],TA_22,D_D[EP],-1, D_D[LOC],$A24),0) -> 5 | I24: =IFERROR(SUMIFS(D_D[BL],D_D[MT],2,D_D[CAT],TA_22,D_D[EP],-1, D_D[LOC],$A24),0) -> 5 | J24: 1 | K24: =IFERROR(SUMIFS(D_D[INV],D_D[MT],2,D_D[CAT],TA_23,D_D[EP],-1, D_D[LOC],$A24),0) -> 0 | L24: =IFERROR(SUMIFS(D_D[BL],D_D[MT],2,D_D[CAT],TA_23,D_D[EP],-1, D_D[LOC],$A24),0) -> 0 | M24: 0% | N24: =IFERROR(SUMIFS(D_D[INV],D_D[MT],2,D_D[CAT],TA_24,D_D[EP],-1, D_D[LOC],$A24),0) -> 42302 | O24: =IFERROR(SUMIFS(D_D[BL],D_D[MT],2,D_D[CAT],TA_24,D_D[EP],-1, D_D[LOC],$A24),0) -> 10877 | P24: 0.2571273226 | Q24: =IFERROR(SUMIFS(D_D[INV],D_D[MT],2,D_D[CAT],TA_25,D_D[EP],-1, D_D[LOC],$A24),0) -> 0 | R24: =IFERROR(SUMIFS(D_D[INV],D_D[MT],2,D_D[CAT],TA_26,D_D[EP],-1, D_D[LOC],$A24),0) -> 0 | S24: =IFERROR(SUMIFS(D_D[INV],D_D[MT],7,D_D[CAT],2,D_D[EP],TA_20, D_D[LOC],$A24),0) -> 0
A25: 331 | B25: St. Louis | C25: =IFERROR(SUMIFS(D_D[INV],D_D[MT],1,D_D[CAT],TA_20,D_D[EP],-1, D_D[LOC],$A25),0) -> 4161 | D25: =IFERROR(SUMIFS(D_D[ADP],D_D[MT],1,D_D[CAT],D$1,D_D[EP],-1, D_D[LOC],$A25),0) -> 89.98 | E25: =IFERROR(SUMIFS(D_D[INV],D_D[MT],2,D_D[CAT],TA_21,D_D[EP],-1, D_D[LOC],$A25),0) -> 14693 | F25: =IFERROR(SUMIFS(D_D[BL],D_D[MT],2,D_D[CAT],TA_21,D_D[EP],-1, D_D[LOC],$A25),0) -> 5607 | G25: 0.3816102906 | H25: =IFERROR(SUMIFS(D_D[INV],D_D[MT],2,D_D[CAT],TA_22,D_D[EP],-1, D_D[LOC],$A25),0) -> 6952 | I25: =IFERROR(SUMIFS(D_D[BL],D_D[MT],2,D_D[CAT],TA_22,D_D[EP],-1, D_D[LOC],$A25),0) -> 1178 | J25: 0.169447641 | K25: =IFERROR(SUMIFS(D_D[INV],D_D[MT],2,D_D[CAT],TA_23,D_D[EP],-1, D_D[LOC],$A25),0) -> 330 | L25: =IFERROR(SUMIFS(D_D[BL],D_D[MT],2,D_D[CAT],TA_23,D_D[EP],-1, D_D[LOC],$A25),0) -> 61 | M25: 0.1848484848 | N25: =IFERROR(SUMIFS(D_D[INV],D_D[MT],2,D_D[CAT],TA_24,D_D[EP],-1, D_D[LOC],$A25),0) -> 807 | O25: =IFERROR(SUMIFS(D_D[BL],D_D[MT],2,D_D[CAT],TA_24,D_D[EP],-1, D_D[LOC],$A25),0) -> 396 | P25: 0.4907063197 | Q25: =IFERROR(SUMIFS(D_D[INV],D_D[MT],2,D_D[CAT],TA_25,D_D[EP],-1, D_D[LOC],$A25),0) -> 240 | R25: =IFERROR(SUMIFS(D_D[INV],D_D[MT],2,D_D[CAT],TA_26,D_D[EP],-1, D_D[LOC],$A25),0) -> 2 | S25: =IFERROR(SUMIFS(D_D[INV],D_D[MT],7,D_D[CAT],2,D_D[EP],TA_20, D_D[LOC],$A25),0) -> 1
A26: 402 | B26: Togus | C26: =IFERROR(SUMIFS(D_D[INV],D_D[MT],1,D_D[CAT],TA_20,D_D[EP],-1, D_D[LOC],$A26),0) -> 1127 | D26: =IFERROR(SUMIFS(D_D[ADP],D_D[MT],1,D_D[CAT],D$1,D_D[EP],-1, D_D[LOC],$A26),0) -> 84.88 | E26: =IFERROR(SUMIFS(D_D[INV],D_D[MT],2,D_D[CAT],TA_21,D_D[EP],-1, D_D[LOC],$A26),0) -> 3771 | F26: =IFERROR(SUMIFS(D_D[BL],D_D[MT],2,D_D[CAT],TA_21,D_D[EP],-1, D_D[LOC],$A26),0) -> 1617 | G26: 0.4287987271 | H26: =IFERROR(SUMIFS(D_D[INV],D_D[MT],2,D_D[CAT],TA_22,D_D[EP],-1, D_D[LOC],$A26),0) -> 2157 | I26: =IFERROR(SUMIFS(D_D[BL],D_D[MT],2,D_D[CAT],TA_22,D_D[EP],-1, D_D[LOC],$A26),0) -> 407 | J26: 0.1886879926 | K26: =IFERROR(SUMIFS(D_D[INV],D_D[MT],2,D_D[CAT],TA_23,D_D[EP],-1, D_D[LOC],$A26),0) -> 39 | L26: =IFERROR(SUMIFS(D_D[BL],D_D[MT],2,D_D[CAT],TA_23,D_D[EP],-1, D_D[LOC],$A26),0) -> 14 | M26: 0.358974359 | N26: =IFERROR(SUMIFS(D_D[INV],D_D[MT],2,D_D[CAT],TA_24,D_D[EP],-1, D_D[LOC],$A26),0) -> 277 | O26: =IFERROR(SUMIFS(D_D[BL],D_D[MT],2,D_D[CAT],TA_24,D_D[EP],-1, D_D[LOC],$A26),0) -> 170 | P26: 0.6137184116 | Q26: =IFERROR(SUMIFS(D_D[INV],D_D[MT],2,D_D[CAT],TA_25,D_D[EP],-1, D_D[LOC],$A26),0) -> 63 | R26: =IFERROR(SUMIFS(D_D[INV],D_D[MT],2,D_D[CAT],TA_26,D_D[EP],-1, D_D[LOC],$A26),0) -> 14 | S26: =IFERROR(SUMIFS(D_D[INV],D_D[MT],7,D_D[CAT],2,D_D[EP],TA_20, D_D[LOC],$A26),0) -> 1
A27: 372 | B27: Washington | C27: =IFERROR(SUMIFS(D_D[INV],D_D[MT],1,D_D[CAT],TA_20,D_D[EP],-1, D_D[LOC],$A27),0) -> 926 | D27: =IFERROR(SUMIFS(D_D[ADP],D_D[MT],1,D_D[CAT],D$1,D_D[EP],-1, D_D[LOC],$A27),0) -> 138.46 | E27: =IFERROR(SUMIFS(D_D[INV],D_D[MT],2,D_D[CAT],TA_21,D_D[EP],-1, D_D[LOC],$A27),0) -> 342 | F27: =IFERROR(SUMIFS(D_D[BL],D_D[MT],2,D_D[CAT],TA_21,D_D[EP],-1, D_D[LOC],$A27),0) -> 164 | G27: 0.4795321637 | H27: =IFERROR(SUMIFS(D_D[INV],D_D[MT],2,D_D[CAT],TA_22,D_D[EP],-1, D_D[LOC],$A27),0) -> 1058 | I27: =IFERROR(SUMIFS(D_D[BL],D_D[MT],2,D_D[CAT],TA_22,D_D[EP],-1, D_D[LOC],$A27),0) -> 631 | J27: 0.5964083176 | K27: =IFERROR(SUMIFS(D_D[INV],D_D[MT],2,D_D[CAT],TA_23,D_D[EP],-1, D_D[LOC],$A27),0) -> 16 | L27: =IFERROR(SUMIFS(D_D[BL],D_D[MT],2,D_D[CAT],TA_23,D_D[EP],-1, D_D[LOC],$A27),0) -> 8 | M27: 0.5 | N27: =IFERROR(SUMIFS(D_D[INV],D_D[MT],2,D_D[CAT],TA_24,D_D[EP],-1, D_D[LOC],$A27),0) -> 145 | O27: =IFERROR(SUMIFS(D_D[BL],D_D[MT],2,D_D[CAT],TA_24,D_D[EP],-1, D_D[LOC],$A27),0) -> 100 | P27: 0.6896551724 | Q27: =IFERROR(SUMIFS(D_D[INV],D_D[MT],2,D_D[CAT],TA_25,D_D[EP],-1, D_D[LOC],$A27),0) -> 1 | R27: =IFERROR(SUMIFS(D_D[INV],D_D[MT],2,D_D[CAT],TA_26,D_D[EP],-1, D_D[LOC],$A27),0) -> 0 | S27: =IFERROR(SUMIFS(D_D[INV],D_D[MT],7,D_D[CAT],2,D_D[EP],TA_20, D_D[LOC],$A27),0) -> 0
A28: 405 | B28: White River Junction | C28: =IFERROR(SUMIFS(D_D[INV],D_D[MT],1,D_D[CAT],TA_20,D_D[EP],-1, D_D[LOC],$A28),0) -> 270 | D28: =IFERROR(SUMIFS(D_D[ADP],D_D[MT],1,D_D[CAT],D$1,D_D[EP],-1, D_D[LOC],$A28),0) -> 88.97 | E28: =IFERROR(SUMIFS(D_D[INV],D_D[MT],2,D_D[CAT],TA_21,D_D[EP],-1, D_D[LOC],$A28),0) -> 875 | F28: =IFERROR(SUMIFS(D_D[BL],D_D[MT],2,D_D[CAT],TA_21,D_D[EP],-1, D_D[LOC],$A28),0) -> 416 | G28: 0.4754285714 | H28: =IFERROR(SUMIFS(D_D[INV],D_D[MT],2,D_D[CAT],TA_22,D_D[EP],-1, D_D[LOC],$A28),0) -> 573 | I28: =IFERROR(SUMIFS(D_D[BL],D_D[MT],2,D_D[CAT],TA_22,D_D[EP],-1, D_D[LOC],$A28),0) -> 73 | J28: 0.127399651 | K28: =IFERROR(SUMIFS(D_D[INV],D_D[MT],2,D_D[CAT],TA_23,D_D[EP],-1, D_D[LOC],$A28),0) -> 14 | L28: =IFERROR(SUMIFS(D_D[BL],D_D[MT],2,D_D[CAT],TA_23,D_D[EP],-1, D_D[LOC],$A28),0) -> 4 | M28: 0.2857142857 | N28: =IFERROR(SUMIFS(D_D[INV],D_D[MT],2,D_D[CAT],TA_24,D_D[EP],-1, D_D[LOC],$A28),0) -> 28 | O28: =IFERROR(SUMIFS(D_D[BL],D_D[MT],2,D_D[CAT],TA_24,D_D[EP],-1, D_D[LOC],$A28),0) -> 18 | P28: 0.6428571429 | Q28: =IFERROR(SUMIFS(D_D[INV],D_D[MT],2,D_D[CAT],TA_25,D_D[EP],-1, D_D[LOC],$A28),0) -> 11 | R28: =IFERROR(SUMIFS(D_D[INV],D_D[MT],2,D_D[CAT],TA_26,D_D[EP],-1, D_D[LOC],$A28),0) -> 1 | S28: =IFERROR(SUMIFS(D_D[INV],D_D[MT],7,D_D[CAT],2,D_D[EP],TA_20, D_D[LOC],$A28),0) -> 0
A29: 460 | B29: Wilmington | C29: =IFERROR(SUMIFS(D_D[INV],D_D[MT],1,D_D[CAT],TA_20,D_D[EP],-1, D_D[LOC],$A29),0) -> 630 | D29: =IFERROR(SUMIFS(D_D[ADP],D_D[MT],1,D_D[CAT],D$1,D_D[EP],-1, D_D[LOC],$A29),0) -> 82.96 | E29: =IFERROR(SUMIFS(D_D[INV],D_D[MT],2,D_D[CAT],TA_21,D_D[EP],-1, D_D[LOC],$A29),0) -> 2327 | F29: =IFERROR(SUMIFS(D_D[BL],D_D[MT],2,D_D[CAT],TA_21,D_D[EP],-1, D_D[LOC],$A29),0) -> 969 | G29: 0.4164159862 | H29: =IFERROR(SUMIFS(D_D[INV],D_D[MT],2,D_D[CAT],TA_22,D_D[EP],-1, D_D[LOC],$A29),0) -> 1177 | I29: =IFERROR(SUMIFS(D_D[BL],D_D[MT],2,D_D[CAT],TA_22,D_D[EP],-1, D_D[LOC],$A29),0) -> 139 | J29: 0.1180968564 | K29: =IFERROR(SUMIFS(D_D[INV],D_D[MT],2,D_D[CAT],TA_23,D_D[EP],-1, D_D[LOC],$A29),0) -> 48 | L29: =IFERROR(SUMIFS(D_D[BL],D_D[MT],2,D_D[CAT],TA_23,D_D[EP],-1, D_D[LOC],$A29),0) -> 8 | M29: 0.1666666667 | N29: =IFERROR(SUMIFS(D_D[INV],D_D[MT],2,D_D[CAT],TA_24,D_D[EP],-1, D_D[LOC],$A29),0) -> 58 | O29: =IFERROR(SUMIFS(D_D[BL],D_D[MT],2,D_D[CAT],TA_24,D_D[EP],-1, D_D[LOC],$A29),0) -> 38 | P29: 0.6551724138 | Q29: =IFERROR(SUMIFS(D_D[INV],D_D[MT],2,D_D[CAT],TA_25,D_D[EP],-1, D_D[LOC],$A29),0) -> 26 | R29: =IFERROR(SUMIFS(D_D[INV],D_D[MT],2,D_D[CAT],TA_26,D_D[EP],-1, D_D[LOC],$A29),0) -> 1 | S29: =IFERROR(SUMIFS(D_D[INV],D_D[MT],7,D_D[CAT],2,D_D[EP],TA_20, D_D[LOC],$A29),0) -> 0
A30: 393 | B30: Southeast | C30: =IFERROR(SUMIFS(D_D[INV],D_D[MT],1,D_D[CAT],TA_20,D_D[EP],-1, D_D[LOC],$A30),0) -> 91460 | D30: =IFERROR(SUMIFS(D_D[ADP],D_D[MT],1,D_D[CAT],D$1,D_D[EP],-1, D_D[LOC],$A30),0) -> 87.6 | E30: =IFERROR(SUMIFS(D_D[INV],D_D[MT],2,D_D[CAT],TA_21,D_D[EP],-1, D_D[LOC],$A30),0) -> 290259 | F30: =IFERROR(SUMIFS(D_D[BL],D_D[MT],2,D_D[CAT],TA_21,D_D[EP],-1, D_D[LOC],$A30),0) -> 108842 | G30: 0.3749823434 | H30: =IFERROR(SUMIFS(D_D[INV],D_D[MT],2,D_D[CAT],TA_22,D_D[EP],-1, D_D[LOC],$A30),0) -> 159581 | I30: =IFERROR(SUMIFS(D_D[BL],D_D[MT],2,D_D[CAT],TA_22,D_D[EP],-1, D_D[LOC],$A30),0) -> 32203 | J30: 0.2017972064 | K30: =IFERROR(SUMIFS(D_D[INV],D_D[MT],2,D_D[CAT],TA_23,D_D[EP],-1, D_D[LOC],$A30),0) -> 4292 | L30: =IFERROR(SUMIFS(D_D[BL],D_D[MT],2,D_D[CAT],TA_23,D_D[EP],-1, D_D[LOC],$A30),0) -> 1376 | M30: 0.3205964585 | N30: =IFERROR(SUMIFS(D_D[INV],D_D[MT],2,D_D[CAT],TA_24,D_D[EP],-1, D_D[LOC],$A30),0) -> 14453 | O30: =IFERROR(SUMIFS(D_D[BL],D_D[MT],2,D_D[CAT],TA_24,D_D[EP],-1, D_D[LOC],$A30),0) -> 6699 | P30: 0.463502387 | Q30: =IFERROR(SUMIFS(D_D[INV],D_D[MT],2,D_D[CAT],TA_25,D_D[EP],-1, D_D[LOC],$A30),0) -> 3057 | R30: =IFERROR(SUMIFS(D_D[INV],D_D[MT],2,D_D[CAT],TA_26,D_D[EP],-1, D_D[LOC],$A30),0) -> 102 | S30: =IFERROR(SUMIFS(D_D[INV],D_D[MT],7,D_D[CAT],2,D_D[EP],TA_20, D_D[LOC],$A30),0) -> 645
A31: 316 | B31: Atlanta | C31: =IFERROR(SUMIFS(D_D[INV],D_D[MT],1,D_D[CAT],TA_20,D_D[EP],-1, D_D[LOC],$A31),0) -> 11538 | D31: =IFERROR(SUMIFS(D_D[ADP],D_D[MT],1,D_D[CAT],D$1,D_D[EP],-1, D_D[LOC],$A31),0) -> 89.47 | E31: =IFERROR(SUMIFS(D_D[INV],D_D[MT],2,D_D[CAT],TA_21,D_D[EP],-1, D_D[LOC],$A31),0) -> 38720 | F31: =IFERROR(SUMIFS(D_D[BL],D_D[MT],2,D_D[CAT],TA_21,D_D[EP],-1, D_D[LOC],$A31),0) -> 14811 | G31: 0.3825154959 | H31: =IFERROR(SUMIFS(D_D[INV],D_D[MT],2,D_D[CAT],TA_22,D_D[EP],-1, D_D[LOC],$A31),0) -> 17254 | I31: =IFERROR(SUMIFS(D_D[BL],D_D[MT],2,D_D[CAT],TA_22,D_D[EP],-1, D_D[LOC],$A31),0) -> 3037 | J31: 0.1760171554 | K31: =IFERROR(SUMIFS(D_D[INV],D_D[MT],2,D_D[CAT],TA_23,D_D[EP],-1, D_D[LOC],$A31),0) -> 777 | L31: =IFERROR(SUMIFS(D_D[BL],D_D[MT],2,D_D[CAT],TA_23,D_D[EP],-1, D_D[LOC],$A31),0) -> 169 | M31: 0.2175032175 | N31: =IFERROR(SUMIFS(D_D[INV],D_D[MT],2,D_D[CAT],TA_24,D_D[EP],-1, D_D[LOC],$A31),0) -> 1557 | O31: =IFERROR(SUMIFS(D_D[BL],D_D[MT],2,D_D[CAT],TA_24,D_D[EP],-1, D_D[LOC],$A31),0) -> 782 | P31: 0.5022479127 | Q31: =IFERROR(SUMIFS(D_D[INV],D_D[MT],2,D_D[CAT],TA_25,D_D[EP],-1, D_D[LOC],$A31),0) -> 318 | R31: =IFERROR(SUMIFS(D_D[INV],D_D[MT],2,D_D[CAT],TA_26,D_D[EP],-1, D_D[LOC],$A31),0) -> 4 | S31: =IFERROR(SUMIFS(D_D[INV],D_D[MT],7,D_D[CAT],2,D_D[EP],TA_20, D_D[LOC],$A31),0) -> 5
A32: 319 | B32: Columbia | C32: =IFERROR(SUMIFS(D_D[INV],D_D[MT],1,D_D[CAT],TA_20,D_D[EP],-1, D_D[LOC],$A32),0) -> 7582 | D32: =IFERROR(SUMIFS(D_D[ADP],D_D[MT],1,D_D[CAT],D$1,D_D[EP],-1, D_D[LOC],$A32),0) -> 74.29 | E32: =IFERROR(SUMIFS(D_D[INV],D_D[MT],2,D_D[CAT],TA_21,D_D[EP],-1, D_D[LOC],$A32),0) -> 20509 | F32: =IFERROR(SUMIFS(D_D[BL],D_D[MT],2,D_D[CAT],TA_21,D_D[EP],-1, D_D[LOC],$A32),0) -> 7324 | G32: =IFERROR(F32/E32,"0%") -> 0.357111512 | H32: =IFERROR(SUMIFS(D_D[INV],D_D[MT],2,D_D[CAT],TA_22,D_D[EP],-1, D_D[LOC],$A32),0) -> 11297 | I32: =IFERROR(SUMIFS(D_D[BL],D_D[MT],2,D_D[CAT],TA_22,D_D[EP],-1, D_D[LOC],$A32),0) -> 1541 | J32: =IFERROR(I32/H32,"0%") -> 0.1364078959 | K32: =IFERROR(SUMIFS(D_D[INV],D_D[MT],2,D_D[CAT],TA_23,D_D[EP],-1, D_D[LOC],$A32),0) -> 166 | L32: =IFERROR(SUMIFS(D_D[BL],D_D[MT],2,D_D[CAT],TA_23,D_D[EP],-1, D_D[LOC],$A32),0) -> 72 | M32: =IFERROR(L32/K32,"0%") -> 0.4337349398 | N32: =IFERROR(SUMIFS(D_D[INV],D_D[MT],2,D_D[CAT],TA_24,D_D[EP],-1, D_D[LOC],$A32),0) -> 849 | O32: =IFERROR(SUMIFS(D_D[BL],D_D[MT],2,D_D[CAT],TA_24,D_D[EP],-1, D_D[LOC],$A32),0) -> 426 | P32: =IFERROR(O32/N32,"0%") -> 0.5017667845 | Q32: =IFERROR(SUMIFS(D_D[INV],D_D[MT],2,D_D[CAT],TA_25,D_D[EP],-1, D_D[LOC],$A32),0) -> 258 | R32: =IFERROR(SUMIFS(D_D[INV],D_D[MT],2,D_D[CAT],TA_26,D_D[EP],-1, D_D[LOC],$A32),0) -> 5 | S32: =IFERROR(SUMIFS(D_D[INV],D_D[MT],7,D_D[CAT],2,D_D[EP],TA_20, D_D[LOC],$A32),0) -> 1
A33: 315 | B33: Huntington | C33: =IFERROR(SUMIFS(D_D[INV],D_D[MT],1,D_D[CAT],TA_20,D_D[EP],-1, D_D[LOC],$A33),0) -> 1544 | D33: =IFERROR(SUMIFS(D_D[ADP],D_D[MT],1,D_D[CAT],D$1,D_D[EP],-1, D_D[LOC],$A33),0) -> 95.87 | E33: =IFERROR(SUMIFS(D_D[INV],D_D[MT],2,D_D[CAT],TA_21,D_D[EP],-1, D_D[LOC],$A33),0) -> 5588 | F33: =IFERROR(SUMIFS(D_D[BL],D_D[MT],2,D_D[CAT],TA_21,D_D[EP],-1, D_D[LOC],$A33),0) -> 2533 | G33: 0.4532927702 | H33: =IFERROR(SUMIFS(D_D[INV],D_D[MT],2,D_D[CAT],TA_22,D_D[EP],-1, D_D[LOC],$A33),0) -> 2643 | I33: =IFERROR(SUMIFS(D_D[BL],D_D[MT],2,D_D[CAT],TA_22,D_D[EP],-1, D_D[LOC],$A33),0) -> 594 | J33: 0.2247446084 | K33: =IFERROR(SUMIFS(D_D[INV],D_D[MT],2,D_D[CAT],TA_23,D_D[EP],-1, D_D[LOC],$A33),0) -> 57 | L33: =IFERROR(SUMIFS(D_D[BL],D_D[MT],2,D_D[CAT],TA_23,D_D[EP],-1, D_D[LOC],$A33),0) -> 10 | M33: 0.1754385965 | N33: =IFERROR(SUMIFS(D_D[INV],D_D[MT],2,D_D[CAT],TA_24,D_D[EP],-1, D_D[LOC],$A33),0) -> 294 | O33: =IFERROR(SUMIFS(D_D[BL],D_D[MT],2,D_D[CAT],TA_24,D_D[EP],-1, D_D[LOC],$A33),0) -> 187 | P33: 0.6360544218 | Q33: =IFERROR(SUMIFS(D_D[INV],D_D[MT],2,D_D[CAT],TA_25,D_D[EP],-1, D_D[LOC],$A33),0) -> 54 | R33: =IFERROR(SUMIFS(D_D[INV],D_D[MT],2,D_D[CAT],TA_26,D_D[EP],-1, D_D[LOC],$A33),0) -> 13 | S33: =IFERROR(SUMIFS(D_D[INV],D_D[MT],7,D_D[CAT],2,D_D[EP],TA_20, D_D[LOC],$A33),0) -> 0
A34: 323 | B34: Jackson | C34: =IFERROR(SUMIFS(D_D[INV],D_D[MT],1,D_D[CAT],TA_20,D_D[EP],-1, D_D[LOC],$A34),0) -> 2782 | D34: =IFERROR(SUMIFS(D_D[ADP],D_D[MT],1,D_D[CAT],D$1,D_D[EP],-1, D_D[LOC],$A34),0) -> 93.78 | E34: =IFERROR(SUMIFS(D_D[INV],D_D[MT],2,D_D[CAT],TA_21,D_D[EP],-1, D_D[LOC],$A34),0) -> 10905 | F34: =IFERROR(SUMIFS(D_D[BL],D_D[MT],2,D_D[CAT],TA_21,D_D[EP],-1, D_D[LOC],$A34),0) -> 4343 | G34: 0.39825768 | H34: =IFERROR(SUMIFS(D_D[INV],D_D[MT],2,D_D[CAT],TA_22,D_D[EP],-1, D_D[LOC],$A34),0) -> 4802 | I34: =IFERROR(SUMIFS(D_D[BL],D_D[MT],2,D_D[CAT],TA_22,D_D[EP],-1, D_D[LOC],$A34),0) -> 839 | J34: 0.1747188671 | K34: =IFERROR(SUMIFS(D_D[INV],D_D[MT],2,D_D[CAT],TA_23,D_D[EP],-1, D_D[LOC],$A34),0) -> 75 | L34: =IFERROR(SUMIFS(D_D[BL],D_D[MT],2,D_D[CAT],TA_23,D_D[EP],-1, D_D[LOC],$A34),0) -> 30 | M34: 0.4 | N34: =IFERROR(SUMIFS(D_D[INV],D_D[MT],2,D_D[CAT],TA_24,D_D[EP],-1, D_D[LOC],$A34),0) -> 423 | O34: =IFERROR(SUMIFS(D_D[BL],D_D[MT],2,D_D[CAT],TA_24,D_D[EP],-1, D_D[LOC],$A34),0) -> 229 | P34: 0.5413711584 | Q34: =IFERROR(SUMIFS(D_D[INV],D_D[MT],2,D_D[CAT],TA_25,D_D[EP],-1, D_D[LOC],$A34),0) -> 69 | R34: =IFERROR(SUMIFS(D_D[INV],D_D[MT],2,D_D[CAT],TA_26,D_D[EP],-1, D_D[LOC],$A34),0) -> 4 | S34: =IFERROR(SUMIFS(D_D[INV],D_D[MT],7,D_D[CAT],2,D_D[EP],TA_20, D_D[LOC],$A34),0) -> 247
A35: 350 | B35: Little Rock | C35: =IFERROR(SUMIFS(D_D[INV],D_D[MT],1,D_D[CAT],TA_20,D_D[EP],-1, D_D[LOC],$A35),0) -> 2660 | D35: =IFERROR(SUMIFS(D_D[ADP],D_D[MT],1,D_D[CAT],D$1,D_D[EP],-1, D_D[LOC],$A35),0) -> 90.75 | E35: =IFERROR(SUMIFS(D_D[INV],D_D[MT],2,D_D[CAT],TA_21,D_D[EP],-1, D_D[LOC],$A35),0) -> 9037 | F35: =IFERROR(SUMIFS(D_D[BL],D_D[MT],2,D_D[CAT],TA_21,D_D[EP],-1, D_D[LOC],$A35),0) -> 3627 | G35: 0.4013500055 | H35: =IFERROR(SUMIFS(D_D[INV],D_D[MT],2,D_D[CAT],TA_22,D_D[EP],-1, D_D[LOC],$A35),0) -> 6367 | I35: =IFERROR(SUMIFS(D_D[BL],D_D[MT],2,D_D[CAT],TA_22,D_D[EP],-1, D_D[LOC],$A35),0) -> 2286 | J35: 0.3590387938 | K35: =IFERROR(SUMIFS(D_D[INV],D_D[MT],2,D_D[CAT],TA_23,D_D[EP],-1, D_D[LOC],$A35),0) -> 77 | L35: =IFERROR(SUMIFS(D_D[BL],D_D[MT],2,D_D[CAT],TA_23,D_D[EP],-1, D_D[LOC],$A35),0) -> 31 | M35: 0.4025974026 | N35: =IFERROR(SUMIFS(D_D[INV],D_D[MT],2,D_D[CAT],TA_24,D_D[EP],-1, D_D[LOC],$A35),0) -> 386 | O35: =IFERROR(SUMIFS(D_D[BL],D_D[MT],2,D_D[CAT],TA_24,D_D[EP],-1, D_D[LOC],$A35),0) -> 253 | P35: 0.6554404145 | Q35: =IFERROR(SUMIFS(D_D[INV],D_D[MT],2,D_D[CAT],TA_25,D_D[EP],-1, D_D[LOC],$A35),0) -> 104 | R35: =IFERROR(SUMIFS(D_D[INV],D_D[MT],2,D_D[CAT],TA_26,D_D[EP],-1, D_D[LOC],$A35),0) -> 6 | S35: =IFERROR(SUMIFS(D_D[INV],D_D[MT],7,D_D[CAT],2,D_D[EP],TA_20, D_D[LOC],$A35),0) -> 0
A36: 327 | B36: Louisville | C36: =IFERROR(SUMIFS(D_D[INV],D_D[MT],1,D_D[CAT],TA_20,D_D[EP],-1, D_D[LOC],$A36),0) -> 4768 | D36: =IFERROR(SUMIFS(D_D[ADP],D_D[MT],1,D_D[CAT],D$1,D_D[EP],-1, D_D[LOC],$A36),0) -> 81.17 | E36: =IFERROR(SUMIFS(D_D[INV],D_D[MT],2,D_D[CAT],TA_21,D_D[EP],-1, D_D[LOC],$A36),0) -> 10669 | F36: =IFERROR(SUMIFS(D_D[BL],D_D[MT],2,D_D[CAT],TA_21,D_D[EP],-1, D_D[LOC],$A36),0) -> 4439 | G36: 0.4160652357 | H36: =IFERROR(SUMIFS(D_D[INV],D_D[MT],2,D_D[CAT],TA_22,D_D[EP],-1, D_D[LOC],$A36),0) -> 6793 | I36: =IFERROR(SUMIFS(D_D[BL],D_D[MT],2,D_D[CAT],TA_22,D_D[EP],-1, D_D[LOC],$A36),0) -> 1020 | J36: 0.1501545709 | K36: =IFERROR(SUMIFS(D_D[INV],D_D[MT],2,D_D[CAT],TA_23,D_D[EP],-1, D_D[LOC],$A36),0) -> 133 | L36: =IFERROR(SUMIFS(D_D[BL],D_D[MT],2,D_D[CAT],TA_23,D_D[EP],-1, D_D[LOC],$A36),0) -> 47 | M36: 0.3533834586 | N36: =IFERROR(SUMIFS(D_D[INV],D_D[MT],2,D_D[CAT],TA_24,D_D[EP],-1, D_D[LOC],$A36),0) -> 393 | O36: =IFERROR(SUMIFS(D_D[BL],D_D[MT],2,D_D[CAT],TA_24,D_D[EP],-1, D_D[LOC],$A36),0) -> 247 | P36: 0.6284987277 | Q36: =IFERROR(SUMIFS(D_D[INV],D_D[MT],2,D_D[CAT],TA_25,D_D[EP],-1, D_D[LOC],$A36),0) -> 126 | R36: =IFERROR(SUMIFS(D_D[INV],D_D[MT],2,D_D[CAT],TA_26,D_D[EP],-1, D_D[LOC],$A36),0) -> 18 | S36: =IFERROR(SUMIFS(D_D[INV],D_D[MT],7,D_D[CAT],2,D_D[EP],TA_20, D_D[LOC],$A36),0) -> 352
A37: 322 | B37: Montgomery | C37: =IFERROR(SUMIFS(D_D[INV],D_D[MT],1,D_D[CAT],TA_20,D_D[EP],-1, D_D[LOC],$A37),0) -> 5468 | D37: =IFERROR(SUMIFS(D_D[ADP],D_D[MT],1,D_D[CAT],D$1,D_D[EP],-1, D_D[LOC],$A37),0) -> 87.92 | E37: =IFERROR(SUMIFS(D_D[INV],D_D[MT],2,D_D[CAT],TA_21,D_D[EP],-1, D_D[LOC],$A37),0) -> 17991 | F37: =IFERROR(SUMIFS(D_D[BL],D_D[MT],2,D_D[CAT],TA_21,D_D[EP],-1, D_D[LOC],$A37),0) -> 7300 | G37: 0.4057584348 | H37: =IFERROR(SUMIFS(D_D[INV],D_D[MT],2,D_D[CAT],TA_22,D_D[EP],-1, D_D[LOC],$A37),0) -> 8518 | I37: =IFERROR(SUMIFS(D_D[BL],D_D[MT],2,D_D[CAT],TA_22,D_D[EP],-1, D_D[LOC],$A37),0) -> 1364 | J37: 0.1601314863 | K37: =IFERROR(SUMIFS(D_D[INV],D_D[MT],2,D_D[CAT],TA_23,D_D[EP],-1, D_D[LOC],$A37),0) -> 227 | L37: =IFERROR(SUMIFS(D_D[BL],D_D[MT],2,D_D[CAT],TA_23,D_D[EP],-1, D_D[LOC],$A37),0) -> 70 | M37: 0.3083700441 | N37: =IFERROR(SUMIFS(D_D[INV],D_D[MT],2,D_D[CAT],TA_24,D_D[EP],-1, D_D[LOC],$A37),0) -> 618 | O37: =IFERROR(SUMIFS(D_D[BL],D_D[MT],2,D_D[CAT],TA_24,D_D[EP],-1, D_D[LOC],$A37),0) -> 255 | P37: 0.4126213592 | Q37: =IFERROR(SUMIFS(D_D[INV],D_D[MT],2,D_D[CAT],TA_25,D_D[EP],-1, D_D[LOC],$A37),0) -> 223 | R37: =IFERROR(SUMIFS(D_D[INV],D_D[MT],2,D_D[CAT],TA_26,D_D[EP],-1, D_D[LOC],$A37),0) -> 0 | S37: =IFERROR(SUMIFS(D_D[INV],D_D[MT],7,D_D[CAT],2,D_D[EP],TA_20, D_D[LOC],$A37),0) -> 2
A38: 320 | B38: Nashville | C38: =IFERROR(SUMIFS(D_D[INV],D_D[MT],1,D_D[CAT],TA_20,D_D[EP],-1, D_D[LOC],$A38),0) -> 6777 | D38: =IFERROR(SUMIFS(D_D[ADP],D_D[MT],1,D_D[CAT],D$1,D_D[EP],-1, D_D[LOC],$A38),0) -> 93.27 | E38: =IFERROR(SUMIFS(D_D[INV],D_D[MT],2,D_D[CAT],TA_21,D_D[EP],-1, D_D[LOC],$A38),0) -> 19331 | F38: =IFERROR(SUMIFS(D_D[BL],D_D[MT],2,D_D[CAT],TA_21,D_D[EP],-1, D_D[LOC],$A38),0) -> 7042 | G38: 0.3642853448 | H38: =IFERROR(SUMIFS(D_D[INV],D_D[MT],2,D_D[CAT],TA_22,D_D[EP],-1, D_D[LOC],$A38),0) -> 18031 | I38: =IFERROR(SUMIFS(D_D[BL],D_D[MT],2,D_D[CAT],TA_22,D_D[EP],-1, D_D[LOC],$A38),0) -> 6988 | J38: 0.3875547668 | K38: =IFERROR(SUMIFS(D_D[INV],D_D[MT],2,D_D[CAT],TA_23,D_D[EP],-1, D_D[LOC],$A38),0) -> 549 | L38: =IFERROR(SUMIFS(D_D[BL],D_D[MT],2,D_D[CAT],TA_23,D_D[EP],-1, D_D[LOC],$A38),0) -> 95 | M38: 0.1730418944 | N38: =IFERROR(SUMIFS(D_D[INV],D_D[MT],2,D_D[CAT],TA_24,D_D[EP],-1, D_D[LOC],$A38),0) -> 807 | O38: =IFERROR(SUMIFS(D_D[BL],D_D[MT],2,D_D[CAT],TA_24,D_D[EP],-1, D_D[LOC],$A38),0) -> 488 | P38: 0.604708798 | Q38: =IFERROR(SUMIFS(D_D[INV],D_D[MT],2,D_D[CAT],TA_25,D_D[EP],-1, D_D[LOC],$A38),0) -> 224 | R38: =IFERROR(SUMIFS(D_D[INV],D_D[MT],2,D_D[CAT],TA_26,D_D[EP],-1, D_D[LOC],$A38),0) -> 15 | S38: =IFERROR(SUMIFS(D_D[INV],D_D[MT],7,D_D[CAT],2,D_D[EP],TA_20, D_D[LOC],$A38),0) -> 6
A39: 321 | B39: New Orleans | C39: =IFERROR(SUMIFS(D_D[INV],D_D[MT],1,D_D[CAT],TA_20,D_D[EP],-1, D_D[LOC],$A39),0) -> 3697 | D39: =IFERROR(SUMIFS(D_D[ADP],D_D[MT],1,D_D[CAT],D$1,D_D[EP],-1, D_D[LOC],$A39),0) -> 87.11 | E39: =IFERROR(SUMIFS(D_D[INV],D_D[MT],2,D_D[CAT],TA_21,D_D[EP],-1, D_D[LOC],$A39),0) -> 14254 | F39: =IFERROR(SUMIFS(D_D[BL],D_D[MT],2,D_D[CAT],TA_21,D_D[EP],-1, D_D[LOC],$A39),0) -> 5617 | G39: 0.3940648239 | H39: =IFERROR(SUMIFS(D_D[INV],D_D[MT],2,D_D[CAT],TA_22,D_D[EP],-1, D_D[LOC],$A39),0) -> 6442 | I39: =IFERROR(SUMIFS(D_D[BL],D_D[MT],2,D_D[CAT],TA_22,D_D[EP],-1, D_D[LOC],$A39),0) -> 887 | J39: 0.1376901583 | K39: =IFERROR(SUMIFS(D_D[INV],D_D[MT],2,D_D[CAT],TA_23,D_D[EP],-1, D_D[LOC],$A39),0) -> 309 | L39: =IFERROR(SUMIFS(D_D[BL],D_D[MT],2,D_D[CAT],TA_23,D_D[EP],-1, D_D[LOC],$A39),0) -> 62 | M39: 0.2006472492 | N39: =IFERROR(SUMIFS(D_D[INV],D_D[MT],2,D_D[CAT],TA_24,D_D[EP],-1, D_D[LOC],$A39),0) -> 767 | O39: =IFERROR(SUMIFS(D_D[BL],D_D[MT],2,D_D[CAT],TA_24,D_D[EP],-1, D_D[LOC],$A39),0) -> 236 | P39: 0.3076923077 | Q39: =IFERROR(SUMIFS(D_D[INV],D_D[MT],2,D_D[CAT],TA_25,D_D[EP],-1, D_D[LOC],$A39),0) -> 153 | R39: =IFERROR(SUMIFS(D_D[INV],D_D[MT],2,D_D[CAT],TA_26,D_D[EP],-1, D_D[LOC],$A39),0) -> 5 | S39: =IFERROR(SUMIFS(D_D[INV],D_D[MT],7,D_D[CAT],2,D_D[EP],TA_20, D_D[LOC],$A39),0) -> 3
A40: 314 | B40: Roanoke | C40: =IFERROR(SUMIFS(D_D[INV],D_D[MT],1,D_D[CAT],TA_20,D_D[EP],-1, D_D[LOC],$A40),0) -> 12520 | D40: =IFERROR(SUMIFS(D_D[ADP],D_D[MT],1,D_D[CAT],D$1,D_D[EP],-1, D_D[LOC],$A40),0) -> 87.68 | E40: =IFERROR(SUMIFS(D_D[INV],D_D[MT],2,D_D[CAT],TA_21,D_D[EP],-1, D_D[LOC],$A40),0) -> 33678 | F40: =IFERROR(SUMIFS(D_D[BL],D_D[MT],2,D_D[CAT],TA_21,D_D[EP],-1, D_D[LOC],$A40),0) -> 12926 | G40: 0.3838113902 | H40: =IFERROR(SUMIFS(D_D[INV],D_D[MT],2,D_D[CAT],TA_22,D_D[EP],-1, D_D[LOC],$A40),0) -> 19273 | I40: =IFERROR(SUMIFS(D_D[BL],D_D[MT],2,D_D[CAT],TA_22,D_D[EP],-1, D_D[LOC],$A40),0) -> 2974 | J40: 0.1543091371 | K40: =IFERROR(SUMIFS(D_D[INV],D_D[MT],2,D_D[CAT],TA_23,D_D[EP],-1, D_D[LOC],$A40),0) -> 499 | L40: =IFERROR(SUMIFS(D_D[BL],D_D[MT],2,D_D[CAT],TA_23,D_D[EP],-1, D_D[LOC],$A40),0) -> 256 | M40: 0.5130260521 | N40: =IFERROR(SUMIFS(D_D[INV],D_D[MT],2,D_D[CAT],TA_24,D_D[EP],-1, D_D[LOC],$A40),0) -> 991 | O40: =IFERROR(SUMIFS(D_D[BL],D_D[MT],2,D_D[CAT],TA_24,D_D[EP],-1, D_D[LOC],$A40),0) -> 605 | P40: 0.6104944501 | Q40: =IFERROR(SUMIFS(D_D[INV],D_D[MT],2,D_D[CAT],TA_25,D_D[EP],-1, D_D[LOC],$A40),0) -> 273 | R40: =IFERROR(SUMIFS(D_D[INV],D_D[MT],2,D_D[CAT],TA_26,D_D[EP],-1, D_D[LOC],$A40),0) -> 4 | S40: =IFERROR(SUMIFS(D_D[INV],D_D[MT],7,D_D[CAT],2,D_D[EP],TA_20, D_D[LOC],$A40),0) -> 2
A41: 355 | B41: San Juan | C41: =IFERROR(SUMIFS(D_D[INV],D_D[MT],1,D_D[CAT],TA_20,D_D[EP],-1, D_D[LOC],$A41),0) -> 1522 | D41: =IFERROR(SUMIFS(D_D[ADP],D_D[MT],1,D_D[CAT],D$1,D_D[EP],-1, D_D[LOC],$A41),0) -> 89.13 | E41: =IFERROR(SUMIFS(D_D[INV],D_D[MT],2,D_D[CAT],TA_21,D_D[EP],-1, D_D[LOC],$A41),0) -> 6551 | F41: =IFERROR(SUMIFS(D_D[BL],D_D[MT],2,D_D[CAT],TA_21,D_D[EP],-1, D_D[LOC],$A41),0) -> 2294 | G41: 0.3501755457 | H41: =IFERROR(SUMIFS(D_D[INV],D_D[MT],2,D_D[CAT],TA_22,D_D[EP],-1, D_D[LOC],$A41),0) -> 5362 | I41: =IFERROR(SUMIFS(D_D[BL],D_D[MT],2,D_D[CAT],TA_22,D_D[EP],-1, D_D[LOC],$A41),0) -> 610 | J41: 0.1137635211 | K41: =IFERROR(SUMIFS(D_D[INV],D_D[MT],2,D_D[CAT],TA_23,D_D[EP],-1, D_D[LOC],$A41),0) -> 163 | L41: =IFERROR(SUMIFS(D_D[BL],D_D[MT],2,D_D[CAT],TA_23,D_D[EP],-1, D_D[LOC],$A41),0) -> 19 | M41: 0.1165644172 | N41: =IFERROR(SUMIFS(D_D[INV],D_D[MT],2,D_D[CAT],TA_24,D_D[EP],-1, D_D[LOC],$A41),0) -> 551 | O41: =IFERROR(SUMIFS(D_D[BL],D_D[MT],2,D_D[CAT],TA_24,D_D[EP],-1, D_D[LOC],$A41),0) -> 239 | P41: 0.4337568058 | Q41: =IFERROR(SUMIFS(D_D[INV],D_D[MT],2,D_D[CAT],TA_25,D_D[EP],-1, D_D[LOC],$A41),0) -> 86 | R41: =IFERROR(SUMIFS(D_D[INV],D_D[MT],2,D_D[CAT],TA_26,D_D[EP],-1, D_D[LOC],$A41),0) -> 3 | S41: =IFERROR(SUMIFS(D_D[INV],D_D[MT],7,D_D[CAT],2,D_D[EP],TA_20, D_D[LOC],$A41),0) -> 0
A42: 317 | B42: St. Petersburg | C42: =IFERROR(SUMIFS(D_D[INV],D_D[MT],1,D_D[CAT],TA_20,D_D[EP],-1, D_D[LOC],$A42),0) -> 17634 | D42: =IFERROR(SUMIFS(D_D[ADP],D_D[MT],1,D_D[CAT],D$1,D_D[EP],-1, D_D[LOC],$A42),0) -> 86.21 | E42: =IFERROR(SUMIFS(D_D[INV],D_D[MT],2,D_D[CAT],TA_21,D_D[EP],-1, D_D[LOC],$A42),0) -> 65903 | F42: =IFERROR(SUMIFS(D_D[BL],D_D[MT],2,D_D[CAT],TA_21,D_D[EP],-1, D_D[LOC],$A42),0) -> 23306 | G42: 0.3536409572 | H42: =IFERROR(SUMIFS(D_D[INV],D_D[MT],2,D_D[CAT],TA_22,D_D[EP],-1, D_D[LOC],$A42),0) -> 27649 | I42: =IFERROR(SUMIFS(D_D[BL],D_D[MT],2,D_D[CAT],TA_22,D_D[EP],-1, D_D[LOC],$A42),0) -> 4393 | J42: 0.158884589 | K42: =IFERROR(SUMIFS(D_D[INV],D_D[MT],2,D_D[CAT],TA_23,D_D[EP],-1, D_D[LOC],$A42),0) -> 783 | L42: =IFERROR(SUMIFS(D_D[BL],D_D[MT],2,D_D[CAT],TA_23,D_D[EP],-1, D_D[LOC],$A42),0) -> 270 | M42: 0.3448275862 | N42: =IFERROR(SUMIFS(D_D[INV],D_D[MT],2,D_D[CAT],TA_24,D_D[EP],-1, D_D[LOC],$A42),0) -> 5465 | O42: =IFERROR(SUMIFS(D_D[BL],D_D[MT],2,D_D[CAT],TA_24,D_D[EP],-1, D_D[LOC],$A42),0) -> 1980 | P42: 0.362305581 | Q42: =IFERROR(SUMIFS(D_D[INV],D_D[MT],2,D_D[CAT],TA_25,D_D[EP],-1, D_D[LOC],$A42),0) -> 726 | R42: =IFERROR(SUMIFS(D_D[INV],D_D[MT],2,D_D[CAT],TA_26,D_D[EP],-1, D_D[LOC],$A42),0) -> 15 | S42: =IFERROR(SUMIFS(D_D[INV],D_D[MT],7,D_D[CAT],2,D_D[EP],TA_20, D_D[LOC],$A42),0) -> 27
A43: 318 | B43: Winston-Salem | C43: =IFERROR(SUMIFS(D_D[INV],D_D[MT],1,D_D[CAT],TA_20,D_D[EP],-1, D_D[LOC],$A43),0) -> 12968 | D43: =IFERROR(SUMIFS(D_D[ADP],D_D[MT],1,D_D[CAT],D$1,D_D[EP],-1, D_D[LOC],$A43),0) -> 91.81 | E43: =IFERROR(SUMIFS(D_D[INV],D_D[MT],2,D_D[CAT],TA_21,D_D[EP],-1, D_D[LOC],$A43),0) -> 37123 | F43: =IFERROR(SUMIFS(D_D[BL],D_D[MT],2,D_D[CAT],TA_21,D_D[EP],-1, D_D[LOC],$A43),0) -> 13280 | G43: 0.3577297093 | H43: =IFERROR(SUMIFS(D_D[INV],D_D[MT],2,D_D[CAT],TA_22,D_D[EP],-1, D_D[LOC],$A43),0) -> 25150 | I43: =IFERROR(SUMIFS(D_D[BL],D_D[MT],2,D_D[CAT],TA_22,D_D[EP],-1, D_D[LOC],$A43),0) -> 5670 | J43: 0.2254473161 | K43: =IFERROR(SUMIFS(D_D[INV],D_D[MT],2,D_D[CAT],TA_23,D_D[EP],-1, D_D[LOC],$A43),0) -> 477 | L43: =IFERROR(SUMIFS(D_D[BL],D_D[MT],2,D_D[CAT],TA_23,D_D[EP],-1, D_D[LOC],$A43),0) -> 245 | M43: 0.5136268344 | N43: =IFERROR(SUMIFS(D_D[INV],D_D[MT],2,D_D[CAT],TA_24,D_D[EP],-1, D_D[LOC],$A43),0) -> 1352 | O43: =IFERROR(SUMIFS(D_D[BL],D_D[MT],2,D_D[CAT],TA_24,D_D[EP],-1, D_D[LOC],$A43),0) -> 772 | P43: 0.5710059172 | Q43: =IFERROR(SUMIFS(D_D[INV],D_D[MT],2,D_D[CAT],TA_25,D_D[EP],-1, D_D[LOC],$A43),0) -> 443 | R43: =IFERROR(SUMIFS(D_D[INV],D_D[MT],2,D_D[CAT],TA_26,D_D[EP],-1, D_D[LOC],$A43),0) -> 10 | S43: =IFERROR(SUMIFS(D_D[INV],D_D[MT],7,D_D[CAT],2,D_D[EP],TA_20, D_D[LOC],$A43),0) -> 0
A44: 384 | B44: Continental | C44: =IFERROR(SUMIFS(D_D[INV],D_D[MT],1,D_D[CAT],TA_20,D_D[EP],-1, D_D[LOC],$A44),0) -> 54939 | D44: =IFERROR(SUMIFS(D_D[ADP],D_D[MT],1,D_D[CAT],D$1,D_D[EP],-1, D_D[LOC],$A44),0) -> 87.72 | E44: =IFERROR(SUMIFS(D_D[INV],D_D[MT],2,D_D[CAT],TA_21,D_D[EP],-1, D_D[LOC],$A44),0) -> 162260 | F44: =IFERROR(SUMIFS(D_D[BL],D_D[MT],2,D_D[CAT],TA_21,D_D[EP],-1, D_D[LOC],$A44),0) -> 62115 | G44: 0.382811537 | H44: =IFERROR(SUMIFS(D_D[INV],D_D[MT],2,D_D[CAT],TA_22,D_D[EP],-1, D_D[LOC],$A44),0) -> 120285 | I44: =IFERROR(SUMIFS(D_D[BL],D_D[MT],2,D_D[CAT],TA_22,D_D[EP],-1, D_D[LOC],$A44),0) -> 32277 | J44: 0.268337698 | K44: =IFERROR(SUMIFS(D_D[INV],D_D[MT],2,D_D[CAT],TA_23,D_D[EP],-1, D_D[LOC],$A44),0) -> 2479 | L44: =IFERROR(SUMIFS(D_D[BL],D_D[MT],2,D_D[CAT],TA_23,D_D[EP],-1, D_D[LOC],$A44),0) -> 849 | M44: 0.3424768052 | N44: =IFERROR(SUMIFS(D_D[INV],D_D[MT],2,D_D[CAT],TA_24,D_D[EP],-1, D_D[LOC],$A44),0) -> 7396 | O44: =IFERROR(SUMIFS(D_D[BL],D_D[MT],2,D_D[CAT],TA_24,D_D[EP],-1, D_D[LOC],$A44),0) -> 4484 | P44: 0.6062736614 | Q44: =IFERROR(SUMIFS(D_D[INV],D_D[MT],2,D_D[CAT],TA_25,D_D[EP],-1, D_D[LOC],$A44),0) -> 2273 | R44: =IFERROR(SUMIFS(D_D[INV],D_D[MT],2,D_D[CAT],TA_26,D_D[EP],-1, D_D[LOC],$A44),0) -> 128 | S44: =IFERROR(SUMIFS(D_D[INV],D_D[MT],7,D_D[CAT],2,D_D[EP],TA_20, D_D[LOC],$A44),0) -> 250
